Workbook

Sheet Directions
A1: State of Nevada Salary Projections
A2: Version 2012.04
A4: Instructions | D4: Changes from version 2011.01 include:
A5: Enable Macros when this file is opened. | D5: Corrected formula for total forecast in [01]A41 that was double counting information
A6: Select the following link: | D6: Corrected error in FTE count calculation in Group Insur GL 5500 when no data entered
B7: http://dawn12.state.nv.us:7778/pls/prodsw/inb_bbls_input | D7: Corrected formulas to eliminate error displays when no data entered
A8: Enter the appropriate budget account | D8: Deleted eroneous number in [01]AS35
A9: Select [Generate Report]
A10: Select [Obligations & Receipt/Funding Transaction Details] | D10: Changes from version 2009.05 include:
A11: Select [Generate Report] | D11: Fixed a runtime error that occurred for some users
A12: Select [Open] | D12: Corrected Nevada Day error that created incorrect pay period information
A13: Click the button below: | D13: Added multiple codes for extra pays and total forecast pay column
D14: Added comments to explain rate calculations and forecasts
D15: Corrected rate calculation for worker's compensation
D16: Added split rate for worker's compensation to allow for calendar year change
D17: Entered FTE adjustment column for AEGIS
A18: ="If there is an error in cell "&ADDRESS(ROW('01'!A39),COLUMN('01'!A39),4)&" on the [01] tab, do the following:" -> If there is an error in cell A39 on the [01] tab, do the following: | D18: Changed REGI Rate calculation to autocalculate based on last four pay periods
B19: Select [Tools] | D19: Added split rate for unemployment compensation to allow for calendar year change
B20: Select [Add-Ins] | D20: Corrected Medicare rate calculation error
B21: Select the checkbox next to [Analysis ToolPak] and [Analysis ToolPak - VBA] | D21: Added terminal leave and furlough adjustments
B22: Select [OK] | D22: Added programming to automatically add GLs that are not in basic report after column BI
D23: Added object codes
A24: On the [01] tab, items in yellow should be entered manually | D24: Cleaned up conditional formatting
A26: *** WARNING ***
A27: Formulas in forecast columns are based on a specific agency's expenditure patterns and may vary by agency. Some forecasts are based on the average of all expenditures for the year; some expenditures are based on the average of the last 4 pay periods of expenditures; others are based on percentages of other object codes (these percentages may need to be changed mid-year should rates change). Verify forecast methods are valid for your agency and ensure boxes in yellow are up to date.

Sheet BSRDetail
A1: Fiscal Year | B1: Budget Acct | C1: Category | D1: Doc Number | E1: Date | F1: Object | G1: Object Desciption | H1: Amount | I1: Acct Type | J1: Vendor Name | K1: Line Description
A3: 2017 | B3: 2895 | C3: 1 | D3: JV 332 CNT6560077R | E3: 2016-07-13 | F3: 5500 | G3: GROUP INSURANCE | H3: 1398.5 | I3: 22
A4: 2017 | B4: 2895 | C4: 1 | D4: JV 332 CNT6590883 | E4: 2016-07-15 | F4: 5100 | G4: SALARIES | H4: 457.84 | I4: 22
A5: 2017 | B5: 2895 | C5: 1 | D5: JV 332 CNT6590883 | E5: 2016-07-15 | F5: 5301 | G5: 0 | H5: 66.39 | I5: 22
A6: 2017 | B6: 2895 | C6: 1 | D6: JV 332 CNT6590883 | E6: 2016-07-15 | F6: 5200 | G6: WORKERS COMPENSATION | H6: 3.92 | I6: 22
A7: 2017 | B7: 2895 | C7: 1 | D7: JV 332 CNT6590883 | E7: 2016-07-15 | F7: 5840 | G7: MEDICARE | H7: 6.64 | I7: 22
A8: 2017 | B8: 2895 | C8: 1 | D8: JV 332 CNT6590883 | E8: 2016-07-15 | F8: 5800 | G8: UNEMPLOYMENT COMPENSATION | H8: 0.32 | I8: 22
A9: 2017 | B9: 2895 | C9: 1 | D9: JV 332 CNT6590883 | E9: 2016-07-15 | F9: 5750 | G9: RETIRED EMPLOYEES GROUP INSURA | H9: 9.75 | I9: 22
A10: 2017 | B10: 2895 | C10: 1 | D10: JV 332 CNT6620351 | E10: 2016-07-29 | F10: 5610 | G10: SICK LEAVES | H10: 248.16 | I10: 22
A11: 2017 | B11: 2895 | C11: 1 | D11: JV 332 CNT6620351 | E11: 2016-07-29 | F11: 5301 | G11: 0 | H11: 663.87 | I11: 22
A12: 2017 | B12: 2895 | C12: 1 | D12: JV 332 CNT6620351 | E12: 2016-07-29 | F12: 5200 | G12: WORKERS COMPENSATION | H12: 39.21 | I12: 22
A13: 2017 | B13: 2895 | C13: 1 | D13: JV 332 CNT6620351 | E13: 2016-07-29 | F13: 5100 | G13: SALARIES | H13: 4037.84 | I13: 22
A14: 2017 | B14: 2895 | C14: 1 | D14: JV 332 CNT6620351 | E14: 2016-07-29 | F14: 5840 | G14: MEDICARE | H14: 66.38 | I14: 22
A15: 2017 | B15: 2895 | C15: 1 | D15: JV 332 CNT6620351 | E15: 2016-07-29 | F15: 5620 | G15: ANNUAL LEAVES | H15: 292.4 | I15: 22
A16: 2017 | B16: 2895 | C16: 1 | D16: JV 332 CNT6620351 | E16: 2016-07-29 | F16: 5800 | G16: UNEMPLOYMENT COMPENSATION | H16: 3.21 | I16: 22
A17: 2017 | B17: 2895 | C17: 1 | D17: JV 332 CNT6620351 | E17: 2016-07-29 | F17: 5750 | G17: RETIRED EMPLOYEES GROUP INSURA | H17: 108.05 | I17: 22
A18: 2017 | B18: 2895 | C18: 1 | D18: JV 332 CNT6650179 | E18: 2016-08-12 | F18: 5840 | G18: MEDICARE | H18: 62.55 | I18: 22
A19: 2017 | B19: 2895 | C19: 1 | D19: JV 332 CNT6650179 | E19: 2016-08-12 | F19: 5800 | G19: UNEMPLOYMENT COMPENSATION | H19: 3.21 | I19: 22
A20: 2017 | B20: 2895 | C20: 1 | D20: JV 332 CNT6650179 | E20: 2016-08-12 | F20: 5620 | G20: ANNUAL LEAVES | H20: 453.75 | I20: 22
A21: 2017 | B21: 2895 | C21: 1 | D21: JV 332 CNT6650179 | E21: 2016-08-12 | F21: 5610 | G21: SICK LEAVES | H21: 109.65 | I21: 22
A22: 2017 | B22: 2895 | C22: 1 | D22: JV 332 CNT6650179 | E22: 2016-08-12 | F22: 5500 | G22: GROUP INSURANCE | H22: 1398.5 | I22: 22
A23: 2017 | B23: 2895 | C23: 1 | D23: JV 332 CNT6650179 | E23: 2016-08-12 | F23: 5301 | G23: 0 | H23: 663.87 | I23: 22
A24: 2017 | B24: 2895 | C24: 1 | D24: JV 332 CNT6650179 | E24: 2016-08-12 | F24: 5200 | G24: WORKERS COMPENSATION | H24: 39.21 | I24: 22
A25: 2017 | B25: 2895 | C25: 1 | D25: JV 332 CNT6650179 | E25: 2016-08-12 | F25: 5100 | G25: SALARIES | H25: 4015 | I25: 22
A26: 2017 | B26: 2895 | C26: 1 | D26: JV 332 CNT6650179 | E26: 2016-08-12 | F26: 5750 | G26: RETIRED EMPLOYEES GROUP INSURA | H26: 108.05 | I26: 22
A27: 2017 | B27: 2895 | C27: 1 | D27: JV 332 CNT6680128 | E27: 2016-08-26 | F27: 5800 | G27: UNEMPLOYMENT COMPENSATION | H27: 3.21 | I27: 22
A28: 2017 | B28: 2895 | C28: 1 | D28: JV 332 CNT6680128 | E28: 2016-08-26 | F28: 5750 | G28: RETIRED EMPLOYEES GROUP INSURA | H28: 108.05 | I28: 22
A29: 2017 | B29: 2895 | C29: 1 | D29: JV 332 CNT6680128 | E29: 2016-08-26 | F29: 5620 | G29: ANNUAL LEAVES | H29: 292.4 | I29: 22
A30: 2017 | B30: 2895 | C30: 1 | D30: JV 332 CNT6680128 | E30: 2016-08-26 | F30: 5610 | G30: SICK LEAVES | H30: 51.7 | I30: 22
A31: 2017 | B31: 2895 | C31: 1 | D31: JV 332 CNT6680128 | E31: 2016-08-26 | F31: 5301 | G31: 0 | H31: 663.87 | I31: 22
A32: 2017 | B32: 2895 | C32: 1 | D32: JV 332 CNT6680128 | E32: 2016-08-26 | F32: 5200 | G32: WORKERS COMPENSATION | H32: 39.21 | I32: 22
A33: 2017 | B33: 2895 | C33: 1 | D33: JV 332 CNT6680128 | E33: 2016-08-26 | F33: 5840 | G33: MEDICARE | H33: 66.39 | I33: 22
A34: 2017 | B34: 2895 | C34: 1 | D34: JV 332 CNT6680128 | E34: 2016-08-26 | F34: 5100 | G34: SALARIES | H34: 4234.3 | I34: 22
A35: 2017 | B35: 2895 | C35: 1 | D35: PV 070 IIDHRM12771 | E35: 2016-09-08 | F35: 5700 | G35: PAYROLL ASSESSMENT | H35: 39.5 | I35: 22 | J35: Intragovernmental | K35: 1ST QTR PAYROLL ASSESS
A36: 2017 | B36: 2895 | C36: 1 | D36: JV 332 CNT6710121 | E36: 2016-09-09 | F36: 5301 | G36: 0 | H36: 974.05 | I36: 22
A37: 2017 | B37: 2895 | C37: 1 | D37: JV 332 CNT6710121 | E37: 2016-09-09 | F37: 5200 | G37: WORKERS COMPENSATION | H37: 89.91 | I37: 22
A38: 2017 | B38: 2895 | C38: 1 | D38: JV 332 CNT6710121 | E38: 2016-09-09 | F38: 5100 | G38: SALARIES | H38: 6645.22 | I38: 22
A39: 2017 | B39: 2895 | C39: 1 | D39: JV 332 CNT6710121 | E39: 2016-09-09 | F39: 5500 | G39: GROUP INSURANCE | H39: 1398.5 | I39: 22
A40: 2017 | B40: 2895 | C40: 1 | D40: JV 332 CNT6710121 | E40: 2016-09-09 | F40: 5840 | G40: MEDICARE | H40: 91.08 | I40: 22
A41: 2017 | B41: 2895 | C41: 1 | D41: JV 332 CNT6710121 | E41: 2016-09-09 | F41: 5800 | G41: UNEMPLOYMENT COMPENSATION | H41: 4.71 | I41: 22
A42: 2017 | B42: 2895 | C42: 1 | D42: JV 332 CNT6710121 | E42: 2016-09-09 | F42: 5750 | G42: RETIRED EMPLOYEES GROUP INSURA | H42: 158.54 | I42: 22
A43: 2017 | B43: 2895 | C43: 1 | D43: JV 332 CNT6710121 | E43: 2016-09-09 | F43: 5620 | G43: ANNUAL LEAVES | H43: 72.38 | I43: 22
A44: 2017 | B44: 2895 | C44: 1 | D44: PV 070 IIDHRM13987 | E44: 2016-09-22 | F44: 5400 | G44: PERSONNEL ASSESSMENT | H44: 168.75 | I44: 22 | J44: Intragovernmental | K44: 1ST QTR PERSONNEL ASSESS
A45: 2017 | B45: 2895 | C45: 1 | D45: JV 332 CNT6740796 | E45: 2016-09-23 | F45: 5840 | G45: MEDICARE | H45: 97.41 | I45: 22
A46: 2017 | B46: 2895 | C46: 1 | D46: JV 332 CNT6740796 | E46: 2016-09-23 | F46: 5800 | G46: UNEMPLOYMENT COMPENSATION | H46: 4.71 | I46: 22
A47: 2017 | B47: 2895 | C47: 1 | D47: JV 332 CNT6740796 | E47: 2016-09-23 | F47: 5750 | G47: RETIRED EMPLOYEES GROUP INSURA | H47: 158.54 | I47: 22
A48: 2017 | B48: 2895 | C48: 1 | D48: JV 332 CNT6740796 | E48: 2016-09-23 | F48: 5620 | G48: ANNUAL LEAVES | H48: 292.4 | I48: 22
A49: 2017 | B49: 2895 | C49: 1 | D49: JV 332 CNT6740796 | E49: 2016-09-23 | F49: 5301 | G49: 0 | H49: 974.05 | I49: 22
A50: 2017 | B50: 2895 | C50: 1 | D50: JV 332 CNT6740796 | E50: 2016-09-23 | F50: 5100 | G50: SALARIES | H50: 6425.2 | I50: 22
A51: 2017 | B51: 2895 | C51: 1 | D51: JV 332 CNT6740796 | E51: 2016-09-23 | F51: 5200 | G51: WORKERS COMPENSATION | H51: 46.28 | I51: 22
A52: 2017 | B52: 2895 | C52: 1 | D52: JV 332 CNT6770078 | E52: 2016-10-07 | F52: 5301 | G52: 0 | H52: 974.05 | I52: 22
A53: 2017 | B53: 2895 | C53: 1 | D53: JV 332 CNT6770078 | E53: 2016-10-07 | F53: 5100 | G53: SALARIES | H53: 5604.02 | I53: 22
A54: 2017 | B54: 2895 | C54: 1 | D54: JV 332 CNT6770078 | E54: 2016-10-07 | F54: 5200 | G54: WORKERS COMPENSATION | H54: 39.21 | I54: 22
A55: 2017 | B55: 2895 | C55: 1 | D55: JV 332 CNT6770078 | E55: 2016-10-07 | F55: 5840 | G55: MEDICARE | H55: 93.58 | I55: 22
A56: 2017 | B56: 2895 | C56: 1 | D56: JV 332 CNT6770078 | E56: 2016-10-07 | F56: 5500 | G56: GROUP INSURANCE | H56: 699.25 | I56: 22
A57: 2017 | B57: 2895 | C57: 1 | D57: JV 332 CNT6770078 | E57: 2016-10-07 | F57: 5610 | G57: SICK LEAVES | H57: 217.14 | I57: 22
A58: 2017 | B58: 2895 | C58: 1 | D58: JV 332 CNT6770078 | E58: 2016-10-07 | F58: 5620 | G58: ANNUAL LEAVES | H58: 896.44 | I58: 22
A59: 2017 | B59: 2895 | C59: 1 | D59: JV 332 CNT6770078 | E59: 2016-10-07 | F59: 5750 | G59: RETIRED EMPLOYEES GROUP INSURA | H59: 158.54 | I59: 22
A60: 2017 | B60: 2895 | C60: 1 | D60: JV 332 CNT6770078 | E60: 2016-10-07 | F60: 5800 | G60: UNEMPLOYMENT COMPENSATION | H60: 4.71 | I60: 22

Sheet 01
A1: 2017 | B1: 2895 | C1: Days in FY | D1: 5100 | E1: 5610 | F1: 5620 | G1: 5630 | H1: 5640 | I1: 5650 | J1: Total Salaries and Leaves | N1: 5170 | O1: 5190 | P1: 5810 | Q1: 5820 | R1: 5830 | S1: 5870 | T1: 5880 | U1: 5881 | V1: 5910 | W1: 5940 | X1: 5980 | Y1: Total Extra Pays | AB1: Total Forecast Pay | AC1: 5200 | AF1: 5300 | AI1: 5400 | AK1: 5500 | AO1: 5700 | AQ1: 5750 | AT1: 5800 | AW1: 5840 | AZ1: 5860 | BC1: 5960 | BD1: 5970 | BG1: 5660 | BH1: 5120 | BJ1: 5301 | BL1: 7112 | BN1: 7046
A2: Friday Holidays | B2: Paydays | D2: =VLOOKUP(D1,Objects!$A$2:$B$1605,2,0) -> SALARIES | E2: =VLOOKUP(E1,Objects!$A$2:$B$1605,2,0) -> SICK LEAVES | F2: =VLOOKUP(F1,Objects!$A$2:$B$1605,2,0) -> ANNUAL LEAVES | G2: =VLOOKUP(G1,Objects!$A$2:$B$1605,2,0) -> HOLIDAY LEAVES | H2: =VLOOKUP(H1,Objects!$A$2:$B$1605,2,0) -> COMP TIME LEAVES | I2: =VLOOKUP(I1,Objects!$A$2:$B$1605,2,0) -> OTHER LEAVES | N2: =VLOOKUP(N1,Objects!$A$2:$B$1605,2,0) -> SEASONAL | O2: =VLOOKUP(O1,Objects!$A$2:$B$1605,2,0) -> SUPPLEMENTAL MILITARY PAY | P2: =VLOOKUP(P1,Objects!$A$2:$B$1605,2,0) -> OVERTIME PAY | Q2: =VLOOKUP(Q1,Objects!$A$2:$B$1605,2,0) -> HOLIDAY PAY | R2: =VLOOKUP(R1,Objects!$A$2:$B$1605,2,0) -> COMP TIME PAYOFF | S2: =VLOOKUP(S1,Objects!$A$2:$B$1605,2,0) -> OVERTIME SEASONAL | T2: =VLOOKUP(T1,Objects!$A$2:$B$1605,2,0) -> SHIFT DIFFERENTIAL PAY | U2: =VLOOKUP(U1,Objects!$A$2:$B$1605,2,0) -> REMOTE AREA DIFFERENTIAL PAY | V2: =VLOOKUP(V1,Objects!$A$2:$B$1605,2,0) -> STANDBY PAY | W2: =VLOOKUP(W1,Objects!$A$2:$B$1605,2,0) -> DANGEROUS DUTY PAY | X2: =VLOOKUP(X1,Objects!$A$2:$B$1605,2,0) -> CALL BACK PAY | AC2: =VLOOKUP(AC1,Objects!$A$2:$B$1605,2,0) -> WORKERS COMPENSATION | AF2: =VLOOKUP(AF1,Objects!$A$2:$B$1605,2,0) -> RETIREMENT | AI2: =VLOOKUP(AI1,Objects!$A$2:$B$1605,2,0) -> PERSONNEL ASSESSMENT | AK2: =VLOOKUP(AK1,Objects!$A$2:$B$1605,2,0) -> GROUP INSURANCE | AO2: =VLOOKUP(AO1,Objects!$A$2:$B$1605,2,0) -> PAYROLL ASSESSMENT | AQ2: =VLOOKUP(AQ1,Objects!$A$2:$B$1605,2,0) -> RETIRED EMPLOYEES GROUP INSURA | AT2: =VLOOKUP(AT1,Objects!$A$2:$B$1605,2,0) -> UNEMPLOYMENT COMPENSATION | AW2: =VLOOKUP(AW1,Objects!$A$2:$B$1605,2,0) -> MEDICARE | AZ2: =VLOOKUP(AZ1,Objects!$A$2:$B$1605,2,0) -> BOARD AND COMMISSION PAY | BC2: =VLOOKUP(BC1,Objects!$A$2:$B$1605,2,0) -> TERMINAL SICK LEAVE PAY | BD2: =VLOOKUP(BD1,Objects!$A$2:$B$1605,2,0) -> TERMINAL ANNUAL LEAVE PAY | BG2: =VLOOKUP(BG1,Objects!$A$2:$B$1605,2,0) -> FURLOUGH LEAVE | BH2: =VLOOKUP(BH1,Objects!$A$2:$B$1605,2,0) -> FURLOUGH ADJUSTMENTS | BI2: Total Furlough Adjustments | BJ2: =VLOOKUP(BJ1,BSRDetail!$F$2:$G$61,2,0) -> 0 | BL2: =VLOOKUP(BL1,BSRDetail!$F$2:$G$61,2,0) ->  | BN2: =VLOOKUP(BN1,BSRDetail!$F$2:$G$61,2,0) ->  | BP2: =VLOOKUP(BP1,BSRDetail!$F$2:$G$61,2,0) ->  | BR2: =VLOOKUP(BR1,BSRDetail!$F$2:$G$61,2,0) ->  | BT2: =VLOOKUP(BT1,BSRDetail!$F$2:$G$61,2,0) ->  | BV2: =VLOOKUP(BV1,BSRDetail!$F$2:$G$61,2,0) ->  | BX2: =VLOOKUP(BX1,BSRDetail!$F$2:$G$61,2,0) ->  | BZ2: =VLOOKUP(BZ1,BSRDetail!$F$2:$G$61,2,0) ->  | CB2: =VLOOKUP(CB1,BSRDetail!$F$2:$G$61,2,0) ->  | CD2: =VLOOKUP(CD1,BSRDetail!$F$2:$G$61,2,0) ->  | CF2: =VLOOKUP(CF1,BSRDetail!$F$2:$G$61,2,0) ->  | CH2: =VLOOKUP(CH1,BSRDetail!$F$2:$G$61,2,0) ->  | CJ2: =VLOOKUP(CJ1,BSRDetail!$F$2:$G$61,2,0) ->  | CL2: =VLOOKUP(CL1,BSRDetail!$F$2:$G$61,2,0) ->  | CN2: =VLOOKUP(CN1,BSRDetail!$F$2:$G$61,2,0) ->  | CP2: =VLOOKUP(CP1,BSRDetail!$F$2:$G$61,2,0) ->  | CR2: =VLOOKUP(CR1,BSRDetail!$F$2:$G$61,2,0) ->  | CT2: =VLOOKUP(CT1,BSRDetail!$F$2:$G$61,2,0) ->  | CV2: =VLOOKUP(CV1,BSRDetail!$F$2:$G$61,2,0) -> 
AC3: =TEXT($B$6,"m/d/yy")&" - "&TEXT(DATE(YEAR($B$6),12,31),"m/d/yy") -> 7/1/16 - 12/31/16 | AD3: 0.0288 | AK3: AEGIS Rate: | AL3: 701.73 | AT3: =TEXT($B$6,"m/d/yy")&" - "&TEXT(DATE(YEAR($B$6),12,31),"m/d/yy") -> 7/1/16 - 12/31/16 | AU3: 0.0013
AC4: =TEXT(DATE(YEAR($B$34),1,1),"m/d/yy")&" - "&TEXT(DATE(YEAR($B$7),6,30),"m/d/yy") -> 1/1/17 - 6/30/16 | AD4: 0.0237 | AM4: Adjusted | AT4: =TEXT(DATE(YEAR($B$34),1,1),"m/d/yy")&" - "&TEXT(DATE(YEAR($B$7),6,30),"m/d/yy") -> 1/1/17 - 6/30/16 | AU4: 0.0007 | BB4: 0
D5: Expended | E5: Expended | F5: Expended | G5: Expended | H5: Expended | I5: Expended | J5: Expended | K5: Forecast | L5: Adjustments | M5: Forecast | N5: Expended | O5: Expended | P5: Expended | Q5: Expended | R5: Expended | S5: Expended | T5: Expended | U5: Expended | V5: Expended | W5: Expended | X5: Expended | Y5: Expended | Z5: Adjustments | AA5: Forecast | AB5: Forecast | AC5: Expended | AD5: Rate | AE5: Forecast | AF5: Expended | AG5: Rate | AH5: Forecast | AI5: Expended | AJ5: Forecast | AK5: Expended | AL5: FTEs | AM5: FTEs | AN5: Forecast | AO5: Expended | AP5: Forecast | AQ5: Expended | AR5: Rate | AS5: Forecast | AT5: Expended | AU5: Rate | AV5: Forecast | AW5: Expended | AX5: Rate | AY5: Forecast | AZ5: Expended | BA5: Adjustments | BB5: Forecast | BC5: Expended | BD5: Expended | BE5: Adjustments | BF5: Forecast | BG5: Expended | BH5: Expended | BI5: Total | BJ5: Expended | BK5: Forecast | BL5: Expended | BM5: Forecast | BN5: Expended | BO5: Forecast | BP5: Expended | BQ5: Forecast | BR5: Expended | BS5: Forecast | BT5: Expended | BU5: Forecast | BV5: Expended | BW5: Forecast | BX5: Expended | BY5: Forecast | BZ5: Expended | CA5: Forecast | CB5: Expended | CC5: Forecast | CD5: Expended | CE5: Forecast | CF5: Expended | CG5: Forecast | CH5: Expended | CI5: Forecast | CJ5: Expended | CK5: Forecast | CL5: Expended | CM5: Forecast | CN5: Expended | CO5: Forecast | CP5: Expended | CQ5: Forecast | CR5: Expended | CS5: Forecast | CT5: Expended | CU5: Forecast | CV5: Expended | CW5: Forecast
B6: =DATE(A1-1,7,1) -> 2016-07-01 | D6: =SUM(BSRDetail!$H$2:$H$61*(BSRDetail!$A$2:$A$61=$A$1)*(BSRDetail!$F$2:$F$61=D$1)*(BSRDetail!$B$2:$B$61=$B$1)*(BSRDetail!$E$2:$E$61>=$B6)*(BSRDetail!$E$2:$E$61<$B7)) -> 457.84 | E6: =SUM(BSRDetail!$H$2:$H$61*(BSRDetail!$A$2:$A$61=$A$1)*(BSRDetail!$F$2:$F$61=E$1)*(BSRDetail!$B$2:$B$61=$B$1)*(BSRDetail!$E$2:$E$61>=$B6)*(BSRDetail!$E$2:$E$61<$B7)) -> 0 | F6: =SUM(BSRDetail!$H$2:$H$61*(BSRDetail!$A$2:$A$61=$A$1)*(BSRDetail!$F$2:$F$61=F$1)*(BSRDetail!$B$2:$B$61=$B$1)*(BSRDetail!$E$2:$E$61>=$B6)*(BSRDetail!$E$2:$E$61<$B7)) -> 0 | G6: =SUM(BSRDetail!$H$2:$H$61*(BSRDetail!$A$2:$A$61=$A$1)*(BSRDetail!$F$2:$F$61=G$1)*(BSRDetail!$B$2:$B$61=$B$1)*(BSRDetail!$E$2:$E$61>=$B6)*(BSRDetail!$E$2:$E$61<$B7)) -> 0 | H6: =SUM(BSRDetail!$H$2:$H$61*(BSRDetail!$A$2:$A$61=$A$1)*(BSRDetail!$F$2:$F$61=H$1)*(BSRDetail!$B$2:$B$61=$B$1)*(BSRDetail!$E$2:$E$61>=$B6)*(BSRDetail!$E$2:$E$61<$B7)) -> 0 | I6: =SUM(BSRDetail!$H$2:$H$61*(BSRDetail!$A$2:$A$61=$A$1)*(BSRDetail!$F$2:$F$61=I$1)*(BSRDetail!$B$2:$B$61=$B$1)*(BSRDetail!$E$2:$E$61>=$B6)*(BSRDetail!$E$2:$E$61<$B7)) -> 0 | J6: =SUM(D6:I6) -> 457.84 | K6: =J6 -> 457.84 | M6: =K6+L6 -> 457.84 | N6: =SUM(BSRDetail!$H$2:$H$61*(BSRDetail!$A$2:$A$61=$A$1)*(BSRDetail!$F$2:$F$61=N$1)*(BSRDetail!$B$2:$B$61=$B$1)*(BSRDetail!$E$2:$E$61>=$B6)*(BSRDetail!$E$2:$E$61<$B7)) -> 0 | O6: =SUM(BSRDetail!$H$2:$H$61*(BSRDetail!$A$2:$A$61=$A$1)*(BSRDetail!$F$2:$F$61=O$1)*(BSRDetail!$B$2:$B$61=$B$1)*(BSRDetail!$E$2:$E$61>=$B6)*(BSRDetail!$E$2:$E$61<$B7)) -> 0 | P6: =SUM(BSRDetail!$H$2:$H$61*(BSRDetail!$A$2:$A$61=$A$1)*(BSRDetail!$F$2:$F$61=P$1)*(BSRDetail!$B$2:$B$61=$B$1)*(BSRDetail!$E$2:$E$61>=$B6)*(BSRDetail!$E$2:$E$61<$B7)) -> 0 | Q6: =SUM(BSRDetail!$H$2:$H$61*(BSRDetail!$A$2:$A$61=$A$1)*(BSRDetail!$F$2:$F$61=Q$1)*(BSRDetail!$B$2:$B$61=$B$1)*(BSRDetail!$E$2:$E$61>=$B6)*(BSRDetail!$E$2:$E$61<$B7)) -> 0 | R6: =SUM(BSRDetail!$H$2:$H$61*(BSRDetail!$A$2:$A$61=$A$1)*(BSRDetail!$F$2:$F$61=R$1)*(BSRDetail!$B$2:$B$61=$B$1)*(BSRDetail!$E$2:$E$61>=$B6)*(BSRDetail!$E$2:$E$61<$B7)) -> 0 | S6: =SUM(BSRDetail!$H$2:$H$61*(BSRDetail!$A$2:$A$61=$A$1)*(BSRDetail!$F$2:$F$61=S$1)*(BSRDetail!$B$2:$B$61=$B$1)*(BSRDetail!$E$2:$E$61>=$B6)*(BSRDetail!$E$2:$E$61<$B7)) -> 0 | T6: =SUM(BSRDetail!$H$2:$H$61*(BSRDetail!$A$2:$A$61=$A$1)*(BSRDetail!$F$2:$F$61=T$1)*(BSRDetail!$B$2:$B$61=$B$1)*(BSRDetail!$E$2:$E$61>=$B6)*(BSRDetail!$E$2:$E$61<$B7)) -> 0 | U6: =SUM(BSRDetail!$H$2:$H$61*(BSRDetail!$A$2:$A$61=$A$1)*(BSRDetail!$F$2:$F$61=U$1)*(BSRDetail!$B$2:$B$61=$B$1)*(BSRDetail!$E$2:$E$61>=$B6)*(BSRDetail!$E$2:$E$61<$B7)) -> 0 | V6: =SUM(BSRDetail!$H$2:$H$61*(BSRDetail!$A$2:$A$61=$A$1)*(BSRDetail!$F$2:$F$61=V$1)*(BSRDetail!$B$2:$B$61=$B$1)*(BSRDetail!$E$2:$E$61>=$B6)*(BSRDetail!$E$2:$E$61<$B7)) -> 0 | W6: =SUM(BSRDetail!$H$2:$H$61*(BSRDetail!$A$2:$A$61=$A$1)*(BSRDetail!$F$2:$F$61=W$1)*(BSRDetail!$B$2:$B$61=$B$1)*(BSRDetail!$E$2:$E$61>=$B6)*(BSRDetail!$E$2:$E$61<$B7)) -> 0 | X6: =SUM(BSRDetail!$H$2:$H$61*(BSRDetail!$A$2:$A$61=$A$1)*(BSRDetail!$F$2:$F$61=X$1)*(BSRDetail!$B$2:$B$61=$B$1)*(BSRDetail!$E$2:$E$61>=$B6)*(BSRDetail!$E$2:$E$61<$B7)) -> 0 | Y6: =SUM(N6:X6) -> 0 | AC6: =SUM(BSRDetail!$H$2:$H$61*(BSRDetail!$A$2:$A$61=$A$1)*(BSRDetail!$F$2:$F$61=AC$1)*(BSRDetail!$B$2:$B$61=$B$1)*(BSRDetail!$E$2:$E$61>=$B6)*(BSRDetail!$E$2:$E$61<$B7)) -> 3.92 | AE6: =IF($D6=0,AB6*AD6,AC6) -> 3.92 | AF6: =SUM(BSRDetail!$H$2:$H$61*(BSRDetail!$A$2:$A$61=$A$1)*(BSRDetail!$F$2:$F$61=AF$1)*(BSRDetail!$B$2:$B$61=$B$1)*(BSRDetail!$E$2:$E$61>=$B6)*(BSRDetail!$E$2:$E$61<$B7)) -> 0 | AI6: =SUM(BSRDetail!$H$2:$H$61*(BSRDetail!$A$2:$A$61=$A$1)*(BSRDetail!$F$2:$F$61=AI$1)*(BSRDetail!$B$2:$B$61=$B$1)*(BSRDetail!$E$2:$E$61>=$B6)*(BSRDetail!$E$2:$E$61<$B7)) -> 0 | AJ6: =AI6 -> 0 | AK6: =SUM(BSRDetail!$H$2:$H$61*(BSRDetail!$A$2:$A$61=$A$1)*(BSRDetail!$F$2:$F$61=AK$1)*(BSRDetail!$B$2:$B$61=$B$1)*(BSRDetail!$E$2:$E$61>=$B6)*(BSRDetail!$E$2:$E$61<$B7)) -> 1398.5 | AM6: 0 | AN6: =IF(AK6=0,IF(AL6>0,IF(AM6>0,AM6,AL6)*$AL$3,0),AK6) -> 1398.5 | AO6: =SUM(BSRDetail!$H$2:$H$61*(BSRDetail!$A$2:$A$61=$A$1)*(BSRDetail!$F$2:$F$61=AO$1)*(BSRDetail!$B$2:$B$61=$B$1)*(BSRDetail!$E$2:$E$61>=$B6)*(BSRDetail!$E$2:$E$61<$B7)) -> 0 | AP6: =AO6 -> 0 | AQ6: =SUM(BSRDetail!$H$2:$H$61*(BSRDetail!$A$2:$A$61=$A$1)*(BSRDetail!$F$2:$F$61=AQ$1)*(BSRDetail!$B$2:$B$61=$B$1)*(BSRDetail!$E$2:$E$61>=$B6)*(BSRDetail!$E$2:$E$61<$B7)) -> 9.75 | AS6: =IF($D6=0,M6*AR6,AQ6) -> 9.75 | AT6: =SUM(BSRDetail!$H$2:$H$61*(BSRDetail!$A$2:$A$61=$A$1)*(BSRDetail!$F$2:$F$61=AT$1)*(BSRDetail!$B$2:$B$61=$B$1)*(BSRDetail!$E$2:$E$61>=$B6)*(BSRDetail!$E$2:$E$61<$B7)) -> 0.32 | AU6: =IF($B6-14<DATE(YEAR($B$6)+1,1,1),AU$3,AU$4) -> 0.0013 | AV6: =IF($D6=0,AB6*AU6,AT6) -> 0.32 | AW6: =SUM(BSRDetail!$H$2:$H$61*(BSRDetail!$A$2:$A$61=$A$1)*(BSRDetail!$F$2:$F$61=AW$1)*(BSRDetail!$B$2:$B$61=$B$1)*(BSRDetail!$E$2:$E$61>=$B6)*(BSRDetail!$E$2:$E$61<$B7)) -> 6.64 | AY6: =IF($D6=0,AB6*AX6,AW6) -> 6.64 | AZ6: =SUM(BSRDetail!$H$2:$H$61*(BSRDetail!$A$2:$A$61=$A$1)*(BSRDetail!$F$2:$F$61=AZ$1)*(BSRDetail!$B$2:$B$61=$B$1)*(BSRDetail!$E$2:$E$61>=$B6)*(BSRDetail!$E$2:$E$61<$B7)) -> 0 | BC6: =SUM(BSRDetail!$H$2:$H$61*(BSRDetail!$A$2:$A$61=$A$1)*(BSRDetail!$F$2:$F$61=BC$1)*(BSRDetail!$B$2:$B$61=$B$1)*(BSRDetail!$E$2:$E$61>=$B6)*(BSRDetail!$E$2:$E$61<$B7)) -> 0 | BD6: =SUM(BSRDetail!$H$2:$H$61*(BSRDetail!$A$2:$A$61=$A$1)*(BSRDetail!$F$2:$F$61=BD$1)*(BSRDetail!$B$2:$B$61=$B$1)*(BSRDetail!$E$2:$E$61>=$B6)*(BSRDetail!$E$2:$E$61<$B7)) -> 0 | BF6: =SUM(BC6:BE6) -> 0 | BG6: =SUM(BSRDetail!$H$2:$H$61*(BSRDetail!$A$2:$A$61=$A$1)*(BSRDetail!$F$2:$F$61=BG$1)*(BSRDetail!$B$2:$B$61=$B$1)*(BSRDetail!$E$2:$E$61>=$B6)*(BSRDetail!$E$2:$E$61<$B7)) -> 0 | BH6: =SUM(BSRDetail!$H$2:$H$61*(BSRDetail!$A$2:$A$61=$A$1)*(BSRDetail!$F$2:$F$61=BH$1)*(BSRDetail!$B$2:$B$61=$B$1)*(BSRDetail!$E$2:$E$61>=$B6)*(BSRDetail!$E$2:$E$61<$B7)) -> 0 | BI6: =SUM(BG6:BH6) -> 0 | BJ6: =SUM(BSRDetail!$H$2:$H$61*(BSRDetail!$A$2:$A$61=$A$1)*(BSRDetail!$F$2:$F$61=BJ$1)*(BSRDetail!$B$2:$B$61=$B$1)*(BSRDetail!$E$2:$E$61>=$B6)*(BSRDetail!$E$2:$E$61<$B7)) -> 66.39 | BK6: =BJ6 -> 66.39 | BL6: =SUM(BSRDetail!$H$2:$H$61*(BSRDetail!$A$2:$A$61=$A$1)*(BSRDetail!$F$2:$F$61=BL$1)*(BSRDetail!$B$2:$B$61=$B$1)*(BSRDetail!$E$2:$E$61>=$B6)*(BSRDetail!$E$2:$E$61<$B7)) -> 0 | BM6: =BL6 -> 0 | BN6: =SUM(BSRDetail!$H$2:$H$61*(BSRDetail!$A$2:$A$61=$A$1)*(BSRDetail!$F$2:$F$61=BN$1)*(BSRDetail!$B$2:$B$61=$B$1)*(BSRDetail!$E$2:$E$61>=$B6)*(BSRDetail!$E$2:$E$61<$B7)) -> 0 | BO6: =BN6 -> 0 | BP6: =SUM(BSRDetail!$H$2:$H$61*(BSRDetail!$A$2:$A$61=$A$1)*(BSRDetail!$F$2:$F$61=BP$1)*(BSRDetail!$B$2:$B$61=$B$1)*(BSRDetail!$E$2:$E$61>=$B6)*(BSRDetail!$E$2:$E$61<$B7)) -> 0 | BQ6: =BP6 -> 0 | BR6: =SUM(BSRDetail!$H$2:$H$61*(BSRDetail!$A$2:$A$61=$A$1)*(BSRDetail!$F$2:$F$61=BR$1)*(BSRDetail!$B$2:$B$61=$B$1)*(BSRDetail!$E$2:$E$61>=$B6)*(BSRDetail!$E$2:$E$61<$B7)) -> 0 | BS6: =BR6 -> 0 | BT6: =SUM(BSRDetail!$H$2:$H$61*(BSRDetail!$A$2:$A$61=$A$1)*(BSRDetail!$F$2:$F$61=BT$1)*(BSRDetail!$B$2:$B$61=$B$1)*(BSRDetail!$E$2:$E$61>=$B6)*(BSRDetail!$E$2:$E$61<$B7)) -> 0 | BU6: =BT6 -> 0 | BV6: =SUM(BSRDetail!$H$2:$H$61*(BSRDetail!$A$2:$A$61=$A$1)*(BSRDetail!$F$2:$F$61=BV$1)*(BSRDetail!$B$2:$B$61=$B$1)*(BSRDetail!$E$2:$E$61>=$B6)*(BSRDetail!$E$2:$E$61<$B7)) -> 0 | BW6: =BV6 -> 0 | BX6: =SUM(BSRDetail!$H$2:$H$61*(BSRDetail!$A$2:$A$61=$A$1)*(BSRDetail!$F$2:$F$61=BX$1)*(BSRDetail!$B$2:$B$61=$B$1)*(BSRDetail!$E$2:$E$61>=$B6)*(BSRDetail!$E$2:$E$61<$B7)) -> 0 | BY6: =BX6 -> 0 | BZ6: =SUM(BSRDetail!$H$2:$H$61*(BSRDetail!$A$2:$A$61=$A$1)*(BSRDetail!$F$2:$F$61=BZ$1)*(BSRDetail!$B$2:$B$61=$B$1)*(BSRDetail!$E$2:$E$61>=$B6)*(BSRDetail!$E$2:$E$61<$B7)) -> 0 | CA6: =BZ6 -> 0 | CB6: =SUM(BSRDetail!$H$2:$H$61*(BSRDetail!$A$2:$A$61=$A$1)*(BSRDetail!$F$2:$F$61=CB$1)*(BSRDetail!$B$2:$B$61=$B$1)*(BSRDetail!$E$2:$E$61>=$B6)*(BSRDetail!$E$2:$E$61<$B7)) -> 0 | CC6: =CB6 -> 0 | CD6: =SUM(BSRDetail!$H$2:$H$61*(BSRDetail!$A$2:$A$61=$A$1)*(BSRDetail!$F$2:$F$61=CD$1)*(BSRDetail!$B$2:$B$61=$B$1)*(BSRDetail!$E$2:$E$61>=$B6)*(BSRDetail!$E$2:$E$61<$B7)) -> 0 | CE6: =CD6 -> 0 | CF6: =SUM(BSRDetail!$H$2:$H$61*(BSRDetail!$A$2:$A$61=$A$1)*(BSRDetail!$F$2:$F$61=CF$1)*(BSRDetail!$B$2:$B$61=$B$1)*(BSRDetail!$E$2:$E$61>=$B6)*(BSRDetail!$E$2:$E$61<$B7)) -> 0 | CG6: =CF6 -> 0 | CH6: =SUM(BSRDetail!$H$2:$H$61*(BSRDetail!$A$2:$A$61=$A$1)*(BSRDetail!$F$2:$F$61=CH$1)*(BSRDetail!$B$2:$B$61=$B$1)*(BSRDetail!$E$2:$E$61>=$B6)*(BSRDetail!$E$2:$E$61<$B7)) -> 0 | CI6: =CH6 -> 0 | CJ6: =SUM(BSRDetail!$H$2:$H$61*(BSRDetail!$A$2:$A$61=$A$1)*(BSRDetail!$F$2:$F$61=CJ$1)*(BSRDetail!$B$2:$B$61=$B$1)*(BSRDetail!$E$2:$E$61>=$B6)*(BSRDetail!$E$2:$E$61<$B7)) -> 0 | CK6: =CJ6 -> 0 | CL6: =SUM(BSRDetail!$H$2:$H$61*(BSRDetail!$A$2:$A$61=$A$1)*(BSRDetail!$F$2:$F$61=CL$1)*(BSRDetail!$B$2:$B$61=$B$1)*(BSRDetail!$E$2:$E$61>=$B6)*(BSRDetail!$E$2:$E$61<$B7)) -> 0 | CM6: =CL6 -> 0 | CN6: =SUM(BSRDetail!$H$2:$H$61*(BSRDetail!$A$2:$A$61=$A$1)*(BSRDetail!$F$2:$F$61=CN$1)*(BSRDetail!$B$2:$B$61=$B$1)*(BSRDetail!$E$2:$E$61>=$B6)*(BSRDetail!$E$2:$E$61<$B7)) -> 0 | CO6: =CN6 -> 0 | CP6: =SUM(BSRDetail!$H$2:$H$61*(BSRDetail!$A$2:$A$61=$A$1)*(BSRDetail!$F$2:$F$61=CP$1)*(BSRDetail!$B$2:$B$61=$B$1)*(BSRDetail!$E$2:$E$61>=$B6)*(BSRDetail!$E$2:$E$61<$B7)) -> 0 | CQ6: =CP6 -> 0 | CR6: =SUM(BSRDetail!$H$2:$H$61*(BSRDetail!$A$2:$A$61=$A$1)*(BSRDetail!$F$2:$F$61=CR$1)*(BSRDetail!$B$2:$B$61=$B$1)*(BSRDetail!$E$2:$E$61>=$B6)*(BSRDetail!$E$2:$E$61<$B7)) -> 0 | CS6: =CR6 -> 0 | CT6: =SUM(BSRDetail!$H$2:$H$61*(BSRDetail!$A$2:$A$61=$A$1)*(BSRDetail!$F$2:$F$61=CT$1)*(BSRDetail!$B$2:$B$61=$B$1)*(BSRDetail!$E$2:$E$61>=$B6)*(BSRDetail!$E$2:$E$61<$B7)) -> 0 | CU6: =CT6 -> 0 | CV6: =SUM(BSRDetail!$H$2:$H$61*(BSRDetail!$A$2:$A$61=$A$1)*(BSRDetail!$F$2:$F$61=CV$1)*(BSRDetail!$B$2:$B$61=$B$1)*(BSRDetail!$E$2:$E$61>=$B6)*(BSRDetail!$E$2:$E$61<$B7)) -> 0 | CW6: =CV6 -> 0
B7: =DATE(A1-1,7,1)+(28-(DATE(A1-1,7,1)-(39262+INT((DATE(A1-1,7,1)-39262)/14)*14))) -> 2016-07-29 | C7: =NETWORKDAYS(B6,B7-14) -> 11 | D7: =SUM(BSRDetail!$H$2:$H$61*(BSRDetail!$A$2:$A$61=$A$1)*(BSRDetail!$F$2:$F$61=D$1)*(BSRDetail!$B$2:$B$61=$B$1)*(BSRDetail!$E$2:$E$61>=$B7)*(BSRDetail!$E$2:$E$61<$B8)) -> 4037.84 | E7: =SUM(BSRDetail!$H$2:$H$61*(BSRDetail!$A$2:$A$61=$A$1)*(BSRDetail!$F$2:$F$61=E$1)*(BSRDetail!$B$2:$B$61=$B$1)*(BSRDetail!$E$2:$E$61>=$B7)*(BSRDetail!$E$2:$E$61<$B8)) -> 248.16 | F7: =SUM(BSRDetail!$H$2:$H$61*(BSRDetail!$A$2:$A$61=$A$1)*(BSRDetail!$F$2:$F$61=F$1)*(BSRDetail!$B$2:$B$61=$B$1)*(BSRDetail!$E$2:$E$61>=$B7)*(BSRDetail!$E$2:$E$61<$B8)) -> 292.4 | G7: =SUM(BSRDetail!$H$2:$H$61*(BSRDetail!$A$2:$A$61=$A$1)*(BSRDetail!$F$2:$F$61=G$1)*(BSRDetail!$B$2:$B$61=$B$1)*(BSRDetail!$E$2:$E$61>=$B7)*(BSRDetail!$E$2:$E$61<$B8)) -> 0 | H7: =SUM(BSRDetail!$H$2:$H$61*(BSRDetail!$A$2:$A$61=$A$1)*(BSRDetail!$F$2:$F$61=H$1)*(BSRDetail!$B$2:$B$61=$B$1)*(BSRDetail!$E$2:$E$61>=$B7)*(BSRDetail!$E$2:$E$61<$B8)) -> 0 | I7: =SUM(BSRDetail!$H$2:$H$61*(BSRDetail!$A$2:$A$61=$A$1)*(BSRDetail!$F$2:$F$61=I$1)*(BSRDetail!$B$2:$B$61=$B$1)*(BSRDetail!$E$2:$E$61>=$B7)*(BSRDetail!$E$2:$E$61<$B8)) -> 0 | J7: 4578.4 | K7: =J7 -> 4578.4 | L7: 0 | M7: =K7+L7 -> 4578.4 | N7: =SUM(BSRDetail!$H$2:$H$61*(BSRDetail!$A$2:$A$61=$A$1)*(BSRDetail!$F$2:$F$61=N$1)*(BSRDetail!$B$2:$B$61=$B$1)*(BSRDetail!$E$2:$E$61>=$B7)*(BSRDetail!$E$2:$E$61<$B8)) -> 0 | O7: =SUM(BSRDetail!$H$2:$H$61*(BSRDetail!$A$2:$A$61=$A$1)*(BSRDetail!$F$2:$F$61=O$1)*(BSRDetail!$B$2:$B$61=$B$1)*(BSRDetail!$E$2:$E$61>=$B7)*(BSRDetail!$E$2:$E$61<$B8)) -> 0 | P7: =SUM(BSRDetail!$H$2:$H$61*(BSRDetail!$A$2:$A$61=$A$1)*(BSRDetail!$F$2:$F$61=P$1)*(BSRDetail!$B$2:$B$61=$B$1)*(BSRDetail!$E$2:$E$61>=$B7)*(BSRDetail!$E$2:$E$61<$B8)) -> 0 | Q7: =SUM(BSRDetail!$H$2:$H$61*(BSRDetail!$A$2:$A$61=$A$1)*(BSRDetail!$F$2:$F$61=Q$1)*(BSRDetail!$B$2:$B$61=$B$1)*(BSRDetail!$E$2:$E$61>=$B7)*(BSRDetail!$E$2:$E$61<$B8)) -> 0 | R7: =SUM(BSRDetail!$H$2:$H$61*(BSRDetail!$A$2:$A$61=$A$1)*(BSRDetail!$F$2:$F$61=R$1)*(BSRDetail!$B$2:$B$61=$B$1)*(BSRDetail!$E$2:$E$61>=$B7)*(BSRDetail!$E$2:$E$61<$B8)) -> 0 | S7: =SUM(BSRDetail!$H$2:$H$61*(BSRDetail!$A$2:$A$61=$A$1)*(BSRDetail!$F$2:$F$61=S$1)*(BSRDetail!$B$2:$B$61=$B$1)*(BSRDetail!$E$2:$E$61>=$B7)*(BSRDetail!$E$2:$E$61<$B8)) -> 0 | T7: =SUM(BSRDetail!$H$2:$H$61*(BSRDetail!$A$2:$A$61=$A$1)*(BSRDetail!$F$2:$F$61=T$1)*(BSRDetail!$B$2:$B$61=$B$1)*(BSRDetail!$E$2:$E$61>=$B7)*(BSRDetail!$E$2:$E$61<$B8)) -> 0 | U7: =SUM(BSRDetail!$H$2:$H$61*(BSRDetail!$A$2:$A$61=$A$1)*(BSRDetail!$F$2:$F$61=U$1)*(BSRDetail!$B$2:$B$61=$B$1)*(BSRDetail!$E$2:$E$61>=$B7)*(BSRDetail!$E$2:$E$61<$B8)) -> 0 | V7: =SUM(BSRDetail!$H$2:$H$61*(BSRDetail!$A$2:$A$61=$A$1)*(BSRDetail!$F$2:$F$61=V$1)*(BSRDetail!$B$2:$B$61=$B$1)*(BSRDetail!$E$2:$E$61>=$B7)*(BSRDetail!$E$2:$E$61<$B8)) -> 0 | W7: =SUM(BSRDetail!$H$2:$H$61*(BSRDetail!$A$2:$A$61=$A$1)*(BSRDetail!$F$2:$F$61=W$1)*(BSRDetail!$B$2:$B$61=$B$1)*(BSRDetail!$E$2:$E$61>=$B7)*(BSRDetail!$E$2:$E$61<$B8)) -> 0 | X7: =SUM(BSRDetail!$H$2:$H$61*(BSRDetail!$A$2:$A$61=$A$1)*(BSRDetail!$F$2:$F$61=X$1)*(BSRDetail!$B$2:$B$61=$B$1)*(BSRDetail!$E$2:$E$61>=$B7)*(BSRDetail!$E$2:$E$61<$B8)) -> 0 | Y7: 0 | Z7: 0 | AA7: =IF(D6=0,AA6,IF($D7=0,Z7+AVERAGE($Y6:Y$7)*$C7/10,Y7)) -> 0 | AB7: =M7+AA7 -> 4578.4 | AC7: =SUM(BSRDetail!$H$2:$H$61*(BSRDetail!$A$2:$A$61=$A$1)*(BSRDetail!$F$2:$F$61=AC$1)*(BSRDetail!$B$2:$B$61=$B$1)*(BSRDetail!$E$2:$E$61>=$B7)*(BSRDetail!$E$2:$E$61<$B8)) -> 39.21 | AD7: =IF(B7<DATE(YEAR($B$6)+1,1,1),$AD$3,$AD$4)*IF(MONTH(B7)<5,1,YEARFRAC(B7,DATE(YEAR(B7),12,31))+0.23) -> 0.018784 | AE7: =IF($D7=0,AB7*AD7,AC7) -> 39.21 | AF7: =SUM(BSRDetail!$H$2:$H$61*(BSRDetail!$A$2:$A$61=$A$1)*(BSRDetail!$F$2:$F$61=AF$1)*(BSRDetail!$B$2:$B$61=$B$1)*(BSRDetail!$E$2:$E$61>=$B7)*(BSRDetail!$E$2:$E$61<$B8)) -> 0 | AG7: =IF(J7=0,0,AF7/J7) -> 0 | AH7: =IF($D7=0,M7*AG7,AF7) -> 0 | AI7: =SUM(BSRDetail!$H$2:$H$61*(BSRDetail!$A$2:$A$61=$A$1)*(BSRDetail!$F$2:$F$61=AI$1)*(BSRDetail!$B$2:$B$61=$B$1)*(BSRDetail!$E$2:$E$61>=$B7)*(BSRDetail!$E$2:$E$61<$B8)) -> 0 | AJ7: 0 | AK7: =SUM(BSRDetail!$H$2:$H$61*(BSRDetail!$A$2:$A$61=$A$1)*(BSRDetail!$F$2:$F$61=AK$1)*(BSRDetail!$B$2:$B$61=$B$1)*(BSRDetail!$E$2:$E$61>=$B7)*(BSRDetail!$E$2:$E$61<$B8)) -> 0 | AL7: =IF($D7=0,IF(AND(DAY(B7)<15,B7<DATE(YEAR($B$6)+1,7,1)),SUM(AL4:AL6),0),AK7/$AL$3) -> 0 | AM7: 0 | AN7: 0 | AO7: =SUM(BSRDetail!$H$2:$H$61*(BSRDetail!$A$2:$A$61=$A$1)*(BSRDetail!$F$2:$F$61=AO$1)*(BSRDetail!$B$2:$B$61=$B$1)*(BSRDetail!$E$2:$E$61>=$B7)*(BSRDetail!$E$2:$E$61<$B8)) -> 0 | AP7: 0 | AQ7: =SUM(BSRDetail!$H$2:$H$61*(BSRDetail!$A$2:$A$61=$A$1)*(BSRDetail!$F$2:$F$61=AQ$1)*(BSRDetail!$B$2:$B$61=$B$1)*(BSRDetail!$E$2:$E$61>=$B7)*(BSRDetail!$E$2:$E$61<$B8)) -> 108.05 | AR7: =IF($J7=0,IF(AQ6=0,AR6,AVERAGE(AR1:AR6)),AQ7/$J7) -> 0.02359994758 | AS7: 108.05 | AT7: =SUM(BSRDetail!$H$2:$H$61*(BSRDetail!$A$2:$A$61=$A$1)*(BSRDetail!$F$2:$F$61=AT$1)*(BSRDetail!$B$2:$B$61=$B$1)*(BSRDetail!$E$2:$E$61>=$B7)*(BSRDetail!$E$2:$E$61<$B8)) -> 3.21 | AU7: =IF($B7-14<DATE(YEAR($B$6)+1,1,1),AU$3,AU$4) -> 0.0013 | AV7: 3.21 | AW7: =SUM(BSRDetail!$H$2:$H$61*(BSRDetail!$A$2:$A$61=$A$1)*(BSRDetail!$F$2:$F$61=AW$1)*(BSRDetail!$B$2:$B$61=$B$1)*(BSRDetail!$E$2:$E$61>=$B7)*(BSRDetail!$E$2:$E$61<$B8)) -> 66.38 | AX7: =IF(D7=0,0,AW7/AB7) -> 0.01449851476 | AY7: 66.38 | AZ7: =SUM(BSRDetail!$H$2:$H$61*(BSRDetail!$A$2:$A$61=$A$1)*(BSRDetail!$F$2:$F$61=AZ$1)*(BSRDetail!$B$2:$B$61=$B$1)*(BSRDetail!$E$2:$E$61>=$B7)*(BSRDetail!$E$2:$E$61<$B8)) -> 0 | BA7: 0 | BB7: =IF($D7=0,IF(MONTH($B7)<>MONTH($B6),BB$4,0)+BA7,AZ7) -> 0 | BC7: =SUM(BSRDetail!$H$2:$H$61*(BSRDetail!$A$2:$A$61=$A$1)*(BSRDetail!$F$2:$F$61=BC$1)*(BSRDetail!$B$2:$B$61=$B$1)*(BSRDetail!$E$2:$E$61>=$B7)*(BSRDetail!$E$2:$E$61<$B8)) -> 0 | BD7: =SUM(BSRDetail!$H$2:$H$61*(BSRDetail!$A$2:$A$61=$A$1)*(BSRDetail!$F$2:$F$61=BD$1)*(BSRDetail!$B$2:$B$61=$B$1)*(BSRDetail!$E$2:$E$61>=$B7)*(BSRDetail!$E$2:$E$61<$B8)) -> 0 | BE7: 0 | BF7: =SUM(BC7:BE7) -> 0 | BG7: =SUM(BSRDetail!$H$2:$H$61*(BSRDetail!$A$2:$A$61=$A$1)*(BSRDetail!$F$2:$F$61=BG$1)*(BSRDetail!$B$2:$B$61=$B$1)*(BSRDetail!$E$2:$E$61>=$B7)*(BSRDetail!$E$2:$E$61<$B8)) -> 0 | BH7: =SUM(BSRDetail!$H$2:$H$61*(BSRDetail!$A$2:$A$61=$A$1)*(BSRDetail!$F$2:$F$61=BH$1)*(BSRDetail!$B$2:$B$61=$B$1)*(BSRDetail!$E$2:$E$61>=$B7)*(BSRDetail!$E$2:$E$61<$B8)) -> 0 | BI7: =SUM(BG7:BH7) -> 0 | BJ7: =SUM(BSRDetail!$H$2:$H$61*(BSRDetail!$A$2:$A$61=$A$1)*(BSRDetail!$F$2:$F$61=BJ$1)*(BSRDetail!$B$2:$B$61=$B$1)*(BSRDetail!$E$2:$E$61>=$B7)*(BSRDetail!$E$2:$E$61<$B8)) -> 663.87 | BK7: =IF($D7=0,AVERAGE(BK$6:BK6)*$C7/10,BJ7) -> 663.87 | BL7: =SUM(BSRDetail!$H$2:$H$61*(BSRDetail!$A$2:$A$61=$A$1)*(BSRDetail!$F$2:$F$61=BL$1)*(BSRDetail!$B$2:$B$61=$B$1)*(BSRDetail!$E$2:$E$61>=$B7)*(BSRDetail!$E$2:$E$61<$B8)) -> 0 | BM7: =IF($D7=0,AVERAGE(BM$6:BM6)*$C7/10,BL7) -> 0 | BN7: =SUM(BSRDetail!$H$2:$H$61*(BSRDetail!$A$2:$A$61=$A$1)*(BSRDetail!$F$2:$F$61=BN$1)*(BSRDetail!$B$2:$B$61=$B$1)*(BSRDetail!$E$2:$E$61>=$B7)*(BSRDetail!$E$2:$E$61<$B8)) -> 0 | BO7: =IF($D7=0,AVERAGE(BO$6:BO6)*$C7/10,BN7) -> 0 | BP7: =SUM(BSRDetail!$H$2:$H$61*(BSRDetail!$A$2:$A$61=$A$1)*(BSRDetail!$F$2:$F$61=BP$1)*(BSRDetail!$B$2:$B$61=$B$1)*(BSRDetail!$E$2:$E$61>=$B7)*(BSRDetail!$E$2:$E$61<$B8)) -> 0 | BQ7: =IF($D7=0,AVERAGE(BQ$6:BQ6)*$C7/10,BP7) -> 0 | BR7: =SUM(BSRDetail!$H$2:$H$61*(BSRDetail!$A$2:$A$61=$A$1)*(BSRDetail!$F$2:$F$61=BR$1)*(BSRDetail!$B$2:$B$61=$B$1)*(BSRDetail!$E$2:$E$61>=$B7)*(BSRDetail!$E$2:$E$61<$B8)) -> 0 | BS7: =IF($D7=0,AVERAGE(BS$6:BS6)*$C7/10,BR7) -> 0 | BT7: =SUM(BSRDetail!$H$2:$H$61*(BSRDetail!$A$2:$A$61=$A$1)*(BSRDetail!$F$2:$F$61=BT$1)*(BSRDetail!$B$2:$B$61=$B$1)*(BSRDetail!$E$2:$E$61>=$B7)*(BSRDetail!$E$2:$E$61<$B8)) -> 0 | BU7: =IF($D7=0,AVERAGE(BU$6:BU6)*$C7/10,BT7) -> 0 | BV7: =SUM(BSRDetail!$H$2:$H$61*(BSRDetail!$A$2:$A$61=$A$1)*(BSRDetail!$F$2:$F$61=BV$1)*(BSRDetail!$B$2:$B$61=$B$1)*(BSRDetail!$E$2:$E$61>=$B7)*(BSRDetail!$E$2:$E$61<$B8)) -> 0 | BW7: =IF($D7=0,AVERAGE(BW$6:BW6)*$C7/10,BV7) -> 0 | BX7: =SUM(BSRDetail!$H$2:$H$61*(BSRDetail!$A$2:$A$61=$A$1)*(BSRDetail!$F$2:$F$61=BX$1)*(BSRDetail!$B$2:$B$61=$B$1)*(BSRDetail!$E$2:$E$61>=$B7)*(BSRDetail!$E$2:$E$61<$B8)) -> 0 | BY7: =IF($D7=0,AVERAGE(BY$6:BY6)*$C7/10,BX7) -> 0 | BZ7: =SUM(BSRDetail!$H$2:$H$61*(BSRDetail!$A$2:$A$61=$A$1)*(BSRDetail!$F$2:$F$61=BZ$1)*(BSRDetail!$B$2:$B$61=$B$1)*(BSRDetail!$E$2:$E$61>=$B7)*(BSRDetail!$E$2:$E$61<$B8)) -> 0 | CA7: =IF($D7=0,AVERAGE(CA$6:CA6)*$C7/10,BZ7) -> 0 | CB7: =SUM(BSRDetail!$H$2:$H$61*(BSRDetail!$A$2:$A$61=$A$1)*(BSRDetail!$F$2:$F$61=CB$1)*(BSRDetail!$B$2:$B$61=$B$1)*(BSRDetail!$E$2:$E$61>=$B7)*(BSRDetail!$E$2:$E$61<$B8)) -> 0 | CC7: =IF($D7=0,AVERAGE(CC$6:CC6)*$C7/10,CB7) -> 0 | CD7: =SUM(BSRDetail!$H$2:$H$61*(BSRDetail!$A$2:$A$61=$A$1)*(BSRDetail!$F$2:$F$61=CD$1)*(BSRDetail!$B$2:$B$61=$B$1)*(BSRDetail!$E$2:$E$61>=$B7)*(BSRDetail!$E$2:$E$61<$B8)) -> 0 | CE7: =IF($D7=0,AVERAGE(CE$6:CE6)*$C7/10,CD7) -> 0 | CF7: =SUM(BSRDetail!$H$2:$H$61*(BSRDetail!$A$2:$A$61=$A$1)*(BSRDetail!$F$2:$F$61=CF$1)*(BSRDetail!$B$2:$B$61=$B$1)*(BSRDetail!$E$2:$E$61>=$B7)*(BSRDetail!$E$2:$E$61<$B8)) -> 0 | CG7: =IF($D7=0,AVERAGE(CG$6:CG6)*$C7/10,CF7) -> 0 | CH7: =SUM(BSRDetail!$H$2:$H$61*(BSRDetail!$A$2:$A$61=$A$1)*(BSRDetail!$F$2:$F$61=CH$1)*(BSRDetail!$B$2:$B$61=$B$1)*(BSRDetail!$E$2:$E$61>=$B7)*(BSRDetail!$E$2:$E$61<$B8)) -> 0 | CI7: =IF($D7=0,AVERAGE(CI$6:CI6)*$C7/10,CH7) -> 0 | CJ7: =SUM(BSRDetail!$H$2:$H$61*(BSRDetail!$A$2:$A$61=$A$1)*(BSRDetail!$F$2:$F$61=CJ$1)*(BSRDetail!$B$2:$B$61=$B$1)*(BSRDetail!$E$2:$E$61>=$B7)*(BSRDetail!$E$2:$E$61<$B8)) -> 0 | CK7: =IF($D7=0,AVERAGE(CK$6:CK6)*$C7/10,CJ7) -> 0 | CL7: =SUM(BSRDetail!$H$2:$H$61*(BSRDetail!$A$2:$A$61=$A$1)*(BSRDetail!$F$2:$F$61=CL$1)*(BSRDetail!$B$2:$B$61=$B$1)*(BSRDetail!$E$2:$E$61>=$B7)*(BSRDetail!$E$2:$E$61<$B8)) -> 0 | CM7: =IF($D7=0,AVERAGE(CM$6:CM6)*$C7/10,CL7) -> 0 | CN7: =SUM(BSRDetail!$H$2:$H$61*(BSRDetail!$A$2:$A$61=$A$1)*(BSRDetail!$F$2:$F$61=CN$1)*(BSRDetail!$B$2:$B$61=$B$1)*(BSRDetail!$E$2:$E$61>=$B7)*(BSRDetail!$E$2:$E$61<$B8)) -> 0 | CO7: =IF($D7=0,AVERAGE(CO$6:CO6)*$C7/10,CN7) -> 0 | CP7: =SUM(BSRDetail!$H$2:$H$61*(BSRDetail!$A$2:$A$61=$A$1)*(BSRDetail!$F$2:$F$61=CP$1)*(BSRDetail!$B$2:$B$61=$B$1)*(BSRDetail!$E$2:$E$61>=$B7)*(BSRDetail!$E$2:$E$61<$B8)) -> 0 | CQ7: =IF($D7=0,AVERAGE(CQ$6:CQ6)*$C7/10,CP7) -> 0 | CR7: =SUM(BSRDetail!$H$2:$H$61*(BSRDetail!$A$2:$A$61=$A$1)*(BSRDetail!$F$2:$F$61=CR$1)*(BSRDetail!$B$2:$B$61=$B$1)*(BSRDetail!$E$2:$E$61>=$B7)*(BSRDetail!$E$2:$E$61<$B8)) -> 0 | CS7: =IF($D7=0,AVERAGE(CS$6:CS6)*$C7/10,CR7) -> 0 | CT7: =SUM(BSRDetail!$H$2:$H$61*(BSRDetail!$A$2:$A$61=$A$1)*(BSRDetail!$F$2:$F$61=CT$1)*(BSRDetail!$B$2:$B$61=$B$1)*(BSRDetail!$E$2:$E$61>=$B7)*(BSRDetail!$E$2:$E$61<$B8)) -> 0 | CU7: =IF($D7=0,AVERAGE(CU$6:CU6)*$C7/10,CT7) -> 0 | CV7: =SUM(BSRDetail!$H$2:$H$61*(BSRDetail!$A$2:$A$61=$A$1)*(BSRDetail!$F$2:$F$61=CV$1)*(BSRDetail!$B$2:$B$61=$B$1)*(BSRDetail!$E$2:$E$61>=$B7)*(BSRDetail!$E$2:$E$61<$B8)) -> 0 | CW7: =IF($D7=0,AVERAGE(CW$6:CW6)*$C7/10,CV7) -> 0
A8: =IF(OR(AND(MONTH(B7+14-A7)=12,DAY(B7+14-A7)=31),AND(MONTH(B7+14-A7)=1,DAY(B7+14-A7)=1),AND(MONTH(B7+14-A7)=7,OR(DAY(B7+14-A7)=3,DAY(B7+14-A7)=4)),AND(MONTH(B7+14-A7)=10,MONTH(B7+21-A7)=11),AND(MONTH(B7+14-A7)=11,OR(DAY(B7+14-A7)=10,DAY(B7+14-A7)=11)),AND(MONTH(B7+14-A7)=12,OR(DAY(B7+14-A7)=24,DAY(B7+14-A7)=25))),-1,IF(AND(MONTH(B7+14-A7)=11,DAY(B7+14-A7)>22,DAY(B7+14-A7)<30),-2,0)) -> 0 | B8: =B7+14+A8-A7 -> 2016-08-12 | C8: 10 | D8: =SUM(BSRDetail!$H$2:$H$61*(BSRDetail!$A$2:$A$61=$A$1)*(BSRDetail!$F$2:$F$61=D$1)*(BSRDetail!$B$2:$B$61=$B$1)*(BSRDetail!$E$2:$E$61>=$B8)*(BSRDetail!$E$2:$E$61<$B9)) -> 4015 | E8: =SUM(BSRDetail!$H$2:$H$61*(BSRDetail!$A$2:$A$61=$A$1)*(BSRDetail!$F$2:$F$61=E$1)*(BSRDetail!$B$2:$B$61=$B$1)*(BSRDetail!$E$2:$E$61>=$B8)*(BSRDetail!$E$2:$E$61<$B9)) -> 109.65 | F8: =SUM(BSRDetail!$H$2:$H$61*(BSRDetail!$A$2:$A$61=$A$1)*(BSRDetail!$F$2:$F$61=F$1)*(BSRDetail!$B$2:$B$61=$B$1)*(BSRDetail!$E$2:$E$61>=$B8)*(BSRDetail!$E$2:$E$61<$B9)) -> 453.75 | G8: =SUM(BSRDetail!$H$2:$H$61*(BSRDetail!$A$2:$A$61=$A$1)*(BSRDetail!$F$2:$F$61=G$1)*(BSRDetail!$B$2:$B$61=$B$1)*(BSRDetail!$E$2:$E$61>=$B8)*(BSRDetail!$E$2:$E$61<$B9)) -> 0 | H8: =SUM(BSRDetail!$H$2:$H$61*(BSRDetail!$A$2:$A$61=$A$1)*(BSRDetail!$F$2:$F$61=H$1)*(BSRDetail!$B$2:$B$61=$B$1)*(BSRDetail!$E$2:$E$61>=$B8)*(BSRDetail!$E$2:$E$61<$B9)) -> 0 | I8: =SUM(BSRDetail!$H$2:$H$61*(BSRDetail!$A$2:$A$61=$A$1)*(BSRDetail!$F$2:$F$61=I$1)*(BSRDetail!$B$2:$B$61=$B$1)*(BSRDetail!$E$2:$E$61>=$B8)*(BSRDetail!$E$2:$E$61<$B9)) -> 0 | J8: 4578.4 | K8: =IF($D8=0,AVERAGE(K2:K7)*$C8/10,J8) -> 4578.4 | L8: 0 | M8: =K8+L8 -> 4578.4 | N8: =SUM(BSRDetail!$H$2:$H$61*(BSRDetail!$A$2:$A$61=$A$1)*(BSRDetail!$F$2:$F$61=N$1)*(BSRDetail!$B$2:$B$61=$B$1)*(BSRDetail!$E$2:$E$61>=$B8)*(BSRDetail!$E$2:$E$61<$B9)) -> 0 | O8: =SUM(BSRDetail!$H$2:$H$61*(BSRDetail!$A$2:$A$61=$A$1)*(BSRDetail!$F$2:$F$61=O$1)*(BSRDetail!$B$2:$B$61=$B$1)*(BSRDetail!$E$2:$E$61>=$B8)*(BSRDetail!$E$2:$E$61<$B9)) -> 0 | P8: =SUM(BSRDetail!$H$2:$H$61*(BSRDetail!$A$2:$A$61=$A$1)*(BSRDetail!$F$2:$F$61=P$1)*(BSRDetail!$B$2:$B$61=$B$1)*(BSRDetail!$E$2:$E$61>=$B8)*(BSRDetail!$E$2:$E$61<$B9)) -> 0 | Q8: =SUM(BSRDetail!$H$2:$H$61*(BSRDetail!$A$2:$A$61=$A$1)*(BSRDetail!$F$2:$F$61=Q$1)*(BSRDetail!$B$2:$B$61=$B$1)*(BSRDetail!$E$2:$E$61>=$B8)*(BSRDetail!$E$2:$E$61<$B9)) -> 0 | R8: =SUM(BSRDetail!$H$2:$H$61*(BSRDetail!$A$2:$A$61=$A$1)*(BSRDetail!$F$2:$F$61=R$1)*(BSRDetail!$B$2:$B$61=$B$1)*(BSRDetail!$E$2:$E$61>=$B8)*(BSRDetail!$E$2:$E$61<$B9)) -> 0 | S8: =SUM(BSRDetail!$H$2:$H$61*(BSRDetail!$A$2:$A$61=$A$1)*(BSRDetail!$F$2:$F$61=S$1)*(BSRDetail!$B$2:$B$61=$B$1)*(BSRDetail!$E$2:$E$61>=$B8)*(BSRDetail!$E$2:$E$61<$B9)) -> 0 | T8: =SUM(BSRDetail!$H$2:$H$61*(BSRDetail!$A$2:$A$61=$A$1)*(BSRDetail!$F$2:$F$61=T$1)*(BSRDetail!$B$2:$B$61=$B$1)*(BSRDetail!$E$2:$E$61>=$B8)*(BSRDetail!$E$2:$E$61<$B9)) -> 0 | U8: =SUM(BSRDetail!$H$2:$H$61*(BSRDetail!$A$2:$A$61=$A$1)*(BSRDetail!$F$2:$F$61=U$1)*(BSRDetail!$B$2:$B$61=$B$1)*(BSRDetail!$E$2:$E$61>=$B8)*(BSRDetail!$E$2:$E$61<$B9)) -> 0 | V8: =SUM(BSRDetail!$H$2:$H$61*(BSRDetail!$A$2:$A$61=$A$1)*(BSRDetail!$F$2:$F$61=V$1)*(BSRDetail!$B$2:$B$61=$B$1)*(BSRDetail!$E$2:$E$61>=$B8)*(BSRDetail!$E$2:$E$61<$B9)) -> 0 | W8: =SUM(BSRDetail!$H$2:$H$61*(BSRDetail!$A$2:$A$61=$A$1)*(BSRDetail!$F$2:$F$61=W$1)*(BSRDetail!$B$2:$B$61=$B$1)*(BSRDetail!$E$2:$E$61>=$B8)*(BSRDetail!$E$2:$E$61<$B9)) -> 0 | X8: =SUM(BSRDetail!$H$2:$H$61*(BSRDetail!$A$2:$A$61=$A$1)*(BSRDetail!$F$2:$F$61=X$1)*(BSRDetail!$B$2:$B$61=$B$1)*(BSRDetail!$E$2:$E$61>=$B8)*(BSRDetail!$E$2:$E$61<$B9)) -> 0 | Y8: 0 | Z8: 0 | AA8: =IF(D7=0,AA7,IF($D8=0,Z8+AVERAGE($Y$7:Y7)*$C8/10,Y8)) -> 0 | AB8: 4578.4 | AC8: =SUM(BSRDetail!$H$2:$H$61*(BSRDetail!$A$2:$A$61=$A$1)*(BSRDetail!$F$2:$F$61=AC$1)*(BSRDetail!$B$2:$B$61=$B$1)*(BSRDetail!$E$2:$E$61>=$B8)*(BSRDetail!$E$2:$E$61<$B9)) -> 39.21 | AD8: 0.017744 | AE8: =IF($D8=0,AB8*AD8,AC8) -> 39.21 | AF8: =SUM(BSRDetail!$H$2:$H$61*(BSRDetail!$A$2:$A$61=$A$1)*(BSRDetail!$F$2:$F$61=AF$1)*(BSRDetail!$B$2:$B$61=$B$1)*(BSRDetail!$E$2:$E$61>=$B8)*(BSRDetail!$E$2:$E$61<$B9)) -> 0 | AG8: =IF(J8=0,AVERAGE(AG2:AG7),AF8/J8) -> 0 | AH8: 0 | AI8: =SUM(BSRDetail!$H$2:$H$61*(BSRDetail!$A$2:$A$61=$A$1)*(BSRDetail!$F$2:$F$61=AI$1)*(BSRDetail!$B$2:$B$61=$B$1)*(BSRDetail!$E$2:$E$61>=$B8)*(BSRDetail!$E$2:$E$61<$B9)) -> 0 | AJ8: 0 | AK8: =SUM(BSRDetail!$H$2:$H$61*(BSRDetail!$A$2:$A$61=$A$1)*(BSRDetail!$F$2:$F$61=AK$1)*(BSRDetail!$B$2:$B$61=$B$1)*(BSRDetail!$E$2:$E$61>=$B8)*(BSRDetail!$E$2:$E$61<$B9)) -> 1398.5 | AL8: 1.992931754 | AM8: 0 | AN8: 1398.5 | AO8: =SUM(BSRDetail!$H$2:$H$61*(BSRDetail!$A$2:$A$61=$A$1)*(BSRDetail!$F$2:$F$61=AO$1)*(BSRDetail!$B$2:$B$61=$B$1)*(BSRDetail!$E$2:$E$61>=$B8)*(BSRDetail!$E$2:$E$61<$B9)) -> 0 | AP8: 0 | AQ8: =SUM(BSRDetail!$H$2:$H$61*(BSRDetail!$A$2:$A$61=$A$1)*(BSRDetail!$F$2:$F$61=AQ$1)*(BSRDetail!$B$2:$B$61=$B$1)*(BSRDetail!$E$2:$E$61>=$B8)*(BSRDetail!$E$2:$E$61<$B9)) -> 108.05 | AR8: =IF($J8=0,IF(AQ7=0,AR7,AVERAGE(AR2:AR7)),AQ8/$J8) -> 0.02359994758 | AS8: 108.05 | AT8: =SUM(BSRDetail!$H$2:$H$61*(BSRDetail!$A$2:$A$61=$A$1)*(BSRDetail!$F$2:$F$61=AT$1)*(BSRDetail!$B$2:$B$61=$B$1)*(BSRDetail!$E$2:$E$61>=$B8)*(BSRDetail!$E$2:$E$61<$B9)) -> 3.21 | AU8: 0.0013 | AV8: 3.21 | AW8: =SUM(BSRDetail!$H$2:$H$61*(BSRDetail!$A$2:$A$61=$A$1)*(BSRDetail!$F$2:$F$61=AW$1)*(BSRDetail!$B$2:$B$61=$B$1)*(BSRDetail!$E$2:$E$61>=$B8)*(BSRDetail!$E$2:$E$61<$B9)) -> 62.55 | AX8: =IF(D8=0,0,AW8/AB8) -> 0.01366197798 | AY8: 62.55 | AZ8: =SUM(BSRDetail!$H$2:$H$61*(BSRDetail!$A$2:$A$61=$A$1)*(BSRDetail!$F$2:$F$61=AZ$1)*(BSRDetail!$B$2:$B$61=$B$1)*(BSRDetail!$E$2:$E$61>=$B8)*(BSRDetail!$E$2:$E$61<$B9)) -> 0 | BA8: 0 | BB8: 0 | BC8: =SUM(BSRDetail!$H$2:$H$61*(BSRDetail!$A$2:$A$61=$A$1)*(BSRDetail!$F$2:$F$61=BC$1)*(BSRDetail!$B$2:$B$61=$B$1)*(BSRDetail!$E$2:$E$61>=$B8)*(BSRDetail!$E$2:$E$61<$B9)) -> 0 | BD8: =SUM(BSRDetail!$H$2:$H$61*(BSRDetail!$A$2:$A$61=$A$1)*(BSRDetail!$F$2:$F$61=BD$1)*(BSRDetail!$B$2:$B$61=$B$1)*(BSRDetail!$E$2:$E$61>=$B8)*(BSRDetail!$E$2:$E$61<$B9)) -> 0 | BE8: 0 | BF8: 0 | BG8: =SUM(BSRDetail!$H$2:$H$61*(BSRDetail!$A$2:$A$61=$A$1)*(BSRDetail!$F$2:$F$61=BG$1)*(BSRDetail!$B$2:$B$61=$B$1)*(BSRDetail!$E$2:$E$61>=$B8)*(BSRDetail!$E$2:$E$61<$B9)) -> 0 | BH8: =SUM(BSRDetail!$H$2:$H$61*(BSRDetail!$A$2:$A$61=$A$1)*(BSRDetail!$F$2:$F$61=BH$1)*(BSRDetail!$B$2:$B$61=$B$1)*(BSRDetail!$E$2:$E$61>=$B8)*(BSRDetail!$E$2:$E$61<$B9)) -> 0 | BI8: 0 | BJ8: =SUM(BSRDetail!$H$2:$H$61*(BSRDetail!$A$2:$A$61=$A$1)*(BSRDetail!$F$2:$F$61=BJ$1)*(BSRDetail!$B$2:$B$61=$B$1)*(BSRDetail!$E$2:$E$61>=$B8)*(BSRDetail!$E$2:$E$61<$B9)) -> 663.87 | BK8: =IF($D8=0,AVERAGE(BK$6:BK7)*$C8/10,BJ8) -> 663.87 | BL8: =SUM(BSRDetail!$H$2:$H$61*(BSRDetail!$A$2:$A$61=$A$1)*(BSRDetail!$F$2:$F$61=BL$1)*(BSRDetail!$B$2:$B$61=$B$1)*(BSRDetail!$E$2:$E$61>=$B8)*(BSRDetail!$E$2:$E$61<$B9)) -> 0 | BM8: =IF($D8=0,AVERAGE(BM$6:BM7)*$C8/10,BL8) -> 0 | BN8: =SUM(BSRDetail!$H$2:$H$61*(BSRDetail!$A$2:$A$61=$A$1)*(BSRDetail!$F$2:$F$61=BN$1)*(BSRDetail!$B$2:$B$61=$B$1)*(BSRDetail!$E$2:$E$61>=$B8)*(BSRDetail!$E$2:$E$61<$B9)) -> 0 | BO8: =IF($D8=0,AVERAGE(BO$6:BO7)*$C8/10,BN8) -> 0 | BP8: =SUM(BSRDetail!$H$2:$H$61*(BSRDetail!$A$2:$A$61=$A$1)*(BSRDetail!$F$2:$F$61=BP$1)*(BSRDetail!$B$2:$B$61=$B$1)*(BSRDetail!$E$2:$E$61>=$B8)*(BSRDetail!$E$2:$E$61<$B9)) -> 0 | BQ8: =IF($D8=0,AVERAGE(BQ$6:BQ7)*$C8/10,BP8) -> 0 | BR8: =SUM(BSRDetail!$H$2:$H$61*(BSRDetail!$A$2:$A$61=$A$1)*(BSRDetail!$F$2:$F$61=BR$1)*(BSRDetail!$B$2:$B$61=$B$1)*(BSRDetail!$E$2:$E$61>=$B8)*(BSRDetail!$E$2:$E$61<$B9)) -> 0 | BS8: =IF($D8=0,AVERAGE(BS$6:BS7)*$C8/10,BR8) -> 0 | BT8: =SUM(BSRDetail!$H$2:$H$61*(BSRDetail!$A$2:$A$61=$A$1)*(BSRDetail!$F$2:$F$61=BT$1)*(BSRDetail!$B$2:$B$61=$B$1)*(BSRDetail!$E$2:$E$61>=$B8)*(BSRDetail!$E$2:$E$61<$B9)) -> 0 | BU8: =IF($D8=0,AVERAGE(BU$6:BU7)*$C8/10,BT8) -> 0 | BV8: =SUM(BSRDetail!$H$2:$H$61*(BSRDetail!$A$2:$A$61=$A$1)*(BSRDetail!$F$2:$F$61=BV$1)*(BSRDetail!$B$2:$B$61=$B$1)*(BSRDetail!$E$2:$E$61>=$B8)*(BSRDetail!$E$2:$E$61<$B9)) -> 0 | BW8: =IF($D8=0,AVERAGE(BW$6:BW7)*$C8/10,BV8) -> 0 | BX8: =SUM(BSRDetail!$H$2:$H$61*(BSRDetail!$A$2:$A$61=$A$1)*(BSRDetail!$F$2:$F$61=BX$1)*(BSRDetail!$B$2:$B$61=$B$1)*(BSRDetail!$E$2:$E$61>=$B8)*(BSRDetail!$E$2:$E$61<$B9)) -> 0 | BY8: =IF($D8=0,AVERAGE(BY$6:BY7)*$C8/10,BX8) -> 0 | BZ8: =SUM(BSRDetail!$H$2:$H$61*(BSRDetail!$A$2:$A$61=$A$1)*(BSRDetail!$F$2:$F$61=BZ$1)*(BSRDetail!$B$2:$B$61=$B$1)*(BSRDetail!$E$2:$E$61>=$B8)*(BSRDetail!$E$2:$E$61<$B9)) -> 0 | CA8: =IF($D8=0,AVERAGE(CA$6:CA7)*$C8/10,BZ8) -> 0 | CB8: =SUM(BSRDetail!$H$2:$H$61*(BSRDetail!$A$2:$A$61=$A$1)*(BSRDetail!$F$2:$F$61=CB$1)*(BSRDetail!$B$2:$B$61=$B$1)*(BSRDetail!$E$2:$E$61>=$B8)*(BSRDetail!$E$2:$E$61<$B9)) -> 0 | CC8: =IF($D8=0,AVERAGE(CC$6:CC7)*$C8/10,CB8) -> 0 | CD8: =SUM(BSRDetail!$H$2:$H$61*(BSRDetail!$A$2:$A$61=$A$1)*(BSRDetail!$F$2:$F$61=CD$1)*(BSRDetail!$B$2:$B$61=$B$1)*(BSRDetail!$E$2:$E$61>=$B8)*(BSRDetail!$E$2:$E$61<$B9)) -> 0 | CE8: =IF($D8=0,AVERAGE(CE$6:CE7)*$C8/10,CD8) -> 0 | CF8: =SUM(BSRDetail!$H$2:$H$61*(BSRDetail!$A$2:$A$61=$A$1)*(BSRDetail!$F$2:$F$61=CF$1)*(BSRDetail!$B$2:$B$61=$B$1)*(BSRDetail!$E$2:$E$61>=$B8)*(BSRDetail!$E$2:$E$61<$B9)) -> 0 | CG8: =IF($D8=0,AVERAGE(CG$6:CG7)*$C8/10,CF8) -> 0 | CH8: =SUM(BSRDetail!$H$2:$H$61*(BSRDetail!$A$2:$A$61=$A$1)*(BSRDetail!$F$2:$F$61=CH$1)*(BSRDetail!$B$2:$B$61=$B$1)*(BSRDetail!$E$2:$E$61>=$B8)*(BSRDetail!$E$2:$E$61<$B9)) -> 0 | CI8: =IF($D8=0,AVERAGE(CI$6:CI7)*$C8/10,CH8) -> 0 | CJ8: =SUM(BSRDetail!$H$2:$H$61*(BSRDetail!$A$2:$A$61=$A$1)*(BSRDetail!$F$2:$F$61=CJ$1)*(BSRDetail!$B$2:$B$61=$B$1)*(BSRDetail!$E$2:$E$61>=$B8)*(BSRDetail!$E$2:$E$61<$B9)) -> 0 | CK8: =IF($D8=0,AVERAGE(CK$6:CK7)*$C8/10,CJ8) -> 0 | CL8: =SUM(BSRDetail!$H$2:$H$61*(BSRDetail!$A$2:$A$61=$A$1)*(BSRDetail!$F$2:$F$61=CL$1)*(BSRDetail!$B$2:$B$61=$B$1)*(BSRDetail!$E$2:$E$61>=$B8)*(BSRDetail!$E$2:$E$61<$B9)) -> 0 | CM8: =IF($D8=0,AVERAGE(CM$6:CM7)*$C8/10,CL8) -> 0 | CN8: =SUM(BSRDetail!$H$2:$H$61*(BSRDetail!$A$2:$A$61=$A$1)*(BSRDetail!$F$2:$F$61=CN$1)*(BSRDetail!$B$2:$B$61=$B$1)*(BSRDetail!$E$2:$E$61>=$B8)*(BSRDetail!$E$2:$E$61<$B9)) -> 0 | CO8: =IF($D8=0,AVERAGE(CO$6:CO7)*$C8/10,CN8) -> 0 | CP8: =SUM(BSRDetail!$H$2:$H$61*(BSRDetail!$A$2:$A$61=$A$1)*(BSRDetail!$F$2:$F$61=CP$1)*(BSRDetail!$B$2:$B$61=$B$1)*(BSRDetail!$E$2:$E$61>=$B8)*(BSRDetail!$E$2:$E$61<$B9)) -> 0 | CQ8: =IF($D8=0,AVERAGE(CQ$6:CQ7)*$C8/10,CP8) -> 0 | CR8: =SUM(BSRDetail!$H$2:$H$61*(BSRDetail!$A$2:$A$61=$A$1)*(BSRDetail!$F$2:$F$61=CR$1)*(BSRDetail!$B$2:$B$61=$B$1)*(BSRDetail!$E$2:$E$61>=$B8)*(BSRDetail!$E$2:$E$61<$B9)) -> 0 | CS8: =IF($D8=0,AVERAGE(CS$6:CS7)*$C8/10,CR8) -> 0 | CT8: =SUM(BSRDetail!$H$2:$H$61*(BSRDetail!$A$2:$A$61=$A$1)*(BSRDetail!$F$2:$F$61=CT$1)*(BSRDetail!$B$2:$B$61=$B$1)*(BSRDetail!$E$2:$E$61>=$B8)*(BSRDetail!$E$2:$E$61<$B9)) -> 0 | CU8: =IF($D8=0,AVERAGE(CU$6:CU7)*$C8/10,CT8) -> 0 | CV8: =SUM(BSRDetail!$H$2:$H$61*(BSRDetail!$A$2:$A$61=$A$1)*(BSRDetail!$F$2:$F$61=CV$1)*(BSRDetail!$B$2:$B$61=$B$1)*(BSRDetail!$E$2:$E$61>=$B8)*(BSRDetail!$E$2:$E$61<$B9)) -> 0 | CW8: =IF($D8=0,AVERAGE(CW$6:CW7)*$C8/10,CV8) -> 0
A9: 0 | B9: 2016-08-26 | C9: 10 | D9: =SUM(BSRDetail!$H$2:$H$61*(BSRDetail!$A$2:$A$61=$A$1)*(BSRDetail!$F$2:$F$61=D$1)*(BSRDetail!$B$2:$B$61=$B$1)*(BSRDetail!$E$2:$E$61>=$B9)*(BSRDetail!$E$2:$E$61<$B10)) -> 4234.3 | E9: =SUM(BSRDetail!$H$2:$H$61*(BSRDetail!$A$2:$A$61=$A$1)*(BSRDetail!$F$2:$F$61=E$1)*(BSRDetail!$B$2:$B$61=$B$1)*(BSRDetail!$E$2:$E$61>=$B9)*(BSRDetail!$E$2:$E$61<$B10)) -> 51.7 | F9: =SUM(BSRDetail!$H$2:$H$61*(BSRDetail!$A$2:$A$61=$A$1)*(BSRDetail!$F$2:$F$61=F$1)*(BSRDetail!$B$2:$B$61=$B$1)*(BSRDetail!$E$2:$E$61>=$B9)*(BSRDetail!$E$2:$E$61<$B10)) -> 292.4 | G9: =SUM(BSRDetail!$H$2:$H$61*(BSRDetail!$A$2:$A$61=$A$1)*(BSRDetail!$F$2:$F$61=G$1)*(BSRDetail!$B$2:$B$61=$B$1)*(BSRDetail!$E$2:$E$61>=$B9)*(BSRDetail!$E$2:$E$61<$B10)) -> 0 | H9: =SUM(BSRDetail!$H$2:$H$61*(BSRDetail!$A$2:$A$61=$A$1)*(BSRDetail!$F$2:$F$61=H$1)*(BSRDetail!$B$2:$B$61=$B$1)*(BSRDetail!$E$2:$E$61>=$B9)*(BSRDetail!$E$2:$E$61<$B10)) -> 0 | I9: =SUM(BSRDetail!$H$2:$H$61*(BSRDetail!$A$2:$A$61=$A$1)*(BSRDetail!$F$2:$F$61=I$1)*(BSRDetail!$B$2:$B$61=$B$1)*(BSRDetail!$E$2:$E$61>=$B9)*(BSRDetail!$E$2:$E$61<$B10)) -> 0 | J9: 4578.4 | K9: =IF($D9=0,AVERAGE(K5:K8)*$C9/10,J9) -> 4578.4 | L9: 0 | M9: 4578.4 | N9: =SUM(BSRDetail!$H$2:$H$61*(BSRDetail!$A$2:$A$61=$A$1)*(BSRDetail!$F$2:$F$61=N$1)*(BSRDetail!$B$2:$B$61=$B$1)*(BSRDetail!$E$2:$E$61>=$B9)*(BSRDetail!$E$2:$E$61<$B10)) -> 0 | O9: =SUM(BSRDetail!$H$2:$H$61*(BSRDetail!$A$2:$A$61=$A$1)*(BSRDetail!$F$2:$F$61=O$1)*(BSRDetail!$B$2:$B$61=$B$1)*(BSRDetail!$E$2:$E$61>=$B9)*(BSRDetail!$E$2:$E$61<$B10)) -> 0 | P9: =SUM(BSRDetail!$H$2:$H$61*(BSRDetail!$A$2:$A$61=$A$1)*(BSRDetail!$F$2:$F$61=P$1)*(BSRDetail!$B$2:$B$61=$B$1)*(BSRDetail!$E$2:$E$61>=$B9)*(BSRDetail!$E$2:$E$61<$B10)) -> 0 | Q9: =SUM(BSRDetail!$H$2:$H$61*(BSRDetail!$A$2:$A$61=$A$1)*(BSRDetail!$F$2:$F$61=Q$1)*(BSRDetail!$B$2:$B$61=$B$1)*(BSRDetail!$E$2:$E$61>=$B9)*(BSRDetail!$E$2:$E$61<$B10)) -> 0 | R9: =SUM(BSRDetail!$H$2:$H$61*(BSRDetail!$A$2:$A$61=$A$1)*(BSRDetail!$F$2:$F$61=R$1)*(BSRDetail!$B$2:$B$61=$B$1)*(BSRDetail!$E$2:$E$61>=$B9)*(BSRDetail!$E$2:$E$61<$B10)) -> 0 | S9: =SUM(BSRDetail!$H$2:$H$61*(BSRDetail!$A$2:$A$61=$A$1)*(BSRDetail!$F$2:$F$61=S$1)*(BSRDetail!$B$2:$B$61=$B$1)*(BSRDetail!$E$2:$E$61>=$B9)*(BSRDetail!$E$2:$E$61<$B10)) -> 0 | T9: =SUM(BSRDetail!$H$2:$H$61*(BSRDetail!$A$2:$A$61=$A$1)*(BSRDetail!$F$2:$F$61=T$1)*(BSRDetail!$B$2:$B$61=$B$1)*(BSRDetail!$E$2:$E$61>=$B9)*(BSRDetail!$E$2:$E$61<$B10)) -> 0 | U9: =SUM(BSRDetail!$H$2:$H$61*(BSRDetail!$A$2:$A$61=$A$1)*(BSRDetail!$F$2:$F$61=U$1)*(BSRDetail!$B$2:$B$61=$B$1)*(BSRDetail!$E$2:$E$61>=$B9)*(BSRDetail!$E$2:$E$61<$B10)) -> 0 | V9: =SUM(BSRDetail!$H$2:$H$61*(BSRDetail!$A$2:$A$61=$A$1)*(BSRDetail!$F$2:$F$61=V$1)*(BSRDetail!$B$2:$B$61=$B$1)*(BSRDetail!$E$2:$E$61>=$B9)*(BSRDetail!$E$2:$E$61<$B10)) -> 0 | W9: =SUM(BSRDetail!$H$2:$H$61*(BSRDetail!$A$2:$A$61=$A$1)*(BSRDetail!$F$2:$F$61=W$1)*(BSRDetail!$B$2:$B$61=$B$1)*(BSRDetail!$E$2:$E$61>=$B9)*(BSRDetail!$E$2:$E$61<$B10)) -> 0 | X9: =SUM(BSRDetail!$H$2:$H$61*(BSRDetail!$A$2:$A$61=$A$1)*(BSRDetail!$F$2:$F$61=X$1)*(BSRDetail!$B$2:$B$61=$B$1)*(BSRDetail!$E$2:$E$61>=$B9)*(BSRDetail!$E$2:$E$61<$B10)) -> 0 | Y9: 0 | Z9: 0 | AA9: =IF(D8=0,AA8,IF($D9=0,Z9+AVERAGE($Y$7:Y8)*$C9/10,Y9)) -> 0 | AB9: 4578.4 | AC9: =SUM(BSRDetail!$H$2:$H$61*(BSRDetail!$A$2:$A$61=$A$1)*(BSRDetail!$F$2:$F$61=AC$1)*(BSRDetail!$B$2:$B$61=$B$1)*(BSRDetail!$E$2:$E$61>=$B9)*(BSRDetail!$E$2:$E$61<$B10)) -> 39.21 | AD9: 0.016624 | AE9: 39.21 | AF9: =SUM(BSRDetail!$H$2:$H$61*(BSRDetail!$A$2:$A$61=$A$1)*(BSRDetail!$F$2:$F$61=AF$1)*(BSRDetail!$B$2:$B$61=$B$1)*(BSRDetail!$E$2:$E$61>=$B9)*(BSRDetail!$E$2:$E$61<$B10)) -> 0 | AG9: =IF(J9=0,AVERAGE(AG5:AG8),AF9/J9) -> 0 | AH9: 0 | AI9: =SUM(BSRDetail!$H$2:$H$61*(BSRDetail!$A$2:$A$61=$A$1)*(BSRDetail!$F$2:$F$61=AI$1)*(BSRDetail!$B$2:$B$61=$B$1)*(BSRDetail!$E$2:$E$61>=$B9)*(BSRDetail!$E$2:$E$61<$B10)) -> 0 | AJ9: 0 | AK9: =SUM(BSRDetail!$H$2:$H$61*(BSRDetail!$A$2:$A$61=$A$1)*(BSRDetail!$F$2:$F$61=AK$1)*(BSRDetail!$B$2:$B$61=$B$1)*(BSRDetail!$E$2:$E$61>=$B9)*(BSRDetail!$E$2:$E$61<$B10)) -> 0 | AL9: 0 | AM9: 0 | AN9: 0 | AO9: =SUM(BSRDetail!$H$2:$H$61*(BSRDetail!$A$2:$A$61=$A$1)*(BSRDetail!$F$2:$F$61=AO$1)*(BSRDetail!$B$2:$B$61=$B$1)*(BSRDetail!$E$2:$E$61>=$B9)*(BSRDetail!$E$2:$E$61<$B10)) -> 39.5 | AP9: 39.5 | AQ9: =SUM(BSRDetail!$H$2:$H$61*(BSRDetail!$A$2:$A$61=$A$1)*(BSRDetail!$F$2:$F$61=AQ$1)*(BSRDetail!$B$2:$B$61=$B$1)*(BSRDetail!$E$2:$E$61>=$B9)*(BSRDetail!$E$2:$E$61<$B10)) -> 108.05 | AR9: =IF($J9=0,IF(AQ8=0,AR8,AVERAGE(AR5:AR8)),AQ9/$J9) -> 0.02359994758 | AS9: 108.05 | AT9: =SUM(BSRDetail!$H$2:$H$61*(BSRDetail!$A$2:$A$61=$A$1)*(BSRDetail!$F$2:$F$61=AT$1)*(BSRDetail!$B$2:$B$61=$B$1)*(BSRDetail!$E$2:$E$61>=$B9)*(BSRDetail!$E$2:$E$61<$B10)) -> 3.21 | AU9: 0.0013 | AV9: 3.21 | AW9: =SUM(BSRDetail!$H$2:$H$61*(BSRDetail!$A$2:$A$61=$A$1)*(BSRDetail!$F$2:$F$61=AW$1)*(BSRDetail!$B$2:$B$61=$B$1)*(BSRDetail!$E$2:$E$61>=$B9)*(BSRDetail!$E$2:$E$61<$B10)) -> 66.39 | AX9: =IF(D9=0,IF(DAY(B9)<15,SUM($AX$7:AX8*(DAY($B$7:B8)<15))/SUM(1*(DAY($B$7:B8)<15)),SUM($AX$7:AX8*(DAY($B$7:B8)>14))/SUM(1*(DAY($B$7:B8)>14))),AW9/AB9) -> 0.01450069893 | AY9: 66.39 | AZ9: =SUM(BSRDetail!$H$2:$H$61*(BSRDetail!$A$2:$A$61=$A$1)*(BSRDetail!$F$2:$F$61=AZ$1)*(BSRDetail!$B$2:$B$61=$B$1)*(BSRDetail!$E$2:$E$61>=$B9)*(BSRDetail!$E$2:$E$61<$B10)) -> 0 | BA9: 0 | BB9: 0 | BC9: =SUM(BSRDetail!$H$2:$H$61*(BSRDetail!$A$2:$A$61=$A$1)*(BSRDetail!$F$2:$F$61=BC$1)*(BSRDetail!$B$2:$B$61=$B$1)*(BSRDetail!$E$2:$E$61>=$B9)*(BSRDetail!$E$2:$E$61<$B10)) -> 0 | BD9: =SUM(BSRDetail!$H$2:$H$61*(BSRDetail!$A$2:$A$61=$A$1)*(BSRDetail!$F$2:$F$61=BD$1)*(BSRDetail!$B$2:$B$61=$B$1)*(BSRDetail!$E$2:$E$61>=$B9)*(BSRDetail!$E$2:$E$61<$B10)) -> 0 | BE9: 0 | BF9: 0 | BG9: =SUM(BSRDetail!$H$2:$H$61*(BSRDetail!$A$2:$A$61=$A$1)*(BSRDetail!$F$2:$F$61=BG$1)*(BSRDetail!$B$2:$B$61=$B$1)*(BSRDetail!$E$2:$E$61>=$B9)*(BSRDetail!$E$2:$E$61<$B10)) -> 0 | BH9: =SUM(BSRDetail!$H$2:$H$61*(BSRDetail!$A$2:$A$61=$A$1)*(BSRDetail!$F$2:$F$61=BH$1)*(BSRDetail!$B$2:$B$61=$B$1)*(BSRDetail!$E$2:$E$61>=$B9)*(BSRDetail!$E$2:$E$61<$B10)) -> 0 | BI9: 0 | BJ9: =SUM(BSRDetail!$H$2:$H$61*(BSRDetail!$A$2:$A$61=$A$1)*(BSRDetail!$F$2:$F$61=BJ$1)*(BSRDetail!$B$2:$B$61=$B$1)*(BSRDetail!$E$2:$E$61>=$B9)*(BSRDetail!$E$2:$E$61<$B10)) -> 663.87 | BK9: =IF($D9=0,AVERAGE(BK$6:BK8)*$C9/10,BJ9) -> 663.87 | BL9: =SUM(BSRDetail!$H$2:$H$61*(BSRDetail!$A$2:$A$61=$A$1)*(BSRDetail!$F$2:$F$61=BL$1)*(BSRDetail!$B$2:$B$61=$B$1)*(BSRDetail!$E$2:$E$61>=$B9)*(BSRDetail!$E$2:$E$61<$B10)) -> 0 | BM9: =IF($D9=0,AVERAGE(BM$6:BM8)*$C9/10,BL9) -> 0 | BN9: =SUM(BSRDetail!$H$2:$H$61*(BSRDetail!$A$2:$A$61=$A$1)*(BSRDetail!$F$2:$F$61=BN$1)*(BSRDetail!$B$2:$B$61=$B$1)*(BSRDetail!$E$2:$E$61>=$B9)*(BSRDetail!$E$2:$E$61<$B10)) -> 0 | BO9: =IF($D9=0,AVERAGE(BO$6:BO8)*$C9/10,BN9) -> 0 | BP9: =SUM(BSRDetail!$H$2:$H$61*(BSRDetail!$A$2:$A$61=$A$1)*(BSRDetail!$F$2:$F$61=BP$1)*(BSRDetail!$B$2:$B$61=$B$1)*(BSRDetail!$E$2:$E$61>=$B9)*(BSRDetail!$E$2:$E$61<$B10)) -> 0 | BQ9: =IF($D9=0,AVERAGE(BQ$6:BQ8)*$C9/10,BP9) -> 0 | BR9: =SUM(BSRDetail!$H$2:$H$61*(BSRDetail!$A$2:$A$61=$A$1)*(BSRDetail!$F$2:$F$61=BR$1)*(BSRDetail!$B$2:$B$61=$B$1)*(BSRDetail!$E$2:$E$61>=$B9)*(BSRDetail!$E$2:$E$61<$B10)) -> 0 | BS9: =IF($D9=0,AVERAGE(BS$6:BS8)*$C9/10,BR9) -> 0 | BT9: =SUM(BSRDetail!$H$2:$H$61*(BSRDetail!$A$2:$A$61=$A$1)*(BSRDetail!$F$2:$F$61=BT$1)*(BSRDetail!$B$2:$B$61=$B$1)*(BSRDetail!$E$2:$E$61>=$B9)*(BSRDetail!$E$2:$E$61<$B10)) -> 0 | BU9: =IF($D9=0,AVERAGE(BU$6:BU8)*$C9/10,BT9) -> 0 | BV9: =SUM(BSRDetail!$H$2:$H$61*(BSRDetail!$A$2:$A$61=$A$1)*(BSRDetail!$F$2:$F$61=BV$1)*(BSRDetail!$B$2:$B$61=$B$1)*(BSRDetail!$E$2:$E$61>=$B9)*(BSRDetail!$E$2:$E$61<$B10)) -> 0 | BW9: =IF($D9=0,AVERAGE(BW$6:BW8)*$C9/10,BV9) -> 0 | BX9: =SUM(BSRDetail!$H$2:$H$61*(BSRDetail!$A$2:$A$61=$A$1)*(BSRDetail!$F$2:$F$61=BX$1)*(BSRDetail!$B$2:$B$61=$B$1)*(BSRDetail!$E$2:$E$61>=$B9)*(BSRDetail!$E$2:$E$61<$B10)) -> 0 | BY9: =IF($D9=0,AVERAGE(BY$6:BY8)*$C9/10,BX9) -> 0 | BZ9: =SUM(BSRDetail!$H$2:$H$61*(BSRDetail!$A$2:$A$61=$A$1)*(BSRDetail!$F$2:$F$61=BZ$1)*(BSRDetail!$B$2:$B$61=$B$1)*(BSRDetail!$E$2:$E$61>=$B9)*(BSRDetail!$E$2:$E$61<$B10)) -> 0 | CA9: =IF($D9=0,AVERAGE(CA$6:CA8)*$C9/10,BZ9) -> 0 | CB9: =SUM(BSRDetail!$H$2:$H$61*(BSRDetail!$A$2:$A$61=$A$1)*(BSRDetail!$F$2:$F$61=CB$1)*(BSRDetail!$B$2:$B$61=$B$1)*(BSRDetail!$E$2:$E$61>=$B9)*(BSRDetail!$E$2:$E$61<$B10)) -> 0 | CC9: =IF($D9=0,AVERAGE(CC$6:CC8)*$C9/10,CB9) -> 0 | CD9: =SUM(BSRDetail!$H$2:$H$61*(BSRDetail!$A$2:$A$61=$A$1)*(BSRDetail!$F$2:$F$61=CD$1)*(BSRDetail!$B$2:$B$61=$B$1)*(BSRDetail!$E$2:$E$61>=$B9)*(BSRDetail!$E$2:$E$61<$B10)) -> 0 | CE9: =IF($D9=0,AVERAGE(CE$6:CE8)*$C9/10,CD9) -> 0 | CF9: =SUM(BSRDetail!$H$2:$H$61*(BSRDetail!$A$2:$A$61=$A$1)*(BSRDetail!$F$2:$F$61=CF$1)*(BSRDetail!$B$2:$B$61=$B$1)*(BSRDetail!$E$2:$E$61>=$B9)*(BSRDetail!$E$2:$E$61<$B10)) -> 0 | CG9: =IF($D9=0,AVERAGE(CG$6:CG8)*$C9/10,CF9) -> 0 | CH9: =SUM(BSRDetail!$H$2:$H$61*(BSRDetail!$A$2:$A$61=$A$1)*(BSRDetail!$F$2:$F$61=CH$1)*(BSRDetail!$B$2:$B$61=$B$1)*(BSRDetail!$E$2:$E$61>=$B9)*(BSRDetail!$E$2:$E$61<$B10)) -> 0 | CI9: =IF($D9=0,AVERAGE(CI$6:CI8)*$C9/10,CH9) -> 0 | CJ9: =SUM(BSRDetail!$H$2:$H$61*(BSRDetail!$A$2:$A$61=$A$1)*(BSRDetail!$F$2:$F$61=CJ$1)*(BSRDetail!$B$2:$B$61=$B$1)*(BSRDetail!$E$2:$E$61>=$B9)*(BSRDetail!$E$2:$E$61<$B10)) -> 0 | CK9: =IF($D9=0,AVERAGE(CK$6:CK8)*$C9/10,CJ9) -> 0 | CL9: =SUM(BSRDetail!$H$2:$H$61*(BSRDetail!$A$2:$A$61=$A$1)*(BSRDetail!$F$2:$F$61=CL$1)*(BSRDetail!$B$2:$B$61=$B$1)*(BSRDetail!$E$2:$E$61>=$B9)*(BSRDetail!$E$2:$E$61<$B10)) -> 0 | CM9: =IF($D9=0,AVERAGE(CM$6:CM8)*$C9/10,CL9) -> 0 | CN9: =SUM(BSRDetail!$H$2:$H$61*(BSRDetail!$A$2:$A$61=$A$1)*(BSRDetail!$F$2:$F$61=CN$1)*(BSRDetail!$B$2:$B$61=$B$1)*(BSRDetail!$E$2:$E$61>=$B9)*(BSRDetail!$E$2:$E$61<$B10)) -> 0 | CO9: =IF($D9=0,AVERAGE(CO$6:CO8)*$C9/10,CN9) -> 0 | CP9: =SUM(BSRDetail!$H$2:$H$61*(BSRDetail!$A$2:$A$61=$A$1)*(BSRDetail!$F$2:$F$61=CP$1)*(BSRDetail!$B$2:$B$61=$B$1)*(BSRDetail!$E$2:$E$61>=$B9)*(BSRDetail!$E$2:$E$61<$B10)) -> 0 | CQ9: =IF($D9=0,AVERAGE(CQ$6:CQ8)*$C9/10,CP9) -> 0 | CR9: =SUM(BSRDetail!$H$2:$H$61*(BSRDetail!$A$2:$A$61=$A$1)*(BSRDetail!$F$2:$F$61=CR$1)*(BSRDetail!$B$2:$B$61=$B$1)*(BSRDetail!$E$2:$E$61>=$B9)*(BSRDetail!$E$2:$E$61<$B10)) -> 0 | CS9: =IF($D9=0,AVERAGE(CS$6:CS8)*$C9/10,CR9) -> 0 | CT9: =SUM(BSRDetail!$H$2:$H$61*(BSRDetail!$A$2:$A$61=$A$1)*(BSRDetail!$F$2:$F$61=CT$1)*(BSRDetail!$B$2:$B$61=$B$1)*(BSRDetail!$E$2:$E$61>=$B9)*(BSRDetail!$E$2:$E$61<$B10)) -> 0 | CU9: =IF($D9=0,AVERAGE(CU$6:CU8)*$C9/10,CT9) -> 0 | CV9: =SUM(BSRDetail!$H$2:$H$61*(BSRDetail!$A$2:$A$61=$A$1)*(BSRDetail!$F$2:$F$61=CV$1)*(BSRDetail!$B$2:$B$61=$B$1)*(BSRDetail!$E$2:$E$61>=$B9)*(BSRDetail!$E$2:$E$61<$B10)) -> 0 | CW9: =IF($D9=0,AVERAGE(CW$6:CW8)*$C9/10,CV9) -> 0
A10: 0 | B10: 2016-09-09 | C10: 10 | D10: =SUM(BSRDetail!$H$2:$H$61*(BSRDetail!$A$2:$A$61=$A$1)*(BSRDetail!$F$2:$F$61=D$1)*(BSRDetail!$B$2:$B$61=$B$1)*(BSRDetail!$E$2:$E$61>=$B10)*(BSRDetail!$E$2:$E$61<$B11)) -> 6645.22 | E10: =SUM(BSRDetail!$H$2:$H$61*(BSRDetail!$A$2:$A$61=$A$1)*(BSRDetail!$F$2:$F$61=E$1)*(BSRDetail!$B$2:$B$61=$B$1)*(BSRDetail!$E$2:$E$61>=$B10)*(BSRDetail!$E$2:$E$61<$B11)) -> 0 | F10: =SUM(BSRDetail!$H$2:$H$61*(BSRDetail!$A$2:$A$61=$A$1)*(BSRDetail!$F$2:$F$61=F$1)*(BSRDetail!$B$2:$B$61=$B$1)*(BSRDetail!$E$2:$E$61>=$B10)*(BSRDetail!$E$2:$E$61<$B11)) -> 72.38 | G10: =SUM(BSRDetail!$H$2:$H$61*(BSRDetail!$A$2:$A$61=$A$1)*(BSRDetail!$F$2:$F$61=G$1)*(BSRDetail!$B$2:$B$61=$B$1)*(BSRDetail!$E$2:$E$61>=$B10)*(BSRDetail!$E$2:$E$61<$B11)) -> 0 | H10: =SUM(BSRDetail!$H$2:$H$61*(BSRDetail!$A$2:$A$61=$A$1)*(BSRDetail!$F$2:$F$61=H$1)*(BSRDetail!$B$2:$B$61=$B$1)*(BSRDetail!$E$2:$E$61>=$B10)*(BSRDetail!$E$2:$E$61<$B11)) -> 0 | I10: =SUM(BSRDetail!$H$2:$H$61*(BSRDetail!$A$2:$A$61=$A$1)*(BSRDetail!$F$2:$F$61=I$1)*(BSRDetail!$B$2:$B$61=$B$1)*(BSRDetail!$E$2:$E$61>=$B10)*(BSRDetail!$E$2:$E$61<$B11)) -> 0 | J10: 6717.6 | K10: =IF($D10=0,AVERAGE(K6:K9)*$C10/10,J10) -> 6717.6 | L10: 0 | M10: 6717.6 | N10: =SUM(BSRDetail!$H$2:$H$61*(BSRDetail!$A$2:$A$61=$A$1)*(BSRDetail!$F$2:$F$61=N$1)*(BSRDetail!$B$2:$B$61=$B$1)*(BSRDetail!$E$2:$E$61>=$B10)*(BSRDetail!$E$2:$E$61<$B11)) -> 0 | O10: =SUM(BSRDetail!$H$2:$H$61*(BSRDetail!$A$2:$A$61=$A$1)*(BSRDetail!$F$2:$F$61=O$1)*(BSRDetail!$B$2:$B$61=$B$1)*(BSRDetail!$E$2:$E$61>=$B10)*(BSRDetail!$E$2:$E$61<$B11)) -> 0 | P10: =SUM(BSRDetail!$H$2:$H$61*(BSRDetail!$A$2:$A$61=$A$1)*(BSRDetail!$F$2:$F$61=P$1)*(BSRDetail!$B$2:$B$61=$B$1)*(BSRDetail!$E$2:$E$61>=$B10)*(BSRDetail!$E$2:$E$61<$B11)) -> 0 | Q10: =SUM(BSRDetail!$H$2:$H$61*(BSRDetail!$A$2:$A$61=$A$1)*(BSRDetail!$F$2:$F$61=Q$1)*(BSRDetail!$B$2:$B$61=$B$1)*(BSRDetail!$E$2:$E$61>=$B10)*(BSRDetail!$E$2:$E$61<$B11)) -> 0 | R10: =SUM(BSRDetail!$H$2:$H$61*(BSRDetail!$A$2:$A$61=$A$1)*(BSRDetail!$F$2:$F$61=R$1)*(BSRDetail!$B$2:$B$61=$B$1)*(BSRDetail!$E$2:$E$61>=$B10)*(BSRDetail!$E$2:$E$61<$B11)) -> 0 | S10: =SUM(BSRDetail!$H$2:$H$61*(BSRDetail!$A$2:$A$61=$A$1)*(BSRDetail!$F$2:$F$61=S$1)*(BSRDetail!$B$2:$B$61=$B$1)*(BSRDetail!$E$2:$E$61>=$B10)*(BSRDetail!$E$2:$E$61<$B11)) -> 0 | T10: =SUM(BSRDetail!$H$2:$H$61*(BSRDetail!$A$2:$A$61=$A$1)*(BSRDetail!$F$2:$F$61=T$1)*(BSRDetail!$B$2:$B$61=$B$1)*(BSRDetail!$E$2:$E$61>=$B10)*(BSRDetail!$E$2:$E$61<$B11)) -> 0 | U10: =SUM(BSRDetail!$H$2:$H$61*(BSRDetail!$A$2:$A$61=$A$1)*(BSRDetail!$F$2:$F$61=U$1)*(BSRDetail!$B$2:$B$61=$B$1)*(BSRDetail!$E$2:$E$61>=$B10)*(BSRDetail!$E$2:$E$61<$B11)) -> 0 | V10: =SUM(BSRDetail!$H$2:$H$61*(BSRDetail!$A$2:$A$61=$A$1)*(BSRDetail!$F$2:$F$61=V$1)*(BSRDetail!$B$2:$B$61=$B$1)*(BSRDetail!$E$2:$E$61>=$B10)*(BSRDetail!$E$2:$E$61<$B11)) -> 0 | W10: =SUM(BSRDetail!$H$2:$H$61*(BSRDetail!$A$2:$A$61=$A$1)*(BSRDetail!$F$2:$F$61=W$1)*(BSRDetail!$B$2:$B$61=$B$1)*(BSRDetail!$E$2:$E$61>=$B10)*(BSRDetail!$E$2:$E$61<$B11)) -> 0 | X10: =SUM(BSRDetail!$H$2:$H$61*(BSRDetail!$A$2:$A$61=$A$1)*(BSRDetail!$F$2:$F$61=X$1)*(BSRDetail!$B$2:$B$61=$B$1)*(BSRDetail!$E$2:$E$61>=$B10)*(BSRDetail!$E$2:$E$61<$B11)) -> 0 | Y10: 0 | Z10: 0 | AA10: =IF(D9=0,AA9,IF($D10=0,Z10+AVERAGE($Y$7:Y9)*$C10/10,Y10)) -> 0 | AB10: 6717.6 | AC10: =SUM(BSRDetail!$H$2:$H$61*(BSRDetail!$A$2:$A$61=$A$1)*(BSRDetail!$F$2:$F$61=AC$1)*(BSRDetail!$B$2:$B$61=$B$1)*(BSRDetail!$E$2:$E$61>=$B10)*(BSRDetail!$E$2:$E$61<$B11)) -> 89.91 | AD10: 0.015584 | AE10: 89.91 | AF10: =SUM(BSRDetail!$H$2:$H$61*(BSRDetail!$A$2:$A$61=$A$1)*(BSRDetail!$F$2:$F$61=AF$1)*(BSRDetail!$B$2:$B$61=$B$1)*(BSRDetail!$E$2:$E$61>=$B10)*(BSRDetail!$E$2:$E$61<$B11)) -> 0 | AG10: 0 | AH10: 0 | AI10: =SUM(BSRDetail!$H$2:$H$61*(BSRDetail!$A$2:$A$61=$A$1)*(BSRDetail!$F$2:$F$61=AI$1)*(BSRDetail!$B$2:$B$61=$B$1)*(BSRDetail!$E$2:$E$61>=$B10)*(BSRDetail!$E$2:$E$61<$B11)) -> 168.75 | AJ10: 168.75 | AK10: =SUM(BSRDetail!$H$2:$H$61*(BSRDetail!$A$2:$A$61=$A$1)*(BSRDetail!$F$2:$F$61=AK$1)*(BSRDetail!$B$2:$B$61=$B$1)*(BSRDetail!$E$2:$E$61>=$B10)*(BSRDetail!$E$2:$E$61<$B11)) -> 1398.5 | AL10: 1.992931754 | AM10: 0 | AN10: 1398.5 | AO10: =SUM(BSRDetail!$H$2:$H$61*(BSRDetail!$A$2:$A$61=$A$1)*(BSRDetail!$F$2:$F$61=AO$1)*(BSRDetail!$B$2:$B$61=$B$1)*(BSRDetail!$E$2:$E$61>=$B10)*(BSRDetail!$E$2:$E$61<$B11)) -> 0 | AP10: 0 | AQ10: =SUM(BSRDetail!$H$2:$H$61*(BSRDetail!$A$2:$A$61=$A$1)*(BSRDetail!$F$2:$F$61=AQ$1)*(BSRDetail!$B$2:$B$61=$B$1)*(BSRDetail!$E$2:$E$61>=$B10)*(BSRDetail!$E$2:$E$61<$B11)) -> 158.54 | AR10: 0.02360069072 | AS10: 158.54 | AT10: =SUM(BSRDetail!$H$2:$H$61*(BSRDetail!$A$2:$A$61=$A$1)*(BSRDetail!$F$2:$F$61=AT$1)*(BSRDetail!$B$2:$B$61=$B$1)*(BSRDetail!$E$2:$E$61>=$B10)*(BSRDetail!$E$2:$E$61<$B11)) -> 4.71 | AU10: 0.0013 | AV10: 4.71 | AW10: =SUM(BSRDetail!$H$2:$H$61*(BSRDetail!$A$2:$A$61=$A$1)*(BSRDetail!$F$2:$F$61=AW$1)*(BSRDetail!$B$2:$B$61=$B$1)*(BSRDetail!$E$2:$E$61>=$B10)*(BSRDetail!$E$2:$E$61<$B11)) -> 91.08 | AX10: =IF(D10=0,IF(DAY(B10)<15,SUM($AX$7:AX9*(DAY($B$7:B9)<15))/SUM(1*(DAY($B$7:B9)<15)),SUM($AX$7:AX9*(DAY($B$7:B9)>14))/SUM(1*(DAY($B$7:B9)>14))),AW10/AB10) -> 0.01355841372 | AY10: 91.08 | AZ10: =SUM(BSRDetail!$H$2:$H$61*(BSRDetail!$A$2:$A$61=$A$1)*(BSRDetail!$F$2:$F$61=AZ$1)*(BSRDetail!$B$2:$B$61=$B$1)*(BSRDetail!$E$2:$E$61>=$B10)*(BSRDetail!$E$2:$E$61<$B11)) -> 0 | BA10: 0 | BB10: 0 | BC10: =SUM(BSRDetail!$H$2:$H$61*(BSRDetail!$A$2:$A$61=$A$1)*(BSRDetail!$F$2:$F$61=BC$1)*(BSRDetail!$B$2:$B$61=$B$1)*(BSRDetail!$E$2:$E$61>=$B10)*(BSRDetail!$E$2:$E$61<$B11)) -> 0 | BD10: =SUM(BSRDetail!$H$2:$H$61*(BSRDetail!$A$2:$A$61=$A$1)*(BSRDetail!$F$2:$F$61=BD$1)*(BSRDetail!$B$2:$B$61=$B$1)*(BSRDetail!$E$2:$E$61>=$B10)*(BSRDetail!$E$2:$E$61<$B11)) -> 0 | BE10: 0 | BF10: 0 | BG10: =SUM(BSRDetail!$H$2:$H$61*(BSRDetail!$A$2:$A$61=$A$1)*(BSRDetail!$F$2:$F$61=BG$1)*(BSRDetail!$B$2:$B$61=$B$1)*(BSRDetail!$E$2:$E$61>=$B10)*(BSRDetail!$E$2:$E$61<$B11)) -> 0 | BH10: =SUM(BSRDetail!$H$2:$H$61*(BSRDetail!$A$2:$A$61=$A$1)*(BSRDetail!$F$2:$F$61=BH$1)*(BSRDetail!$B$2:$B$61=$B$1)*(BSRDetail!$E$2:$E$61>=$B10)*(BSRDetail!$E$2:$E$61<$B11)) -> 0 | BI10: 0 | BJ10: =SUM(BSRDetail!$H$2:$H$61*(BSRDetail!$A$2:$A$61=$A$1)*(BSRDetail!$F$2:$F$61=BJ$1)*(BSRDetail!$B$2:$B$61=$B$1)*(BSRDetail!$E$2:$E$61>=$B10)*(BSRDetail!$E$2:$E$61<$B11)) -> 974.05 | BK10: =IF($D10=0,AVERAGE(BK$6:BK9)*$C10/10,BJ10) -> 974.05 | BL10: =SUM(BSRDetail!$H$2:$H$61*(BSRDetail!$A$2:$A$61=$A$1)*(BSRDetail!$F$2:$F$61=BL$1)*(BSRDetail!$B$2:$B$61=$B$1)*(BSRDetail!$E$2:$E$61>=$B10)*(BSRDetail!$E$2:$E$61<$B11)) -> 0 | BM10: =IF($D10=0,AVERAGE(BM$6:BM9)*$C10/10,BL10) -> 0 | BN10: =SUM(BSRDetail!$H$2:$H$61*(BSRDetail!$A$2:$A$61=$A$1)*(BSRDetail!$F$2:$F$61=BN$1)*(BSRDetail!$B$2:$B$61=$B$1)*(BSRDetail!$E$2:$E$61>=$B10)*(BSRDetail!$E$2:$E$61<$B11)) -> 0 | BO10: =IF($D10=0,AVERAGE(BO$6:BO9)*$C10/10,BN10) -> 0 | BP10: =SUM(BSRDetail!$H$2:$H$61*(BSRDetail!$A$2:$A$61=$A$1)*(BSRDetail!$F$2:$F$61=BP$1)*(BSRDetail!$B$2:$B$61=$B$1)*(BSRDetail!$E$2:$E$61>=$B10)*(BSRDetail!$E$2:$E$61<$B11)) -> 0 | BQ10: =IF($D10=0,AVERAGE(BQ$6:BQ9)*$C10/10,BP10) -> 0 | BR10: =SUM(BSRDetail!$H$2:$H$61*(BSRDetail!$A$2:$A$61=$A$1)*(BSRDetail!$F$2:$F$61=BR$1)*(BSRDetail!$B$2:$B$61=$B$1)*(BSRDetail!$E$2:$E$61>=$B10)*(BSRDetail!$E$2:$E$61<$B11)) -> 0 | BS10: =IF($D10=0,AVERAGE(BS$6:BS9)*$C10/10,BR10) -> 0 | BT10: =SUM(BSRDetail!$H$2:$H$61*(BSRDetail!$A$2:$A$61=$A$1)*(BSRDetail!$F$2:$F$61=BT$1)*(BSRDetail!$B$2:$B$61=$B$1)*(BSRDetail!$E$2:$E$61>=$B10)*(BSRDetail!$E$2:$E$61<$B11)) -> 0 | BU10: =IF($D10=0,AVERAGE(BU$6:BU9)*$C10/10,BT10) -> 0 | BV10: =SUM(BSRDetail!$H$2:$H$61*(BSRDetail!$A$2:$A$61=$A$1)*(BSRDetail!$F$2:$F$61=BV$1)*(BSRDetail!$B$2:$B$61=$B$1)*(BSRDetail!$E$2:$E$61>=$B10)*(BSRDetail!$E$2:$E$61<$B11)) -> 0 | BW10: =IF($D10=0,AVERAGE(BW$6:BW9)*$C10/10,BV10) -> 0 | BX10: =SUM(BSRDetail!$H$2:$H$61*(BSRDetail!$A$2:$A$61=$A$1)*(BSRDetail!$F$2:$F$61=BX$1)*(BSRDetail!$B$2:$B$61=$B$1)*(BSRDetail!$E$2:$E$61>=$B10)*(BSRDetail!$E$2:$E$61<$B11)) -> 0 | BY10: =IF($D10=0,AVERAGE(BY$6:BY9)*$C10/10,BX10) -> 0 | BZ10: =SUM(BSRDetail!$H$2:$H$61*(BSRDetail!$A$2:$A$61=$A$1)*(BSRDetail!$F$2:$F$61=BZ$1)*(BSRDetail!$B$2:$B$61=$B$1)*(BSRDetail!$E$2:$E$61>=$B10)*(BSRDetail!$E$2:$E$61<$B11)) -> 0 | CA10: =IF($D10=0,AVERAGE(CA$6:CA9)*$C10/10,BZ10) -> 0 | CB10: =SUM(BSRDetail!$H$2:$H$61*(BSRDetail!$A$2:$A$61=$A$1)*(BSRDetail!$F$2:$F$61=CB$1)*(BSRDetail!$B$2:$B$61=$B$1)*(BSRDetail!$E$2:$E$61>=$B10)*(BSRDetail!$E$2:$E$61<$B11)) -> 0 | CC10: =IF($D10=0,AVERAGE(CC$6:CC9)*$C10/10,CB10) -> 0 | CD10: =SUM(BSRDetail!$H$2:$H$61*(BSRDetail!$A$2:$A$61=$A$1)*(BSRDetail!$F$2:$F$61=CD$1)*(BSRDetail!$B$2:$B$61=$B$1)*(BSRDetail!$E$2:$E$61>=$B10)*(BSRDetail!$E$2:$E$61<$B11)) -> 0 | CE10: =IF($D10=0,AVERAGE(CE$6:CE9)*$C10/10,CD10) -> 0 | CF10: =SUM(BSRDetail!$H$2:$H$61*(BSRDetail!$A$2:$A$61=$A$1)*(BSRDetail!$F$2:$F$61=CF$1)*(BSRDetail!$B$2:$B$61=$B$1)*(BSRDetail!$E$2:$E$61>=$B10)*(BSRDetail!$E$2:$E$61<$B11)) -> 0 | CG10: =IF($D10=0,AVERAGE(CG$6:CG9)*$C10/10,CF10) -> 0 | CH10: =SUM(BSRDetail!$H$2:$H$61*(BSRDetail!$A$2:$A$61=$A$1)*(BSRDetail!$F$2:$F$61=CH$1)*(BSRDetail!$B$2:$B$61=$B$1)*(BSRDetail!$E$2:$E$61>=$B10)*(BSRDetail!$E$2:$E$61<$B11)) -> 0 | CI10: =IF($D10=0,AVERAGE(CI$6:CI9)*$C10/10,CH10) -> 0 | CJ10: =SUM(BSRDetail!$H$2:$H$61*(BSRDetail!$A$2:$A$61=$A$1)*(BSRDetail!$F$2:$F$61=CJ$1)*(BSRDetail!$B$2:$B$61=$B$1)*(BSRDetail!$E$2:$E$61>=$B10)*(BSRDetail!$E$2:$E$61<$B11)) -> 0 | CK10: =IF($D10=0,AVERAGE(CK$6:CK9)*$C10/10,CJ10) -> 0 | CL10: =SUM(BSRDetail!$H$2:$H$61*(BSRDetail!$A$2:$A$61=$A$1)*(BSRDetail!$F$2:$F$61=CL$1)*(BSRDetail!$B$2:$B$61=$B$1)*(BSRDetail!$E$2:$E$61>=$B10)*(BSRDetail!$E$2:$E$61<$B11)) -> 0 | CM10: =IF($D10=0,AVERAGE(CM$6:CM9)*$C10/10,CL10) -> 0 | CN10: =SUM(BSRDetail!$H$2:$H$61*(BSRDetail!$A$2:$A$61=$A$1)*(BSRDetail!$F$2:$F$61=CN$1)*(BSRDetail!$B$2:$B$61=$B$1)*(BSRDetail!$E$2:$E$61>=$B10)*(BSRDetail!$E$2:$E$61<$B11)) -> 0 | CO10: =IF($D10=0,AVERAGE(CO$6:CO9)*$C10/10,CN10) -> 0 | CP10: =SUM(BSRDetail!$H$2:$H$61*(BSRDetail!$A$2:$A$61=$A$1)*(BSRDetail!$F$2:$F$61=CP$1)*(BSRDetail!$B$2:$B$61=$B$1)*(BSRDetail!$E$2:$E$61>=$B10)*(BSRDetail!$E$2:$E$61<$B11)) -> 0 | CQ10: =IF($D10=0,AVERAGE(CQ$6:CQ9)*$C10/10,CP10) -> 0 | CR10: =SUM(BSRDetail!$H$2:$H$61*(BSRDetail!$A$2:$A$61=$A$1)*(BSRDetail!$F$2:$F$61=CR$1)*(BSRDetail!$B$2:$B$61=$B$1)*(BSRDetail!$E$2:$E$61>=$B10)*(BSRDetail!$E$2:$E$61<$B11)) -> 0 | CS10: =IF($D10=0,AVERAGE(CS$6:CS9)*$C10/10,CR10) -> 0 | CT10: =SUM(BSRDetail!$H$2:$H$61*(BSRDetail!$A$2:$A$61=$A$1)*(BSRDetail!$F$2:$F$61=CT$1)*(BSRDetail!$B$2:$B$61=$B$1)*(BSRDetail!$E$2:$E$61>=$B10)*(BSRDetail!$E$2:$E$61<$B11)) -> 0 | CU10: =IF($D10=0,AVERAGE(CU$6:CU9)*$C10/10,CT10) -> 0 | CV10: =SUM(BSRDetail!$H$2:$H$61*(BSRDetail!$A$2:$A$61=$A$1)*(BSRDetail!$F$2:$F$61=CV$1)*(BSRDetail!$B$2:$B$61=$B$1)*(BSRDetail!$E$2:$E$61>=$B10)*(BSRDetail!$E$2:$E$61<$B11)) -> 0 | CW10: =IF($D10=0,AVERAGE(CW$6:CW9)*$C10/10,CV10) -> 0
A11: 0 | B11: 2016-09-23 | C11: 10 | D11: =SUM(BSRDetail!$H$2:$H$61*(BSRDetail!$A$2:$A$61=$A$1)*(BSRDetail!$F$2:$F$61=D$1)*(BSRDetail!$B$2:$B$61=$B$1)*(BSRDetail!$E$2:$E$61>=$B11)*(BSRDetail!$E$2:$E$61<$B12)) -> 6425.2 | E11: =SUM(BSRDetail!$H$2:$H$61*(BSRDetail!$A$2:$A$61=$A$1)*(BSRDetail!$F$2:$F$61=E$1)*(BSRDetail!$B$2:$B$61=$B$1)*(BSRDetail!$E$2:$E$61>=$B11)*(BSRDetail!$E$2:$E$61<$B12)) -> 0 | F11: =SUM(BSRDetail!$H$2:$H$61*(BSRDetail!$A$2:$A$61=$A$1)*(BSRDetail!$F$2:$F$61=F$1)*(BSRDetail!$B$2:$B$61=$B$1)*(BSRDetail!$E$2:$E$61>=$B11)*(BSRDetail!$E$2:$E$61<$B12)) -> 292.4 | G11: =SUM(BSRDetail!$H$2:$H$61*(BSRDetail!$A$2:$A$61=$A$1)*(BSRDetail!$F$2:$F$61=G$1)*(BSRDetail!$B$2:$B$61=$B$1)*(BSRDetail!$E$2:$E$61>=$B11)*(BSRDetail!$E$2:$E$61<$B12)) -> 0 | H11: =SUM(BSRDetail!$H$2:$H$61*(BSRDetail!$A$2:$A$61=$A$1)*(BSRDetail!$F$2:$F$61=H$1)*(BSRDetail!$B$2:$B$61=$B$1)*(BSRDetail!$E$2:$E$61>=$B11)*(BSRDetail!$E$2:$E$61<$B12)) -> 0 | I11: =SUM(BSRDetail!$H$2:$H$61*(BSRDetail!$A$2:$A$61=$A$1)*(BSRDetail!$F$2:$F$61=I$1)*(BSRDetail!$B$2:$B$61=$B$1)*(BSRDetail!$E$2:$E$61>=$B11)*(BSRDetail!$E$2:$E$61<$B12)) -> 0 | J11: 6717.6 | K11: 6717.6 | L11: 0 | M11: 6717.6 | N11: =SUM(BSRDetail!$H$2:$H$61*(BSRDetail!$A$2:$A$61=$A$1)*(BSRDetail!$F$2:$F$61=N$1)*(BSRDetail!$B$2:$B$61=$B$1)*(BSRDetail!$E$2:$E$61>=$B11)*(BSRDetail!$E$2:$E$61<$B12)) -> 0 | O11: =SUM(BSRDetail!$H$2:$H$61*(BSRDetail!$A$2:$A$61=$A$1)*(BSRDetail!$F$2:$F$61=O$1)*(BSRDetail!$B$2:$B$61=$B$1)*(BSRDetail!$E$2:$E$61>=$B11)*(BSRDetail!$E$2:$E$61<$B12)) -> 0 | P11: =SUM(BSRDetail!$H$2:$H$61*(BSRDetail!$A$2:$A$61=$A$1)*(BSRDetail!$F$2:$F$61=P$1)*(BSRDetail!$B$2:$B$61=$B$1)*(BSRDetail!$E$2:$E$61>=$B11)*(BSRDetail!$E$2:$E$61<$B12)) -> 0 | Q11: =SUM(BSRDetail!$H$2:$H$61*(BSRDetail!$A$2:$A$61=$A$1)*(BSRDetail!$F$2:$F$61=Q$1)*(BSRDetail!$B$2:$B$61=$B$1)*(BSRDetail!$E$2:$E$61>=$B11)*(BSRDetail!$E$2:$E$61<$B12)) -> 0 | R11: =SUM(BSRDetail!$H$2:$H$61*(BSRDetail!$A$2:$A$61=$A$1)*(BSRDetail!$F$2:$F$61=R$1)*(BSRDetail!$B$2:$B$61=$B$1)*(BSRDetail!$E$2:$E$61>=$B11)*(BSRDetail!$E$2:$E$61<$B12)) -> 0 | S11: =SUM(BSRDetail!$H$2:$H$61*(BSRDetail!$A$2:$A$61=$A$1)*(BSRDetail!$F$2:$F$61=S$1)*(BSRDetail!$B$2:$B$61=$B$1)*(BSRDetail!$E$2:$E$61>=$B11)*(BSRDetail!$E$2:$E$61<$B12)) -> 0 | T11: =SUM(BSRDetail!$H$2:$H$61*(BSRDetail!$A$2:$A$61=$A$1)*(BSRDetail!$F$2:$F$61=T$1)*(BSRDetail!$B$2:$B$61=$B$1)*(BSRDetail!$E$2:$E$61>=$B11)*(BSRDetail!$E$2:$E$61<$B12)) -> 0 | U11: =SUM(BSRDetail!$H$2:$H$61*(BSRDetail!$A$2:$A$61=$A$1)*(BSRDetail!$F$2:$F$61=U$1)*(BSRDetail!$B$2:$B$61=$B$1)*(BSRDetail!$E$2:$E$61>=$B11)*(BSRDetail!$E$2:$E$61<$B12)) -> 0 | V11: =SUM(BSRDetail!$H$2:$H$61*(BSRDetail!$A$2:$A$61=$A$1)*(BSRDetail!$F$2:$F$61=V$1)*(BSRDetail!$B$2:$B$61=$B$1)*(BSRDetail!$E$2:$E$61>=$B11)*(BSRDetail!$E$2:$E$61<$B12)) -> 0 | W11: =SUM(BSRDetail!$H$2:$H$61*(BSRDetail!$A$2:$A$61=$A$1)*(BSRDetail!$F$2:$F$61=W$1)*(BSRDetail!$B$2:$B$61=$B$1)*(BSRDetail!$E$2:$E$61>=$B11)*(BSRDetail!$E$2:$E$61<$B12)) -> 0 | X11: =SUM(BSRDetail!$H$2:$H$61*(BSRDetail!$A$2:$A$61=$A$1)*(BSRDetail!$F$2:$F$61=X$1)*(BSRDetail!$B$2:$B$61=$B$1)*(BSRDetail!$E$2:$E$61>=$B11)*(BSRDetail!$E$2:$E$61<$B12)) -> 0 | Y11: 0 | Z11: 0 | AA11: =IF(D10=0,AA10,IF($D11=0,Z11+AVERAGE($Y$7:Y10)*$C11/10,Y11)) -> 0 | AB11: 6717.6 | AC11: =SUM(BSRDetail!$H$2:$H$61*(BSRDetail!$A$2:$A$61=$A$1)*(BSRDetail!$F$2:$F$61=AC$1)*(BSRDetail!$B$2:$B$61=$B$1)*(BSRDetail!$E$2:$E$61>=$B11)*(BSRDetail!$E$2:$E$61<$B12)) -> 46.28 | AD11: 0.014464 | AE11: 46.28 | AF11: =SUM(BSRDetail!$H$2:$H$61*(BSRDetail!$A$2:$A$61=$A$1)*(BSRDetail!$F$2:$F$61=AF$1)*(BSRDetail!$B$2:$B$61=$B$1)*(BSRDetail!$E$2:$E$61>=$B11)*(BSRDetail!$E$2:$E$61<$B12)) -> 0 | AG11: 0 | AH11: 0 | AI11: =SUM(BSRDetail!$H$2:$H$61*(BSRDetail!$A$2:$A$61=$A$1)*(BSRDetail!$F$2:$F$61=AI$1)*(BSRDetail!$B$2:$B$61=$B$1)*(BSRDetail!$E$2:$E$61>=$B11)*(BSRDetail!$E$2:$E$61<$B12)) -> 0 | AJ11: 0 | AK11: =SUM(BSRDetail!$H$2:$H$61*(BSRDetail!$A$2:$A$61=$A$1)*(BSRDetail!$F$2:$F$61=AK$1)*(BSRDetail!$B$2:$B$61=$B$1)*(BSRDetail!$E$2:$E$61>=$B11)*(BSRDetail!$E$2:$E$61<$B12)) -> 0 | AL11: 0 | AM11: 0 | AN11: 0 | AO11: =SUM(BSRDetail!$H$2:$H$61*(BSRDetail!$A$2:$A$61=$A$1)*(BSRDetail!$F$2:$F$61=AO$1)*(BSRDetail!$B$2:$B$61=$B$1)*(BSRDetail!$E$2:$E$61>=$B11)*(BSRDetail!$E$2:$E$61<$B12)) -> 0 | AP11: 0 | AQ11: =SUM(BSRDetail!$H$2:$H$61*(BSRDetail!$A$2:$A$61=$A$1)*(BSRDetail!$F$2:$F$61=AQ$1)*(BSRDetail!$B$2:$B$61=$B$1)*(BSRDetail!$E$2:$E$61>=$B11)*(BSRDetail!$E$2:$E$61<$B12)) -> 158.54 | AR11: 0.02360069072 | AS11: 158.54 | AT11: =SUM(BSRDetail!$H$2:$H$61*(BSRDetail!$A$2:$A$61=$A$1)*(BSRDetail!$F$2:$F$61=AT$1)*(BSRDetail!$B$2:$B$61=$B$1)*(BSRDetail!$E$2:$E$61>=$B11)*(BSRDetail!$E$2:$E$61<$B12)) -> 4.71 | AU11: 0.0013 | AV11: 4.71 | AW11: =SUM(BSRDetail!$H$2:$H$61*(BSRDetail!$A$2:$A$61=$A$1)*(BSRDetail!$F$2:$F$61=AW$1)*(BSRDetail!$B$2:$B$61=$B$1)*(BSRDetail!$E$2:$E$61>=$B11)*(BSRDetail!$E$2:$E$61<$B12)) -> 97.41 | AX11: =IF(D11=0,IF(DAY(B11)<15,SUM($AX$7:AX10*(DAY($B$7:B10)<15))/SUM(1*(DAY($B$7:B10)<15)),SUM($AX$7:AX10*(DAY($B$7:B10)>14))/SUM(1*(DAY($B$7:B10)>14))),AW11/AB11) -> 0.01450071454 | AY11: 97.41 | AZ11: =SUM(BSRDetail!$H$2:$H$61*(BSRDetail!$A$2:$A$61=$A$1)*(BSRDetail!$F$2:$F$61=AZ$1)*(BSRDetail!$B$2:$B$61=$B$1)*(BSRDetail!$E$2:$E$61>=$B11)*(BSRDetail!$E$2:$E$61<$B12)) -> 0 | BA11: 0 | BB11: 0 | BC11: =SUM(BSRDetail!$H$2:$H$61*(BSRDetail!$A$2:$A$61=$A$1)*(BSRDetail!$F$2:$F$61=BC$1)*(BSRDetail!$B$2:$B$61=$B$1)*(BSRDetail!$E$2:$E$61>=$B11)*(BSRDetail!$E$2:$E$61<$B12)) -> 0 | BD11: =SUM(BSRDetail!$H$2:$H$61*(BSRDetail!$A$2:$A$61=$A$1)*(BSRDetail!$F$2:$F$61=BD$1)*(BSRDetail!$B$2:$B$61=$B$1)*(BSRDetail!$E$2:$E$61>=$B11)*(BSRDetail!$E$2:$E$61<$B12)) -> 0 | BE11: 0 | BF11: 0 | BG11: =SUM(BSRDetail!$H$2:$H$61*(BSRDetail!$A$2:$A$61=$A$1)*(BSRDetail!$F$2:$F$61=BG$1)*(BSRDetail!$B$2:$B$61=$B$1)*(BSRDetail!$E$2:$E$61>=$B11)*(BSRDetail!$E$2:$E$61<$B12)) -> 0 | BH11: =SUM(BSRDetail!$H$2:$H$61*(BSRDetail!$A$2:$A$61=$A$1)*(BSRDetail!$F$2:$F$61=BH$1)*(BSRDetail!$B$2:$B$61=$B$1)*(BSRDetail!$E$2:$E$61>=$B11)*(BSRDetail!$E$2:$E$61<$B12)) -> 0 | BI11: 0 | BJ11: =SUM(BSRDetail!$H$2:$H$61*(BSRDetail!$A$2:$A$61=$A$1)*(BSRDetail!$F$2:$F$61=BJ$1)*(BSRDetail!$B$2:$B$61=$B$1)*(BSRDetail!$E$2:$E$61>=$B11)*(BSRDetail!$E$2:$E$61<$B12)) -> 974.05 | BK11: =IF($D11=0,AVERAGE(BK$6:BK10)*$C11/10,BJ11) -> 974.05 | BL11: =SUM(BSRDetail!$H$2:$H$61*(BSRDetail!$A$2:$A$61=$A$1)*(BSRDetail!$F$2:$F$61=BL$1)*(BSRDetail!$B$2:$B$61=$B$1)*(BSRDetail!$E$2:$E$61>=$B11)*(BSRDetail!$E$2:$E$61<$B12)) -> 0 | BM11: =IF($D11=0,AVERAGE(BM$6:BM10)*$C11/10,BL11) -> 0 | BN11: =SUM(BSRDetail!$H$2:$H$61*(BSRDetail!$A$2:$A$61=$A$1)*(BSRDetail!$F$2:$F$61=BN$1)*(BSRDetail!$B$2:$B$61=$B$1)*(BSRDetail!$E$2:$E$61>=$B11)*(BSRDetail!$E$2:$E$61<$B12)) -> 0 | BO11: =IF($D11=0,AVERAGE(BO$6:BO10)*$C11/10,BN11) -> 0 | BP11: =SUM(BSRDetail!$H$2:$H$61*(BSRDetail!$A$2:$A$61=$A$1)*(BSRDetail!$F$2:$F$61=BP$1)*(BSRDetail!$B$2:$B$61=$B$1)*(BSRDetail!$E$2:$E$61>=$B11)*(BSRDetail!$E$2:$E$61<$B12)) -> 0 | BQ11: =IF($D11=0,AVERAGE(BQ$6:BQ10)*$C11/10,BP11) -> 0 | BR11: =SUM(BSRDetail!$H$2:$H$61*(BSRDetail!$A$2:$A$61=$A$1)*(BSRDetail!$F$2:$F$61=BR$1)*(BSRDetail!$B$2:$B$61=$B$1)*(BSRDetail!$E$2:$E$61>=$B11)*(BSRDetail!$E$2:$E$61<$B12)) -> 0 | BS11: =IF($D11=0,AVERAGE(BS$6:BS10)*$C11/10,BR11) -> 0 | BT11: =SUM(BSRDetail!$H$2:$H$61*(BSRDetail!$A$2:$A$61=$A$1)*(BSRDetail!$F$2:$F$61=BT$1)*(BSRDetail!$B$2:$B$61=$B$1)*(BSRDetail!$E$2:$E$61>=$B11)*(BSRDetail!$E$2:$E$61<$B12)) -> 0 | BU11: =IF($D11=0,AVERAGE(BU$6:BU10)*$C11/10,BT11) -> 0 | BV11: =SUM(BSRDetail!$H$2:$H$61*(BSRDetail!$A$2:$A$61=$A$1)*(BSRDetail!$F$2:$F$61=BV$1)*(BSRDetail!$B$2:$B$61=$B$1)*(BSRDetail!$E$2:$E$61>=$B11)*(BSRDetail!$E$2:$E$61<$B12)) -> 0 | BW11: =IF($D11=0,AVERAGE(BW$6:BW10)*$C11/10,BV11) -> 0 | BX11: =SUM(BSRDetail!$H$2:$H$61*(BSRDetail!$A$2:$A$61=$A$1)*(BSRDetail!$F$2:$F$61=BX$1)*(BSRDetail!$B$2:$B$61=$B$1)*(BSRDetail!$E$2:$E$61>=$B11)*(BSRDetail!$E$2:$E$61<$B12)) -> 0 | BY11: =IF($D11=0,AVERAGE(BY$6:BY10)*$C11/10,BX11) -> 0 | BZ11: =SUM(BSRDetail!$H$2:$H$61*(BSRDetail!$A$2:$A$61=$A$1)*(BSRDetail!$F$2:$F$61=BZ$1)*(BSRDetail!$B$2:$B$61=$B$1)*(BSRDetail!$E$2:$E$61>=$B11)*(BSRDetail!$E$2:$E$61<$B12)) -> 0 | CA11: =IF($D11=0,AVERAGE(CA$6:CA10)*$C11/10,BZ11) -> 0 | CB11: =SUM(BSRDetail!$H$2:$H$61*(BSRDetail!$A$2:$A$61=$A$1)*(BSRDetail!$F$2:$F$61=CB$1)*(BSRDetail!$B$2:$B$61=$B$1)*(BSRDetail!$E$2:$E$61>=$B11)*(BSRDetail!$E$2:$E$61<$B12)) -> 0 | CC11: =IF($D11=0,AVERAGE(CC$6:CC10)*$C11/10,CB11) -> 0 | CD11: =SUM(BSRDetail!$H$2:$H$61*(BSRDetail!$A$2:$A$61=$A$1)*(BSRDetail!$F$2:$F$61=CD$1)*(BSRDetail!$B$2:$B$61=$B$1)*(BSRDetail!$E$2:$E$61>=$B11)*(BSRDetail!$E$2:$E$61<$B12)) -> 0 | CE11: =IF($D11=0,AVERAGE(CE$6:CE10)*$C11/10,CD11) -> 0 | CF11: =SUM(BSRDetail!$H$2:$H$61*(BSRDetail!$A$2:$A$61=$A$1)*(BSRDetail!$F$2:$F$61=CF$1)*(BSRDetail!$B$2:$B$61=$B$1)*(BSRDetail!$E$2:$E$61>=$B11)*(BSRDetail!$E$2:$E$61<$B12)) -> 0 | CG11: =IF($D11=0,AVERAGE(CG$6:CG10)*$C11/10,CF11) -> 0 | CH11: =SUM(BSRDetail!$H$2:$H$61*(BSRDetail!$A$2:$A$61=$A$1)*(BSRDetail!$F$2:$F$61=CH$1)*(BSRDetail!$B$2:$B$61=$B$1)*(BSRDetail!$E$2:$E$61>=$B11)*(BSRDetail!$E$2:$E$61<$B12)) -> 0 | CI11: =IF($D11=0,AVERAGE(CI$6:CI10)*$C11/10,CH11) -> 0 | CJ11: =SUM(BSRDetail!$H$2:$H$61*(BSRDetail!$A$2:$A$61=$A$1)*(BSRDetail!$F$2:$F$61=CJ$1)*(BSRDetail!$B$2:$B$61=$B$1)*(BSRDetail!$E$2:$E$61>=$B11)*(BSRDetail!$E$2:$E$61<$B12)) -> 0 | CK11: =IF($D11=0,AVERAGE(CK$6:CK10)*$C11/10,CJ11) -> 0 | CL11: =SUM(BSRDetail!$H$2:$H$61*(BSRDetail!$A$2:$A$61=$A$1)*(BSRDetail!$F$2:$F$61=CL$1)*(BSRDetail!$B$2:$B$61=$B$1)*(BSRDetail!$E$2:$E$61>=$B11)*(BSRDetail!$E$2:$E$61<$B12)) -> 0 | CM11: =IF($D11=0,AVERAGE(CM$6:CM10)*$C11/10,CL11) -> 0 | CN11: =SUM(BSRDetail!$H$2:$H$61*(BSRDetail!$A$2:$A$61=$A$1)*(BSRDetail!$F$2:$F$61=CN$1)*(BSRDetail!$B$2:$B$61=$B$1)*(BSRDetail!$E$2:$E$61>=$B11)*(BSRDetail!$E$2:$E$61<$B12)) -> 0 | CO11: =IF($D11=0,AVERAGE(CO$6:CO10)*$C11/10,CN11) -> 0 | CP11: =SUM(BSRDetail!$H$2:$H$61*(BSRDetail!$A$2:$A$61=$A$1)*(BSRDetail!$F$2:$F$61=CP$1)*(BSRDetail!$B$2:$B$61=$B$1)*(BSRDetail!$E$2:$E$61>=$B11)*(BSRDetail!$E$2:$E$61<$B12)) -> 0 | CQ11: =IF($D11=0,AVERAGE(CQ$6:CQ10)*$C11/10,CP11) -> 0 | CR11: =SUM(BSRDetail!$H$2:$H$61*(BSRDetail!$A$2:$A$61=$A$1)*(BSRDetail!$F$2:$F$61=CR$1)*(BSRDetail!$B$2:$B$61=$B$1)*(BSRDetail!$E$2:$E$61>=$B11)*(BSRDetail!$E$2:$E$61<$B12)) -> 0 | CS11: =IF($D11=0,AVERAGE(CS$6:CS10)*$C11/10,CR11) -> 0 | CT11: =SUM(BSRDetail!$H$2:$H$61*(BSRDetail!$A$2:$A$61=$A$1)*(BSRDetail!$F$2:$F$61=CT$1)*(BSRDetail!$B$2:$B$61=$B$1)*(BSRDetail!$E$2:$E$61>=$B11)*(BSRDetail!$E$2:$E$61<$B12)) -> 0 | CU11: =IF($D11=0,AVERAGE(CU$6:CU10)*$C11/10,CT11) -> 0 | CV11: =SUM(BSRDetail!$H$2:$H$61*(BSRDetail!$A$2:$A$61=$A$1)*(BSRDetail!$F$2:$F$61=CV$1)*(BSRDetail!$B$2:$B$61=$B$1)*(BSRDetail!$E$2:$E$61>=$B11)*(BSRDetail!$E$2:$E$61<$B12)) -> 0 | CW11: =IF($D11=0,AVERAGE(CW$6:CW10)*$C11/10,CV11) -> 0
A12: 0 | B12: 2016-10-07 | C12: 10 | D12: =SUM(BSRDetail!$H$2:$H$61*(BSRDetail!$A$2:$A$61=$A$1)*(BSRDetail!$F$2:$F$61=D$1)*(BSRDetail!$B$2:$B$61=$B$1)*(BSRDetail!$E$2:$E$61>=$B12)*(BSRDetail!$E$2:$E$61<$B13)) -> 5604.02 | E12: =SUM(BSRDetail!$H$2:$H$61*(BSRDetail!$A$2:$A$61=$A$1)*(BSRDetail!$F$2:$F$61=E$1)*(BSRDetail!$B$2:$B$61=$B$1)*(BSRDetail!$E$2:$E$61>=$B12)*(BSRDetail!$E$2:$E$61<$B13)) -> 217.14 | F12: =SUM(BSRDetail!$H$2:$H$61*(BSRDetail!$A$2:$A$61=$A$1)*(BSRDetail!$F$2:$F$61=F$1)*(BSRDetail!$B$2:$B$61=$B$1)*(BSRDetail!$E$2:$E$61>=$B12)*(BSRDetail!$E$2:$E$61<$B13)) -> 896.44 | G12: =SUM(BSRDetail!$H$2:$H$61*(BSRDetail!$A$2:$A$61=$A$1)*(BSRDetail!$F$2:$F$61=G$1)*(BSRDetail!$B$2:$B$61=$B$1)*(BSRDetail!$E$2:$E$61>=$B12)*(BSRDetail!$E$2:$E$61<$B13)) -> 0 | H12: =SUM(BSRDetail!$H$2:$H$61*(BSRDetail!$A$2:$A$61=$A$1)*(BSRDetail!$F$2:$F$61=H$1)*(BSRDetail!$B$2:$B$61=$B$1)*(BSRDetail!$E$2:$E$61>=$B12)*(BSRDetail!$E$2:$E$61<$B13)) -> 0 | I12: =SUM(BSRDetail!$H$2:$H$61*(BSRDetail!$A$2:$A$61=$A$1)*(BSRDetail!$F$2:$F$61=I$1)*(BSRDetail!$B$2:$B$61=$B$1)*(BSRDetail!$E$2:$E$61>=$B12)*(BSRDetail!$E$2:$E$61<$B13)) -> 0 | J12: 6717.6 | K12: 6717.6 | L12: 0 | M12: 6717.6 | N12: =SUM(BSRDetail!$H$2:$H$61*(BSRDetail!$A$2:$A$61=$A$1)*(BSRDetail!$F$2:$F$61=N$1)*(BSRDetail!$B$2:$B$61=$B$1)*(BSRDetail!$E$2:$E$61>=$B12)*(BSRDetail!$E$2:$E$61<$B13)) -> 0 | O12: =SUM(BSRDetail!$H$2:$H$61*(BSRDetail!$A$2:$A$61=$A$1)*(BSRDetail!$F$2:$F$61=O$1)*(BSRDetail!$B$2:$B$61=$B$1)*(BSRDetail!$E$2:$E$61>=$B12)*(BSRDetail!$E$2:$E$61<$B13)) -> 0 | P12: =SUM(BSRDetail!$H$2:$H$61*(BSRDetail!$A$2:$A$61=$A$1)*(BSRDetail!$F$2:$F$61=P$1)*(BSRDetail!$B$2:$B$61=$B$1)*(BSRDetail!$E$2:$E$61>=$B12)*(BSRDetail!$E$2:$E$61<$B13)) -> 0 | Q12: =SUM(BSRDetail!$H$2:$H$61*(BSRDetail!$A$2:$A$61=$A$1)*(BSRDetail!$F$2:$F$61=Q$1)*(BSRDetail!$B$2:$B$61=$B$1)*(BSRDetail!$E$2:$E$61>=$B12)*(BSRDetail!$E$2:$E$61<$B13)) -> 0 | R12: =SUM(BSRDetail!$H$2:$H$61*(BSRDetail!$A$2:$A$61=$A$1)*(BSRDetail!$F$2:$F$61=R$1)*(BSRDetail!$B$2:$B$61=$B$1)*(BSRDetail!$E$2:$E$61>=$B12)*(BSRDetail!$E$2:$E$61<$B13)) -> 0 | S12: =SUM(BSRDetail!$H$2:$H$61*(BSRDetail!$A$2:$A$61=$A$1)*(BSRDetail!$F$2:$F$61=S$1)*(BSRDetail!$B$2:$B$61=$B$1)*(BSRDetail!$E$2:$E$61>=$B12)*(BSRDetail!$E$2:$E$61<$B13)) -> 0 | T12: =SUM(BSRDetail!$H$2:$H$61*(BSRDetail!$A$2:$A$61=$A$1)*(BSRDetail!$F$2:$F$61=T$1)*(BSRDetail!$B$2:$B$61=$B$1)*(BSRDetail!$E$2:$E$61>=$B12)*(BSRDetail!$E$2:$E$61<$B13)) -> 0 | U12: =SUM(BSRDetail!$H$2:$H$61*(BSRDetail!$A$2:$A$61=$A$1)*(BSRDetail!$F$2:$F$61=U$1)*(BSRDetail!$B$2:$B$61=$B$1)*(BSRDetail!$E$2:$E$61>=$B12)*(BSRDetail!$E$2:$E$61<$B13)) -> 0 | V12: =SUM(BSRDetail!$H$2:$H$61*(BSRDetail!$A$2:$A$61=$A$1)*(BSRDetail!$F$2:$F$61=V$1)*(BSRDetail!$B$2:$B$61=$B$1)*(BSRDetail!$E$2:$E$61>=$B12)*(BSRDetail!$E$2:$E$61<$B13)) -> 0 | W12: =SUM(BSRDetail!$H$2:$H$61*(BSRDetail!$A$2:$A$61=$A$1)*(BSRDetail!$F$2:$F$61=W$1)*(BSRDetail!$B$2:$B$61=$B$1)*(BSRDetail!$E$2:$E$61>=$B12)*(BSRDetail!$E$2:$E$61<$B13)) -> 0 | X12: =SUM(BSRDetail!$H$2:$H$61*(BSRDetail!$A$2:$A$61=$A$1)*(BSRDetail!$F$2:$F$61=X$1)*(BSRDetail!$B$2:$B$61=$B$1)*(BSRDetail!$E$2:$E$61>=$B12)*(BSRDetail!$E$2:$E$61<$B13)) -> 0 | Y12: 0 | Z12: 0 | AA12: =IF(D11=0,AA11,IF($D12=0,Z12+AVERAGE($Y$7:Y11)*$C12/10,Y12)) -> 0 | AB12: 6717.6 | AC12: =SUM(BSRDetail!$H$2:$H$61*(BSRDetail!$A$2:$A$61=$A$1)*(BSRDetail!$F$2:$F$61=AC$1)*(BSRDetail!$B$2:$B$61=$B$1)*(BSRDetail!$E$2:$E$61>=$B12)*(BSRDetail!$E$2:$E$61<$B13)) -> 39.21 | AD12: 0.013344 | AE12: 39.21 | AF12: =SUM(BSRDetail!$H$2:$H$61*(BSRDetail!$A$2:$A$61=$A$1)*(BSRDetail!$F$2:$F$61=AF$1)*(BSRDetail!$B$2:$B$61=$B$1)*(BSRDetail!$E$2:$E$61>=$B12)*(BSRDetail!$E$2:$E$61<$B13)) -> 0 | AG12: 0 | AH12: 0 | AI12: =SUM(BSRDetail!$H$2:$H$61*(BSRDetail!$A$2:$A$61=$A$1)*(BSRDetail!$F$2:$F$61=AI$1)*(BSRDetail!$B$2:$B$61=$B$1)*(BSRDetail!$E$2:$E$61>=$B12)*(BSRDetail!$E$2:$E$61<$B13)) -> 0 | AJ12: 0 | AK12: =SUM(BSRDetail!$H$2:$H$61*(BSRDetail!$A$2:$A$61=$A$1)*(BSRDetail!$F$2:$F$61=AK$1)*(BSRDetail!$B$2:$B$61=$B$1)*(BSRDetail!$E$2:$E$61>=$B12)*(BSRDetail!$E$2:$E$61<$B13)) -> 699.25 | AL12: 0.9964658772 | AM12: 0 | AN12: 699.25 | AO12: =SUM(BSRDetail!$H$2:$H$61*(BSRDetail!$A$2:$A$61=$A$1)*(BSRDetail!$F$2:$F$61=AO$1)*(BSRDetail!$B$2:$B$61=$B$1)*(BSRDetail!$E$2:$E$61>=$B12)*(BSRDetail!$E$2:$E$61<$B13)) -> 0 | AP12: 0 | AQ12: =SUM(BSRDetail!$H$2:$H$61*(BSRDetail!$A$2:$A$61=$A$1)*(BSRDetail!$F$2:$F$61=AQ$1)*(BSRDetail!$B$2:$B$61=$B$1)*(BSRDetail!$E$2:$E$61>=$B12)*(BSRDetail!$E$2:$E$61<$B13)) -> 158.54 | AR12: 0.02360069072 | AS12: 158.54 | AT12: =SUM(BSRDetail!$H$2:$H$61*(BSRDetail!$A$2:$A$61=$A$1)*(BSRDetail!$F$2:$F$61=AT$1)*(BSRDetail!$B$2:$B$61=$B$1)*(BSRDetail!$E$2:$E$61>=$B12)*(BSRDetail!$E$2:$E$61<$B13)) -> 4.71 | AU12: 0.0013 | AV12: 4.71 | AW12: =SUM(BSRDetail!$H$2:$H$61*(BSRDetail!$A$2:$A$61=$A$1)*(BSRDetail!$F$2:$F$61=AW$1)*(BSRDetail!$B$2:$B$61=$B$1)*(BSRDetail!$E$2:$E$61>=$B12)*(BSRDetail!$E$2:$E$61<$B13)) -> 93.58 | AX12: =IF(D12=0,IF(DAY(B12)<15,SUM($AX$7:AX11*(DAY($B$7:B11)<15))/SUM(1*(DAY($B$7:B11)<15)),SUM($AX$7:AX11*(DAY($B$7:B11)>14))/SUM(1*(DAY($B$7:B11)>14))),AW12/AB12) -> 0.01393057044 | AY12: 93.58 | AZ12: =SUM(BSRDetail!$H$2:$H$61*(BSRDetail!$A$2:$A$61=$A$1)*(BSRDetail!$F$2:$F$61=AZ$1)*(BSRDetail!$B$2:$B$61=$B$1)*(BSRDetail!$E$2:$E$61>=$B12)*(BSRDetail!$E$2:$E$61<$B13)) -> 0 | BA12: 0 | BB12: 0 | BC12: =SUM(BSRDetail!$H$2:$H$61*(BSRDetail!$A$2:$A$61=$A$1)*(BSRDetail!$F$2:$F$61=BC$1)*(BSRDetail!$B$2:$B$61=$B$1)*(BSRDetail!$E$2:$E$61>=$B12)*(BSRDetail!$E$2:$E$61<$B13)) -> 0 | BD12: =SUM(BSRDetail!$H$2:$H$61*(BSRDetail!$A$2:$A$61=$A$1)*(BSRDetail!$F$2:$F$61=BD$1)*(BSRDetail!$B$2:$B$61=$B$1)*(BSRDetail!$E$2:$E$61>=$B12)*(BSRDetail!$E$2:$E$61<$B13)) -> 0 | BE12: 0 | BF12: 0 | BG12: =SUM(BSRDetail!$H$2:$H$61*(BSRDetail!$A$2:$A$61=$A$1)*(BSRDetail!$F$2:$F$61=BG$1)*(BSRDetail!$B$2:$B$61=$B$1)*(BSRDetail!$E$2:$E$61>=$B12)*(BSRDetail!$E$2:$E$61<$B13)) -> 0 | BH12: =SUM(BSRDetail!$H$2:$H$61*(BSRDetail!$A$2:$A$61=$A$1)*(BSRDetail!$F$2:$F$61=BH$1)*(BSRDetail!$B$2:$B$61=$B$1)*(BSRDetail!$E$2:$E$61>=$B12)*(BSRDetail!$E$2:$E$61<$B13)) -> 0 | BI12: 0 | BJ12: =SUM(BSRDetail!$H$2:$H$61*(BSRDetail!$A$2:$A$61=$A$1)*(BSRDetail!$F$2:$F$61=BJ$1)*(BSRDetail!$B$2:$B$61=$B$1)*(BSRDetail!$E$2:$E$61>=$B12)*(BSRDetail!$E$2:$E$61<$B13)) -> 974.05 | BK12: =IF($D12=0,AVERAGE(BK$6:BK11)*$C12/10,BJ12) -> 974.05 | BL12: =SUM(BSRDetail!$H$2:$H$61*(BSRDetail!$A$2:$A$61=$A$1)*(BSRDetail!$F$2:$F$61=BL$1)*(BSRDetail!$B$2:$B$61=$B$1)*(BSRDetail!$E$2:$E$61>=$B12)*(BSRDetail!$E$2:$E$61<$B13)) -> 0 | BM12: =IF($D12=0,AVERAGE(BM$6:BM11)*$C12/10,BL12) -> 0 | BN12: =SUM(BSRDetail!$H$2:$H$61*(BSRDetail!$A$2:$A$61=$A$1)*(BSRDetail!$F$2:$F$61=BN$1)*(BSRDetail!$B$2:$B$61=$B$1)*(BSRDetail!$E$2:$E$61>=$B12)*(BSRDetail!$E$2:$E$61<$B13)) -> 0 | BO12: =IF($D12=0,AVERAGE(BO$6:BO11)*$C12/10,BN12) -> 0 | BP12: =SUM(BSRDetail!$H$2:$H$61*(BSRDetail!$A$2:$A$61=$A$1)*(BSRDetail!$F$2:$F$61=BP$1)*(BSRDetail!$B$2:$B$61=$B$1)*(BSRDetail!$E$2:$E$61>=$B12)*(BSRDetail!$E$2:$E$61<$B13)) -> 0 | BQ12: =IF($D12=0,AVERAGE(BQ$6:BQ11)*$C12/10,BP12) -> 0 | BR12: =SUM(BSRDetail!$H$2:$H$61*(BSRDetail!$A$2:$A$61=$A$1)*(BSRDetail!$F$2:$F$61=BR$1)*(BSRDetail!$B$2:$B$61=$B$1)*(BSRDetail!$E$2:$E$61>=$B12)*(BSRDetail!$E$2:$E$61<$B13)) -> 0 | BS12: =IF($D12=0,AVERAGE(BS$6:BS11)*$C12/10,BR12) -> 0 | BT12: =SUM(BSRDetail!$H$2:$H$61*(BSRDetail!$A$2:$A$61=$A$1)*(BSRDetail!$F$2:$F$61=BT$1)*(BSRDetail!$B$2:$B$61=$B$1)*(BSRDetail!$E$2:$E$61>=$B12)*(BSRDetail!$E$2:$E$61<$B13)) -> 0 | BU12: =IF($D12=0,AVERAGE(BU$6:BU11)*$C12/10,BT12) -> 0 | BV12: =SUM(BSRDetail!$H$2:$H$61*(BSRDetail!$A$2:$A$61=$A$1)*(BSRDetail!$F$2:$F$61=BV$1)*(BSRDetail!$B$2:$B$61=$B$1)*(BSRDetail!$E$2:$E$61>=$B12)*(BSRDetail!$E$2:$E$61<$B13)) -> 0 | BW12: =IF($D12=0,AVERAGE(BW$6:BW11)*$C12/10,BV12) -> 0 | BX12: =SUM(BSRDetail!$H$2:$H$61*(BSRDetail!$A$2:$A$61=$A$1)*(BSRDetail!$F$2:$F$61=BX$1)*(BSRDetail!$B$2:$B$61=$B$1)*(BSRDetail!$E$2:$E$61>=$B12)*(BSRDetail!$E$2:$E$61<$B13)) -> 0 | BY12: =IF($D12=0,AVERAGE(BY$6:BY11)*$C12/10,BX12) -> 0 | BZ12: =SUM(BSRDetail!$H$2:$H$61*(BSRDetail!$A$2:$A$61=$A$1)*(BSRDetail!$F$2:$F$61=BZ$1)*(BSRDetail!$B$2:$B$61=$B$1)*(BSRDetail!$E$2:$E$61>=$B12)*(BSRDetail!$E$2:$E$61<$B13)) -> 0 | CA12: =IF($D12=0,AVERAGE(CA$6:CA11)*$C12/10,BZ12) -> 0 | CB12: =SUM(BSRDetail!$H$2:$H$61*(BSRDetail!$A$2:$A$61=$A$1)*(BSRDetail!$F$2:$F$61=CB$1)*(BSRDetail!$B$2:$B$61=$B$1)*(BSRDetail!$E$2:$E$61>=$B12)*(BSRDetail!$E$2:$E$61<$B13)) -> 0 | CC12: =IF($D12=0,AVERAGE(CC$6:CC11)*$C12/10,CB12) -> 0 | CD12: =SUM(BSRDetail!$H$2:$H$61*(BSRDetail!$A$2:$A$61=$A$1)*(BSRDetail!$F$2:$F$61=CD$1)*(BSRDetail!$B$2:$B$61=$B$1)*(BSRDetail!$E$2:$E$61>=$B12)*(BSRDetail!$E$2:$E$61<$B13)) -> 0 | CE12: =IF($D12=0,AVERAGE(CE$6:CE11)*$C12/10,CD12) -> 0 | CF12: =SUM(BSRDetail!$H$2:$H$61*(BSRDetail!$A$2:$A$61=$A$1)*(BSRDetail!$F$2:$F$61=CF$1)*(BSRDetail!$B$2:$B$61=$B$1)*(BSRDetail!$E$2:$E$61>=$B12)*(BSRDetail!$E$2:$E$61<$B13)) -> 0 | CG12: =IF($D12=0,AVERAGE(CG$6:CG11)*$C12/10,CF12) -> 0 | CH12: =SUM(BSRDetail!$H$2:$H$61*(BSRDetail!$A$2:$A$61=$A$1)*(BSRDetail!$F$2:$F$61=CH$1)*(BSRDetail!$B$2:$B$61=$B$1)*(BSRDetail!$E$2:$E$61>=$B12)*(BSRDetail!$E$2:$E$61<$B13)) -> 0 | CI12: =IF($D12=0,AVERAGE(CI$6:CI11)*$C12/10,CH12) -> 0 | CJ12: =SUM(BSRDetail!$H$2:$H$61*(BSRDetail!$A$2:$A$61=$A$1)*(BSRDetail!$F$2:$F$61=CJ$1)*(BSRDetail!$B$2:$B$61=$B$1)*(BSRDetail!$E$2:$E$61>=$B12)*(BSRDetail!$E$2:$E$61<$B13)) -> 0 | CK12: =IF($D12=0,AVERAGE(CK$6:CK11)*$C12/10,CJ12) -> 0 | CL12: =SUM(BSRDetail!$H$2:$H$61*(BSRDetail!$A$2:$A$61=$A$1)*(BSRDetail!$F$2:$F$61=CL$1)*(BSRDetail!$B$2:$B$61=$B$1)*(BSRDetail!$E$2:$E$61>=$B12)*(BSRDetail!$E$2:$E$61<$B13)) -> 0 | CM12: =IF($D12=0,AVERAGE(CM$6:CM11)*$C12/10,CL12) -> 0 | CN12: =SUM(BSRDetail!$H$2:$H$61*(BSRDetail!$A$2:$A$61=$A$1)*(BSRDetail!$F$2:$F$61=CN$1)*(BSRDetail!$B$2:$B$61=$B$1)*(BSRDetail!$E$2:$E$61>=$B12)*(BSRDetail!$E$2:$E$61<$B13)) -> 0 | CO12: =IF($D12=0,AVERAGE(CO$6:CO11)*$C12/10,CN12) -> 0 | CP12: =SUM(BSRDetail!$H$2:$H$61*(BSRDetail!$A$2:$A$61=$A$1)*(BSRDetail!$F$2:$F$61=CP$1)*(BSRDetail!$B$2:$B$61=$B$1)*(BSRDetail!$E$2:$E$61>=$B12)*(BSRDetail!$E$2:$E$61<$B13)) -> 0 | CQ12: =IF($D12=0,AVERAGE(CQ$6:CQ11)*$C12/10,CP12) -> 0 | CR12: =SUM(BSRDetail!$H$2:$H$61*(BSRDetail!$A$2:$A$61=$A$1)*(BSRDetail!$F$2:$F$61=CR$1)*(BSRDetail!$B$2:$B$61=$B$1)*(BSRDetail!$E$2:$E$61>=$B12)*(BSRDetail!$E$2:$E$61<$B13)) -> 0 | CS12: =IF($D12=0,AVERAGE(CS$6:CS11)*$C12/10,CR12) -> 0 | CT12: =SUM(BSRDetail!$H$2:$H$61*(BSRDetail!$A$2:$A$61=$A$1)*(BSRDetail!$F$2:$F$61=CT$1)*(BSRDetail!$B$2:$B$61=$B$1)*(BSRDetail!$E$2:$E$61>=$B12)*(BSRDetail!$E$2:$E$61<$B13)) -> 0 | CU12: =IF($D12=0,AVERAGE(CU$6:CU11)*$C12/10,CT12) -> 0 | CV12: =SUM(BSRDetail!$H$2:$H$61*(BSRDetail!$A$2:$A$61=$A$1)*(BSRDetail!$F$2:$F$61=CV$1)*(BSRDetail!$B$2:$B$61=$B$1)*(BSRDetail!$E$2:$E$61>=$B12)*(BSRDetail!$E$2:$E$61<$B13)) -> 0 | CW12: =IF($D12=0,AVERAGE(CW$6:CW11)*$C12/10,CV12) -> 0
A13: 0 | B13: 2016-10-21 | C13: 10 | D13: =SUM(BSRDetail!$H$2:$H$61*(BSRDetail!$A$2:$A$61=$A$1)*(BSRDetail!$F$2:$F$61=D$1)*(BSRDetail!$B$2:$B$61=$B$1)*(BSRDetail!$E$2:$E$61>=$B13)*(BSRDetail!$E$2:$E$61<$B14)) -> 0 | E13: =SUM(BSRDetail!$H$2:$H$61*(BSRDetail!$A$2:$A$61=$A$1)*(BSRDetail!$F$2:$F$61=E$1)*(BSRDetail!$B$2:$B$61=$B$1)*(BSRDetail!$E$2:$E$61>=$B13)*(BSRDetail!$E$2:$E$61<$B14)) -> 0 | F13: =SUM(BSRDetail!$H$2:$H$61*(BSRDetail!$A$2:$A$61=$A$1)*(BSRDetail!$F$2:$F$61=F$1)*(BSRDetail!$B$2:$B$61=$B$1)*(BSRDetail!$E$2:$E$61>=$B13)*(BSRDetail!$E$2:$E$61<$B14)) -> 0 | G13: =SUM(BSRDetail!$H$2:$H$61*(BSRDetail!$A$2:$A$61=$A$1)*(BSRDetail!$F$2:$F$61=G$1)*(BSRDetail!$B$2:$B$61=$B$1)*(BSRDetail!$E$2:$E$61>=$B13)*(BSRDetail!$E$2:$E$61<$B14)) -> 0 | H13: =SUM(BSRDetail!$H$2:$H$61*(BSRDetail!$A$2:$A$61=$A$1)*(BSRDetail!$F$2:$F$61=H$1)*(BSRDetail!$B$2:$B$61=$B$1)*(BSRDetail!$E$2:$E$61>=$B13)*(BSRDetail!$E$2:$E$61<$B14)) -> 0 | I13: =SUM(BSRDetail!$H$2:$H$61*(BSRDetail!$A$2:$A$61=$A$1)*(BSRDetail!$F$2:$F$61=I$1)*(BSRDetail!$B$2:$B$61=$B$1)*(BSRDetail!$E$2:$E$61>=$B13)*(BSRDetail!$E$2:$E$61<$B14)) -> 0 | J13: 0 | K13: 6182.8 | L13: 0 | M13: 6182.8 | N13: =SUM(BSRDetail!$H$2:$H$61*(BSRDetail!$A$2:$A$61=$A$1)*(BSRDetail!$F$2:$F$61=N$1)*(BSRDetail!$B$2:$B$61=$B$1)*(BSRDetail!$E$2:$E$61>=$B13)*(BSRDetail!$E$2:$E$61<$B14)) -> 0 | O13: =SUM(BSRDetail!$H$2:$H$61*(BSRDetail!$A$2:$A$61=$A$1)*(BSRDetail!$F$2:$F$61=O$1)*(BSRDetail!$B$2:$B$61=$B$1)*(BSRDetail!$E$2:$E$61>=$B13)*(BSRDetail!$E$2:$E$61<$B14)) -> 0 | P13: =SUM(BSRDetail!$H$2:$H$61*(BSRDetail!$A$2:$A$61=$A$1)*(BSRDetail!$F$2:$F$61=P$1)*(BSRDetail!$B$2:$B$61=$B$1)*(BSRDetail!$E$2:$E$61>=$B13)*(BSRDetail!$E$2:$E$61<$B14)) -> 0 | Q13: =SUM(BSRDetail!$H$2:$H$61*(BSRDetail!$A$2:$A$61=$A$1)*(BSRDetail!$F$2:$F$61=Q$1)*(BSRDetail!$B$2:$B$61=$B$1)*(BSRDetail!$E$2:$E$61>=$B13)*(BSRDetail!$E$2:$E$61<$B14)) -> 0 | R13: =SUM(BSRDetail!$H$2:$H$61*(BSRDetail!$A$2:$A$61=$A$1)*(BSRDetail!$F$2:$F$61=R$1)*(BSRDetail!$B$2:$B$61=$B$1)*(BSRDetail!$E$2:$E$61>=$B13)*(BSRDetail!$E$2:$E$61<$B14)) -> 0 | S13: =SUM(BSRDetail!$H$2:$H$61*(BSRDetail!$A$2:$A$61=$A$1)*(BSRDetail!$F$2:$F$61=S$1)*(BSRDetail!$B$2:$B$61=$B$1)*(BSRDetail!$E$2:$E$61>=$B13)*(BSRDetail!$E$2:$E$61<$B14)) -> 0 | T13: =SUM(BSRDetail!$H$2:$H$61*(BSRDetail!$A$2:$A$61=$A$1)*(BSRDetail!$F$2:$F$61=T$1)*(BSRDetail!$B$2:$B$61=$B$1)*(BSRDetail!$E$2:$E$61>=$B13)*(BSRDetail!$E$2:$E$61<$B14)) -> 0 | U13: =SUM(BSRDetail!$H$2:$H$61*(BSRDetail!$A$2:$A$61=$A$1)*(BSRDetail!$F$2:$F$61=U$1)*(BSRDetail!$B$2:$B$61=$B$1)*(BSRDetail!$E$2:$E$61>=$B13)*(BSRDetail!$E$2:$E$61<$B14)) -> 0 | V13: =SUM(BSRDetail!$H$2:$H$61*(BSRDetail!$A$2:$A$61=$A$1)*(BSRDetail!$F$2:$F$61=V$1)*(BSRDetail!$B$2:$B$61=$B$1)*(BSRDetail!$E$2:$E$61>=$B13)*(BSRDetail!$E$2:$E$61<$B14)) -> 0 | W13: =SUM(BSRDetail!$H$2:$H$61*(BSRDetail!$A$2:$A$61=$A$1)*(BSRDetail!$F$2:$F$61=W$1)*(BSRDetail!$B$2:$B$61=$B$1)*(BSRDetail!$E$2:$E$61>=$B13)*(BSRDetail!$E$2:$E$61<$B14)) -> 0 | X13: =SUM(BSRDetail!$H$2:$H$61*(BSRDetail!$A$2:$A$61=$A$1)*(BSRDetail!$F$2:$F$61=X$1)*(BSRDetail!$B$2:$B$61=$B$1)*(BSRDetail!$E$2:$E$61>=$B13)*(BSRDetail!$E$2:$E$61<$B14)) -> 0 | Y13: 0 | Z13: 0 | AA13: =IF(D12=0,AA12,IF($D13=0,Z13+AVERAGE($Y$7:Y12)*$C13/10,Y13)) -> 0 | AB13: 6182.8 | AC13: =SUM(BSRDetail!$H$2:$H$61*(BSRDetail!$A$2:$A$61=$A$1)*(BSRDetail!$F$2:$F$61=AC$1)*(BSRDetail!$B$2:$B$61=$B$1)*(BSRDetail!$E$2:$E$61>=$B13)*(BSRDetail!$E$2:$E$61<$B14)) -> 0 | AD13: 0.012224 | AE13: 75.5785472 | AF13: =SUM(BSRDetail!$H$2:$H$61*(BSRDetail!$A$2:$A$61=$A$1)*(BSRDetail!$F$2:$F$61=AF$1)*(BSRDetail!$B$2:$B$61=$B$1)*(BSRDetail!$E$2:$E$61>=$B13)*(BSRDetail!$E$2:$E$61<$B14)) -> 0 | AG13: 0 | AH13: 0 | AI13: =SUM(BSRDetail!$H$2:$H$61*(BSRDetail!$A$2:$A$61=$A$1)*(BSRDetail!$F$2:$F$61=AI$1)*(BSRDetail!$B$2:$B$61=$B$1)*(BSRDetail!$E$2:$E$61>=$B13)*(BSRDetail!$E$2:$E$61<$B14)) -> 0 | AJ13: 0 | AK13: =SUM(BSRDetail!$H$2:$H$61*(BSRDetail!$A$2:$A$61=$A$1)*(BSRDetail!$F$2:$F$61=AK$1)*(BSRDetail!$B$2:$B$61=$B$1)*(BSRDetail!$E$2:$E$61>=$B13)*(BSRDetail!$E$2:$E$61<$B14)) -> 0 | AL13: 0 | AM13: 0 | AN13: 0 | AO13: =SUM(BSRDetail!$H$2:$H$61*(BSRDetail!$A$2:$A$61=$A$1)*(BSRDetail!$F$2:$F$61=AO$1)*(BSRDetail!$B$2:$B$61=$B$1)*(BSRDetail!$E$2:$E$61>=$B13)*(BSRDetail!$E$2:$E$61<$B14)) -> 0 | AP13: 0 | AQ13: =SUM(BSRDetail!$H$2:$H$61*(BSRDetail!$A$2:$A$61=$A$1)*(BSRDetail!$F$2:$F$61=AQ$1)*(BSRDetail!$B$2:$B$61=$B$1)*(BSRDetail!$E$2:$E$61>=$B13)*(BSRDetail!$E$2:$E$61<$B14)) -> 0 | AR13: 0.02360050494 | AS13: 145.9172019 | AT13: =SUM(BSRDetail!$H$2:$H$61*(BSRDetail!$A$2:$A$61=$A$1)*(BSRDetail!$F$2:$F$61=AT$1)*(BSRDetail!$B$2:$B$61=$B$1)*(BSRDetail!$E$2:$E$61>=$B13)*(BSRDetail!$E$2:$E$61<$B14)) -> 0 | AU13: 0.0013 | AV13: 8.03764 | AW13: =SUM(BSRDetail!$H$2:$H$61*(BSRDetail!$A$2:$A$61=$A$1)*(BSRDetail!$F$2:$F$61=AW$1)*(BSRDetail!$B$2:$B$61=$B$1)*(BSRDetail!$E$2:$E$61>=$B13)*(BSRDetail!$E$2:$E$61<$B14)) -> 0 | AX13: =IF(D13=0,IF(DAY(B13)<15,SUM($AX$7:AX12*(DAY($B$7:B12)<15))/SUM(1*(DAY($B$7:B12)<15)),SUM($AX$7:AX12*(DAY($B$7:B12)>14))/SUM(1*(DAY($B$7:B12)>14))),AW13/AB13) -> 0.01449997608 | AY13: 89.65045211 | AZ13: =SUM(BSRDetail!$H$2:$H$61*(BSRDetail!$A$2:$A$61=$A$1)*(BSRDetail!$F$2:$F$61=AZ$1)*(BSRDetail!$B$2:$B$61=$B$1)*(BSRDetail!$E$2:$E$61>=$B13)*(BSRDetail!$E$2:$E$61<$B14)) -> 0 | BA13: 0 | BB13: 0 | BC13: =SUM(BSRDetail!$H$2:$H$61*(BSRDetail!$A$2:$A$61=$A$1)*(BSRDetail!$F$2:$F$61=BC$1)*(BSRDetail!$B$2:$B$61=$B$1)*(BSRDetail!$E$2:$E$61>=$B13)*(BSRDetail!$E$2:$E$61<$B14)) -> 0 | BD13: =SUM(BSRDetail!$H$2:$H$61*(BSRDetail!$A$2:$A$61=$A$1)*(BSRDetail!$F$2:$F$61=BD$1)*(BSRDetail!$B$2:$B$61=$B$1)*(BSRDetail!$E$2:$E$61>=$B13)*(BSRDetail!$E$2:$E$61<$B14)) -> 0 | BE13: 0 | BF13: 0 | BG13: =SUM(BSRDetail!$H$2:$H$61*(BSRDetail!$A$2:$A$61=$A$1)*(BSRDetail!$F$2:$F$61=BG$1)*(BSRDetail!$B$2:$B$61=$B$1)*(BSRDetail!$E$2:$E$61>=$B13)*(BSRDetail!$E$2:$E$61<$B14)) -> 0 | BH13: =SUM(BSRDetail!$H$2:$H$61*(BSRDetail!$A$2:$A$61=$A$1)*(BSRDetail!$F$2:$F$61=BH$1)*(BSRDetail!$B$2:$B$61=$B$1)*(BSRDetail!$E$2:$E$61>=$B13)*(BSRDetail!$E$2:$E$61<$B14)) -> 0 | BI13: 0 | BJ13: =SUM(BSRDetail!$H$2:$H$61*(BSRDetail!$A$2:$A$61=$A$1)*(BSRDetail!$F$2:$F$61=BJ$1)*(BSRDetail!$B$2:$B$61=$B$1)*(BSRDetail!$E$2:$E$61>=$B13)*(BSRDetail!$E$2:$E$61<$B14)) -> 0 | BK13: =IF($D13=0,AVERAGE(BK$6:BK12)*$C13/10,BJ13) -> 711.45 | BL13: =SUM(BSRDetail!$H$2:$H$61*(BSRDetail!$A$2:$A$61=$A$1)*(BSRDetail!$F$2:$F$61=BL$1)*(BSRDetail!$B$2:$B$61=$B$1)*(BSRDetail!$E$2:$E$61>=$B13)*(BSRDetail!$E$2:$E$61<$B14)) -> 0 | BM13: =IF($D13=0,AVERAGE(BM$6:BM12)*$C13/10,BL13) -> 0 | BN13: =SUM(BSRDetail!$H$2:$H$61*(BSRDetail!$A$2:$A$61=$A$1)*(BSRDetail!$F$2:$F$61=BN$1)*(BSRDetail!$B$2:$B$61=$B$1)*(BSRDetail!$E$2:$E$61>=$B13)*(BSRDetail!$E$2:$E$61<$B14)) -> 0 | BO13: =IF($D13=0,AVERAGE(BO$6:BO12)*$C13/10,BN13) -> 0 | BP13: =SUM(BSRDetail!$H$2:$H$61*(BSRDetail!$A$2:$A$61=$A$1)*(BSRDetail!$F$2:$F$61=BP$1)*(BSRDetail!$B$2:$B$61=$B$1)*(BSRDetail!$E$2:$E$61>=$B13)*(BSRDetail!$E$2:$E$61<$B14)) -> 0 | BQ13: =IF($D13=0,AVERAGE(BQ$6:BQ12)*$C13/10,BP13) -> 0 | BR13: =SUM(BSRDetail!$H$2:$H$61*(BSRDetail!$A$2:$A$61=$A$1)*(BSRDetail!$F$2:$F$61=BR$1)*(BSRDetail!$B$2:$B$61=$B$1)*(BSRDetail!$E$2:$E$61>=$B13)*(BSRDetail!$E$2:$E$61<$B14)) -> 0 | BS13: =IF($D13=0,AVERAGE(BS$6:BS12)*$C13/10,BR13) -> 0 | BT13: =SUM(BSRDetail!$H$2:$H$61*(BSRDetail!$A$2:$A$61=$A$1)*(BSRDetail!$F$2:$F$61=BT$1)*(BSRDetail!$B$2:$B$61=$B$1)*(BSRDetail!$E$2:$E$61>=$B13)*(BSRDetail!$E$2:$E$61<$B14)) -> 0 | BU13: =IF($D13=0,AVERAGE(BU$6:BU12)*$C13/10,BT13) -> 0 | BV13: =SUM(BSRDetail!$H$2:$H$61*(BSRDetail!$A$2:$A$61=$A$1)*(BSRDetail!$F$2:$F$61=BV$1)*(BSRDetail!$B$2:$B$61=$B$1)*(BSRDetail!$E$2:$E$61>=$B13)*(BSRDetail!$E$2:$E$61<$B14)) -> 0 | BW13: =IF($D13=0,AVERAGE(BW$6:BW12)*$C13/10,BV13) -> 0 | BX13: =SUM(BSRDetail!$H$2:$H$61*(BSRDetail!$A$2:$A$61=$A$1)*(BSRDetail!$F$2:$F$61=BX$1)*(BSRDetail!$B$2:$B$61=$B$1)*(BSRDetail!$E$2:$E$61>=$B13)*(BSRDetail!$E$2:$E$61<$B14)) -> 0 | BY13: =IF($D13=0,AVERAGE(BY$6:BY12)*$C13/10,BX13) -> 0 | BZ13: =SUM(BSRDetail!$H$2:$H$61*(BSRDetail!$A$2:$A$61=$A$1)*(BSRDetail!$F$2:$F$61=BZ$1)*(BSRDetail!$B$2:$B$61=$B$1)*(BSRDetail!$E$2:$E$61>=$B13)*(BSRDetail!$E$2:$E$61<$B14)) -> 0 | CA13: =IF($D13=0,AVERAGE(CA$6:CA12)*$C13/10,BZ13) -> 0 | CB13: =SUM(BSRDetail!$H$2:$H$61*(BSRDetail!$A$2:$A$61=$A$1)*(BSRDetail!$F$2:$F$61=CB$1)*(BSRDetail!$B$2:$B$61=$B$1)*(BSRDetail!$E$2:$E$61>=$B13)*(BSRDetail!$E$2:$E$61<$B14)) -> 0 | CC13: =IF($D13=0,AVERAGE(CC$6:CC12)*$C13/10,CB13) -> 0 | CD13: =SUM(BSRDetail!$H$2:$H$61*(BSRDetail!$A$2:$A$61=$A$1)*(BSRDetail!$F$2:$F$61=CD$1)*(BSRDetail!$B$2:$B$61=$B$1)*(BSRDetail!$E$2:$E$61>=$B13)*(BSRDetail!$E$2:$E$61<$B14)) -> 0 | CE13: =IF($D13=0,AVERAGE(CE$6:CE12)*$C13/10,CD13) -> 0 | CF13: =SUM(BSRDetail!$H$2:$H$61*(BSRDetail!$A$2:$A$61=$A$1)*(BSRDetail!$F$2:$F$61=CF$1)*(BSRDetail!$B$2:$B$61=$B$1)*(BSRDetail!$E$2:$E$61>=$B13)*(BSRDetail!$E$2:$E$61<$B14)) -> 0 | CG13: =IF($D13=0,AVERAGE(CG$6:CG12)*$C13/10,CF13) -> 0 | CH13: =SUM(BSRDetail!$H$2:$H$61*(BSRDetail!$A$2:$A$61=$A$1)*(BSRDetail!$F$2:$F$61=CH$1)*(BSRDetail!$B$2:$B$61=$B$1)*(BSRDetail!$E$2:$E$61>=$B13)*(BSRDetail!$E$2:$E$61<$B14)) -> 0 | CI13: =IF($D13=0,AVERAGE(CI$6:CI12)*$C13/10,CH13) -> 0 | CJ13: =SUM(BSRDetail!$H$2:$H$61*(BSRDetail!$A$2:$A$61=$A$1)*(BSRDetail!$F$2:$F$61=CJ$1)*(BSRDetail!$B$2:$B$61=$B$1)*(BSRDetail!$E$2:$E$61>=$B13)*(BSRDetail!$E$2:$E$61<$B14)) -> 0 | CK13: =IF($D13=0,AVERAGE(CK$6:CK12)*$C13/10,CJ13) -> 0 | CL13: =SUM(BSRDetail!$H$2:$H$61*(BSRDetail!$A$2:$A$61=$A$1)*(BSRDetail!$F$2:$F$61=CL$1)*(BSRDetail!$B$2:$B$61=$B$1)*(BSRDetail!$E$2:$E$61>=$B13)*(BSRDetail!$E$2:$E$61<$B14)) -> 0 | CM13: =IF($D13=0,AVERAGE(CM$6:CM12)*$C13/10,CL13) -> 0 | CN13: =SUM(BSRDetail!$H$2:$H$61*(BSRDetail!$A$2:$A$61=$A$1)*(BSRDetail!$F$2:$F$61=CN$1)*(BSRDetail!$B$2:$B$61=$B$1)*(BSRDetail!$E$2:$E$61>=$B13)*(BSRDetail!$E$2:$E$61<$B14)) -> 0 | CO13: =IF($D13=0,AVERAGE(CO$6:CO12)*$C13/10,CN13) -> 0 | CP13: =SUM(BSRDetail!$H$2:$H$61*(BSRDetail!$A$2:$A$61=$A$1)*(BSRDetail!$F$2:$F$61=CP$1)*(BSRDetail!$B$2:$B$61=$B$1)*(BSRDetail!$E$2:$E$61>=$B13)*(BSRDetail!$E$2:$E$61<$B14)) -> 0 | CQ13: =IF($D13=0,AVERAGE(CQ$6:CQ12)*$C13/10,CP13) -> 0 | CR13: =SUM(BSRDetail!$H$2:$H$61*(BSRDetail!$A$2:$A$61=$A$1)*(BSRDetail!$F$2:$F$61=CR$1)*(BSRDetail!$B$2:$B$61=$B$1)*(BSRDetail!$E$2:$E$61>=$B13)*(BSRDetail!$E$2:$E$61<$B14)) -> 0 | CS13: =IF($D13=0,AVERAGE(CS$6:CS12)*$C13/10,CR13) -> 0 | CT13: =SUM(BSRDetail!$H$2:$H$61*(BSRDetail!$A$2:$A$61=$A$1)*(BSRDetail!$F$2:$F$61=CT$1)*(BSRDetail!$B$2:$B$61=$B$1)*(BSRDetail!$E$2:$E$61>=$B13)*(BSRDetail!$E$2:$E$61<$B14)) -> 0 | CU13: =IF($D13=0,AVERAGE(CU$6:CU12)*$C13/10,CT13) -> 0 | CV13: =SUM(BSRDetail!$H$2:$H$61*(BSRDetail!$A$2:$A$61=$A$1)*(BSRDetail!$F$2:$F$61=CV$1)*(BSRDetail!$B$2:$B$61=$B$1)*(BSRDetail!$E$2:$E$61>=$B13)*(BSRDetail!$E$2:$E$61<$B14)) -> 0 | CW13: =IF($D13=0,AVERAGE(CW$6:CW12)*$C13/10,CV13) -> 0
A14: 0 | B14: 2016-11-04 | C14: 10 | D14: =SUM(BSRDetail!$H$2:$H$61*(BSRDetail!$A$2:$A$61=$A$1)*(BSRDetail!$F$2:$F$61=D$1)*(BSRDetail!$B$2:$B$61=$B$1)*(BSRDetail!$E$2:$E$61>=$B14)*(BSRDetail!$E$2:$E$61<$B15)) -> 0 | E14: =SUM(BSRDetail!$H$2:$H$61*(BSRDetail!$A$2:$A$61=$A$1)*(BSRDetail!$F$2:$F$61=E$1)*(BSRDetail!$B$2:$B$61=$B$1)*(BSRDetail!$E$2:$E$61>=$B14)*(BSRDetail!$E$2:$E$61<$B15)) -> 0 | F14: =SUM(BSRDetail!$H$2:$H$61*(BSRDetail!$A$2:$A$61=$A$1)*(BSRDetail!$F$2:$F$61=F$1)*(BSRDetail!$B$2:$B$61=$B$1)*(BSRDetail!$E$2:$E$61>=$B14)*(BSRDetail!$E$2:$E$61<$B15)) -> 0 | G14: =SUM(BSRDetail!$H$2:$H$61*(BSRDetail!$A$2:$A$61=$A$1)*(BSRDetail!$F$2:$F$61=G$1)*(BSRDetail!$B$2:$B$61=$B$1)*(BSRDetail!$E$2:$E$61>=$B14)*(BSRDetail!$E$2:$E$61<$B15)) -> 0 | H14: =SUM(BSRDetail!$H$2:$H$61*(BSRDetail!$A$2:$A$61=$A$1)*(BSRDetail!$F$2:$F$61=H$1)*(BSRDetail!$B$2:$B$61=$B$1)*(BSRDetail!$E$2:$E$61>=$B14)*(BSRDetail!$E$2:$E$61<$B15)) -> 0 | I14: =SUM(BSRDetail!$H$2:$H$61*(BSRDetail!$A$2:$A$61=$A$1)*(BSRDetail!$F$2:$F$61=I$1)*(BSRDetail!$B$2:$B$61=$B$1)*(BSRDetail!$E$2:$E$61>=$B14)*(BSRDetail!$E$2:$E$61<$B15)) -> 0 | J14: 0 | K14: 6583.9 | L14: 0 | M14: 6583.9 | N14: =SUM(BSRDetail!$H$2:$H$61*(BSRDetail!$A$2:$A$61=$A$1)*(BSRDetail!$F$2:$F$61=N$1)*(BSRDetail!$B$2:$B$61=$B$1)*(BSRDetail!$E$2:$E$61>=$B14)*(BSRDetail!$E$2:$E$61<$B15)) -> 0 | O14: =SUM(BSRDetail!$H$2:$H$61*(BSRDetail!$A$2:$A$61=$A$1)*(BSRDetail!$F$2:$F$61=O$1)*(BSRDetail!$B$2:$B$61=$B$1)*(BSRDetail!$E$2:$E$61>=$B14)*(BSRDetail!$E$2:$E$61<$B15)) -> 0 | P14: =SUM(BSRDetail!$H$2:$H$61*(BSRDetail!$A$2:$A$61=$A$1)*(BSRDetail!$F$2:$F$61=P$1)*(BSRDetail!$B$2:$B$61=$B$1)*(BSRDetail!$E$2:$E$61>=$B14)*(BSRDetail!$E$2:$E$61<$B15)) -> 0 | Q14: =SUM(BSRDetail!$H$2:$H$61*(BSRDetail!$A$2:$A$61=$A$1)*(BSRDetail!$F$2:$F$61=Q$1)*(BSRDetail!$B$2:$B$61=$B$1)*(BSRDetail!$E$2:$E$61>=$B14)*(BSRDetail!$E$2:$E$61<$B15)) -> 0 | R14: =SUM(BSRDetail!$H$2:$H$61*(BSRDetail!$A$2:$A$61=$A$1)*(BSRDetail!$F$2:$F$61=R$1)*(BSRDetail!$B$2:$B$61=$B$1)*(BSRDetail!$E$2:$E$61>=$B14)*(BSRDetail!$E$2:$E$61<$B15)) -> 0 | S14: =SUM(BSRDetail!$H$2:$H$61*(BSRDetail!$A$2:$A$61=$A$1)*(BSRDetail!$F$2:$F$61=S$1)*(BSRDetail!$B$2:$B$61=$B$1)*(BSRDetail!$E$2:$E$61>=$B14)*(BSRDetail!$E$2:$E$61<$B15)) -> 0 | T14: =SUM(BSRDetail!$H$2:$H$61*(BSRDetail!$A$2:$A$61=$A$1)*(BSRDetail!$F$2:$F$61=T$1)*(BSRDetail!$B$2:$B$61=$B$1)*(BSRDetail!$E$2:$E$61>=$B14)*(BSRDetail!$E$2:$E$61<$B15)) -> 0 | U14: =SUM(BSRDetail!$H$2:$H$61*(BSRDetail!$A$2:$A$61=$A$1)*(BSRDetail!$F$2:$F$61=U$1)*(BSRDetail!$B$2:$B$61=$B$1)*(BSRDetail!$E$2:$E$61>=$B14)*(BSRDetail!$E$2:$E$61<$B15)) -> 0 | V14: =SUM(BSRDetail!$H$2:$H$61*(BSRDetail!$A$2:$A$61=$A$1)*(BSRDetail!$F$2:$F$61=V$1)*(BSRDetail!$B$2:$B$61=$B$1)*(BSRDetail!$E$2:$E$61>=$B14)*(BSRDetail!$E$2:$E$61<$B15)) -> 0 | W14: =SUM(BSRDetail!$H$2:$H$61*(BSRDetail!$A$2:$A$61=$A$1)*(BSRDetail!$F$2:$F$61=W$1)*(BSRDetail!$B$2:$B$61=$B$1)*(BSRDetail!$E$2:$E$61>=$B14)*(BSRDetail!$E$2:$E$61<$B15)) -> 0 | X14: =SUM(BSRDetail!$H$2:$H$61*(BSRDetail!$A$2:$A$61=$A$1)*(BSRDetail!$F$2:$F$61=X$1)*(BSRDetail!$B$2:$B$61=$B$1)*(BSRDetail!$E$2:$E$61>=$B14)*(BSRDetail!$E$2:$E$61<$B15)) -> 0 | Y14: 0 | Z14: 0 | AA14: =IF(D13=0,AA13,IF($D14=0,Z14+AVERAGE($Y$7:Y13)*$C14/10,Y14)) -> 0 | AB14: 6583.9 | AC14: =SUM(BSRDetail!$H$2:$H$61*(BSRDetail!$A$2:$A$61=$A$1)*(BSRDetail!$F$2:$F$61=AC$1)*(BSRDetail!$B$2:$B$61=$B$1)*(BSRDetail!$E$2:$E$61>=$B14)*(BSRDetail!$E$2:$E$61<$B15)) -> 0 | AD14: 0.011184 | AE14: 73.6343376 | AF14: =SUM(BSRDetail!$H$2:$H$61*(BSRDetail!$A$2:$A$61=$A$1)*(BSRDetail!$F$2:$F$61=AF$1)*(BSRDetail!$B$2:$B$61=$B$1)*(BSRDetail!$E$2:$E$61>=$B14)*(BSRDetail!$E$2:$E$61<$B15)) -> 0 | AG14: 0 | AH14: 0 | AI14: =SUM(BSRDetail!$H$2:$H$61*(BSRDetail!$A$2:$A$61=$A$1)*(BSRDetail!$F$2:$F$61=AI$1)*(BSRDetail!$B$2:$B$61=$B$1)*(BSRDetail!$E$2:$E$61>=$B14)*(BSRDetail!$E$2:$E$61<$B15)) -> 0 | AJ14: 0 | AK14: =SUM(BSRDetail!$H$2:$H$61*(BSRDetail!$A$2:$A$61=$A$1)*(BSRDetail!$F$2:$F$61=AK$1)*(BSRDetail!$B$2:$B$61=$B$1)*(BSRDetail!$E$2:$E$61>=$B14)*(BSRDetail!$E$2:$E$61<$B15)) -> 0 | AL14: 0.9964658772 | AM14: 0 | AN14: 699.25 | AO14: =SUM(BSRDetail!$H$2:$H$61*(BSRDetail!$A$2:$A$61=$A$1)*(BSRDetail!$F$2:$F$61=AO$1)*(BSRDetail!$B$2:$B$61=$B$1)*(BSRDetail!$E$2:$E$61>=$B14)*(BSRDetail!$E$2:$E$61<$B15)) -> 0 | AP14: 0 | AQ14: =SUM(BSRDetail!$H$2:$H$61*(BSRDetail!$A$2:$A$61=$A$1)*(BSRDetail!$F$2:$F$61=AQ$1)*(BSRDetail!$B$2:$B$61=$B$1)*(BSRDetail!$E$2:$E$61>=$B14)*(BSRDetail!$E$2:$E$61<$B15)) -> 0 | AR14: 0.02360050494 | AS14: 155.3833645 | AT14: =SUM(BSRDetail!$H$2:$H$61*(BSRDetail!$A$2:$A$61=$A$1)*(BSRDetail!$F$2:$F$61=AT$1)*(BSRDetail!$B$2:$B$61=$B$1)*(BSRDetail!$E$2:$E$61>=$B14)*(BSRDetail!$E$2:$E$61<$B15)) -> 0 | AU14: 0.0013 | AV14: 8.55907 | AW14: =SUM(BSRDetail!$H$2:$H$61*(BSRDetail!$A$2:$A$61=$A$1)*(BSRDetail!$F$2:$F$61=AW$1)*(BSRDetail!$B$2:$B$61=$B$1)*(BSRDetail!$E$2:$E$61>=$B14)*(BSRDetail!$E$2:$E$61<$B15)) -> 0 | AX14: =IF(D14=0,IF(DAY(B14)<15,SUM($AX$7:AX13*(DAY($B$7:B13)<15))/SUM(1*(DAY($B$7:B13)<15)),SUM($AX$7:AX13*(DAY($B$7:B13)>14))/SUM(1*(DAY($B$7:B13)>14))),AW14/AB14) -> 0.01371698738 | AY14: 90.31127322 | AZ14: =SUM(BSRDetail!$H$2:$H$61*(BSRDetail!$A$2:$A$61=$A$1)*(BSRDetail!$F$2:$F$61=AZ$1)*(BSRDetail!$B$2:$B$61=$B$1)*(BSRDetail!$E$2:$E$61>=$B14)*(BSRDetail!$E$2:$E$61<$B15)) -> 0 | BA14: 0 | BB14: 0 | BC14: =SUM(BSRDetail!$H$2:$H$61*(BSRDetail!$A$2:$A$61=$A$1)*(BSRDetail!$F$2:$F$61=BC$1)*(BSRDetail!$B$2:$B$61=$B$1)*(BSRDetail!$E$2:$E$61>=$B14)*(BSRDetail!$E$2:$E$61<$B15)) -> 0 | BD14: =SUM(BSRDetail!$H$2:$H$61*(BSRDetail!$A$2:$A$61=$A$1)*(BSRDetail!$F$2:$F$61=BD$1)*(BSRDetail!$B$2:$B$61=$B$1)*(BSRDetail!$E$2:$E$61>=$B14)*(BSRDetail!$E$2:$E$61<$B15)) -> 0 | BE14: 0 | BF14: 0 | BG14: =SUM(BSRDetail!$H$2:$H$61*(BSRDetail!$A$2:$A$61=$A$1)*(BSRDetail!$F$2:$F$61=BG$1)*(BSRDetail!$B$2:$B$61=$B$1)*(BSRDetail!$E$2:$E$61>=$B14)*(BSRDetail!$E$2:$E$61<$B15)) -> 0 | BH14: =SUM(BSRDetail!$H$2:$H$61*(BSRDetail!$A$2:$A$61=$A$1)*(BSRDetail!$F$2:$F$61=BH$1)*(BSRDetail!$B$2:$B$61=$B$1)*(BSRDetail!$E$2:$E$61>=$B14)*(BSRDetail!$E$2:$E$61<$B15)) -> 0 | BI14: 0 | BJ14: =SUM(BSRDetail!$H$2:$H$61*(BSRDetail!$A$2:$A$61=$A$1)*(BSRDetail!$F$2:$F$61=BJ$1)*(BSRDetail!$B$2:$B$61=$B$1)*(BSRDetail!$E$2:$E$61>=$B14)*(BSRDetail!$E$2:$E$61<$B15)) -> 0 | BK14: =IF($D14=0,AVERAGE(BK$6:BK13)*$C14/10,BJ14) -> 711.45 | BL14: =SUM(BSRDetail!$H$2:$H$61*(BSRDetail!$A$2:$A$61=$A$1)*(BSRDetail!$F$2:$F$61=BL$1)*(BSRDetail!$B$2:$B$61=$B$1)*(BSRDetail!$E$2:$E$61>=$B14)*(BSRDetail!$E$2:$E$61<$B15)) -> 0 | BM14: =IF($D14=0,AVERAGE(BM$6:BM13)*$C14/10,BL14) -> 0 | BN14: =SUM(BSRDetail!$H$2:$H$61*(BSRDetail!$A$2:$A$61=$A$1)*(BSRDetail!$F$2:$F$61=BN$1)*(BSRDetail!$B$2:$B$61=$B$1)*(BSRDetail!$E$2:$E$61>=$B14)*(BSRDetail!$E$2:$E$61<$B15)) -> 0 | BO14: =IF($D14=0,AVERAGE(BO$6:BO13)*$C14/10,BN14) -> 0 | BP14: =SUM(BSRDetail!$H$2:$H$61*(BSRDetail!$A$2:$A$61=$A$1)*(BSRDetail!$F$2:$F$61=BP$1)*(BSRDetail!$B$2:$B$61=$B$1)*(BSRDetail!$E$2:$E$61>=$B14)*(BSRDetail!$E$2:$E$61<$B15)) -> 0 | BQ14: =IF($D14=0,AVERAGE(BQ$6:BQ13)*$C14/10,BP14) -> 0 | BR14: =SUM(BSRDetail!$H$2:$H$61*(BSRDetail!$A$2:$A$61=$A$1)*(BSRDetail!$F$2:$F$61=BR$1)*(BSRDetail!$B$2:$B$61=$B$1)*(BSRDetail!$E$2:$E$61>=$B14)*(BSRDetail!$E$2:$E$61<$B15)) -> 0 | BS14: =IF($D14=0,AVERAGE(BS$6:BS13)*$C14/10,BR14) -> 0 | BT14: =SUM(BSRDetail!$H$2:$H$61*(BSRDetail!$A$2:$A$61=$A$1)*(BSRDetail!$F$2:$F$61=BT$1)*(BSRDetail!$B$2:$B$61=$B$1)*(BSRDetail!$E$2:$E$61>=$B14)*(BSRDetail!$E$2:$E$61<$B15)) -> 0 | BU14: =IF($D14=0,AVERAGE(BU$6:BU13)*$C14/10,BT14) -> 0 | BV14: =SUM(BSRDetail!$H$2:$H$61*(BSRDetail!$A$2:$A$61=$A$1)*(BSRDetail!$F$2:$F$61=BV$1)*(BSRDetail!$B$2:$B$61=$B$1)*(BSRDetail!$E$2:$E$61>=$B14)*(BSRDetail!$E$2:$E$61<$B15)) -> 0 | BW14: =IF($D14=0,AVERAGE(BW$6:BW13)*$C14/10,BV14) -> 0 | BX14: =SUM(BSRDetail!$H$2:$H$61*(BSRDetail!$A$2:$A$61=$A$1)*(BSRDetail!$F$2:$F$61=BX$1)*(BSRDetail!$B$2:$B$61=$B$1)*(BSRDetail!$E$2:$E$61>=$B14)*(BSRDetail!$E$2:$E$61<$B15)) -> 0 | BY14: =IF($D14=0,AVERAGE(BY$6:BY13)*$C14/10,BX14) -> 0 | BZ14: =SUM(BSRDetail!$H$2:$H$61*(BSRDetail!$A$2:$A$61=$A$1)*(BSRDetail!$F$2:$F$61=BZ$1)*(BSRDetail!$B$2:$B$61=$B$1)*(BSRDetail!$E$2:$E$61>=$B14)*(BSRDetail!$E$2:$E$61<$B15)) -> 0 | CA14: =IF($D14=0,AVERAGE(CA$6:CA13)*$C14/10,BZ14) -> 0 | CB14: =SUM(BSRDetail!$H$2:$H$61*(BSRDetail!$A$2:$A$61=$A$1)*(BSRDetail!$F$2:$F$61=CB$1)*(BSRDetail!$B$2:$B$61=$B$1)*(BSRDetail!$E$2:$E$61>=$B14)*(BSRDetail!$E$2:$E$61<$B15)) -> 0 | CC14: =IF($D14=0,AVERAGE(CC$6:CC13)*$C14/10,CB14) -> 0 | CD14: =SUM(BSRDetail!$H$2:$H$61*(BSRDetail!$A$2:$A$61=$A$1)*(BSRDetail!$F$2:$F$61=CD$1)*(BSRDetail!$B$2:$B$61=$B$1)*(BSRDetail!$E$2:$E$61>=$B14)*(BSRDetail!$E$2:$E$61<$B15)) -> 0 | CE14: =IF($D14=0,AVERAGE(CE$6:CE13)*$C14/10,CD14) -> 0 | CF14: =SUM(BSRDetail!$H$2:$H$61*(BSRDetail!$A$2:$A$61=$A$1)*(BSRDetail!$F$2:$F$61=CF$1)*(BSRDetail!$B$2:$B$61=$B$1)*(BSRDetail!$E$2:$E$61>=$B14)*(BSRDetail!$E$2:$E$61<$B15)) -> 0 | CG14: =IF($D14=0,AVERAGE(CG$6:CG13)*$C14/10,CF14) -> 0 | CH14: =SUM(BSRDetail!$H$2:$H$61*(BSRDetail!$A$2:$A$61=$A$1)*(BSRDetail!$F$2:$F$61=CH$1)*(BSRDetail!$B$2:$B$61=$B$1)*(BSRDetail!$E$2:$E$61>=$B14)*(BSRDetail!$E$2:$E$61<$B15)) -> 0 | CI14: =IF($D14=0,AVERAGE(CI$6:CI13)*$C14/10,CH14) -> 0 | CJ14: =SUM(BSRDetail!$H$2:$H$61*(BSRDetail!$A$2:$A$61=$A$1)*(BSRDetail!$F$2:$F$61=CJ$1)*(BSRDetail!$B$2:$B$61=$B$1)*(BSRDetail!$E$2:$E$61>=$B14)*(BSRDetail!$E$2:$E$61<$B15)) -> 0 | CK14: =IF($D14=0,AVERAGE(CK$6:CK13)*$C14/10,CJ14) -> 0 | CL14: =SUM(BSRDetail!$H$2:$H$61*(BSRDetail!$A$2:$A$61=$A$1)*(BSRDetail!$F$2:$F$61=CL$1)*(BSRDetail!$B$2:$B$61=$B$1)*(BSRDetail!$E$2:$E$61>=$B14)*(BSRDetail!$E$2:$E$61<$B15)) -> 0 | CM14: =IF($D14=0,AVERAGE(CM$6:CM13)*$C14/10,CL14) -> 0 | CN14: =SUM(BSRDetail!$H$2:$H$61*(BSRDetail!$A$2:$A$61=$A$1)*(BSRDetail!$F$2:$F$61=CN$1)*(BSRDetail!$B$2:$B$61=$B$1)*(BSRDetail!$E$2:$E$61>=$B14)*(BSRDetail!$E$2:$E$61<$B15)) -> 0 | CO14: =IF($D14=0,AVERAGE(CO$6:CO13)*$C14/10,CN14) -> 0 | CP14: =SUM(BSRDetail!$H$2:$H$61*(BSRDetail!$A$2:$A$61=$A$1)*(BSRDetail!$F$2:$F$61=CP$1)*(BSRDetail!$B$2:$B$61=$B$1)*(BSRDetail!$E$2:$E$61>=$B14)*(BSRDetail!$E$2:$E$61<$B15)) -> 0 | CQ14: =IF($D14=0,AVERAGE(CQ$6:CQ13)*$C14/10,CP14) -> 0 | CR14: =SUM(BSRDetail!$H$2:$H$61*(BSRDetail!$A$2:$A$61=$A$1)*(BSRDetail!$F$2:$F$61=CR$1)*(BSRDetail!$B$2:$B$61=$B$1)*(BSRDetail!$E$2:$E$61>=$B14)*(BSRDetail!$E$2:$E$61<$B15)) -> 0 | CS14: =IF($D14=0,AVERAGE(CS$6:CS13)*$C14/10,CR14) -> 0 | CT14: =SUM(BSRDetail!$H$2:$H$61*(BSRDetail!$A$2:$A$61=$A$1)*(BSRDetail!$F$2:$F$61=CT$1)*(BSRDetail!$B$2:$B$61=$B$1)*(BSRDetail!$E$2:$E$61>=$B14)*(BSRDetail!$E$2:$E$61<$B15)) -> 0 | CU14: =IF($D14=0,AVERAGE(CU$6:CU13)*$C14/10,CT14) -> 0 | CV14: =SUM(BSRDetail!$H$2:$H$61*(BSRDetail!$A$2:$A$61=$A$1)*(BSRDetail!$F$2:$F$61=CV$1)*(BSRDetail!$B$2:$B$61=$B$1)*(BSRDetail!$E$2:$E$61>=$B14)*(BSRDetail!$E$2:$E$61<$B15)) -> 0 | CW14: =IF($D14=0,AVERAGE(CW$6:CW13)*$C14/10,CV14) -> 0
A15: 0 | B15: 2016-11-18 | C15: 10 | D15: =SUM(BSRDetail!$H$2:$H$61*(BSRDetail!$A$2:$A$61=$A$1)*(BSRDetail!$F$2:$F$61=D$1)*(BSRDetail!$B$2:$B$61=$B$1)*(BSRDetail!$E$2:$E$61>=$B15)*(BSRDetail!$E$2:$E$61<$B16)) -> 0 | E15: =SUM(BSRDetail!$H$2:$H$61*(BSRDetail!$A$2:$A$61=$A$1)*(BSRDetail!$F$2:$F$61=E$1)*(BSRDetail!$B$2:$B$61=$B$1)*(BSRDetail!$E$2:$E$61>=$B15)*(BSRDetail!$E$2:$E$61<$B16)) -> 0 | F15: =SUM(BSRDetail!$H$2:$H$61*(BSRDetail!$A$2:$A$61=$A$1)*(BSRDetail!$F$2:$F$61=F$1)*(BSRDetail!$B$2:$B$61=$B$1)*(BSRDetail!$E$2:$E$61>=$B15)*(BSRDetail!$E$2:$E$61<$B16)) -> 0 | G15: =SUM(BSRDetail!$H$2:$H$61*(BSRDetail!$A$2:$A$61=$A$1)*(BSRDetail!$F$2:$F$61=G$1)*(BSRDetail!$B$2:$B$61=$B$1)*(BSRDetail!$E$2:$E$61>=$B15)*(BSRDetail!$E$2:$E$61<$B16)) -> 0 | H15: =SUM(BSRDetail!$H$2:$H$61*(BSRDetail!$A$2:$A$61=$A$1)*(BSRDetail!$F$2:$F$61=H$1)*(BSRDetail!$B$2:$B$61=$B$1)*(BSRDetail!$E$2:$E$61>=$B15)*(BSRDetail!$E$2:$E$61<$B16)) -> 0 | I15: =SUM(BSRDetail!$H$2:$H$61*(BSRDetail!$A$2:$A$61=$A$1)*(BSRDetail!$F$2:$F$61=I$1)*(BSRDetail!$B$2:$B$61=$B$1)*(BSRDetail!$E$2:$E$61>=$B15)*(BSRDetail!$E$2:$E$61<$B16)) -> 0 | J15: 0 | K15: 6550.475 | L15: 0 | M15: 6550.475 | N15: =SUM(BSRDetail!$H$2:$H$61*(BSRDetail!$A$2:$A$61=$A$1)*(BSRDetail!$F$2:$F$61=N$1)*(BSRDetail!$B$2:$B$61=$B$1)*(BSRDetail!$E$2:$E$61>=$B15)*(BSRDetail!$E$2:$E$61<$B16)) -> 0 | O15: =SUM(BSRDetail!$H$2:$H$61*(BSRDetail!$A$2:$A$61=$A$1)*(BSRDetail!$F$2:$F$61=O$1)*(BSRDetail!$B$2:$B$61=$B$1)*(BSRDetail!$E$2:$E$61>=$B15)*(BSRDetail!$E$2:$E$61<$B16)) -> 0 | P15: =SUM(BSRDetail!$H$2:$H$61*(BSRDetail!$A$2:$A$61=$A$1)*(BSRDetail!$F$2:$F$61=P$1)*(BSRDetail!$B$2:$B$61=$B$1)*(BSRDetail!$E$2:$E$61>=$B15)*(BSRDetail!$E$2:$E$61<$B16)) -> 0 | Q15: =SUM(BSRDetail!$H$2:$H$61*(BSRDetail!$A$2:$A$61=$A$1)*(BSRDetail!$F$2:$F$61=Q$1)*(BSRDetail!$B$2:$B$61=$B$1)*(BSRDetail!$E$2:$E$61>=$B15)*(BSRDetail!$E$2:$E$61<$B16)) -> 0 | R15: =SUM(BSRDetail!$H$2:$H$61*(BSRDetail!$A$2:$A$61=$A$1)*(BSRDetail!$F$2:$F$61=R$1)*(BSRDetail!$B$2:$B$61=$B$1)*(BSRDetail!$E$2:$E$61>=$B15)*(BSRDetail!$E$2:$E$61<$B16)) -> 0 | S15: =SUM(BSRDetail!$H$2:$H$61*(BSRDetail!$A$2:$A$61=$A$1)*(BSRDetail!$F$2:$F$61=S$1)*(BSRDetail!$B$2:$B$61=$B$1)*(BSRDetail!$E$2:$E$61>=$B15)*(BSRDetail!$E$2:$E$61<$B16)) -> 0 | T15: =SUM(BSRDetail!$H$2:$H$61*(BSRDetail!$A$2:$A$61=$A$1)*(BSRDetail!$F$2:$F$61=T$1)*(BSRDetail!$B$2:$B$61=$B$1)*(BSRDetail!$E$2:$E$61>=$B15)*(BSRDetail!$E$2:$E$61<$B16)) -> 0 | U15: =SUM(BSRDetail!$H$2:$H$61*(BSRDetail!$A$2:$A$61=$A$1)*(BSRDetail!$F$2:$F$61=U$1)*(BSRDetail!$B$2:$B$61=$B$1)*(BSRDetail!$E$2:$E$61>=$B15)*(BSRDetail!$E$2:$E$61<$B16)) -> 0 | V15: =SUM(BSRDetail!$H$2:$H$61*(BSRDetail!$A$2:$A$61=$A$1)*(BSRDetail!$F$2:$F$61=V$1)*(BSRDetail!$B$2:$B$61=$B$1)*(BSRDetail!$E$2:$E$61>=$B15)*(BSRDetail!$E$2:$E$61<$B16)) -> 0 | W15: =SUM(BSRDetail!$H$2:$H$61*(BSRDetail!$A$2:$A$61=$A$1)*(BSRDetail!$F$2:$F$61=W$1)*(BSRDetail!$B$2:$B$61=$B$1)*(BSRDetail!$E$2:$E$61>=$B15)*(BSRDetail!$E$2:$E$61<$B16)) -> 0 | X15: =SUM(BSRDetail!$H$2:$H$61*(BSRDetail!$A$2:$A$61=$A$1)*(BSRDetail!$F$2:$F$61=X$1)*(BSRDetail!$B$2:$B$61=$B$1)*(BSRDetail!$E$2:$E$61>=$B15)*(BSRDetail!$E$2:$E$61<$B16)) -> 0 | Y15: 0 | Z15: 0 | AA15: =IF(D14=0,AA14,IF($D15=0,Z15+AVERAGE($Y$7:Y14)*$C15/10,Y15)) -> 0 | AB15: 6550.475 | AC15: =SUM(BSRDetail!$H$2:$H$61*(BSRDetail!$A$2:$A$61=$A$1)*(BSRDetail!$F$2:$F$61=AC$1)*(BSRDetail!$B$2:$B$61=$B$1)*(BSRDetail!$E$2:$E$61>=$B15)*(BSRDetail!$E$2:$E$61<$B16)) -> 0 | AD15: 0.010064 | AE15: 65.9239804 | AF15: =SUM(BSRDetail!$H$2:$H$61*(BSRDetail!$A$2:$A$61=$A$1)*(BSRDetail!$F$2:$F$61=AF$1)*(BSRDetail!$B$2:$B$61=$B$1)*(BSRDetail!$E$2:$E$61>=$B15)*(BSRDetail!$E$2:$E$61<$B16)) -> 0 | AG15: 0 | AH15: 0 | AI15: =SUM(BSRDetail!$H$2:$H$61*(BSRDetail!$A$2:$A$61=$A$1)*(BSRDetail!$F$2:$F$61=AI$1)*(BSRDetail!$B$2:$B$61=$B$1)*(BSRDetail!$E$2:$E$61>=$B15)*(BSRDetail!$E$2:$E$61<$B16)) -> 0 | AJ15: 0 | AK15: =SUM(BSRDetail!$H$2:$H$61*(BSRDetail!$A$2:$A$61=$A$1)*(BSRDetail!$F$2:$F$61=AK$1)*(BSRDetail!$B$2:$B$61=$B$1)*(BSRDetail!$E$2:$E$61>=$B15)*(BSRDetail!$E$2:$E$61<$B16)) -> 0 | AL15: 0 | AM15: 0 | AN15: 0 | AO15: =SUM(BSRDetail!$H$2:$H$61*(BSRDetail!$A$2:$A$61=$A$1)*(BSRDetail!$F$2:$F$61=AO$1)*(BSRDetail!$B$2:$B$61=$B$1)*(BSRDetail!$E$2:$E$61>=$B15)*(BSRDetail!$E$2:$E$61<$B16)) -> 0 | AP15: 0 | AQ15: =SUM(BSRDetail!$H$2:$H$61*(BSRDetail!$A$2:$A$61=$A$1)*(BSRDetail!$F$2:$F$61=AQ$1)*(BSRDetail!$B$2:$B$61=$B$1)*(BSRDetail!$E$2:$E$61>=$B15)*(BSRDetail!$E$2:$E$61<$B16)) -> 0 | AR15: 0.02360050494 | AS15: 154.5945176 | AT15: =SUM(BSRDetail!$H$2:$H$61*(BSRDetail!$A$2:$A$61=$A$1)*(BSRDetail!$F$2:$F$61=AT$1)*(BSRDetail!$B$2:$B$61=$B$1)*(BSRDetail!$E$2:$E$61>=$B15)*(BSRDetail!$E$2:$E$61<$B16)) -> 0 | AU15: 0.0013 | AV15: 8.5156175 | AW15: =SUM(BSRDetail!$H$2:$H$61*(BSRDetail!$A$2:$A$61=$A$1)*(BSRDetail!$F$2:$F$61=AW$1)*(BSRDetail!$B$2:$B$61=$B$1)*(BSRDetail!$E$2:$E$61>=$B15)*(BSRDetail!$E$2:$E$61<$B16)) -> 0 | AX15: =IF(D15=0,IF(DAY(B15)<15,SUM($AX$7:AX14*(DAY($B$7:B14)<15))/SUM(1*(DAY($B$7:B14)<15)),SUM($AX$7:AX14*(DAY($B$7:B14)>14))/SUM(1*(DAY($B$7:B14)>14))),AW15/AB15) -> 0.01449997608 | AY15: 94.98173081 | AZ15: =SUM(BSRDetail!$H$2:$H$61*(BSRDetail!$A$2:$A$61=$A$1)*(BSRDetail!$F$2:$F$61=AZ$1)*(BSRDetail!$B$2:$B$61=$B$1)*(BSRDetail!$E$2:$E$61>=$B15)*(BSRDetail!$E$2:$E$61<$B16)) -> 0 | BA15: 0 | BB15: 0 | BC15: =SUM(BSRDetail!$H$2:$H$61*(BSRDetail!$A$2:$A$61=$A$1)*(BSRDetail!$F$2:$F$61=BC$1)*(BSRDetail!$B$2:$B$61=$B$1)*(BSRDetail!$E$2:$E$61>=$B15)*(BSRDetail!$E$2:$E$61<$B16)) -> 0 | BD15: =SUM(BSRDetail!$H$2:$H$61*(BSRDetail!$A$2:$A$61=$A$1)*(BSRDetail!$F$2:$F$61=BD$1)*(BSRDetail!$B$2:$B$61=$B$1)*(BSRDetail!$E$2:$E$61>=$B15)*(BSRDetail!$E$2:$E$61<$B16)) -> 0 | BE15: 0 | BF15: 0 | BG15: =SUM(BSRDetail!$H$2:$H$61*(BSRDetail!$A$2:$A$61=$A$1)*(BSRDetail!$F$2:$F$61=BG$1)*(BSRDetail!$B$2:$B$61=$B$1)*(BSRDetail!$E$2:$E$61>=$B15)*(BSRDetail!$E$2:$E$61<$B16)) -> 0 | BH15: =SUM(BSRDetail!$H$2:$H$61*(BSRDetail!$A$2:$A$61=$A$1)*(BSRDetail!$F$2:$F$61=BH$1)*(BSRDetail!$B$2:$B$61=$B$1)*(BSRDetail!$E$2:$E$61>=$B15)*(BSRDetail!$E$2:$E$61<$B16)) -> 0 | BI15: 0 | BJ15: =SUM(BSRDetail!$H$2:$H$61*(BSRDetail!$A$2:$A$61=$A$1)*(BSRDetail!$F$2:$F$61=BJ$1)*(BSRDetail!$B$2:$B$61=$B$1)*(BSRDetail!$E$2:$E$61>=$B15)*(BSRDetail!$E$2:$E$61<$B16)) -> 0 | BK15: =IF($D15=0,AVERAGE(BK$6:BK14)*$C15/10,BJ15) -> 711.45 | BL15: =SUM(BSRDetail!$H$2:$H$61*(BSRDetail!$A$2:$A$61=$A$1)*(BSRDetail!$F$2:$F$61=BL$1)*(BSRDetail!$B$2:$B$61=$B$1)*(BSRDetail!$E$2:$E$61>=$B15)*(BSRDetail!$E$2:$E$61<$B16)) -> 0 | BM15: =IF($D15=0,AVERAGE(BM$6:BM14)*$C15/10,BL15) -> 0 | BN15: =SUM(BSRDetail!$H$2:$H$61*(BSRDetail!$A$2:$A$61=$A$1)*(BSRDetail!$F$2:$F$61=BN$1)*(BSRDetail!$B$2:$B$61=$B$1)*(BSRDetail!$E$2:$E$61>=$B15)*(BSRDetail!$E$2:$E$61<$B16)) -> 0 | BO15: =IF($D15=0,AVERAGE(BO$6:BO14)*$C15/10,BN15) -> 0 | BP15: =SUM(BSRDetail!$H$2:$H$61*(BSRDetail!$A$2:$A$61=$A$1)*(BSRDetail!$F$2:$F$61=BP$1)*(BSRDetail!$B$2:$B$61=$B$1)*(BSRDetail!$E$2:$E$61>=$B15)*(BSRDetail!$E$2:$E$61<$B16)) -> 0 | BQ15: =IF($D15=0,AVERAGE(BQ$6:BQ14)*$C15/10,BP15) -> 0 | BR15: =SUM(BSRDetail!$H$2:$H$61*(BSRDetail!$A$2:$A$61=$A$1)*(BSRDetail!$F$2:$F$61=BR$1)*(BSRDetail!$B$2:$B$61=$B$1)*(BSRDetail!$E$2:$E$61>=$B15)*(BSRDetail!$E$2:$E$61<$B16)) -> 0 | BS15: =IF($D15=0,AVERAGE(BS$6:BS14)*$C15/10,BR15) -> 0 | BT15: =SUM(BSRDetail!$H$2:$H$61*(BSRDetail!$A$2:$A$61=$A$1)*(BSRDetail!$F$2:$F$61=BT$1)*(BSRDetail!$B$2:$B$61=$B$1)*(BSRDetail!$E$2:$E$61>=$B15)*(BSRDetail!$E$2:$E$61<$B16)) -> 0 | BU15: =IF($D15=0,AVERAGE(BU$6:BU14)*$C15/10,BT15) -> 0 | BV15: =SUM(BSRDetail!$H$2:$H$61*(BSRDetail!$A$2:$A$61=$A$1)*(BSRDetail!$F$2:$F$61=BV$1)*(BSRDetail!$B$2:$B$61=$B$1)*(BSRDetail!$E$2:$E$61>=$B15)*(BSRDetail!$E$2:$E$61<$B16)) -> 0 | BW15: =IF($D15=0,AVERAGE(BW$6:BW14)*$C15/10,BV15) -> 0 | BX15: =SUM(BSRDetail!$H$2:$H$61*(BSRDetail!$A$2:$A$61=$A$1)*(BSRDetail!$F$2:$F$61=BX$1)*(BSRDetail!$B$2:$B$61=$B$1)*(BSRDetail!$E$2:$E$61>=$B15)*(BSRDetail!$E$2:$E$61<$B16)) -> 0 | BY15: =IF($D15=0,AVERAGE(BY$6:BY14)*$C15/10,BX15) -> 0 | BZ15: =SUM(BSRDetail!$H$2:$H$61*(BSRDetail!$A$2:$A$61=$A$1)*(BSRDetail!$F$2:$F$61=BZ$1)*(BSRDetail!$B$2:$B$61=$B$1)*(BSRDetail!$E$2:$E$61>=$B15)*(BSRDetail!$E$2:$E$61<$B16)) -> 0 | CA15: =IF($D15=0,AVERAGE(CA$6:CA14)*$C15/10,BZ15) -> 0 | CB15: =SUM(BSRDetail!$H$2:$H$61*(BSRDetail!$A$2:$A$61=$A$1)*(BSRDetail!$F$2:$F$61=CB$1)*(BSRDetail!$B$2:$B$61=$B$1)*(BSRDetail!$E$2:$E$61>=$B15)*(BSRDetail!$E$2:$E$61<$B16)) -> 0 | CC15: =IF($D15=0,AVERAGE(CC$6:CC14)*$C15/10,CB15) -> 0 | CD15: =SUM(BSRDetail!$H$2:$H$61*(BSRDetail!$A$2:$A$61=$A$1)*(BSRDetail!$F$2:$F$61=CD$1)*(BSRDetail!$B$2:$B$61=$B$1)*(BSRDetail!$E$2:$E$61>=$B15)*(BSRDetail!$E$2:$E$61<$B16)) -> 0 | CE15: =IF($D15=0,AVERAGE(CE$6:CE14)*$C15/10,CD15) -> 0 | CF15: =SUM(BSRDetail!$H$2:$H$61*(BSRDetail!$A$2:$A$61=$A$1)*(BSRDetail!$F$2:$F$61=CF$1)*(BSRDetail!$B$2:$B$61=$B$1)*(BSRDetail!$E$2:$E$61>=$B15)*(BSRDetail!$E$2:$E$61<$B16)) -> 0 | CG15: =IF($D15=0,AVERAGE(CG$6:CG14)*$C15/10,CF15) -> 0 | CH15: =SUM(BSRDetail!$H$2:$H$61*(BSRDetail!$A$2:$A$61=$A$1)*(BSRDetail!$F$2:$F$61=CH$1)*(BSRDetail!$B$2:$B$61=$B$1)*(BSRDetail!$E$2:$E$61>=$B15)*(BSRDetail!$E$2:$E$61<$B16)) -> 0 | CI15: =IF($D15=0,AVERAGE(CI$6:CI14)*$C15/10,CH15) -> 0 | CJ15: =SUM(BSRDetail!$H$2:$H$61*(BSRDetail!$A$2:$A$61=$A$1)*(BSRDetail!$F$2:$F$61=CJ$1)*(BSRDetail!$B$2:$B$61=$B$1)*(BSRDetail!$E$2:$E$61>=$B15)*(BSRDetail!$E$2:$E$61<$B16)) -> 0 | CK15: =IF($D15=0,AVERAGE(CK$6:CK14)*$C15/10,CJ15) -> 0 | CL15: =SUM(BSRDetail!$H$2:$H$61*(BSRDetail!$A$2:$A$61=$A$1)*(BSRDetail!$F$2:$F$61=CL$1)*(BSRDetail!$B$2:$B$61=$B$1)*(BSRDetail!$E$2:$E$61>=$B15)*(BSRDetail!$E$2:$E$61<$B16)) -> 0 | CM15: =IF($D15=0,AVERAGE(CM$6:CM14)*$C15/10,CL15) -> 0 | CN15: =SUM(BSRDetail!$H$2:$H$61*(BSRDetail!$A$2:$A$61=$A$1)*(BSRDetail!$F$2:$F$61=CN$1)*(BSRDetail!$B$2:$B$61=$B$1)*(BSRDetail!$E$2:$E$61>=$B15)*(BSRDetail!$E$2:$E$61<$B16)) -> 0 | CO15: =IF($D15=0,AVERAGE(CO$6:CO14)*$C15/10,CN15) -> 0 | CP15: =SUM(BSRDetail!$H$2:$H$61*(BSRDetail!$A$2:$A$61=$A$1)*(BSRDetail!$F$2:$F$61=CP$1)*(BSRDetail!$B$2:$B$61=$B$1)*(BSRDetail!$E$2:$E$61>=$B15)*(BSRDetail!$E$2:$E$61<$B16)) -> 0 | CQ15: =IF($D15=0,AVERAGE(CQ$6:CQ14)*$C15/10,CP15) -> 0 | CR15: =SUM(BSRDetail!$H$2:$H$61*(BSRDetail!$A$2:$A$61=$A$1)*(BSRDetail!$F$2:$F$61=CR$1)*(BSRDetail!$B$2:$B$61=$B$1)*(BSRDetail!$E$2:$E$61>=$B15)*(BSRDetail!$E$2:$E$61<$B16)) -> 0 | CS15: =IF($D15=0,AVERAGE(CS$6:CS14)*$C15/10,CR15) -> 0 | CT15: =SUM(BSRDetail!$H$2:$H$61*(BSRDetail!$A$2:$A$61=$A$1)*(BSRDetail!$F$2:$F$61=CT$1)*(BSRDetail!$B$2:$B$61=$B$1)*(BSRDetail!$E$2:$E$61>=$B15)*(BSRDetail!$E$2:$E$61<$B16)) -> 0 | CU15: =IF($D15=0,AVERAGE(CU$6:CU14)*$C15/10,CT15) -> 0 | CV15: =SUM(BSRDetail!$H$2:$H$61*(BSRDetail!$A$2:$A$61=$A$1)*(BSRDetail!$F$2:$F$61=CV$1)*(BSRDetail!$B$2:$B$61=$B$1)*(BSRDetail!$E$2:$E$61>=$B15)*(BSRDetail!$E$2:$E$61<$B16)) -> 0 | CW15: =IF($D15=0,AVERAGE(CW$6:CW14)*$C15/10,CV15) -> 0
A16: 0 | B16: 2016-12-02 | C16: 10 | D16: =SUM(BSRDetail!$H$2:$H$61*(BSRDetail!$A$2:$A$61=$A$1)*(BSRDetail!$F$2:$F$61=D$1)*(BSRDetail!$B$2:$B$61=$B$1)*(BSRDetail!$E$2:$E$61>=$B16)*(BSRDetail!$E$2:$E$61<$B17)) -> 0 | E16: =SUM(BSRDetail!$H$2:$H$61*(BSRDetail!$A$2:$A$61=$A$1)*(BSRDetail!$F$2:$F$61=E$1)*(BSRDetail!$B$2:$B$61=$B$1)*(BSRDetail!$E$2:$E$61>=$B16)*(BSRDetail!$E$2:$E$61<$B17)) -> 0 | F16: =SUM(BSRDetail!$H$2:$H$61*(BSRDetail!$A$2:$A$61=$A$1)*(BSRDetail!$F$2:$F$61=F$1)*(BSRDetail!$B$2:$B$61=$B$1)*(BSRDetail!$E$2:$E$61>=$B16)*(BSRDetail!$E$2:$E$61<$B17)) -> 0 | G16: =SUM(BSRDetail!$H$2:$H$61*(BSRDetail!$A$2:$A$61=$A$1)*(BSRDetail!$F$2:$F$61=G$1)*(BSRDetail!$B$2:$B$61=$B$1)*(BSRDetail!$E$2:$E$61>=$B16)*(BSRDetail!$E$2:$E$61<$B17)) -> 0 | H16: =SUM(BSRDetail!$H$2:$H$61*(BSRDetail!$A$2:$A$61=$A$1)*(BSRDetail!$F$2:$F$61=H$1)*(BSRDetail!$B$2:$B$61=$B$1)*(BSRDetail!$E$2:$E$61>=$B16)*(BSRDetail!$E$2:$E$61<$B17)) -> 0 | I16: =SUM(BSRDetail!$H$2:$H$61*(BSRDetail!$A$2:$A$61=$A$1)*(BSRDetail!$F$2:$F$61=I$1)*(BSRDetail!$B$2:$B$61=$B$1)*(BSRDetail!$E$2:$E$61>=$B16)*(BSRDetail!$E$2:$E$61<$B17)) -> 0 | J16: 0 | K16: 6508.69375 | L16: 0 | M16: 6508.69375 | N16: =SUM(BSRDetail!$H$2:$H$61*(BSRDetail!$A$2:$A$61=$A$1)*(BSRDetail!$F$2:$F$61=N$1)*(BSRDetail!$B$2:$B$61=$B$1)*(BSRDetail!$E$2:$E$61>=$B16)*(BSRDetail!$E$2:$E$61<$B17)) -> 0 | O16: =SUM(BSRDetail!$H$2:$H$61*(BSRDetail!$A$2:$A$61=$A$1)*(BSRDetail!$F$2:$F$61=O$1)*(BSRDetail!$B$2:$B$61=$B$1)*(BSRDetail!$E$2:$E$61>=$B16)*(BSRDetail!$E$2:$E$61<$B17)) -> 0 | P16: =SUM(BSRDetail!$H$2:$H$61*(BSRDetail!$A$2:$A$61=$A$1)*(BSRDetail!$F$2:$F$61=P$1)*(BSRDetail!$B$2:$B$61=$B$1)*(BSRDetail!$E$2:$E$61>=$B16)*(BSRDetail!$E$2:$E$61<$B17)) -> 0 | Q16: =SUM(BSRDetail!$H$2:$H$61*(BSRDetail!$A$2:$A$61=$A$1)*(BSRDetail!$F$2:$F$61=Q$1)*(BSRDetail!$B$2:$B$61=$B$1)*(BSRDetail!$E$2:$E$61>=$B16)*(BSRDetail!$E$2:$E$61<$B17)) -> 0 | R16: =SUM(BSRDetail!$H$2:$H$61*(BSRDetail!$A$2:$A$61=$A$1)*(BSRDetail!$F$2:$F$61=R$1)*(BSRDetail!$B$2:$B$61=$B$1)*(BSRDetail!$E$2:$E$61>=$B16)*(BSRDetail!$E$2:$E$61<$B17)) -> 0 | S16: =SUM(BSRDetail!$H$2:$H$61*(BSRDetail!$A$2:$A$61=$A$1)*(BSRDetail!$F$2:$F$61=S$1)*(BSRDetail!$B$2:$B$61=$B$1)*(BSRDetail!$E$2:$E$61>=$B16)*(BSRDetail!$E$2:$E$61<$B17)) -> 0 | T16: =SUM(BSRDetail!$H$2:$H$61*(BSRDetail!$A$2:$A$61=$A$1)*(BSRDetail!$F$2:$F$61=T$1)*(BSRDetail!$B$2:$B$61=$B$1)*(BSRDetail!$E$2:$E$61>=$B16)*(BSRDetail!$E$2:$E$61<$B17)) -> 0 | U16: =SUM(BSRDetail!$H$2:$H$61*(BSRDetail!$A$2:$A$61=$A$1)*(BSRDetail!$F$2:$F$61=U$1)*(BSRDetail!$B$2:$B$61=$B$1)*(BSRDetail!$E$2:$E$61>=$B16)*(BSRDetail!$E$2:$E$61<$B17)) -> 0 | V16: =SUM(BSRDetail!$H$2:$H$61*(BSRDetail!$A$2:$A$61=$A$1)*(BSRDetail!$F$2:$F$61=V$1)*(BSRDetail!$B$2:$B$61=$B$1)*(BSRDetail!$E$2:$E$61>=$B16)*(BSRDetail!$E$2:$E$61<$B17)) -> 0 | W16: =SUM(BSRDetail!$H$2:$H$61*(BSRDetail!$A$2:$A$61=$A$1)*(BSRDetail!$F$2:$F$61=W$1)*(BSRDetail!$B$2:$B$61=$B$1)*(BSRDetail!$E$2:$E$61>=$B16)*(BSRDetail!$E$2:$E$61<$B17)) -> 0 | X16: =SUM(BSRDetail!$H$2:$H$61*(BSRDetail!$A$2:$A$61=$A$1)*(BSRDetail!$F$2:$F$61=X$1)*(BSRDetail!$B$2:$B$61=$B$1)*(BSRDetail!$E$2:$E$61>=$B16)*(BSRDetail!$E$2:$E$61<$B17)) -> 0 | Y16: 0 | Z16: 0 | AA16: =IF(D15=0,AA15,IF($D16=0,Z16+AVERAGE($Y$7:Y15)*$C16/10,Y16)) -> 0 | AB16: 6508.69375 | AC16: =SUM(BSRDetail!$H$2:$H$61*(BSRDetail!$A$2:$A$61=$A$1)*(BSRDetail!$F$2:$F$61=AC$1)*(BSRDetail!$B$2:$B$61=$B$1)*(BSRDetail!$E$2:$E$61>=$B16)*(BSRDetail!$E$2:$E$61<$B17)) -> 0 | AD16: 0.008944 | AE16: 58.2137569 | AF16: =SUM(BSRDetail!$H$2:$H$61*(BSRDetail!$A$2:$A$61=$A$1)*(BSRDetail!$F$2:$F$61=AF$1)*(BSRDetail!$B$2:$B$61=$B$1)*(BSRDetail!$E$2:$E$61>=$B16)*(BSRDetail!$E$2:$E$61<$B17)) -> 0 | AG16: 0 | AH16: 0 | AI16: =SUM(BSRDetail!$H$2:$H$61*(BSRDetail!$A$2:$A$61=$A$1)*(BSRDetail!$F$2:$F$61=AI$1)*(BSRDetail!$B$2:$B$61=$B$1)*(BSRDetail!$E$2:$E$61>=$B16)*(BSRDetail!$E$2:$E$61<$B17)) -> 0 | AJ16: 0 | AK16: =SUM(BSRDetail!$H$2:$H$61*(BSRDetail!$A$2:$A$61=$A$1)*(BSRDetail!$F$2:$F$61=AK$1)*(BSRDetail!$B$2:$B$61=$B$1)*(BSRDetail!$E$2:$E$61>=$B16)*(BSRDetail!$E$2:$E$61<$B17)) -> 0 | AL16: 0.9964658772 | AM16: 0 | AN16: 699.25 | AO16: =SUM(BSRDetail!$H$2:$H$61*(BSRDetail!$A$2:$A$61=$A$1)*(BSRDetail!$F$2:$F$61=AO$1)*(BSRDetail!$B$2:$B$61=$B$1)*(BSRDetail!$E$2:$E$61>=$B16)*(BSRDetail!$E$2:$E$61<$B17)) -> 0 | AP16: 0 | AQ16: =SUM(BSRDetail!$H$2:$H$61*(BSRDetail!$A$2:$A$61=$A$1)*(BSRDetail!$F$2:$F$61=AQ$1)*(BSRDetail!$B$2:$B$61=$B$1)*(BSRDetail!$E$2:$E$61>=$B16)*(BSRDetail!$E$2:$E$61<$B17)) -> 0 | AR16: 0.02360050494 | AS16: 153.608459 | AT16: =SUM(BSRDetail!$H$2:$H$61*(BSRDetail!$A$2:$A$61=$A$1)*(BSRDetail!$F$2:$F$61=AT$1)*(BSRDetail!$B$2:$B$61=$B$1)*(BSRDetail!$E$2:$E$61>=$B16)*(BSRDetail!$E$2:$E$61<$B17)) -> 0 | AU16: 0.0013 | AV16: 8.461301875 | AW16: =SUM(BSRDetail!$H$2:$H$61*(BSRDetail!$A$2:$A$61=$A$1)*(BSRDetail!$F$2:$F$61=AW$1)*(BSRDetail!$B$2:$B$61=$B$1)*(BSRDetail!$E$2:$E$61>=$B16)*(BSRDetail!$E$2:$E$61<$B17)) -> 0 | AX16: =IF(D16=0,IF(DAY(B16)<15,SUM($AX$7:AX15*(DAY($B$7:B15)<15))/SUM(1*(DAY($B$7:B15)<15)),SUM($AX$7:AX15*(DAY($B$7:B15)>14))/SUM(1*(DAY($B$7:B15)>14))),AW16/AB16) -> 0.01371698738 | AY16: 89.27967004 | AZ16: =SUM(BSRDetail!$H$2:$H$61*(BSRDetail!$A$2:$A$61=$A$1)*(BSRDetail!$F$2:$F$61=AZ$1)*(BSRDetail!$B$2:$B$61=$B$1)*(BSRDetail!$E$2:$E$61>=$B16)*(BSRDetail!$E$2:$E$61<$B17)) -> 0 | BA16: 0 | BB16: 0 | BC16: =SUM(BSRDetail!$H$2:$H$61*(BSRDetail!$A$2:$A$61=$A$1)*(BSRDetail!$F$2:$F$61=BC$1)*(BSRDetail!$B$2:$B$61=$B$1)*(BSRDetail!$E$2:$E$61>=$B16)*(BSRDetail!$E$2:$E$61<$B17)) -> 0 | BD16: =SUM(BSRDetail!$H$2:$H$61*(BSRDetail!$A$2:$A$61=$A$1)*(BSRDetail!$F$2:$F$61=BD$1)*(BSRDetail!$B$2:$B$61=$B$1)*(BSRDetail!$E$2:$E$61>=$B16)*(BSRDetail!$E$2:$E$61<$B17)) -> 0 | BE16: 0 | BF16: 0 | BG16: =SUM(BSRDetail!$H$2:$H$61*(BSRDetail!$A$2:$A$61=$A$1)*(BSRDetail!$F$2:$F$61=BG$1)*(BSRDetail!$B$2:$B$61=$B$1)*(BSRDetail!$E$2:$E$61>=$B16)*(BSRDetail!$E$2:$E$61<$B17)) -> 0 | BH16: =SUM(BSRDetail!$H$2:$H$61*(BSRDetail!$A$2:$A$61=$A$1)*(BSRDetail!$F$2:$F$61=BH$1)*(BSRDetail!$B$2:$B$61=$B$1)*(BSRDetail!$E$2:$E$61>=$B16)*(BSRDetail!$E$2:$E$61<$B17)) -> 0 | BI16: 0 | BJ16: =SUM(BSRDetail!$H$2:$H$61*(BSRDetail!$A$2:$A$61=$A$1)*(BSRDetail!$F$2:$F$61=BJ$1)*(BSRDetail!$B$2:$B$61=$B$1)*(BSRDetail!$E$2:$E$61>=$B16)*(BSRDetail!$E$2:$E$61<$B17)) -> 0 | BK16: =IF($D16=0,AVERAGE(BK$6:BK15)*$C16/10,BJ16) -> 711.45 | BL16: =SUM(BSRDetail!$H$2:$H$61*(BSRDetail!$A$2:$A$61=$A$1)*(BSRDetail!$F$2:$F$61=BL$1)*(BSRDetail!$B$2:$B$61=$B$1)*(BSRDetail!$E$2:$E$61>=$B16)*(BSRDetail!$E$2:$E$61<$B17)) -> 0 | BM16: =IF($D16=0,AVERAGE(BM$6:BM15)*$C16/10,BL16) -> 0 | BN16: =SUM(BSRDetail!$H$2:$H$61*(BSRDetail!$A$2:$A$61=$A$1)*(BSRDetail!$F$2:$F$61=BN$1)*(BSRDetail!$B$2:$B$61=$B$1)*(BSRDetail!$E$2:$E$61>=$B16)*(BSRDetail!$E$2:$E$61<$B17)) -> 0 | BO16: =IF($D16=0,AVERAGE(BO$6:BO15)*$C16/10,BN16) -> 0 | BP16: =SUM(BSRDetail!$H$2:$H$61*(BSRDetail!$A$2:$A$61=$A$1)*(BSRDetail!$F$2:$F$61=BP$1)*(BSRDetail!$B$2:$B$61=$B$1)*(BSRDetail!$E$2:$E$61>=$B16)*(BSRDetail!$E$2:$E$61<$B17)) -> 0 | BQ16: =IF($D16=0,AVERAGE(BQ$6:BQ15)*$C16/10,BP16) -> 0 | BR16: =SUM(BSRDetail!$H$2:$H$61*(BSRDetail!$A$2:$A$61=$A$1)*(BSRDetail!$F$2:$F$61=BR$1)*(BSRDetail!$B$2:$B$61=$B$1)*(BSRDetail!$E$2:$E$61>=$B16)*(BSRDetail!$E$2:$E$61<$B17)) -> 0 | BS16: =IF($D16=0,AVERAGE(BS$6:BS15)*$C16/10,BR16) -> 0 | BT16: =SUM(BSRDetail!$H$2:$H$61*(BSRDetail!$A$2:$A$61=$A$1)*(BSRDetail!$F$2:$F$61=BT$1)*(BSRDetail!$B$2:$B$61=$B$1)*(BSRDetail!$E$2:$E$61>=$B16)*(BSRDetail!$E$2:$E$61<$B17)) -> 0 | BU16: =IF($D16=0,AVERAGE(BU$6:BU15)*$C16/10,BT16) -> 0 | BV16: =SUM(BSRDetail!$H$2:$H$61*(BSRDetail!$A$2:$A$61=$A$1)*(BSRDetail!$F$2:$F$61=BV$1)*(BSRDetail!$B$2:$B$61=$B$1)*(BSRDetail!$E$2:$E$61>=$B16)*(BSRDetail!$E$2:$E$61<$B17)) -> 0 | BW16: =IF($D16=0,AVERAGE(BW$6:BW15)*$C16/10,BV16) -> 0 | BX16: =SUM(BSRDetail!$H$2:$H$61*(BSRDetail!$A$2:$A$61=$A$1)*(BSRDetail!$F$2:$F$61=BX$1)*(BSRDetail!$B$2:$B$61=$B$1)*(BSRDetail!$E$2:$E$61>=$B16)*(BSRDetail!$E$2:$E$61<$B17)) -> 0 | BY16: =IF($D16=0,AVERAGE(BY$6:BY15)*$C16/10,BX16) -> 0 | BZ16: =SUM(BSRDetail!$H$2:$H$61*(BSRDetail!$A$2:$A$61=$A$1)*(BSRDetail!$F$2:$F$61=BZ$1)*(BSRDetail!$B$2:$B$61=$B$1)*(BSRDetail!$E$2:$E$61>=$B16)*(BSRDetail!$E$2:$E$61<$B17)) -> 0 | CA16: =IF($D16=0,AVERAGE(CA$6:CA15)*$C16/10,BZ16) -> 0 | CB16: =SUM(BSRDetail!$H$2:$H$61*(BSRDetail!$A$2:$A$61=$A$1)*(BSRDetail!$F$2:$F$61=CB$1)*(BSRDetail!$B$2:$B$61=$B$1)*(BSRDetail!$E$2:$E$61>=$B16)*(BSRDetail!$E$2:$E$61<$B17)) -> 0 | CC16: =IF($D16=0,AVERAGE(CC$6:CC15)*$C16/10,CB16) -> 0 | CD16: =SUM(BSRDetail!$H$2:$H$61*(BSRDetail!$A$2:$A$61=$A$1)*(BSRDetail!$F$2:$F$61=CD$1)*(BSRDetail!$B$2:$B$61=$B$1)*(BSRDetail!$E$2:$E$61>=$B16)*(BSRDetail!$E$2:$E$61<$B17)) -> 0 | CE16: =IF($D16=0,AVERAGE(CE$6:CE15)*$C16/10,CD16) -> 0 | CF16: =SUM(BSRDetail!$H$2:$H$61*(BSRDetail!$A$2:$A$61=$A$1)*(BSRDetail!$F$2:$F$61=CF$1)*(BSRDetail!$B$2:$B$61=$B$1)*(BSRDetail!$E$2:$E$61>=$B16)*(BSRDetail!$E$2:$E$61<$B17)) -> 0 | CG16: =IF($D16=0,AVERAGE(CG$6:CG15)*$C16/10,CF16) -> 0 | CH16: =SUM(BSRDetail!$H$2:$H$61*(BSRDetail!$A$2:$A$61=$A$1)*(BSRDetail!$F$2:$F$61=CH$1)*(BSRDetail!$B$2:$B$61=$B$1)*(BSRDetail!$E$2:$E$61>=$B16)*(BSRDetail!$E$2:$E$61<$B17)) -> 0 | CI16: =IF($D16=0,AVERAGE(CI$6:CI15)*$C16/10,CH16) -> 0 | CJ16: =SUM(BSRDetail!$H$2:$H$61*(BSRDetail!$A$2:$A$61=$A$1)*(BSRDetail!$F$2:$F$61=CJ$1)*(BSRDetail!$B$2:$B$61=$B$1)*(BSRDetail!$E$2:$E$61>=$B16)*(BSRDetail!$E$2:$E$61<$B17)) -> 0 | CK16: =IF($D16=0,AVERAGE(CK$6:CK15)*$C16/10,CJ16) -> 0 | CL16: =SUM(BSRDetail!$H$2:$H$61*(BSRDetail!$A$2:$A$61=$A$1)*(BSRDetail!$F$2:$F$61=CL$1)*(BSRDetail!$B$2:$B$61=$B$1)*(BSRDetail!$E$2:$E$61>=$B16)*(BSRDetail!$E$2:$E$61<$B17)) -> 0 | CM16: =IF($D16=0,AVERAGE(CM$6:CM15)*$C16/10,CL16) -> 0 | CN16: =SUM(BSRDetail!$H$2:$H$61*(BSRDetail!$A$2:$A$61=$A$1)*(BSRDetail!$F$2:$F$61=CN$1)*(BSRDetail!$B$2:$B$61=$B$1)*(BSRDetail!$E$2:$E$61>=$B16)*(BSRDetail!$E$2:$E$61<$B17)) -> 0 | CO16: =IF($D16=0,AVERAGE(CO$6:CO15)*$C16/10,CN16) -> 0 | CP16: =SUM(BSRDetail!$H$2:$H$61*(BSRDetail!$A$2:$A$61=$A$1)*(BSRDetail!$F$2:$F$61=CP$1)*(BSRDetail!$B$2:$B$61=$B$1)*(BSRDetail!$E$2:$E$61>=$B16)*(BSRDetail!$E$2:$E$61<$B17)) -> 0 | CQ16: =IF($D16=0,AVERAGE(CQ$6:CQ15)*$C16/10,CP16) -> 0 | CR16: =SUM(BSRDetail!$H$2:$H$61*(BSRDetail!$A$2:$A$61=$A$1)*(BSRDetail!$F$2:$F$61=CR$1)*(BSRDetail!$B$2:$B$61=$B$1)*(BSRDetail!$E$2:$E$61>=$B16)*(BSRDetail!$E$2:$E$61<$B17)) -> 0 | CS16: =IF($D16=0,AVERAGE(CS$6:CS15)*$C16/10,CR16) -> 0 | CT16: =SUM(BSRDetail!$H$2:$H$61*(BSRDetail!$A$2:$A$61=$A$1)*(BSRDetail!$F$2:$F$61=CT$1)*(BSRDetail!$B$2:$B$61=$B$1)*(BSRDetail!$E$2:$E$61>=$B16)*(BSRDetail!$E$2:$E$61<$B17)) -> 0 | CU16: =IF($D16=0,AVERAGE(CU$6:CU15)*$C16/10,CT16) -> 0 | CV16: =SUM(BSRDetail!$H$2:$H$61*(BSRDetail!$A$2:$A$61=$A$1)*(BSRDetail!$F$2:$F$61=CV$1)*(BSRDetail!$B$2:$B$61=$B$1)*(BSRDetail!$E$2:$E$61>=$B16)*(BSRDetail!$E$2:$E$61<$B17)) -> 0 | CW16: =IF($D16=0,AVERAGE(CW$6:CW15)*$C16/10,CV16) -> 0
A17: 0 | B17: 2016-12-16 | C17: 10 | D17: =SUM(BSRDetail!$H$2:$H$61*(BSRDetail!$A$2:$A$61=$A$1)*(BSRDetail!$F$2:$F$61=D$1)*(BSRDetail!$B$2:$B$61=$B$1)*(BSRDetail!$E$2:$E$61>=$B17)*(BSRDetail!$E$2:$E$61<$B18)) -> 0 | E17: =SUM(BSRDetail!$H$2:$H$61*(BSRDetail!$A$2:$A$61=$A$1)*(BSRDetail!$F$2:$F$61=E$1)*(BSRDetail!$B$2:$B$61=$B$1)*(BSRDetail!$E$2:$E$61>=$B17)*(BSRDetail!$E$2:$E$61<$B18)) -> 0 | F17: =SUM(BSRDetail!$H$2:$H$61*(BSRDetail!$A$2:$A$61=$A$1)*(BSRDetail!$F$2:$F$61=F$1)*(BSRDetail!$B$2:$B$61=$B$1)*(BSRDetail!$E$2:$E$61>=$B17)*(BSRDetail!$E$2:$E$61<$B18)) -> 0 | G17: =SUM(BSRDetail!$H$2:$H$61*(BSRDetail!$A$2:$A$61=$A$1)*(BSRDetail!$F$2:$F$61=G$1)*(BSRDetail!$B$2:$B$61=$B$1)*(BSRDetail!$E$2:$E$61>=$B17)*(BSRDetail!$E$2:$E$61<$B18)) -> 0 | H17: =SUM(BSRDetail!$H$2:$H$61*(BSRDetail!$A$2:$A$61=$A$1)*(BSRDetail!$F$2:$F$61=H$1)*(BSRDetail!$B$2:$B$61=$B$1)*(BSRDetail!$E$2:$E$61>=$B17)*(BSRDetail!$E$2:$E$61<$B18)) -> 0 | I17: =SUM(BSRDetail!$H$2:$H$61*(BSRDetail!$A$2:$A$61=$A$1)*(BSRDetail!$F$2:$F$61=I$1)*(BSRDetail!$B$2:$B$61=$B$1)*(BSRDetail!$E$2:$E$61>=$B17)*(BSRDetail!$E$2:$E$61<$B18)) -> 0 | J17: 0 | K17: 6456.467188 | L17: 0 | M17: 6456.467188 | N17: =SUM(BSRDetail!$H$2:$H$61*(BSRDetail!$A$2:$A$61=$A$1)*(BSRDetail!$F$2:$F$61=N$1)*(BSRDetail!$B$2:$B$61=$B$1)*(BSRDetail!$E$2:$E$61>=$B17)*(BSRDetail!$E$2:$E$61<$B18)) -> 0 | O17: =SUM(BSRDetail!$H$2:$H$61*(BSRDetail!$A$2:$A$61=$A$1)*(BSRDetail!$F$2:$F$61=O$1)*(BSRDetail!$B$2:$B$61=$B$1)*(BSRDetail!$E$2:$E$61>=$B17)*(BSRDetail!$E$2:$E$61<$B18)) -> 0 | P17: =SUM(BSRDetail!$H$2:$H$61*(BSRDetail!$A$2:$A$61=$A$1)*(BSRDetail!$F$2:$F$61=P$1)*(BSRDetail!$B$2:$B$61=$B$1)*(BSRDetail!$E$2:$E$61>=$B17)*(BSRDetail!$E$2:$E$61<$B18)) -> 0 | Q17: =SUM(BSRDetail!$H$2:$H$61*(BSRDetail!$A$2:$A$61=$A$1)*(BSRDetail!$F$2:$F$61=Q$1)*(BSRDetail!$B$2:$B$61=$B$1)*(BSRDetail!$E$2:$E$61>=$B17)*(BSRDetail!$E$2:$E$61<$B18)) -> 0 | R17: =SUM(BSRDetail!$H$2:$H$61*(BSRDetail!$A$2:$A$61=$A$1)*(BSRDetail!$F$2:$F$61=R$1)*(BSRDetail!$B$2:$B$61=$B$1)*(BSRDetail!$E$2:$E$61>=$B17)*(BSRDetail!$E$2:$E$61<$B18)) -> 0 | S17: =SUM(BSRDetail!$H$2:$H$61*(BSRDetail!$A$2:$A$61=$A$1)*(BSRDetail!$F$2:$F$61=S$1)*(BSRDetail!$B$2:$B$61=$B$1)*(BSRDetail!$E$2:$E$61>=$B17)*(BSRDetail!$E$2:$E$61<$B18)) -> 0 | T17: =SUM(BSRDetail!$H$2:$H$61*(BSRDetail!$A$2:$A$61=$A$1)*(BSRDetail!$F$2:$F$61=T$1)*(BSRDetail!$B$2:$B$61=$B$1)*(BSRDetail!$E$2:$E$61>=$B17)*(BSRDetail!$E$2:$E$61<$B18)) -> 0 | U17: =SUM(BSRDetail!$H$2:$H$61*(BSRDetail!$A$2:$A$61=$A$1)*(BSRDetail!$F$2:$F$61=U$1)*(BSRDetail!$B$2:$B$61=$B$1)*(BSRDetail!$E$2:$E$61>=$B17)*(BSRDetail!$E$2:$E$61<$B18)) -> 0 | V17: =SUM(BSRDetail!$H$2:$H$61*(BSRDetail!$A$2:$A$61=$A$1)*(BSRDetail!$F$2:$F$61=V$1)*(BSRDetail!$B$2:$B$61=$B$1)*(BSRDetail!$E$2:$E$61>=$B17)*(BSRDetail!$E$2:$E$61<$B18)) -> 0 | W17: =SUM(BSRDetail!$H$2:$H$61*(BSRDetail!$A$2:$A$61=$A$1)*(BSRDetail!$F$2:$F$61=W$1)*(BSRDetail!$B$2:$B$61=$B$1)*(BSRDetail!$E$2:$E$61>=$B17)*(BSRDetail!$E$2:$E$61<$B18)) -> 0 | X17: =SUM(BSRDetail!$H$2:$H$61*(BSRDetail!$A$2:$A$61=$A$1)*(BSRDetail!$F$2:$F$61=X$1)*(BSRDetail!$B$2:$B$61=$B$1)*(BSRDetail!$E$2:$E$61>=$B17)*(BSRDetail!$E$2:$E$61<$B18)) -> 0 | Y17: 0 | Z17: 0 | AA17: =IF(D16=0,AA16,IF($D17=0,Z17+AVERAGE($Y$7:Y16)*$C17/10,Y17)) -> 0 | AB17: 6456.467188 | AC17: =SUM(BSRDetail!$H$2:$H$61*(BSRDetail!$A$2:$A$61=$A$1)*(BSRDetail!$F$2:$F$61=AC$1)*(BSRDetail!$B$2:$B$61=$B$1)*(BSRDetail!$E$2:$E$61>=$B17)*(BSRDetail!$E$2:$E$61<$B18)) -> 0 | AD17: 0.007824 | AE17: 50.51539928 | AF17: =SUM(BSRDetail!$H$2:$H$61*(BSRDetail!$A$2:$A$61=$A$1)*(BSRDetail!$F$2:$F$61=AF$1)*(BSRDetail!$B$2:$B$61=$B$1)*(BSRDetail!$E$2:$E$61>=$B17)*(BSRDetail!$E$2:$E$61<$B18)) -> 0 | AG17: 0 | AH17: 0 | AI17: =SUM(BSRDetail!$H$2:$H$61*(BSRDetail!$A$2:$A$61=$A$1)*(BSRDetail!$F$2:$F$61=AI$1)*(BSRDetail!$B$2:$B$61=$B$1)*(BSRDetail!$E$2:$E$61>=$B17)*(BSRDetail!$E$2:$E$61<$B18)) -> 0 | AJ17: 0 | AK17: =SUM(BSRDetail!$H$2:$H$61*(BSRDetail!$A$2:$A$61=$A$1)*(BSRDetail!$F$2:$F$61=AK$1)*(BSRDetail!$B$2:$B$61=$B$1)*(BSRDetail!$E$2:$E$61>=$B17)*(BSRDetail!$E$2:$E$61<$B18)) -> 0 | AL17: 0 | AM17: 0 | AN17: 0 | AO17: =SUM(BSRDetail!$H$2:$H$61*(BSRDetail!$A$2:$A$61=$A$1)*(BSRDetail!$F$2:$F$61=AO$1)*(BSRDetail!$B$2:$B$61=$B$1)*(BSRDetail!$E$2:$E$61>=$B17)*(BSRDetail!$E$2:$E$61<$B18)) -> 0 | AP17: 0 | AQ17: =SUM(BSRDetail!$H$2:$H$61*(BSRDetail!$A$2:$A$61=$A$1)*(BSRDetail!$F$2:$F$61=AQ$1)*(BSRDetail!$B$2:$B$61=$B$1)*(BSRDetail!$E$2:$E$61>=$B17)*(BSRDetail!$E$2:$E$61<$B18)) -> 0 | AR17: 0.02360050494 | AS17: 152.3758857 | AT17: =SUM(BSRDetail!$H$2:$H$61*(BSRDetail!$A$2:$A$61=$A$1)*(BSRDetail!$F$2:$F$61=AT$1)*(BSRDetail!$B$2:$B$61=$B$1)*(BSRDetail!$E$2:$E$61>=$B17)*(BSRDetail!$E$2:$E$61<$B18)) -> 0 | AU17: 0.0013 | AV17: 8.393407344 | AW17: =SUM(BSRDetail!$H$2:$H$61*(BSRDetail!$A$2:$A$61=$A$1)*(BSRDetail!$F$2:$F$61=AW$1)*(BSRDetail!$B$2:$B$61=$B$1)*(BSRDetail!$E$2:$E$61>=$B17)*(BSRDetail!$E$2:$E$61<$B18)) -> 0 | AX17: =IF(D17=0,IF(DAY(B17)<15,SUM(AX8:AX16*(DAY(B8:B16)<15))/SUM(1*(DAY(B8:B16)<15)),SUM(AX8:AX16*(DAY(B8:B16)>14))/SUM(1*(DAY(B8:B16)>14))),AW17/AB17) -> 0.01450034141 | AY17: 93.62097851 | AZ17: =SUM(BSRDetail!$H$2:$H$61*(BSRDetail!$A$2:$A$61=$A$1)*(BSRDetail!$F$2:$F$61=AZ$1)*(BSRDetail!$B$2:$B$61=$B$1)*(BSRDetail!$E$2:$E$61>=$B17)*(BSRDetail!$E$2:$E$61<$B18)) -> 0 | BA17: 0 | BB17: 0 | BC17: =SUM(BSRDetail!$H$2:$H$61*(BSRDetail!$A$2:$A$61=$A$1)*(BSRDetail!$F$2:$F$61=BC$1)*(BSRDetail!$B$2:$B$61=$B$1)*(BSRDetail!$E$2:$E$61>=$B17)*(BSRDetail!$E$2:$E$61<$B18)) -> 0 | BD17: =SUM(BSRDetail!$H$2:$H$61*(BSRDetail!$A$2:$A$61=$A$1)*(BSRDetail!$F$2:$F$61=BD$1)*(BSRDetail!$B$2:$B$61=$B$1)*(BSRDetail!$E$2:$E$61>=$B17)*(BSRDetail!$E$2:$E$61<$B18)) -> 0 | BE17: 0 | BF17: 0 | BG17: =SUM(BSRDetail!$H$2:$H$61*(BSRDetail!$A$2:$A$61=$A$1)*(BSRDetail!$F$2:$F$61=BG$1)*(BSRDetail!$B$2:$B$61=$B$1)*(BSRDetail!$E$2:$E$61>=$B17)*(BSRDetail!$E$2:$E$61<$B18)) -> 0 | BH17: =SUM(BSRDetail!$H$2:$H$61*(BSRDetail!$A$2:$A$61=$A$1)*(BSRDetail!$F$2:$F$61=BH$1)*(BSRDetail!$B$2:$B$61=$B$1)*(BSRDetail!$E$2:$E$61>=$B17)*(BSRDetail!$E$2:$E$61<$B18)) -> 0 | BI17: 0 | BJ17: =SUM(BSRDetail!$H$2:$H$61*(BSRDetail!$A$2:$A$61=$A$1)*(BSRDetail!$F$2:$F$61=BJ$1)*(BSRDetail!$B$2:$B$61=$B$1)*(BSRDetail!$E$2:$E$61>=$B17)*(BSRDetail!$E$2:$E$61<$B18)) -> 0 | BK17: =IF($D17=0,AVERAGE(BK$6:BK16)*$C17/10,BJ17) -> 711.45 | BL17: =SUM(BSRDetail!$H$2:$H$61*(BSRDetail!$A$2:$A$61=$A$1)*(BSRDetail!$F$2:$F$61=BL$1)*(BSRDetail!$B$2:$B$61=$B$1)*(BSRDetail!$E$2:$E$61>=$B17)*(BSRDetail!$E$2:$E$61<$B18)) -> 0 | BM17: =IF($D17=0,AVERAGE(BM$6:BM16)*$C17/10,BL17) -> 0 | BN17: =SUM(BSRDetail!$H$2:$H$61*(BSRDetail!$A$2:$A$61=$A$1)*(BSRDetail!$F$2:$F$61=BN$1)*(BSRDetail!$B$2:$B$61=$B$1)*(BSRDetail!$E$2:$E$61>=$B17)*(BSRDetail!$E$2:$E$61<$B18)) -> 0 | BO17: =IF($D17=0,AVERAGE(BO$6:BO16)*$C17/10,BN17) -> 0 | BP17: =SUM(BSRDetail!$H$2:$H$61*(BSRDetail!$A$2:$A$61=$A$1)*(BSRDetail!$F$2:$F$61=BP$1)*(BSRDetail!$B$2:$B$61=$B$1)*(BSRDetail!$E$2:$E$61>=$B17)*(BSRDetail!$E$2:$E$61<$B18)) -> 0 | BQ17: =IF($D17=0,AVERAGE(BQ$6:BQ16)*$C17/10,BP17) -> 0 | BR17: =SUM(BSRDetail!$H$2:$H$61*(BSRDetail!$A$2:$A$61=$A$1)*(BSRDetail!$F$2:$F$61=BR$1)*(BSRDetail!$B$2:$B$61=$B$1)*(BSRDetail!$E$2:$E$61>=$B17)*(BSRDetail!$E$2:$E$61<$B18)) -> 0 | BS17: =IF($D17=0,AVERAGE(BS$6:BS16)*$C17/10,BR17) -> 0 | BT17: =SUM(BSRDetail!$H$2:$H$61*(BSRDetail!$A$2:$A$61=$A$1)*(BSRDetail!$F$2:$F$61=BT$1)*(BSRDetail!$B$2:$B$61=$B$1)*(BSRDetail!$E$2:$E$61>=$B17)*(BSRDetail!$E$2:$E$61<$B18)) -> 0 | BU17: =IF($D17=0,AVERAGE(BU$6:BU16)*$C17/10,BT17) -> 0 | BV17: =SUM(BSRDetail!$H$2:$H$61*(BSRDetail!$A$2:$A$61=$A$1)*(BSRDetail!$F$2:$F$61=BV$1)*(BSRDetail!$B$2:$B$61=$B$1)*(BSRDetail!$E$2:$E$61>=$B17)*(BSRDetail!$E$2:$E$61<$B18)) -> 0 | BW17: =IF($D17=0,AVERAGE(BW$6:BW16)*$C17/10,BV17) -> 0 | BX17: =SUM(BSRDetail!$H$2:$H$61*(BSRDetail!$A$2:$A$61=$A$1)*(BSRDetail!$F$2:$F$61=BX$1)*(BSRDetail!$B$2:$B$61=$B$1)*(BSRDetail!$E$2:$E$61>=$B17)*(BSRDetail!$E$2:$E$61<$B18)) -> 0 | BY17: =IF($D17=0,AVERAGE(BY$6:BY16)*$C17/10,BX17) -> 0 | BZ17: =SUM(BSRDetail!$H$2:$H$61*(BSRDetail!$A$2:$A$61=$A$1)*(BSRDetail!$F$2:$F$61=BZ$1)*(BSRDetail!$B$2:$B$61=$B$1)*(BSRDetail!$E$2:$E$61>=$B17)*(BSRDetail!$E$2:$E$61<$B18)) -> 0 | CA17: =IF($D17=0,AVERAGE(CA$6:CA16)*$C17/10,BZ17) -> 0 | CB17: =SUM(BSRDetail!$H$2:$H$61*(BSRDetail!$A$2:$A$61=$A$1)*(BSRDetail!$F$2:$F$61=CB$1)*(BSRDetail!$B$2:$B$61=$B$1)*(BSRDetail!$E$2:$E$61>=$B17)*(BSRDetail!$E$2:$E$61<$B18)) -> 0 | CC17: =IF($D17=0,AVERAGE(CC$6:CC16)*$C17/10,CB17) -> 0 | CD17: =SUM(BSRDetail!$H$2:$H$61*(BSRDetail!$A$2:$A$61=$A$1)*(BSRDetail!$F$2:$F$61=CD$1)*(BSRDetail!$B$2:$B$61=$B$1)*(BSRDetail!$E$2:$E$61>=$B17)*(BSRDetail!$E$2:$E$61<$B18)) -> 0 | CE17: =IF($D17=0,AVERAGE(CE$6:CE16)*$C17/10,CD17) -> 0 | CF17: =SUM(BSRDetail!$H$2:$H$61*(BSRDetail!$A$2:$A$61=$A$1)*(BSRDetail!$F$2:$F$61=CF$1)*(BSRDetail!$B$2:$B$61=$B$1)*(BSRDetail!$E$2:$E$61>=$B17)*(BSRDetail!$E$2:$E$61<$B18)) -> 0 | CG17: =IF($D17=0,AVERAGE(CG$6:CG16)*$C17/10,CF17) -> 0 | CH17: =SUM(BSRDetail!$H$2:$H$61*(BSRDetail!$A$2:$A$61=$A$1)*(BSRDetail!$F$2:$F$61=CH$1)*(BSRDetail!$B$2:$B$61=$B$1)*(BSRDetail!$E$2:$E$61>=$B17)*(BSRDetail!$E$2:$E$61<$B18)) -> 0 | CI17: =IF($D17=0,AVERAGE(CI$6:CI16)*$C17/10,CH17) -> 0 | CJ17: =SUM(BSRDetail!$H$2:$H$61*(BSRDetail!$A$2:$A$61=$A$1)*(BSRDetail!$F$2:$F$61=CJ$1)*(BSRDetail!$B$2:$B$61=$B$1)*(BSRDetail!$E$2:$E$61>=$B17)*(BSRDetail!$E$2:$E$61<$B18)) -> 0 | CK17: =IF($D17=0,AVERAGE(CK$6:CK16)*$C17/10,CJ17) -> 0 | CL17: =SUM(BSRDetail!$H$2:$H$61*(BSRDetail!$A$2:$A$61=$A$1)*(BSRDetail!$F$2:$F$61=CL$1)*(BSRDetail!$B$2:$B$61=$B$1)*(BSRDetail!$E$2:$E$61>=$B17)*(BSRDetail!$E$2:$E$61<$B18)) -> 0 | CM17: =IF($D17=0,AVERAGE(CM$6:CM16)*$C17/10,CL17) -> 0 | CN17: =SUM(BSRDetail!$H$2:$H$61*(BSRDetail!$A$2:$A$61=$A$1)*(BSRDetail!$F$2:$F$61=CN$1)*(BSRDetail!$B$2:$B$61=$B$1)*(BSRDetail!$E$2:$E$61>=$B17)*(BSRDetail!$E$2:$E$61<$B18)) -> 0 | CO17: =IF($D17=0,AVERAGE(CO$6:CO16)*$C17/10,CN17) -> 0 | CP17: =SUM(BSRDetail!$H$2:$H$61*(BSRDetail!$A$2:$A$61=$A$1)*(BSRDetail!$F$2:$F$61=CP$1)*(BSRDetail!$B$2:$B$61=$B$1)*(BSRDetail!$E$2:$E$61>=$B17)*(BSRDetail!$E$2:$E$61<$B18)) -> 0 | CQ17: =IF($D17=0,AVERAGE(CQ$6:CQ16)*$C17/10,CP17) -> 0 | CR17: =SUM(BSRDetail!$H$2:$H$61*(BSRDetail!$A$2:$A$61=$A$1)*(BSRDetail!$F$2:$F$61=CR$1)*(BSRDetail!$B$2:$B$61=$B$1)*(BSRDetail!$E$2:$E$61>=$B17)*(BSRDetail!$E$2:$E$61<$B18)) -> 0 | CS17: =IF($D17=0,AVERAGE(CS$6:CS16)*$C17/10,CR17) -> 0 | CT17: =SUM(BSRDetail!$H$2:$H$61*(BSRDetail!$A$2:$A$61=$A$1)*(BSRDetail!$F$2:$F$61=CT$1)*(BSRDetail!$B$2:$B$61=$B$1)*(BSRDetail!$E$2:$E$61>=$B17)*(BSRDetail!$E$2:$E$61<$B18)) -> 0 | CU17: =IF($D17=0,AVERAGE(CU$6:CU16)*$C17/10,CT17) -> 0 | CV17: =SUM(BSRDetail!$H$2:$H$61*(BSRDetail!$A$2:$A$61=$A$1)*(BSRDetail!$F$2:$F$61=CV$1)*(BSRDetail!$B$2:$B$61=$B$1)*(BSRDetail!$E$2:$E$61>=$B17)*(BSRDetail!$E$2:$E$61<$B18)) -> 0 | CW17: =IF($D17=0,AVERAGE(CW$6:CW16)*$C17/10,CV17) -> 0
A18: 0 | B18: 2016-12-30 | C18: 10 | D18: =SUM(BSRDetail!$H$2:$H$61*(BSRDetail!$A$2:$A$61=$A$1)*(BSRDetail!$F$2:$F$61=D$1)*(BSRDetail!$B$2:$B$61=$B$1)*(BSRDetail!$E$2:$E$61>=$B18)*(BSRDetail!$E$2:$E$61<$B19)) -> 0 | E18: =SUM(BSRDetail!$H$2:$H$61*(BSRDetail!$A$2:$A$61=$A$1)*(BSRDetail!$F$2:$F$61=E$1)*(BSRDetail!$B$2:$B$61=$B$1)*(BSRDetail!$E$2:$E$61>=$B18)*(BSRDetail!$E$2:$E$61<$B19)) -> 0 | F18: =SUM(BSRDetail!$H$2:$H$61*(BSRDetail!$A$2:$A$61=$A$1)*(BSRDetail!$F$2:$F$61=F$1)*(BSRDetail!$B$2:$B$61=$B$1)*(BSRDetail!$E$2:$E$61>=$B18)*(BSRDetail!$E$2:$E$61<$B19)) -> 0 | G18: =SUM(BSRDetail!$H$2:$H$61*(BSRDetail!$A$2:$A$61=$A$1)*(BSRDetail!$F$2:$F$61=G$1)*(BSRDetail!$B$2:$B$61=$B$1)*(BSRDetail!$E$2:$E$61>=$B18)*(BSRDetail!$E$2:$E$61<$B19)) -> 0 | H18: =SUM(BSRDetail!$H$2:$H$61*(BSRDetail!$A$2:$A$61=$A$1)*(BSRDetail!$F$2:$F$61=H$1)*(BSRDetail!$B$2:$B$61=$B$1)*(BSRDetail!$E$2:$E$61>=$B18)*(BSRDetail!$E$2:$E$61<$B19)) -> 0 | I18: =SUM(BSRDetail!$H$2:$H$61*(BSRDetail!$A$2:$A$61=$A$1)*(BSRDetail!$F$2:$F$61=I$1)*(BSRDetail!$B$2:$B$61=$B$1)*(BSRDetail!$E$2:$E$61>=$B18)*(BSRDetail!$E$2:$E$61<$B19)) -> 0 | J18: 0 | K18: 6524.883984 | L18: 0 | M18: 6524.883984 | N18: =SUM(BSRDetail!$H$2:$H$61*(BSRDetail!$A$2:$A$61=$A$1)*(BSRDetail!$F$2:$F$61=N$1)*(BSRDetail!$B$2:$B$61=$B$1)*(BSRDetail!$E$2:$E$61>=$B18)*(BSRDetail!$E$2:$E$61<$B19)) -> 0 | O18: =SUM(BSRDetail!$H$2:$H$61*(BSRDetail!$A$2:$A$61=$A$1)*(BSRDetail!$F$2:$F$61=O$1)*(BSRDetail!$B$2:$B$61=$B$1)*(BSRDetail!$E$2:$E$61>=$B18)*(BSRDetail!$E$2:$E$61<$B19)) -> 0 | P18: =SUM(BSRDetail!$H$2:$H$61*(BSRDetail!$A$2:$A$61=$A$1)*(BSRDetail!$F$2:$F$61=P$1)*(BSRDetail!$B$2:$B$61=$B$1)*(BSRDetail!$E$2:$E$61>=$B18)*(BSRDetail!$E$2:$E$61<$B19)) -> 0 | Q18: =SUM(BSRDetail!$H$2:$H$61*(BSRDetail!$A$2:$A$61=$A$1)*(BSRDetail!$F$2:$F$61=Q$1)*(BSRDetail!$B$2:$B$61=$B$1)*(BSRDetail!$E$2:$E$61>=$B18)*(BSRDetail!$E$2:$E$61<$B19)) -> 0 | R18: =SUM(BSRDetail!$H$2:$H$61*(BSRDetail!$A$2:$A$61=$A$1)*(BSRDetail!$F$2:$F$61=R$1)*(BSRDetail!$B$2:$B$61=$B$1)*(BSRDetail!$E$2:$E$61>=$B18)*(BSRDetail!$E$2:$E$61<$B19)) -> 0 | S18: =SUM(BSRDetail!$H$2:$H$61*(BSRDetail!$A$2:$A$61=$A$1)*(BSRDetail!$F$2:$F$61=S$1)*(BSRDetail!$B$2:$B$61=$B$1)*(BSRDetail!$E$2:$E$61>=$B18)*(BSRDetail!$E$2:$E$61<$B19)) -> 0 | T18: =SUM(BSRDetail!$H$2:$H$61*(BSRDetail!$A$2:$A$61=$A$1)*(BSRDetail!$F$2:$F$61=T$1)*(BSRDetail!$B$2:$B$61=$B$1)*(BSRDetail!$E$2:$E$61>=$B18)*(BSRDetail!$E$2:$E$61<$B19)) -> 0 | U18: =SUM(BSRDetail!$H$2:$H$61*(BSRDetail!$A$2:$A$61=$A$1)*(BSRDetail!$F$2:$F$61=U$1)*(BSRDetail!$B$2:$B$61=$B$1)*(BSRDetail!$E$2:$E$61>=$B18)*(BSRDetail!$E$2:$E$61<$B19)) -> 0 | V18: =SUM(BSRDetail!$H$2:$H$61*(BSRDetail!$A$2:$A$61=$A$1)*(BSRDetail!$F$2:$F$61=V$1)*(BSRDetail!$B$2:$B$61=$B$1)*(BSRDetail!$E$2:$E$61>=$B18)*(BSRDetail!$E$2:$E$61<$B19)) -> 0 | W18: =SUM(BSRDetail!$H$2:$H$61*(BSRDetail!$A$2:$A$61=$A$1)*(BSRDetail!$F$2:$F$61=W$1)*(BSRDetail!$B$2:$B$61=$B$1)*(BSRDetail!$E$2:$E$61>=$B18)*(BSRDetail!$E$2:$E$61<$B19)) -> 0 | X18: =SUM(BSRDetail!$H$2:$H$61*(BSRDetail!$A$2:$A$61=$A$1)*(BSRDetail!$F$2:$F$61=X$1)*(BSRDetail!$B$2:$B$61=$B$1)*(BSRDetail!$E$2:$E$61>=$B18)*(BSRDetail!$E$2:$E$61<$B19)) -> 0 | Y18: 0 | Z18: 0 | AA18: =IF(D17=0,AA17,IF($D18=0,Z18+AVERAGE($Y$7:Y17)*$C18/10,Y18)) -> 0 | AB18: 6524.883984 | AC18: =SUM(BSRDetail!$H$2:$H$61*(BSRDetail!$A$2:$A$61=$A$1)*(BSRDetail!$F$2:$F$61=AC$1)*(BSRDetail!$B$2:$B$61=$B$1)*(BSRDetail!$E$2:$E$61>=$B18)*(BSRDetail!$E$2:$E$61<$B19)) -> 0 | AD18: 0.006624 | AE18: 43.22083151 | AF18: =SUM(BSRDetail!$H$2:$H$61*(BSRDetail!$A$2:$A$61=$A$1)*(BSRDetail!$F$2:$F$61=AF$1)*(BSRDetail!$B$2:$B$61=$B$1)*(BSRDetail!$E$2:$E$61>=$B18)*(BSRDetail!$E$2:$E$61<$B19)) -> 0 | AG18: 0 | AH18: 0 | AI18: =SUM(BSRDetail!$H$2:$H$61*(BSRDetail!$A$2:$A$61=$A$1)*(BSRDetail!$F$2:$F$61=AI$1)*(BSRDetail!$B$2:$B$61=$B$1)*(BSRDetail!$E$2:$E$61>=$B18)*(BSRDetail!$E$2:$E$61<$B19)) -> 0 | AJ18: 0 | AK18: =SUM(BSRDetail!$H$2:$H$61*(BSRDetail!$A$2:$A$61=$A$1)*(BSRDetail!$F$2:$F$61=AK$1)*(BSRDetail!$B$2:$B$61=$B$1)*(BSRDetail!$E$2:$E$61>=$B18)*(BSRDetail!$E$2:$E$61<$B19)) -> 0 | AL18: 0 | AM18: 0 | AN18: 0 | AO18: =SUM(BSRDetail!$H$2:$H$61*(BSRDetail!$A$2:$A$61=$A$1)*(BSRDetail!$F$2:$F$61=AO$1)*(BSRDetail!$B$2:$B$61=$B$1)*(BSRDetail!$E$2:$E$61>=$B18)*(BSRDetail!$E$2:$E$61<$B19)) -> 0 | AP18: 0 | AQ18: =SUM(BSRDetail!$H$2:$H$61*(BSRDetail!$A$2:$A$61=$A$1)*(BSRDetail!$F$2:$F$61=AQ$1)*(BSRDetail!$B$2:$B$61=$B$1)*(BSRDetail!$E$2:$E$61>=$B18)*(BSRDetail!$E$2:$E$61<$B19)) -> 0 | AR18: =IF($J18=0,IF(AQ17=0,AR17,AVERAGE(AR14:AR17)),AQ18/$J18) -> 0.02360050494 | AS18: 153.9905567 | AT18: =SUM(BSRDetail!$H$2:$H$61*(BSRDetail!$A$2:$A$61=$A$1)*(BSRDetail!$F$2:$F$61=AT$1)*(BSRDetail!$B$2:$B$61=$B$1)*(BSRDetail!$E$2:$E$61>=$B18)*(BSRDetail!$E$2:$E$61<$B19)) -> 0 | AU18: 0.0013 | AV18: 8.48234918 | AW18: =SUM(BSRDetail!$H$2:$H$61*(BSRDetail!$A$2:$A$61=$A$1)*(BSRDetail!$F$2:$F$61=AW$1)*(BSRDetail!$B$2:$B$61=$B$1)*(BSRDetail!$E$2:$E$61>=$B18)*(BSRDetail!$E$2:$E$61<$B19)) -> 0 | AX18: =IF(D18=0,IF(DAY(B18)<15,SUM(AX9:AX17*(DAY(B9:B17)<15))/SUM(1*(DAY(B9:B17)<15)),SUM(AX9:AX17*(DAY(B9:B17)>14))/SUM(1*(DAY(B9:B17)>14))),AW18/AB18) -> 0.01450034141 | AY18: 94.61304543 | AZ18: =SUM(BSRDetail!$H$2:$H$61*(BSRDetail!$A$2:$A$61=$A$1)*(BSRDetail!$F$2:$F$61=AZ$1)*(BSRDetail!$B$2:$B$61=$B$1)*(BSRDetail!$E$2:$E$61>=$B18)*(BSRDetail!$E$2:$E$61<$B19)) -> 0 | BA18: 0 | BB18: 0 | BC18: =SUM(BSRDetail!$H$2:$H$61*(BSRDetail!$A$2:$A$61=$A$1)*(BSRDetail!$F$2:$F$61=BC$1)*(BSRDetail!$B$2:$B$61=$B$1)*(BSRDetail!$E$2:$E$61>=$B18)*(BSRDetail!$E$2:$E$61<$B19)) -> 0 | BD18: =SUM(BSRDetail!$H$2:$H$61*(BSRDetail!$A$2:$A$61=$A$1)*(BSRDetail!$F$2:$F$61=BD$1)*(BSRDetail!$B$2:$B$61=$B$1)*(BSRDetail!$E$2:$E$61>=$B18)*(BSRDetail!$E$2:$E$61<$B19)) -> 0 | BE18: 0 | BF18: 0 | BG18: =SUM(BSRDetail!$H$2:$H$61*(BSRDetail!$A$2:$A$61=$A$1)*(BSRDetail!$F$2:$F$61=BG$1)*(BSRDetail!$B$2:$B$61=$B$1)*(BSRDetail!$E$2:$E$61>=$B18)*(BSRDetail!$E$2:$E$61<$B19)) -> 0 | BH18: =SUM(BSRDetail!$H$2:$H$61*(BSRDetail!$A$2:$A$61=$A$1)*(BSRDetail!$F$2:$F$61=BH$1)*(BSRDetail!$B$2:$B$61=$B$1)*(BSRDetail!$E$2:$E$61>=$B18)*(BSRDetail!$E$2:$E$61<$B19)) -> 0 | BI18: 0 | BJ18: =SUM(BSRDetail!$H$2:$H$61*(BSRDetail!$A$2:$A$61=$A$1)*(BSRDetail!$F$2:$F$61=BJ$1)*(BSRDetail!$B$2:$B$61=$B$1)*(BSRDetail!$E$2:$E$61>=$B18)*(BSRDetail!$E$2:$E$61<$B19)) -> 0 | BK18: =IF($D18=0,AVERAGE(BK$6:BK17)*$C18/10,BJ18) -> 711.45 | BL18: =SUM(BSRDetail!$H$2:$H$61*(BSRDetail!$A$2:$A$61=$A$1)*(BSRDetail!$F$2:$F$61=BL$1)*(BSRDetail!$B$2:$B$61=$B$1)*(BSRDetail!$E$2:$E$61>=$B18)*(BSRDetail!$E$2:$E$61<$B19)) -> 0 | BM18: =IF($D18=0,AVERAGE(BM$6:BM17)*$C18/10,BL18) -> 0 | BN18: =SUM(BSRDetail!$H$2:$H$61*(BSRDetail!$A$2:$A$61=$A$1)*(BSRDetail!$F$2:$F$61=BN$1)*(BSRDetail!$B$2:$B$61=$B$1)*(BSRDetail!$E$2:$E$61>=$B18)*(BSRDetail!$E$2:$E$61<$B19)) -> 0 | BO18: =IF($D18=0,AVERAGE(BO$6:BO17)*$C18/10,BN18) -> 0 | BP18: =SUM(BSRDetail!$H$2:$H$61*(BSRDetail!$A$2:$A$61=$A$1)*(BSRDetail!$F$2:$F$61=BP$1)*(BSRDetail!$B$2:$B$61=$B$1)*(BSRDetail!$E$2:$E$61>=$B18)*(BSRDetail!$E$2:$E$61<$B19)) -> 0 | BQ18: =IF($D18=0,AVERAGE(BQ$6:BQ17)*$C18/10,BP18) -> 0 | BR18: =SUM(BSRDetail!$H$2:$H$61*(BSRDetail!$A$2:$A$61=$A$1)*(BSRDetail!$F$2:$F$61=BR$1)*(BSRDetail!$B$2:$B$61=$B$1)*(BSRDetail!$E$2:$E$61>=$B18)*(BSRDetail!$E$2:$E$61<$B19)) -> 0 | BS18: =IF($D18=0,AVERAGE(BS$6:BS17)*$C18/10,BR18) -> 0 | BT18: =SUM(BSRDetail!$H$2:$H$61*(BSRDetail!$A$2:$A$61=$A$1)*(BSRDetail!$F$2:$F$61=BT$1)*(BSRDetail!$B$2:$B$61=$B$1)*(BSRDetail!$E$2:$E$61>=$B18)*(BSRDetail!$E$2:$E$61<$B19)) -> 0 | BU18: =IF($D18=0,AVERAGE(BU$6:BU17)*$C18/10,BT18) -> 0 | BV18: =SUM(BSRDetail!$H$2:$H$61*(BSRDetail!$A$2:$A$61=$A$1)*(BSRDetail!$F$2:$F$61=BV$1)*(BSRDetail!$B$2:$B$61=$B$1)*(BSRDetail!$E$2:$E$61>=$B18)*(BSRDetail!$E$2:$E$61<$B19)) -> 0 | BW18: =IF($D18=0,AVERAGE(BW$6:BW17)*$C18/10,BV18) -> 0 | BX18: =SUM(BSRDetail!$H$2:$H$61*(BSRDetail!$A$2:$A$61=$A$1)*(BSRDetail!$F$2:$F$61=BX$1)*(BSRDetail!$B$2:$B$61=$B$1)*(BSRDetail!$E$2:$E$61>=$B18)*(BSRDetail!$E$2:$E$61<$B19)) -> 0 | BY18: =IF($D18=0,AVERAGE(BY$6:BY17)*$C18/10,BX18) -> 0 | BZ18: =SUM(BSRDetail!$H$2:$H$61*(BSRDetail!$A$2:$A$61=$A$1)*(BSRDetail!$F$2:$F$61=BZ$1)*(BSRDetail!$B$2:$B$61=$B$1)*(BSRDetail!$E$2:$E$61>=$B18)*(BSRDetail!$E$2:$E$61<$B19)) -> 0 | CA18: =IF($D18=0,AVERAGE(CA$6:CA17)*$C18/10,BZ18) -> 0 | CB18: =SUM(BSRDetail!$H$2:$H$61*(BSRDetail!$A$2:$A$61=$A$1)*(BSRDetail!$F$2:$F$61=CB$1)*(BSRDetail!$B$2:$B$61=$B$1)*(BSRDetail!$E$2:$E$61>=$B18)*(BSRDetail!$E$2:$E$61<$B19)) -> 0 | CC18: =IF($D18=0,AVERAGE(CC$6:CC17)*$C18/10,CB18) -> 0 | CD18: =SUM(BSRDetail!$H$2:$H$61*(BSRDetail!$A$2:$A$61=$A$1)*(BSRDetail!$F$2:$F$61=CD$1)*(BSRDetail!$B$2:$B$61=$B$1)*(BSRDetail!$E$2:$E$61>=$B18)*(BSRDetail!$E$2:$E$61<$B19)) -> 0 | CE18: =IF($D18=0,AVERAGE(CE$6:CE17)*$C18/10,CD18) -> 0 | CF18: =SUM(BSRDetail!$H$2:$H$61*(BSRDetail!$A$2:$A$61=$A$1)*(BSRDetail!$F$2:$F$61=CF$1)*(BSRDetail!$B$2:$B$61=$B$1)*(BSRDetail!$E$2:$E$61>=$B18)*(BSRDetail!$E$2:$E$61<$B19)) -> 0 | CG18: =IF($D18=0,AVERAGE(CG$6:CG17)*$C18/10,CF18) -> 0 | CH18: =SUM(BSRDetail!$H$2:$H$61*(BSRDetail!$A$2:$A$61=$A$1)*(BSRDetail!$F$2:$F$61=CH$1)*(BSRDetail!$B$2:$B$61=$B$1)*(BSRDetail!$E$2:$E$61>=$B18)*(BSRDetail!$E$2:$E$61<$B19)) -> 0 | CI18: =IF($D18=0,AVERAGE(CI$6:CI17)*$C18/10,CH18) -> 0 | CJ18: =SUM(BSRDetail!$H$2:$H$61*(BSRDetail!$A$2:$A$61=$A$1)*(BSRDetail!$F$2:$F$61=CJ$1)*(BSRDetail!$B$2:$B$61=$B$1)*(BSRDetail!$E$2:$E$61>=$B18)*(BSRDetail!$E$2:$E$61<$B19)) -> 0 | CK18: =IF($D18=0,AVERAGE(CK$6:CK17)*$C18/10,CJ18) -> 0 | CL18: =SUM(BSRDetail!$H$2:$H$61*(BSRDetail!$A$2:$A$61=$A$1)*(BSRDetail!$F$2:$F$61=CL$1)*(BSRDetail!$B$2:$B$61=$B$1)*(BSRDetail!$E$2:$E$61>=$B18)*(BSRDetail!$E$2:$E$61<$B19)) -> 0 | CM18: =IF($D18=0,AVERAGE(CM$6:CM17)*$C18/10,CL18) -> 0 | CN18: =SUM(BSRDetail!$H$2:$H$61*(BSRDetail!$A$2:$A$61=$A$1)*(BSRDetail!$F$2:$F$61=CN$1)*(BSRDetail!$B$2:$B$61=$B$1)*(BSRDetail!$E$2:$E$61>=$B18)*(BSRDetail!$E$2:$E$61<$B19)) -> 0 | CO18: =IF($D18=0,AVERAGE(CO$6:CO17)*$C18/10,CN18) -> 0 | CP18: =SUM(BSRDetail!$H$2:$H$61*(BSRDetail!$A$2:$A$61=$A$1)*(BSRDetail!$F$2:$F$61=CP$1)*(BSRDetail!$B$2:$B$61=$B$1)*(BSRDetail!$E$2:$E$61>=$B18)*(BSRDetail!$E$2:$E$61<$B19)) -> 0 | CQ18: =IF($D18=0,AVERAGE(CQ$6:CQ17)*$C18/10,CP18) -> 0 | CR18: =SUM(BSRDetail!$H$2:$H$61*(BSRDetail!$A$2:$A$61=$A$1)*(BSRDetail!$F$2:$F$61=CR$1)*(BSRDetail!$B$2:$B$61=$B$1)*(BSRDetail!$E$2:$E$61>=$B18)*(BSRDetail!$E$2:$E$61<$B19)) -> 0 | CS18: =IF($D18=0,AVERAGE(CS$6:CS17)*$C18/10,CR18) -> 0 | CT18: =SUM(BSRDetail!$H$2:$H$61*(BSRDetail!$A$2:$A$61=$A$1)*(BSRDetail!$F$2:$F$61=CT$1)*(BSRDetail!$B$2:$B$61=$B$1)*(BSRDetail!$E$2:$E$61>=$B18)*(BSRDetail!$E$2:$E$61<$B19)) -> 0 | CU18: =IF($D18=0,AVERAGE(CU$6:CU17)*$C18/10,CT18) -> 0 | CV18: =SUM(BSRDetail!$H$2:$H$61*(BSRDetail!$A$2:$A$61=$A$1)*(BSRDetail!$F$2:$F$61=CV$1)*(BSRDetail!$B$2:$B$61=$B$1)*(BSRDetail!$E$2:$E$61>=$B18)*(BSRDetail!$E$2:$E$61<$B19)) -> 0 | CW18: =IF($D18=0,AVERAGE(CW$6:CW17)*$C18/10,CV18) -> 0
A19: 0 | B19: 2017-01-13 | C19: 10 | D19: =SUM(BSRDetail!$H$2:$H$61*(BSRDetail!$A$2:$A$61=$A$1)*(BSRDetail!$F$2:$F$61=D$1)*(BSRDetail!$B$2:$B$61=$B$1)*(BSRDetail!$E$2:$E$61>=$B19)*(BSRDetail!$E$2:$E$61<$B20)) -> 0 | E19: =SUM(BSRDetail!$H$2:$H$61*(BSRDetail!$A$2:$A$61=$A$1)*(BSRDetail!$F$2:$F$61=E$1)*(BSRDetail!$B$2:$B$61=$B$1)*(BSRDetail!$E$2:$E$61>=$B19)*(BSRDetail!$E$2:$E$61<$B20)) -> 0 | F19: =SUM(BSRDetail!$H$2:$H$61*(BSRDetail!$A$2:$A$61=$A$1)*(BSRDetail!$F$2:$F$61=F$1)*(BSRDetail!$B$2:$B$61=$B$1)*(BSRDetail!$E$2:$E$61>=$B19)*(BSRDetail!$E$2:$E$61<$B20)) -> 0 | G19: =SUM(BSRDetail!$H$2:$H$61*(BSRDetail!$A$2:$A$61=$A$1)*(BSRDetail!$F$2:$F$61=G$1)*(BSRDetail!$B$2:$B$61=$B$1)*(BSRDetail!$E$2:$E$61>=$B19)*(BSRDetail!$E$2:$E$61<$B20)) -> 0 | H19: =SUM(BSRDetail!$H$2:$H$61*(BSRDetail!$A$2:$A$61=$A$1)*(BSRDetail!$F$2:$F$61=H$1)*(BSRDetail!$B$2:$B$61=$B$1)*(BSRDetail!$E$2:$E$61>=$B19)*(BSRDetail!$E$2:$E$61<$B20)) -> 0 | I19: =SUM(BSRDetail!$H$2:$H$61*(BSRDetail!$A$2:$A$61=$A$1)*(BSRDetail!$F$2:$F$61=I$1)*(BSRDetail!$B$2:$B$61=$B$1)*(BSRDetail!$E$2:$E$61>=$B19)*(BSRDetail!$E$2:$E$61<$B20)) -> 0 | J19: 0 | K19: 6510.12998 | L19: 0 | M19: 6510.12998 | N19: =SUM(BSRDetail!$H$2:$H$61*(BSRDetail!$A$2:$A$61=$A$1)*(BSRDetail!$F$2:$F$61=N$1)*(BSRDetail!$B$2:$B$61=$B$1)*(BSRDetail!$E$2:$E$61>=$B19)*(BSRDetail!$E$2:$E$61<$B20)) -> 0 | O19: =SUM(BSRDetail!$H$2:$H$61*(BSRDetail!$A$2:$A$61=$A$1)*(BSRDetail!$F$2:$F$61=O$1)*(BSRDetail!$B$2:$B$61=$B$1)*(BSRDetail!$E$2:$E$61>=$B19)*(BSRDetail!$E$2:$E$61<$B20)) -> 0 | P19: =SUM(BSRDetail!$H$2:$H$61*(BSRDetail!$A$2:$A$61=$A$1)*(BSRDetail!$F$2:$F$61=P$1)*(BSRDetail!$B$2:$B$61=$B$1)*(BSRDetail!$E$2:$E$61>=$B19)*(BSRDetail!$E$2:$E$61<$B20)) -> 0 | Q19: =SUM(BSRDetail!$H$2:$H$61*(BSRDetail!$A$2:$A$61=$A$1)*(BSRDetail!$F$2:$F$61=Q$1)*(BSRDetail!$B$2:$B$61=$B$1)*(BSRDetail!$E$2:$E$61>=$B19)*(BSRDetail!$E$2:$E$61<$B20)) -> 0 | R19: =SUM(BSRDetail!$H$2:$H$61*(BSRDetail!$A$2:$A$61=$A$1)*(BSRDetail!$F$2:$F$61=R$1)*(BSRDetail!$B$2:$B$61=$B$1)*(BSRDetail!$E$2:$E$61>=$B19)*(BSRDetail!$E$2:$E$61<$B20)) -> 0 | S19: =SUM(BSRDetail!$H$2:$H$61*(BSRDetail!$A$2:$A$61=$A$1)*(BSRDetail!$F$2:$F$61=S$1)*(BSRDetail!$B$2:$B$61=$B$1)*(BSRDetail!$E$2:$E$61>=$B19)*(BSRDetail!$E$2:$E$61<$B20)) -> 0 | T19: =SUM(BSRDetail!$H$2:$H$61*(BSRDetail!$A$2:$A$61=$A$1)*(BSRDetail!$F$2:$F$61=T$1)*(BSRDetail!$B$2:$B$61=$B$1)*(BSRDetail!$E$2:$E$61>=$B19)*(BSRDetail!$E$2:$E$61<$B20)) -> 0 | U19: =SUM(BSRDetail!$H$2:$H$61*(BSRDetail!$A$2:$A$61=$A$1)*(BSRDetail!$F$2:$F$61=U$1)*(BSRDetail!$B$2:$B$61=$B$1)*(BSRDetail!$E$2:$E$61>=$B19)*(BSRDetail!$E$2:$E$61<$B20)) -> 0 | V19: =SUM(BSRDetail!$H$2:$H$61*(BSRDetail!$A$2:$A$61=$A$1)*(BSRDetail!$F$2:$F$61=V$1)*(BSRDetail!$B$2:$B$61=$B$1)*(BSRDetail!$E$2:$E$61>=$B19)*(BSRDetail!$E$2:$E$61<$B20)) -> 0 | W19: =SUM(BSRDetail!$H$2:$H$61*(BSRDetail!$A$2:$A$61=$A$1)*(BSRDetail!$F$2:$F$61=W$1)*(BSRDetail!$B$2:$B$61=$B$1)*(BSRDetail!$E$2:$E$61>=$B19)*(BSRDetail!$E$2:$E$61<$B20)) -> 0 | X19: =SUM(BSRDetail!$H$2:$H$61*(BSRDetail!$A$2:$A$61=$A$1)*(BSRDetail!$F$2:$F$61=X$1)*(BSRDetail!$B$2:$B$61=$B$1)*(BSRDetail!$E$2:$E$61>=$B19)*(BSRDetail!$E$2:$E$61<$B20)) -> 0 | Y19: 0 | Z19: 0 | AA19: =IF(D18=0,AA18,IF($D19=0,Z19+AVERAGE($Y$7:Y18)*$C19/10,Y19)) -> 0 | AB19: 6510.12998 | AC19: =SUM(BSRDetail!$H$2:$H$61*(BSRDetail!$A$2:$A$61=$A$1)*(BSRDetail!$F$2:$F$61=AC$1)*(BSRDetail!$B$2:$B$61=$B$1)*(BSRDetail!$E$2:$E$61>=$B19)*(BSRDetail!$E$2:$E$61<$B20)) -> 0 | AD19: 0.0237 | AE19: 154.2900805 | AF19: =SUM(BSRDetail!$H$2:$H$61*(BSRDetail!$A$2:$A$61=$A$1)*(BSRDetail!$F$2:$F$61=AF$1)*(BSRDetail!$B$2:$B$61=$B$1)*(BSRDetail!$E$2:$E$61>=$B19)*(BSRDetail!$E$2:$E$61<$B20)) -> 0 | AG19: 0 | AH19: 0 | AI19: =SUM(BSRDetail!$H$2:$H$61*(BSRDetail!$A$2:$A$61=$A$1)*(BSRDetail!$F$2:$F$61=AI$1)*(BSRDetail!$B$2:$B$61=$B$1)*(BSRDetail!$E$2:$E$61>=$B19)*(BSRDetail!$E$2:$E$61<$B20)) -> 0 | AJ19: 0 | AK19: =SUM(BSRDetail!$H$2:$H$61*(BSRDetail!$A$2:$A$61=$A$1)*(BSRDetail!$F$2:$F$61=AK$1)*(BSRDetail!$B$2:$B$61=$B$1)*(BSRDetail!$E$2:$E$61>=$B19)*(BSRDetail!$E$2:$E$61<$B20)) -> 0 | AL19: 0.9964658772 | AM19: 0 | AN19: 699.25 | AO19: =SUM(BSRDetail!$H$2:$H$61*(BSRDetail!$A$2:$A$61=$A$1)*(BSRDetail!$F$2:$F$61=AO$1)*(BSRDetail!$B$2:$B$61=$B$1)*(BSRDetail!$E$2:$E$61>=$B19)*(BSRDetail!$E$2:$E$61<$B20)) -> 0 | AP19: 0 | AQ19: =SUM(BSRDetail!$H$2:$H$61*(BSRDetail!$A$2:$A$61=$A$1)*(BSRDetail!$F$2:$F$61=AQ$1)*(BSRDetail!$B$2:$B$61=$B$1)*(BSRDetail!$E$2:$E$61>=$B19)*(BSRDetail!$E$2:$E$61<$B20)) -> 0 | AR19: 0.02360050494 | AS19: 153.6423547 | AT19: =SUM(BSRDetail!$H$2:$H$61*(BSRDetail!$A$2:$A$61=$A$1)*(BSRDetail!$F$2:$F$61=AT$1)*(BSRDetail!$B$2:$B$61=$B$1)*(BSRDetail!$E$2:$E$61>=$B19)*(BSRDetail!$E$2:$E$61<$B20)) -> 0 | AU19: 0.0013 | AV19: 8.463168975 | AW19: =SUM(BSRDetail!$H$2:$H$61*(BSRDetail!$A$2:$A$61=$A$1)*(BSRDetail!$F$2:$F$61=AW$1)*(BSRDetail!$B$2:$B$61=$B$1)*(BSRDetail!$E$2:$E$61>=$B19)*(BSRDetail!$E$2:$E$61<$B20)) -> 0 | AX19: =IF(D19=0,IF(DAY(B19)<15,SUM(AX10:AX18*(DAY(B10:B18)<15))/SUM(1*(DAY(B10:B18)<15)),SUM(AX10:AX18*(DAY(B10:B18)>14))/SUM(1*(DAY(B10:B18)>14))),AW19/AB19) -> 0.01373073973 | AY19: 89.38890038 | AZ19: =SUM(BSRDetail!$H$2:$H$61*(BSRDetail!$A$2:$A$61=$A$1)*(BSRDetail!$F$2:$F$61=AZ$1)*(BSRDetail!$B$2:$B$61=$B$1)*(BSRDetail!$E$2:$E$61>=$B19)*(BSRDetail!$E$2:$E$61<$B20)) -> 0 | BA19: 0 | BB19: 0 | BC19: =SUM(BSRDetail!$H$2:$H$61*(BSRDetail!$A$2:$A$61=$A$1)*(BSRDetail!$F$2:$F$61=BC$1)*(BSRDetail!$B$2:$B$61=$B$1)*(BSRDetail!$E$2:$E$61>=$B19)*(BSRDetail!$E$2:$E$61<$B20)) -> 0 | BD19: =SUM(BSRDetail!$H$2:$H$61*(BSRDetail!$A$2:$A$61=$A$1)*(BSRDetail!$F$2:$F$61=BD$1)*(BSRDetail!$B$2:$B$61=$B$1)*(BSRDetail!$E$2:$E$61>=$B19)*(BSRDetail!$E$2:$E$61<$B20)) -> 0 | BE19: 0 | BF19: 0 | BG19: =SUM(BSRDetail!$H$2:$H$61*(BSRDetail!$A$2:$A$61=$A$1)*(BSRDetail!$F$2:$F$61=BG$1)*(BSRDetail!$B$2:$B$61=$B$1)*(BSRDetail!$E$2:$E$61>=$B19)*(BSRDetail!$E$2:$E$61<$B20)) -> 0 | BH19: =SUM(BSRDetail!$H$2:$H$61*(BSRDetail!$A$2:$A$61=$A$1)*(BSRDetail!$F$2:$F$61=BH$1)*(BSRDetail!$B$2:$B$61=$B$1)*(BSRDetail!$E$2:$E$61>=$B19)*(BSRDetail!$E$2:$E$61<$B20)) -> 0 | BI19: 0 | BJ19: =SUM(BSRDetail!$H$2:$H$61*(BSRDetail!$A$2:$A$61=$A$1)*(BSRDetail!$F$2:$F$61=BJ$1)*(BSRDetail!$B$2:$B$61=$B$1)*(BSRDetail!$E$2:$E$61>=$B19)*(BSRDetail!$E$2:$E$61<$B20)) -> 0 | BK19: =IF($D19=0,AVERAGE(BK$6:BK18)*$C19/10,BJ19) -> 711.45 | BL19: =SUM(BSRDetail!$H$2:$H$61*(BSRDetail!$A$2:$A$61=$A$1)*(BSRDetail!$F$2:$F$61=BL$1)*(BSRDetail!$B$2:$B$61=$B$1)*(BSRDetail!$E$2:$E$61>=$B19)*(BSRDetail!$E$2:$E$61<$B20)) -> 0 | BM19: =IF($D19=0,AVERAGE(BM$6:BM18)*$C19/10,BL19) -> 0 | BN19: =SUM(BSRDetail!$H$2:$H$61*(BSRDetail!$A$2:$A$61=$A$1)*(BSRDetail!$F$2:$F$61=BN$1)*(BSRDetail!$B$2:$B$61=$B$1)*(BSRDetail!$E$2:$E$61>=$B19)*(BSRDetail!$E$2:$E$61<$B20)) -> 0 | BO19: =IF($D19=0,AVERAGE(BO$6:BO18)*$C19/10,BN19) -> 0 | BP19: =SUM(BSRDetail!$H$2:$H$61*(BSRDetail!$A$2:$A$61=$A$1)*(BSRDetail!$F$2:$F$61=BP$1)*(BSRDetail!$B$2:$B$61=$B$1)*(BSRDetail!$E$2:$E$61>=$B19)*(BSRDetail!$E$2:$E$61<$B20)) -> 0 | BQ19: =IF($D19=0,AVERAGE(BQ$6:BQ18)*$C19/10,BP19) -> 0 | BR19: =SUM(BSRDetail!$H$2:$H$61*(BSRDetail!$A$2:$A$61=$A$1)*(BSRDetail!$F$2:$F$61=BR$1)*(BSRDetail!$B$2:$B$61=$B$1)*(BSRDetail!$E$2:$E$61>=$B19)*(BSRDetail!$E$2:$E$61<$B20)) -> 0 | BS19: =IF($D19=0,AVERAGE(BS$6:BS18)*$C19/10,BR19) -> 0 | BT19: =SUM(BSRDetail!$H$2:$H$61*(BSRDetail!$A$2:$A$61=$A$1)*(BSRDetail!$F$2:$F$61=BT$1)*(BSRDetail!$B$2:$B$61=$B$1)*(BSRDetail!$E$2:$E$61>=$B19)*(BSRDetail!$E$2:$E$61<$B20)) -> 0 | BU19: =IF($D19=0,AVERAGE(BU$6:BU18)*$C19/10,BT19) -> 0 | BV19: =SUM(BSRDetail!$H$2:$H$61*(BSRDetail!$A$2:$A$61=$A$1)*(BSRDetail!$F$2:$F$61=BV$1)*(BSRDetail!$B$2:$B$61=$B$1)*(BSRDetail!$E$2:$E$61>=$B19)*(BSRDetail!$E$2:$E$61<$B20)) -> 0 | BW19: =IF($D19=0,AVERAGE(BW$6:BW18)*$C19/10,BV19) -> 0 | BX19: =SUM(BSRDetail!$H$2:$H$61*(BSRDetail!$A$2:$A$61=$A$1)*(BSRDetail!$F$2:$F$61=BX$1)*(BSRDetail!$B$2:$B$61=$B$1)*(BSRDetail!$E$2:$E$61>=$B19)*(BSRDetail!$E$2:$E$61<$B20)) -> 0 | BY19: =IF($D19=0,AVERAGE(BY$6:BY18)*$C19/10,BX19) -> 0 | BZ19: =SUM(BSRDetail!$H$2:$H$61*(BSRDetail!$A$2:$A$61=$A$1)*(BSRDetail!$F$2:$F$61=BZ$1)*(BSRDetail!$B$2:$B$61=$B$1)*(BSRDetail!$E$2:$E$61>=$B19)*(BSRDetail!$E$2:$E$61<$B20)) -> 0 | CA19: =IF($D19=0,AVERAGE(CA$6:CA18)*$C19/10,BZ19) -> 0 | CB19: =SUM(BSRDetail!$H$2:$H$61*(BSRDetail!$A$2:$A$61=$A$1)*(BSRDetail!$F$2:$F$61=CB$1)*(BSRDetail!$B$2:$B$61=$B$1)*(BSRDetail!$E$2:$E$61>=$B19)*(BSRDetail!$E$2:$E$61<$B20)) -> 0 | CC19: =IF($D19=0,AVERAGE(CC$6:CC18)*$C19/10,CB19) -> 0 | CD19: =SUM(BSRDetail!$H$2:$H$61*(BSRDetail!$A$2:$A$61=$A$1)*(BSRDetail!$F$2:$F$61=CD$1)*(BSRDetail!$B$2:$B$61=$B$1)*(BSRDetail!$E$2:$E$61>=$B19)*(BSRDetail!$E$2:$E$61<$B20)) -> 0 | CE19: =IF($D19=0,AVERAGE(CE$6:CE18)*$C19/10,CD19) -> 0 | CF19: =SUM(BSRDetail!$H$2:$H$61*(BSRDetail!$A$2:$A$61=$A$1)*(BSRDetail!$F$2:$F$61=CF$1)*(BSRDetail!$B$2:$B$61=$B$1)*(BSRDetail!$E$2:$E$61>=$B19)*(BSRDetail!$E$2:$E$61<$B20)) -> 0 | CG19: =IF($D19=0,AVERAGE(CG$6:CG18)*$C19/10,CF19) -> 0 | CH19: =SUM(BSRDetail!$H$2:$H$61*(BSRDetail!$A$2:$A$61=$A$1)*(BSRDetail!$F$2:$F$61=CH$1)*(BSRDetail!$B$2:$B$61=$B$1)*(BSRDetail!$E$2:$E$61>=$B19)*(BSRDetail!$E$2:$E$61<$B20)) -> 0 | CI19: =IF($D19=0,AVERAGE(CI$6:CI18)*$C19/10,CH19) -> 0 | CJ19: =SUM(BSRDetail!$H$2:$H$61*(BSRDetail!$A$2:$A$61=$A$1)*(BSRDetail!$F$2:$F$61=CJ$1)*(BSRDetail!$B$2:$B$61=$B$1)*(BSRDetail!$E$2:$E$61>=$B19)*(BSRDetail!$E$2:$E$61<$B20)) -> 0 | CK19: =IF($D19=0,AVERAGE(CK$6:CK18)*$C19/10,CJ19) -> 0 | CL19: =SUM(BSRDetail!$H$2:$H$61*(BSRDetail!$A$2:$A$61=$A$1)*(BSRDetail!$F$2:$F$61=CL$1)*(BSRDetail!$B$2:$B$61=$B$1)*(BSRDetail!$E$2:$E$61>=$B19)*(BSRDetail!$E$2:$E$61<$B20)) -> 0 | CM19: =IF($D19=0,AVERAGE(CM$6:CM18)*$C19/10,CL19) -> 0 | CN19: =SUM(BSRDetail!$H$2:$H$61*(BSRDetail!$A$2:$A$61=$A$1)*(BSRDetail!$F$2:$F$61=CN$1)*(BSRDetail!$B$2:$B$61=$B$1)*(BSRDetail!$E$2:$E$61>=$B19)*(BSRDetail!$E$2:$E$61<$B20)) -> 0 | CO19: =IF($D19=0,AVERAGE(CO$6:CO18)*$C19/10,CN19) -> 0 | CP19: =SUM(BSRDetail!$H$2:$H$61*(BSRDetail!$A$2:$A$61=$A$1)*(BSRDetail!$F$2:$F$61=CP$1)*(BSRDetail!$B$2:$B$61=$B$1)*(BSRDetail!$E$2:$E$61>=$B19)*(BSRDetail!$E$2:$E$61<$B20)) -> 0 | CQ19: =IF($D19=0,AVERAGE(CQ$6:CQ18)*$C19/10,CP19) -> 0 | CR19: =SUM(BSRDetail!$H$2:$H$61*(BSRDetail!$A$2:$A$61=$A$1)*(BSRDetail!$F$2:$F$61=CR$1)*(BSRDetail!$B$2:$B$61=$B$1)*(BSRDetail!$E$2:$E$61>=$B19)*(BSRDetail!$E$2:$E$61<$B20)) -> 0 | CS19: =IF($D19=0,AVERAGE(CS$6:CS18)*$C19/10,CR19) -> 0 | CT19: =SUM(BSRDetail!$H$2:$H$61*(BSRDetail!$A$2:$A$61=$A$1)*(BSRDetail!$F$2:$F$61=CT$1)*(BSRDetail!$B$2:$B$61=$B$1)*(BSRDetail!$E$2:$E$61>=$B19)*(BSRDetail!$E$2:$E$61<$B20)) -> 0 | CU19: =IF($D19=0,AVERAGE(CU$6:CU18)*$C19/10,CT19) -> 0 | CV19: =SUM(BSRDetail!$H$2:$H$61*(BSRDetail!$A$2:$A$61=$A$1)*(BSRDetail!$F$2:$F$61=CV$1)*(BSRDetail!$B$2:$B$61=$B$1)*(BSRDetail!$E$2:$E$61>=$B19)*(BSRDetail!$E$2:$E$61<$B20)) -> 0 | CW19: =IF($D19=0,AVERAGE(CW$6:CW18)*$C19/10,CV19) -> 0
A20: 0 | B20: 2017-01-27 | C20: 10 | D20: =SUM(BSRDetail!$H$2:$H$61*(BSRDetail!$A$2:$A$61=$A$1)*(BSRDetail!$F$2:$F$61=D$1)*(BSRDetail!$B$2:$B$61=$B$1)*(BSRDetail!$E$2:$E$61>=$B20)*(BSRDetail!$E$2:$E$61<$B21)) -> 0 | E20: =SUM(BSRDetail!$H$2:$H$61*(BSRDetail!$A$2:$A$61=$A$1)*(BSRDetail!$F$2:$F$61=E$1)*(BSRDetail!$B$2:$B$61=$B$1)*(BSRDetail!$E$2:$E$61>=$B20)*(BSRDetail!$E$2:$E$61<$B21)) -> 0 | F20: =SUM(BSRDetail!$H$2:$H$61*(BSRDetail!$A$2:$A$61=$A$1)*(BSRDetail!$F$2:$F$61=F$1)*(BSRDetail!$B$2:$B$61=$B$1)*(BSRDetail!$E$2:$E$61>=$B20)*(BSRDetail!$E$2:$E$61<$B21)) -> 0 | G20: =SUM(BSRDetail!$H$2:$H$61*(BSRDetail!$A$2:$A$61=$A$1)*(BSRDetail!$F$2:$F$61=G$1)*(BSRDetail!$B$2:$B$61=$B$1)*(BSRDetail!$E$2:$E$61>=$B20)*(BSRDetail!$E$2:$E$61<$B21)) -> 0 | H20: =SUM(BSRDetail!$H$2:$H$61*(BSRDetail!$A$2:$A$61=$A$1)*(BSRDetail!$F$2:$F$61=H$1)*(BSRDetail!$B$2:$B$61=$B$1)*(BSRDetail!$E$2:$E$61>=$B20)*(BSRDetail!$E$2:$E$61<$B21)) -> 0 | I20: =SUM(BSRDetail!$H$2:$H$61*(BSRDetail!$A$2:$A$61=$A$1)*(BSRDetail!$F$2:$F$61=I$1)*(BSRDetail!$B$2:$B$61=$B$1)*(BSRDetail!$E$2:$E$61>=$B20)*(BSRDetail!$E$2:$E$61<$B21)) -> 0 | J20: 0 | K20: 6500.043726 | L20: 0 | M20: 6500.043726 | N20: =SUM(BSRDetail!$H$2:$H$61*(BSRDetail!$A$2:$A$61=$A$1)*(BSRDetail!$F$2:$F$61=N$1)*(BSRDetail!$B$2:$B$61=$B$1)*(BSRDetail!$E$2:$E$61>=$B20)*(BSRDetail!$E$2:$E$61<$B21)) -> 0 | O20: =SUM(BSRDetail!$H$2:$H$61*(BSRDetail!$A$2:$A$61=$A$1)*(BSRDetail!$F$2:$F$61=O$1)*(BSRDetail!$B$2:$B$61=$B$1)*(BSRDetail!$E$2:$E$61>=$B20)*(BSRDetail!$E$2:$E$61<$B21)) -> 0 | P20: =SUM(BSRDetail!$H$2:$H$61*(BSRDetail!$A$2:$A$61=$A$1)*(BSRDetail!$F$2:$F$61=P$1)*(BSRDetail!$B$2:$B$61=$B$1)*(BSRDetail!$E$2:$E$61>=$B20)*(BSRDetail!$E$2:$E$61<$B21)) -> 0 | Q20: =SUM(BSRDetail!$H$2:$H$61*(BSRDetail!$A$2:$A$61=$A$1)*(BSRDetail!$F$2:$F$61=Q$1)*(BSRDetail!$B$2:$B$61=$B$1)*(BSRDetail!$E$2:$E$61>=$B20)*(BSRDetail!$E$2:$E$61<$B21)) -> 0 | R20: =SUM(BSRDetail!$H$2:$H$61*(BSRDetail!$A$2:$A$61=$A$1)*(BSRDetail!$F$2:$F$61=R$1)*(BSRDetail!$B$2:$B$61=$B$1)*(BSRDetail!$E$2:$E$61>=$B20)*(BSRDetail!$E$2:$E$61<$B21)) -> 0 | S20: =SUM(BSRDetail!$H$2:$H$61*(BSRDetail!$A$2:$A$61=$A$1)*(BSRDetail!$F$2:$F$61=S$1)*(BSRDetail!$B$2:$B$61=$B$1)*(BSRDetail!$E$2:$E$61>=$B20)*(BSRDetail!$E$2:$E$61<$B21)) -> 0 | T20: =SUM(BSRDetail!$H$2:$H$61*(BSRDetail!$A$2:$A$61=$A$1)*(BSRDetail!$F$2:$F$61=T$1)*(BSRDetail!$B$2:$B$61=$B$1)*(BSRDetail!$E$2:$E$61>=$B20)*(BSRDetail!$E$2:$E$61<$B21)) -> 0 | U20: =SUM(BSRDetail!$H$2:$H$61*(BSRDetail!$A$2:$A$61=$A$1)*(BSRDetail!$F$2:$F$61=U$1)*(BSRDetail!$B$2:$B$61=$B$1)*(BSRDetail!$E$2:$E$61>=$B20)*(BSRDetail!$E$2:$E$61<$B21)) -> 0 | V20: =SUM(BSRDetail!$H$2:$H$61*(BSRDetail!$A$2:$A$61=$A$1)*(BSRDetail!$F$2:$F$61=V$1)*(BSRDetail!$B$2:$B$61=$B$1)*(BSRDetail!$E$2:$E$61>=$B20)*(BSRDetail!$E$2:$E$61<$B21)) -> 0 | W20: =SUM(BSRDetail!$H$2:$H$61*(BSRDetail!$A$2:$A$61=$A$1)*(BSRDetail!$F$2:$F$61=W$1)*(BSRDetail!$B$2:$B$61=$B$1)*(BSRDetail!$E$2:$E$61>=$B20)*(BSRDetail!$E$2:$E$61<$B21)) -> 0 | X20: =SUM(BSRDetail!$H$2:$H$61*(BSRDetail!$A$2:$A$61=$A$1)*(BSRDetail!$F$2:$F$61=X$1)*(BSRDetail!$B$2:$B$61=$B$1)*(BSRDetail!$E$2:$E$61>=$B20)*(BSRDetail!$E$2:$E$61<$B21)) -> 0 | Y20: 0 | Z20: 0 | AA20: =IF(D19=0,AA19,IF($D20=0,Z20+AVERAGE($Y$7:Y19)*$C20/10,Y20)) -> 0 | AB20: 6500.043726 | AC20: =SUM(BSRDetail!$H$2:$H$61*(BSRDetail!$A$2:$A$61=$A$1)*(BSRDetail!$F$2:$F$61=AC$1)*(BSRDetail!$B$2:$B$61=$B$1)*(BSRDetail!$E$2:$E$61>=$B20)*(BSRDetail!$E$2:$E$61<$B21)) -> 0 | AD20: 0.0237 | AE20: 154.0510363 | AF20: =SUM(BSRDetail!$H$2:$H$61*(BSRDetail!$A$2:$A$61=$A$1)*(BSRDetail!$F$2:$F$61=AF$1)*(BSRDetail!$B$2:$B$61=$B$1)*(BSRDetail!$E$2:$E$61>=$B20)*(BSRDetail!$E$2:$E$61<$B21)) -> 0 | AG20: 0 | AH20: 0 | AI20: =SUM(BSRDetail!$H$2:$H$61*(BSRDetail!$A$2:$A$61=$A$1)*(BSRDetail!$F$2:$F$61=AI$1)*(BSRDetail!$B$2:$B$61=$B$1)*(BSRDetail!$E$2:$E$61>=$B20)*(BSRDetail!$E$2:$E$61<$B21)) -> 0 | AJ20: 0 | AK20: =SUM(BSRDetail!$H$2:$H$61*(BSRDetail!$A$2:$A$61=$A$1)*(BSRDetail!$F$2:$F$61=AK$1)*(BSRDetail!$B$2:$B$61=$B$1)*(BSRDetail!$E$2:$E$61>=$B20)*(BSRDetail!$E$2:$E$61<$B21)) -> 0 | AL20: 0 | AM20: 0 | AN20: 0 | AO20: =SUM(BSRDetail!$H$2:$H$61*(BSRDetail!$A$2:$A$61=$A$1)*(BSRDetail!$F$2:$F$61=AO$1)*(BSRDetail!$B$2:$B$61=$B$1)*(BSRDetail!$E$2:$E$61>=$B20)*(BSRDetail!$E$2:$E$61<$B21)) -> 0 | AP20: 0 | AQ20: =SUM(BSRDetail!$H$2:$H$61*(BSRDetail!$A$2:$A$61=$A$1)*(BSRDetail!$F$2:$F$61=AQ$1)*(BSRDetail!$B$2:$B$61=$B$1)*(BSRDetail!$E$2:$E$61>=$B20)*(BSRDetail!$E$2:$E$61<$B21)) -> 0 | AR20: 0.02360050494 | AS20: 153.404314 | AT20: =SUM(BSRDetail!$H$2:$H$61*(BSRDetail!$A$2:$A$61=$A$1)*(BSRDetail!$F$2:$F$61=AT$1)*(BSRDetail!$B$2:$B$61=$B$1)*(BSRDetail!$E$2:$E$61>=$B20)*(BSRDetail!$E$2:$E$61<$B21)) -> 0 | AU20: 0.0007 | AV20: 4.550030608 | AW20: =SUM(BSRDetail!$H$2:$H$61*(BSRDetail!$A$2:$A$61=$A$1)*(BSRDetail!$F$2:$F$61=AW$1)*(BSRDetail!$B$2:$B$61=$B$1)*(BSRDetail!$E$2:$E$61>=$B20)*(BSRDetail!$E$2:$E$61<$B21)) -> 0 | AX20: =IF(D20=0,IF(DAY(B20)<15,SUM(AX11:AX19*(DAY(B11:B19)<15))/SUM(1*(DAY(B11:B19)<15)),SUM(AX11:AX19*(DAY(B11:B19)>14))/SUM(1*(DAY(B11:B19)>14))),AW20/AB20) -> 0.0145002699 | AY20: 94.25238841 | AZ20: =SUM(BSRDetail!$H$2:$H$61*(BSRDetail!$A$2:$A$61=$A$1)*(BSRDetail!$F$2:$F$61=AZ$1)*(BSRDetail!$B$2:$B$61=$B$1)*(BSRDetail!$E$2:$E$61>=$B20)*(BSRDetail!$E$2:$E$61<$B21)) -> 0 | BA20: 0 | BB20: 0 | BC20: =SUM(BSRDetail!$H$2:$H$61*(BSRDetail!$A$2:$A$61=$A$1)*(BSRDetail!$F$2:$F$61=BC$1)*(BSRDetail!$B$2:$B$61=$B$1)*(BSRDetail!$E$2:$E$61>=$B20)*(BSRDetail!$E$2:$E$61<$B21)) -> 0 | BD20: =SUM(BSRDetail!$H$2:$H$61*(BSRDetail!$A$2:$A$61=$A$1)*(BSRDetail!$F$2:$F$61=BD$1)*(BSRDetail!$B$2:$B$61=$B$1)*(BSRDetail!$E$2:$E$61>=$B20)*(BSRDetail!$E$2:$E$61<$B21)) -> 0 | BE20: 0 | BF20: 0 | BG20: =SUM(BSRDetail!$H$2:$H$61*(BSRDetail!$A$2:$A$61=$A$1)*(BSRDetail!$F$2:$F$61=BG$1)*(BSRDetail!$B$2:$B$61=$B$1)*(BSRDetail!$E$2:$E$61>=$B20)*(BSRDetail!$E$2:$E$61<$B21)) -> 0 | BH20: =SUM(BSRDetail!$H$2:$H$61*(BSRDetail!$A$2:$A$61=$A$1)*(BSRDetail!$F$2:$F$61=BH$1)*(BSRDetail!$B$2:$B$61=$B$1)*(BSRDetail!$E$2:$E$61>=$B20)*(BSRDetail!$E$2:$E$61<$B21)) -> 0 | BI20: 0 | BJ20: =SUM(BSRDetail!$H$2:$H$61*(BSRDetail!$A$2:$A$61=$A$1)*(BSRDetail!$F$2:$F$61=BJ$1)*(BSRDetail!$B$2:$B$61=$B$1)*(BSRDetail!$E$2:$E$61>=$B20)*(BSRDetail!$E$2:$E$61<$B21)) -> 0 | BK20: =IF($D20=0,AVERAGE(BK$6:BK19)*$C20/10,BJ20) -> 711.45 | BL20: =SUM(BSRDetail!$H$2:$H$61*(BSRDetail!$A$2:$A$61=$A$1)*(BSRDetail!$F$2:$F$61=BL$1)*(BSRDetail!$B$2:$B$61=$B$1)*(BSRDetail!$E$2:$E$61>=$B20)*(BSRDetail!$E$2:$E$61<$B21)) -> 0 | BM20: =IF($D20=0,AVERAGE(BM$6:BM19)*$C20/10,BL20) -> 0 | BN20: =SUM(BSRDetail!$H$2:$H$61*(BSRDetail!$A$2:$A$61=$A$1)*(BSRDetail!$F$2:$F$61=BN$1)*(BSRDetail!$B$2:$B$61=$B$1)*(BSRDetail!$E$2:$E$61>=$B20)*(BSRDetail!$E$2:$E$61<$B21)) -> 0 | BO20: =IF($D20=0,AVERAGE(BO$6:BO19)*$C20/10,BN20) -> 0 | BP20: =SUM(BSRDetail!$H$2:$H$61*(BSRDetail!$A$2:$A$61=$A$1)*(BSRDetail!$F$2:$F$61=BP$1)*(BSRDetail!$B$2:$B$61=$B$1)*(BSRDetail!$E$2:$E$61>=$B20)*(BSRDetail!$E$2:$E$61<$B21)) -> 0 | BQ20: =IF($D20=0,AVERAGE(BQ$6:BQ19)*$C20/10,BP20) -> 0 | BR20: =SUM(BSRDetail!$H$2:$H$61*(BSRDetail!$A$2:$A$61=$A$1)*(BSRDetail!$F$2:$F$61=BR$1)*(BSRDetail!$B$2:$B$61=$B$1)*(BSRDetail!$E$2:$E$61>=$B20)*(BSRDetail!$E$2:$E$61<$B21)) -> 0 | BS20: =IF($D20=0,AVERAGE(BS$6:BS19)*$C20/10,BR20) -> 0 | BT20: =SUM(BSRDetail!$H$2:$H$61*(BSRDetail!$A$2:$A$61=$A$1)*(BSRDetail!$F$2:$F$61=BT$1)*(BSRDetail!$B$2:$B$61=$B$1)*(BSRDetail!$E$2:$E$61>=$B20)*(BSRDetail!$E$2:$E$61<$B21)) -> 0 | BU20: =IF($D20=0,AVERAGE(BU$6:BU19)*$C20/10,BT20) -> 0 | BV20: =SUM(BSRDetail!$H$2:$H$61*(BSRDetail!$A$2:$A$61=$A$1)*(BSRDetail!$F$2:$F$61=BV$1)*(BSRDetail!$B$2:$B$61=$B$1)*(BSRDetail!$E$2:$E$61>=$B20)*(BSRDetail!$E$2:$E$61<$B21)) -> 0 | BW20: =IF($D20=0,AVERAGE(BW$6:BW19)*$C20/10,BV20) -> 0 | BX20: =SUM(BSRDetail!$H$2:$H$61*(BSRDetail!$A$2:$A$61=$A$1)*(BSRDetail!$F$2:$F$61=BX$1)*(BSRDetail!$B$2:$B$61=$B$1)*(BSRDetail!$E$2:$E$61>=$B20)*(BSRDetail!$E$2:$E$61<$B21)) -> 0 | BY20: =IF($D20=0,AVERAGE(BY$6:BY19)*$C20/10,BX20) -> 0 | BZ20: =SUM(BSRDetail!$H$2:$H$61*(BSRDetail!$A$2:$A$61=$A$1)*(BSRDetail!$F$2:$F$61=BZ$1)*(BSRDetail!$B$2:$B$61=$B$1)*(BSRDetail!$E$2:$E$61>=$B20)*(BSRDetail!$E$2:$E$61<$B21)) -> 0 | CA20: =IF($D20=0,AVERAGE(CA$6:CA19)*$C20/10,BZ20) -> 0 | CB20: =SUM(BSRDetail!$H$2:$H$61*(BSRDetail!$A$2:$A$61=$A$1)*(BSRDetail!$F$2:$F$61=CB$1)*(BSRDetail!$B$2:$B$61=$B$1)*(BSRDetail!$E$2:$E$61>=$B20)*(BSRDetail!$E$2:$E$61<$B21)) -> 0 | CC20: =IF($D20=0,AVERAGE(CC$6:CC19)*$C20/10,CB20) -> 0 | CD20: =SUM(BSRDetail!$H$2:$H$61*(BSRDetail!$A$2:$A$61=$A$1)*(BSRDetail!$F$2:$F$61=CD$1)*(BSRDetail!$B$2:$B$61=$B$1)*(BSRDetail!$E$2:$E$61>=$B20)*(BSRDetail!$E$2:$E$61<$B21)) -> 0 | CE20: =IF($D20=0,AVERAGE(CE$6:CE19)*$C20/10,CD20) -> 0 | CF20: =SUM(BSRDetail!$H$2:$H$61*(BSRDetail!$A$2:$A$61=$A$1)*(BSRDetail!$F$2:$F$61=CF$1)*(BSRDetail!$B$2:$B$61=$B$1)*(BSRDetail!$E$2:$E$61>=$B20)*(BSRDetail!$E$2:$E$61<$B21)) -> 0 | CG20: =IF($D20=0,AVERAGE(CG$6:CG19)*$C20/10,CF20) -> 0 | CH20: =SUM(BSRDetail!$H$2:$H$61*(BSRDetail!$A$2:$A$61=$A$1)*(BSRDetail!$F$2:$F$61=CH$1)*(BSRDetail!$B$2:$B$61=$B$1)*(BSRDetail!$E$2:$E$61>=$B20)*(BSRDetail!$E$2:$E$61<$B21)) -> 0 | CI20: =IF($D20=0,AVERAGE(CI$6:CI19)*$C20/10,CH20) -> 0 | CJ20: =SUM(BSRDetail!$H$2:$H$61*(BSRDetail!$A$2:$A$61=$A$1)*(BSRDetail!$F$2:$F$61=CJ$1)*(BSRDetail!$B$2:$B$61=$B$1)*(BSRDetail!$E$2:$E$61>=$B20)*(BSRDetail!$E$2:$E$61<$B21)) -> 0 | CK20: =IF($D20=0,AVERAGE(CK$6:CK19)*$C20/10,CJ20) -> 0 | CL20: =SUM(BSRDetail!$H$2:$H$61*(BSRDetail!$A$2:$A$61=$A$1)*(BSRDetail!$F$2:$F$61=CL$1)*(BSRDetail!$B$2:$B$61=$B$1)*(BSRDetail!$E$2:$E$61>=$B20)*(BSRDetail!$E$2:$E$61<$B21)) -> 0 | CM20: =IF($D20=0,AVERAGE(CM$6:CM19)*$C20/10,CL20) -> 0 | CN20: =SUM(BSRDetail!$H$2:$H$61*(BSRDetail!$A$2:$A$61=$A$1)*(BSRDetail!$F$2:$F$61=CN$1)*(BSRDetail!$B$2:$B$61=$B$1)*(BSRDetail!$E$2:$E$61>=$B20)*(BSRDetail!$E$2:$E$61<$B21)) -> 0 | CO20: =IF($D20=0,AVERAGE(CO$6:CO19)*$C20/10,CN20) -> 0 | CP20: =SUM(BSRDetail!$H$2:$H$61*(BSRDetail!$A$2:$A$61=$A$1)*(BSRDetail!$F$2:$F$61=CP$1)*(BSRDetail!$B$2:$B$61=$B$1)*(BSRDetail!$E$2:$E$61>=$B20)*(BSRDetail!$E$2:$E$61<$B21)) -> 0 | CQ20: =IF($D20=0,AVERAGE(CQ$6:CQ19)*$C20/10,CP20) -> 0 | CR20: =SUM(BSRDetail!$H$2:$H$61*(BSRDetail!$A$2:$A$61=$A$1)*(BSRDetail!$F$2:$F$61=CR$1)*(BSRDetail!$B$2:$B$61=$B$1)*(BSRDetail!$E$2:$E$61>=$B20)*(BSRDetail!$E$2:$E$61<$B21)) -> 0 | CS20: =IF($D20=0,AVERAGE(CS$6:CS19)*$C20/10,CR20) -> 0 | CT20: =SUM(BSRDetail!$H$2:$H$61*(BSRDetail!$A$2:$A$61=$A$1)*(BSRDetail!$F$2:$F$61=CT$1)*(BSRDetail!$B$2:$B$61=$B$1)*(BSRDetail!$E$2:$E$61>=$B20)*(BSRDetail!$E$2:$E$61<$B21)) -> 0 | CU20: =IF($D20=0,AVERAGE(CU$6:CU19)*$C20/10,CT20) -> 0 | CV20: =SUM(BSRDetail!$H$2:$H$61*(BSRDetail!$A$2:$A$61=$A$1)*(BSRDetail!$F$2:$F$61=CV$1)*(BSRDetail!$B$2:$B$61=$B$1)*(BSRDetail!$E$2:$E$61>=$B20)*(BSRDetail!$E$2:$E$61<$B21)) -> 0 | CW20: =IF($D20=0,AVERAGE(CW$6:CW19)*$C20/10,CV20) -> 0
A21: 0 | B21: 2017-02-10 | C21: 10 | D21: =SUM(BSRDetail!$H$2:$H$61*(BSRDetail!$A$2:$A$61=$A$1)*(BSRDetail!$F$2:$F$61=D$1)*(BSRDetail!$B$2:$B$61=$B$1)*(BSRDetail!$E$2:$E$61>=$B21)*(BSRDetail!$E$2:$E$61<$B22)) -> 0 | E21: =SUM(BSRDetail!$H$2:$H$61*(BSRDetail!$A$2:$A$61=$A$1)*(BSRDetail!$F$2:$F$61=E$1)*(BSRDetail!$B$2:$B$61=$B$1)*(BSRDetail!$E$2:$E$61>=$B21)*(BSRDetail!$E$2:$E$61<$B22)) -> 0 | F21: =SUM(BSRDetail!$H$2:$H$61*(BSRDetail!$A$2:$A$61=$A$1)*(BSRDetail!$F$2:$F$61=F$1)*(BSRDetail!$B$2:$B$61=$B$1)*(BSRDetail!$E$2:$E$61>=$B21)*(BSRDetail!$E$2:$E$61<$B22)) -> 0 | G21: =SUM(BSRDetail!$H$2:$H$61*(BSRDetail!$A$2:$A$61=$A$1)*(BSRDetail!$F$2:$F$61=G$1)*(BSRDetail!$B$2:$B$61=$B$1)*(BSRDetail!$E$2:$E$61>=$B21)*(BSRDetail!$E$2:$E$61<$B22)) -> 0 | H21: =SUM(BSRDetail!$H$2:$H$61*(BSRDetail!$A$2:$A$61=$A$1)*(BSRDetail!$F$2:$F$61=H$1)*(BSRDetail!$B$2:$B$61=$B$1)*(BSRDetail!$E$2:$E$61>=$B21)*(BSRDetail!$E$2:$E$61<$B22)) -> 0 | I21: =SUM(BSRDetail!$H$2:$H$61*(BSRDetail!$A$2:$A$61=$A$1)*(BSRDetail!$F$2:$F$61=I$1)*(BSRDetail!$B$2:$B$61=$B$1)*(BSRDetail!$E$2:$E$61>=$B21)*(BSRDetail!$E$2:$E$61<$B22)) -> 0 | J21: 0 | K21: 6497.881219 | L21: 0 | M21: 6497.881219 | N21: =SUM(BSRDetail!$H$2:$H$61*(BSRDetail!$A$2:$A$61=$A$1)*(BSRDetail!$F$2:$F$61=N$1)*(BSRDetail!$B$2:$B$61=$B$1)*(BSRDetail!$E$2:$E$61>=$B21)*(BSRDetail!$E$2:$E$61<$B22)) -> 0 | O21: =SUM(BSRDetail!$H$2:$H$61*(BSRDetail!$A$2:$A$61=$A$1)*(BSRDetail!$F$2:$F$61=O$1)*(BSRDetail!$B$2:$B$61=$B$1)*(BSRDetail!$E$2:$E$61>=$B21)*(BSRDetail!$E$2:$E$61<$B22)) -> 0 | P21: =SUM(BSRDetail!$H$2:$H$61*(BSRDetail!$A$2:$A$61=$A$1)*(BSRDetail!$F$2:$F$61=P$1)*(BSRDetail!$B$2:$B$61=$B$1)*(BSRDetail!$E$2:$E$61>=$B21)*(BSRDetail!$E$2:$E$61<$B22)) -> 0 | Q21: =SUM(BSRDetail!$H$2:$H$61*(BSRDetail!$A$2:$A$61=$A$1)*(BSRDetail!$F$2:$F$61=Q$1)*(BSRDetail!$B$2:$B$61=$B$1)*(BSRDetail!$E$2:$E$61>=$B21)*(BSRDetail!$E$2:$E$61<$B22)) -> 0 | R21: =SUM(BSRDetail!$H$2:$H$61*(BSRDetail!$A$2:$A$61=$A$1)*(BSRDetail!$F$2:$F$61=R$1)*(BSRDetail!$B$2:$B$61=$B$1)*(BSRDetail!$E$2:$E$61>=$B21)*(BSRDetail!$E$2:$E$61<$B22)) -> 0 | S21: =SUM(BSRDetail!$H$2:$H$61*(BSRDetail!$A$2:$A$61=$A$1)*(BSRDetail!$F$2:$F$61=S$1)*(BSRDetail!$B$2:$B$61=$B$1)*(BSRDetail!$E$2:$E$61>=$B21)*(BSRDetail!$E$2:$E$61<$B22)) -> 0 | T21: =SUM(BSRDetail!$H$2:$H$61*(BSRDetail!$A$2:$A$61=$A$1)*(BSRDetail!$F$2:$F$61=T$1)*(BSRDetail!$B$2:$B$61=$B$1)*(BSRDetail!$E$2:$E$61>=$B21)*(BSRDetail!$E$2:$E$61<$B22)) -> 0 | U21: =SUM(BSRDetail!$H$2:$H$61*(BSRDetail!$A$2:$A$61=$A$1)*(BSRDetail!$F$2:$F$61=U$1)*(BSRDetail!$B$2:$B$61=$B$1)*(BSRDetail!$E$2:$E$61>=$B21)*(BSRDetail!$E$2:$E$61<$B22)) -> 0 | V21: =SUM(BSRDetail!$H$2:$H$61*(BSRDetail!$A$2:$A$61=$A$1)*(BSRDetail!$F$2:$F$61=V$1)*(BSRDetail!$B$2:$B$61=$B$1)*(BSRDetail!$E$2:$E$61>=$B21)*(BSRDetail!$E$2:$E$61<$B22)) -> 0 | W21: =SUM(BSRDetail!$H$2:$H$61*(BSRDetail!$A$2:$A$61=$A$1)*(BSRDetail!$F$2:$F$61=W$1)*(BSRDetail!$B$2:$B$61=$B$1)*(BSRDetail!$E$2:$E$61>=$B21)*(BSRDetail!$E$2:$E$61<$B22)) -> 0 | X21: =SUM(BSRDetail!$H$2:$H$61*(BSRDetail!$A$2:$A$61=$A$1)*(BSRDetail!$F$2:$F$61=X$1)*(BSRDetail!$B$2:$B$61=$B$1)*(BSRDetail!$E$2:$E$61>=$B21)*(BSRDetail!$E$2:$E$61<$B22)) -> 0 | Y21: 0 | Z21: 0 | AA21: =IF(D20=0,AA20,IF($D21=0,Z21+AVERAGE($Y$7:Y20)*$C21/10,Y21)) -> 0 | AB21: 6497.881219 | AC21: =SUM(BSRDetail!$H$2:$H$61*(BSRDetail!$A$2:$A$61=$A$1)*(BSRDetail!$F$2:$F$61=AC$1)*(BSRDetail!$B$2:$B$61=$B$1)*(BSRDetail!$E$2:$E$61>=$B21)*(BSRDetail!$E$2:$E$61<$B22)) -> 0 | AD21: 0.0237 | AE21: 153.9997849 | AF21: =SUM(BSRDetail!$H$2:$H$61*(BSRDetail!$A$2:$A$61=$A$1)*(BSRDetail!$F$2:$F$61=AF$1)*(BSRDetail!$B$2:$B$61=$B$1)*(BSRDetail!$E$2:$E$61>=$B21)*(BSRDetail!$E$2:$E$61<$B22)) -> 0 | AG21: 0 | AH21: 0 | AI21: =SUM(BSRDetail!$H$2:$H$61*(BSRDetail!$A$2:$A$61=$A$1)*(BSRDetail!$F$2:$F$61=AI$1)*(BSRDetail!$B$2:$B$61=$B$1)*(BSRDetail!$E$2:$E$61>=$B21)*(BSRDetail!$E$2:$E$61<$B22)) -> 0 | AJ21: 0 | AK21: =SUM(BSRDetail!$H$2:$H$61*(BSRDetail!$A$2:$A$61=$A$1)*(BSRDetail!$F$2:$F$61=AK$1)*(BSRDetail!$B$2:$B$61=$B$1)*(BSRDetail!$E$2:$E$61>=$B21)*(BSRDetail!$E$2:$E$61<$B22)) -> 0 | AL21: 0.9964658772 | AM21: 0 | AN21: 699.25 | AO21: =SUM(BSRDetail!$H$2:$H$61*(BSRDetail!$A$2:$A$61=$A$1)*(BSRDetail!$F$2:$F$61=AO$1)*(BSRDetail!$B$2:$B$61=$B$1)*(BSRDetail!$E$2:$E$61>=$B21)*(BSRDetail!$E$2:$E$61<$B22)) -> 0 | AP21: 0 | AQ21: =SUM(BSRDetail!$H$2:$H$61*(BSRDetail!$A$2:$A$61=$A$1)*(BSRDetail!$F$2:$F$61=AQ$1)*(BSRDetail!$B$2:$B$61=$B$1)*(BSRDetail!$E$2:$E$61>=$B21)*(BSRDetail!$E$2:$E$61<$B22)) -> 0 | AR21: 0.02360050494 | AS21: 153.3532778 | AT21: =SUM(BSRDetail!$H$2:$H$61*(BSRDetail!$A$2:$A$61=$A$1)*(BSRDetail!$F$2:$F$61=AT$1)*(BSRDetail!$B$2:$B$61=$B$1)*(BSRDetail!$E$2:$E$61>=$B21)*(BSRDetail!$E$2:$E$61<$B22)) -> 0 | AU21: 0.0007 | AV21: 4.548516854 | AW21: =SUM(BSRDetail!$H$2:$H$61*(BSRDetail!$A$2:$A$61=$A$1)*(BSRDetail!$F$2:$F$61=AW$1)*(BSRDetail!$B$2:$B$61=$B$1)*(BSRDetail!$E$2:$E$61>=$B21)*(BSRDetail!$E$2:$E$61<$B22)) -> 0 | AX21: =IF(D21=0,IF(DAY(B21)<15,SUM(AX12:AX20*(DAY(B12:B20)<15))/SUM(1*(DAY(B12:B20)<15)),SUM(AX12:AX20*(DAY(B12:B20)>14))/SUM(1*(DAY(B12:B20)>14))),AW21/AB21) -> 0.01377382123 | AY21: 89.50065432 | AZ21: =SUM(BSRDetail!$H$2:$H$61*(BSRDetail!$A$2:$A$61=$A$1)*(BSRDetail!$F$2:$F$61=AZ$1)*(BSRDetail!$B$2:$B$61=$B$1)*(BSRDetail!$E$2:$E$61>=$B21)*(BSRDetail!$E$2:$E$61<$B22)) -> 0 | BA21: 0 | BB21: 0 | BC21: =SUM(BSRDetail!$H$2:$H$61*(BSRDetail!$A$2:$A$61=$A$1)*(BSRDetail!$F$2:$F$61=BC$1)*(BSRDetail!$B$2:$B$61=$B$1)*(BSRDetail!$E$2:$E$61>=$B21)*(BSRDetail!$E$2:$E$61<$B22)) -> 0 | BD21: =SUM(BSRDetail!$H$2:$H$61*(BSRDetail!$A$2:$A$61=$A$1)*(BSRDetail!$F$2:$F$61=BD$1)*(BSRDetail!$B$2:$B$61=$B$1)*(BSRDetail!$E$2:$E$61>=$B21)*(BSRDetail!$E$2:$E$61<$B22)) -> 0 | BE21: 0 | BF21: 0 | BG21: =SUM(BSRDetail!$H$2:$H$61*(BSRDetail!$A$2:$A$61=$A$1)*(BSRDetail!$F$2:$F$61=BG$1)*(BSRDetail!$B$2:$B$61=$B$1)*(BSRDetail!$E$2:$E$61>=$B21)*(BSRDetail!$E$2:$E$61<$B22)) -> 0 | BH21: =SUM(BSRDetail!$H$2:$H$61*(BSRDetail!$A$2:$A$61=$A$1)*(BSRDetail!$F$2:$F$61=BH$1)*(BSRDetail!$B$2:$B$61=$B$1)*(BSRDetail!$E$2:$E$61>=$B21)*(BSRDetail!$E$2:$E$61<$B22)) -> 0 | BI21: 0 | BJ21: =SUM(BSRDetail!$H$2:$H$61*(BSRDetail!$A$2:$A$61=$A$1)*(BSRDetail!$F$2:$F$61=BJ$1)*(BSRDetail!$B$2:$B$61=$B$1)*(BSRDetail!$E$2:$E$61>=$B21)*(BSRDetail!$E$2:$E$61<$B22)) -> 0 | BK21: =IF($D21=0,AVERAGE(BK$6:BK20)*$C21/10,BJ21) -> 711.45 | BL21: =SUM(BSRDetail!$H$2:$H$61*(BSRDetail!$A$2:$A$61=$A$1)*(BSRDetail!$F$2:$F$61=BL$1)*(BSRDetail!$B$2:$B$61=$B$1)*(BSRDetail!$E$2:$E$61>=$B21)*(BSRDetail!$E$2:$E$61<$B22)) -> 0 | BM21: =IF($D21=0,AVERAGE(BM$6:BM20)*$C21/10,BL21) -> 0 | BN21: =SUM(BSRDetail!$H$2:$H$61*(BSRDetail!$A$2:$A$61=$A$1)*(BSRDetail!$F$2:$F$61=BN$1)*(BSRDetail!$B$2:$B$61=$B$1)*(BSRDetail!$E$2:$E$61>=$B21)*(BSRDetail!$E$2:$E$61<$B22)) -> 0 | BO21: =IF($D21=0,AVERAGE(BO$6:BO20)*$C21/10,BN21) -> 0 | BP21: =SUM(BSRDetail!$H$2:$H$61*(BSRDetail!$A$2:$A$61=$A$1)*(BSRDetail!$F$2:$F$61=BP$1)*(BSRDetail!$B$2:$B$61=$B$1)*(BSRDetail!$E$2:$E$61>=$B21)*(BSRDetail!$E$2:$E$61<$B22)) -> 0 | BQ21: =IF($D21=0,AVERAGE(BQ$6:BQ20)*$C21/10,BP21) -> 0 | BR21: =SUM(BSRDetail!$H$2:$H$61*(BSRDetail!$A$2:$A$61=$A$1)*(BSRDetail!$F$2:$F$61=BR$1)*(BSRDetail!$B$2:$B$61=$B$1)*(BSRDetail!$E$2:$E$61>=$B21)*(BSRDetail!$E$2:$E$61<$B22)) -> 0 | BS21: =IF($D21=0,AVERAGE(BS$6:BS20)*$C21/10,BR21) -> 0 | BT21: =SUM(BSRDetail!$H$2:$H$61*(BSRDetail!$A$2:$A$61=$A$1)*(BSRDetail!$F$2:$F$61=BT$1)*(BSRDetail!$B$2:$B$61=$B$1)*(BSRDetail!$E$2:$E$61>=$B21)*(BSRDetail!$E$2:$E$61<$B22)) -> 0 | BU21: =IF($D21=0,AVERAGE(BU$6:BU20)*$C21/10,BT21) -> 0 | BV21: =SUM(BSRDetail!$H$2:$H$61*(BSRDetail!$A$2:$A$61=$A$1)*(BSRDetail!$F$2:$F$61=BV$1)*(BSRDetail!$B$2:$B$61=$B$1)*(BSRDetail!$E$2:$E$61>=$B21)*(BSRDetail!$E$2:$E$61<$B22)) -> 0 | BW21: =IF($D21=0,AVERAGE(BW$6:BW20)*$C21/10,BV21) -> 0 | BX21: =SUM(BSRDetail!$H$2:$H$61*(BSRDetail!$A$2:$A$61=$A$1)*(BSRDetail!$F$2:$F$61=BX$1)*(BSRDetail!$B$2:$B$61=$B$1)*(BSRDetail!$E$2:$E$61>=$B21)*(BSRDetail!$E$2:$E$61<$B22)) -> 0 | BY21: =IF($D21=0,AVERAGE(BY$6:BY20)*$C21/10,BX21) -> 0 | BZ21: =SUM(BSRDetail!$H$2:$H$61*(BSRDetail!$A$2:$A$61=$A$1)*(BSRDetail!$F$2:$F$61=BZ$1)*(BSRDetail!$B$2:$B$61=$B$1)*(BSRDetail!$E$2:$E$61>=$B21)*(BSRDetail!$E$2:$E$61<$B22)) -> 0 | CA21: =IF($D21=0,AVERAGE(CA$6:CA20)*$C21/10,BZ21) -> 0 | CB21: =SUM(BSRDetail!$H$2:$H$61*(BSRDetail!$A$2:$A$61=$A$1)*(BSRDetail!$F$2:$F$61=CB$1)*(BSRDetail!$B$2:$B$61=$B$1)*(BSRDetail!$E$2:$E$61>=$B21)*(BSRDetail!$E$2:$E$61<$B22)) -> 0 | CC21: =IF($D21=0,AVERAGE(CC$6:CC20)*$C21/10,CB21) -> 0 | CD21: =SUM(BSRDetail!$H$2:$H$61*(BSRDetail!$A$2:$A$61=$A$1)*(BSRDetail!$F$2:$F$61=CD$1)*(BSRDetail!$B$2:$B$61=$B$1)*(BSRDetail!$E$2:$E$61>=$B21)*(BSRDetail!$E$2:$E$61<$B22)) -> 0 | CE21: =IF($D21=0,AVERAGE(CE$6:CE20)*$C21/10,CD21) -> 0 | CF21: =SUM(BSRDetail!$H$2:$H$61*(BSRDetail!$A$2:$A$61=$A$1)*(BSRDetail!$F$2:$F$61=CF$1)*(BSRDetail!$B$2:$B$61=$B$1)*(BSRDetail!$E$2:$E$61>=$B21)*(BSRDetail!$E$2:$E$61<$B22)) -> 0 | CG21: =IF($D21=0,AVERAGE(CG$6:CG20)*$C21/10,CF21) -> 0 | CH21: =SUM(BSRDetail!$H$2:$H$61*(BSRDetail!$A$2:$A$61=$A$1)*(BSRDetail!$F$2:$F$61=CH$1)*(BSRDetail!$B$2:$B$61=$B$1)*(BSRDetail!$E$2:$E$61>=$B21)*(BSRDetail!$E$2:$E$61<$B22)) -> 0 | CI21: =IF($D21=0,AVERAGE(CI$6:CI20)*$C21/10,CH21) -> 0 | CJ21: =SUM(BSRDetail!$H$2:$H$61*(BSRDetail!$A$2:$A$61=$A$1)*(BSRDetail!$F$2:$F$61=CJ$1)*(BSRDetail!$B$2:$B$61=$B$1)*(BSRDetail!$E$2:$E$61>=$B21)*(BSRDetail!$E$2:$E$61<$B22)) -> 0 | CK21: =IF($D21=0,AVERAGE(CK$6:CK20)*$C21/10,CJ21) -> 0 | CL21: =SUM(BSRDetail!$H$2:$H$61*(BSRDetail!$A$2:$A$61=$A$1)*(BSRDetail!$F$2:$F$61=CL$1)*(BSRDetail!$B$2:$B$61=$B$1)*(BSRDetail!$E$2:$E$61>=$B21)*(BSRDetail!$E$2:$E$61<$B22)) -> 0 | CM21: =IF($D21=0,AVERAGE(CM$6:CM20)*$C21/10,CL21) -> 0 | CN21: =SUM(BSRDetail!$H$2:$H$61*(BSRDetail!$A$2:$A$61=$A$1)*(BSRDetail!$F$2:$F$61=CN$1)*(BSRDetail!$B$2:$B$61=$B$1)*(BSRDetail!$E$2:$E$61>=$B21)*(BSRDetail!$E$2:$E$61<$B22)) -> 0 | CO21: =IF($D21=0,AVERAGE(CO$6:CO20)*$C21/10,CN21) -> 0 | CP21: =SUM(BSRDetail!$H$2:$H$61*(BSRDetail!$A$2:$A$61=$A$1)*(BSRDetail!$F$2:$F$61=CP$1)*(BSRDetail!$B$2:$B$61=$B$1)*(BSRDetail!$E$2:$E$61>=$B21)*(BSRDetail!$E$2:$E$61<$B22)) -> 0 | CQ21: =IF($D21=0,AVERAGE(CQ$6:CQ20)*$C21/10,CP21) -> 0 | CR21: =SUM(BSRDetail!$H$2:$H$61*(BSRDetail!$A$2:$A$61=$A$1)*(BSRDetail!$F$2:$F$61=CR$1)*(BSRDetail!$B$2:$B$61=$B$1)*(BSRDetail!$E$2:$E$61>=$B21)*(BSRDetail!$E$2:$E$61<$B22)) -> 0 | CS21: =IF($D21=0,AVERAGE(CS$6:CS20)*$C21/10,CR21) -> 0 | CT21: =SUM(BSRDetail!$H$2:$H$61*(BSRDetail!$A$2:$A$61=$A$1)*(BSRDetail!$F$2:$F$61=CT$1)*(BSRDetail!$B$2:$B$61=$B$1)*(BSRDetail!$E$2:$E$61>=$B21)*(BSRDetail!$E$2:$E$61<$B22)) -> 0 | CU21: =IF($D21=0,AVERAGE(CU$6:CU20)*$C21/10,CT21) -> 0 | CV21: =SUM(BSRDetail!$H$2:$H$61*(BSRDetail!$A$2:$A$61=$A$1)*(BSRDetail!$F$2:$F$61=CV$1)*(BSRDetail!$B$2:$B$61=$B$1)*(BSRDetail!$E$2:$E$61>=$B21)*(BSRDetail!$E$2:$E$61<$B22)) -> 0 | CW21: =IF($D21=0,AVERAGE(CW$6:CW20)*$C21/10,CV21) -> 0
A22: 0 | B22: 2017-02-24 | C22: 10 | D22: =SUM(BSRDetail!$H$2:$H$61*(BSRDetail!$A$2:$A$61=$A$1)*(BSRDetail!$F$2:$F$61=D$1)*(BSRDetail!$B$2:$B$61=$B$1)*(BSRDetail!$E$2:$E$61>=$B22)*(BSRDetail!$E$2:$E$61<$B23)) -> 0 | E22: =SUM(BSRDetail!$H$2:$H$61*(BSRDetail!$A$2:$A$61=$A$1)*(BSRDetail!$F$2:$F$61=E$1)*(BSRDetail!$B$2:$B$61=$B$1)*(BSRDetail!$E$2:$E$61>=$B22)*(BSRDetail!$E$2:$E$61<$B23)) -> 0 | F22: =SUM(BSRDetail!$H$2:$H$61*(BSRDetail!$A$2:$A$61=$A$1)*(BSRDetail!$F$2:$F$61=F$1)*(BSRDetail!$B$2:$B$61=$B$1)*(BSRDetail!$E$2:$E$61>=$B22)*(BSRDetail!$E$2:$E$61<$B23)) -> 0 | G22: =SUM(BSRDetail!$H$2:$H$61*(BSRDetail!$A$2:$A$61=$A$1)*(BSRDetail!$F$2:$F$61=G$1)*(BSRDetail!$B$2:$B$61=$B$1)*(BSRDetail!$E$2:$E$61>=$B22)*(BSRDetail!$E$2:$E$61<$B23)) -> 0 | H22: =SUM(BSRDetail!$H$2:$H$61*(BSRDetail!$A$2:$A$61=$A$1)*(BSRDetail!$F$2:$F$61=H$1)*(BSRDetail!$B$2:$B$61=$B$1)*(BSRDetail!$E$2:$E$61>=$B22)*(BSRDetail!$E$2:$E$61<$B23)) -> 0 | I22: =SUM(BSRDetail!$H$2:$H$61*(BSRDetail!$A$2:$A$61=$A$1)*(BSRDetail!$F$2:$F$61=I$1)*(BSRDetail!$B$2:$B$61=$B$1)*(BSRDetail!$E$2:$E$61>=$B22)*(BSRDetail!$E$2:$E$61<$B23)) -> 0 | J22: 0 | K22: 6508.234727 | L22: 0 | M22: 6508.234727 | N22: =SUM(BSRDetail!$H$2:$H$61*(BSRDetail!$A$2:$A$61=$A$1)*(BSRDetail!$F$2:$F$61=N$1)*(BSRDetail!$B$2:$B$61=$B$1)*(BSRDetail!$E$2:$E$61>=$B22)*(BSRDetail!$E$2:$E$61<$B23)) -> 0 | O22: =SUM(BSRDetail!$H$2:$H$61*(BSRDetail!$A$2:$A$61=$A$1)*(BSRDetail!$F$2:$F$61=O$1)*(BSRDetail!$B$2:$B$61=$B$1)*(BSRDetail!$E$2:$E$61>=$B22)*(BSRDetail!$E$2:$E$61<$B23)) -> 0 | P22: =SUM(BSRDetail!$H$2:$H$61*(BSRDetail!$A$2:$A$61=$A$1)*(BSRDetail!$F$2:$F$61=P$1)*(BSRDetail!$B$2:$B$61=$B$1)*(BSRDetail!$E$2:$E$61>=$B22)*(BSRDetail!$E$2:$E$61<$B23)) -> 0 | Q22: =SUM(BSRDetail!$H$2:$H$61*(BSRDetail!$A$2:$A$61=$A$1)*(BSRDetail!$F$2:$F$61=Q$1)*(BSRDetail!$B$2:$B$61=$B$1)*(BSRDetail!$E$2:$E$61>=$B22)*(BSRDetail!$E$2:$E$61<$B23)) -> 0 | R22: =SUM(BSRDetail!$H$2:$H$61*(BSRDetail!$A$2:$A$61=$A$1)*(BSRDetail!$F$2:$F$61=R$1)*(BSRDetail!$B$2:$B$61=$B$1)*(BSRDetail!$E$2:$E$61>=$B22)*(BSRDetail!$E$2:$E$61<$B23)) -> 0 | S22: =SUM(BSRDetail!$H$2:$H$61*(BSRDetail!$A$2:$A$61=$A$1)*(BSRDetail!$F$2:$F$61=S$1)*(BSRDetail!$B$2:$B$61=$B$1)*(BSRDetail!$E$2:$E$61>=$B22)*(BSRDetail!$E$2:$E$61<$B23)) -> 0 | T22: =SUM(BSRDetail!$H$2:$H$61*(BSRDetail!$A$2:$A$61=$A$1)*(BSRDetail!$F$2:$F$61=T$1)*(BSRDetail!$B$2:$B$61=$B$1)*(BSRDetail!$E$2:$E$61>=$B22)*(BSRDetail!$E$2:$E$61<$B23)) -> 0 | U22: =SUM(BSRDetail!$H$2:$H$61*(BSRDetail!$A$2:$A$61=$A$1)*(BSRDetail!$F$2:$F$61=U$1)*(BSRDetail!$B$2:$B$61=$B$1)*(BSRDetail!$E$2:$E$61>=$B22)*(BSRDetail!$E$2:$E$61<$B23)) -> 0 | V22: =SUM(BSRDetail!$H$2:$H$61*(BSRDetail!$A$2:$A$61=$A$1)*(BSRDetail!$F$2:$F$61=V$1)*(BSRDetail!$B$2:$B$61=$B$1)*(BSRDetail!$E$2:$E$61>=$B22)*(BSRDetail!$E$2:$E$61<$B23)) -> 0 | W22: =SUM(BSRDetail!$H$2:$H$61*(BSRDetail!$A$2:$A$61=$A$1)*(BSRDetail!$F$2:$F$61=W$1)*(BSRDetail!$B$2:$B$61=$B$1)*(BSRDetail!$E$2:$E$61>=$B22)*(BSRDetail!$E$2:$E$61<$B23)) -> 0 | X22: =SUM(BSRDetail!$H$2:$H$61*(BSRDetail!$A$2:$A$61=$A$1)*(BSRDetail!$F$2:$F$61=X$1)*(BSRDetail!$B$2:$B$61=$B$1)*(BSRDetail!$E$2:$E$61>=$B22)*(BSRDetail!$E$2:$E$61<$B23)) -> 0 | Y22: 0 | Z22: 0 | AA22: =IF(D21=0,AA21,IF($D22=0,Z22+AVERAGE($Y$7:Y21)*$C22/10,Y22)) -> 0 | AB22: 6508.234727 | AC22: =SUM(BSRDetail!$H$2:$H$61*(BSRDetail!$A$2:$A$61=$A$1)*(BSRDetail!$F$2:$F$61=AC$1)*(BSRDetail!$B$2:$B$61=$B$1)*(BSRDetail!$E$2:$E$61>=$B22)*(BSRDetail!$E$2:$E$61<$B23)) -> 0 | AD22: 0.0237 | AE22: 154.245163 | AF22: =SUM(BSRDetail!$H$2:$H$61*(BSRDetail!$A$2:$A$61=$A$1)*(BSRDetail!$F$2:$F$61=AF$1)*(BSRDetail!$B$2:$B$61=$B$1)*(BSRDetail!$E$2:$E$61>=$B22)*(BSRDetail!$E$2:$E$61<$B23)) -> 0 | AG22: 0 | AH22: 0 | AI22: =SUM(BSRDetail!$H$2:$H$61*(BSRDetail!$A$2:$A$61=$A$1)*(BSRDetail!$F$2:$F$61=AI$1)*(BSRDetail!$B$2:$B$61=$B$1)*(BSRDetail!$E$2:$E$61>=$B22)*(BSRDetail!$E$2:$E$61<$B23)) -> 0 | AJ22: 0 | AK22: =SUM(BSRDetail!$H$2:$H$61*(BSRDetail!$A$2:$A$61=$A$1)*(BSRDetail!$F$2:$F$61=AK$1)*(BSRDetail!$B$2:$B$61=$B$1)*(BSRDetail!$E$2:$E$61>=$B22)*(BSRDetail!$E$2:$E$61<$B23)) -> 0 | AL22: 0 | AM22: 0 | AN22: 0 | AO22: =SUM(BSRDetail!$H$2:$H$61*(BSRDetail!$A$2:$A$61=$A$1)*(BSRDetail!$F$2:$F$61=AO$1)*(BSRDetail!$B$2:$B$61=$B$1)*(BSRDetail!$E$2:$E$61>=$B22)*(BSRDetail!$E$2:$E$61<$B23)) -> 0 | AP22: 0 | AQ22: =SUM(BSRDetail!$H$2:$H$61*(BSRDetail!$A$2:$A$61=$A$1)*(BSRDetail!$F$2:$F$61=AQ$1)*(BSRDetail!$B$2:$B$61=$B$1)*(BSRDetail!$E$2:$E$61>=$B22)*(BSRDetail!$E$2:$E$61<$B23)) -> 0 | AR22: 0.02360050494 | AS22: 153.5976258 | AT22: =SUM(BSRDetail!$H$2:$H$61*(BSRDetail!$A$2:$A$61=$A$1)*(BSRDetail!$F$2:$F$61=AT$1)*(BSRDetail!$B$2:$B$61=$B$1)*(BSRDetail!$E$2:$E$61>=$B22)*(BSRDetail!$E$2:$E$61<$B23)) -> 0 | AU22: 0.0007 | AV22: 4.555764309 | AW22: =SUM(BSRDetail!$H$2:$H$61*(BSRDetail!$A$2:$A$61=$A$1)*(BSRDetail!$F$2:$F$61=AW$1)*(BSRDetail!$B$2:$B$61=$B$1)*(BSRDetail!$E$2:$E$61>=$B22)*(BSRDetail!$E$2:$E$61<$B23)) -> 0 | AX22: =IF(D22=0,IF(DAY(B22)<15,SUM(AX13:AX21*(DAY(B13:B21)<15))/SUM(1*(DAY(B13:B21)<15)),SUM(AX13:AX21*(DAY(B13:B21)>14))/SUM(1*(DAY(B13:B21)>14))),AW22/AB22) -> 0.01450018098 | AY22: 94.37058138 | AZ22: =SUM(BSRDetail!$H$2:$H$61*(BSRDetail!$A$2:$A$61=$A$1)*(BSRDetail!$F$2:$F$61=AZ$1)*(BSRDetail!$B$2:$B$61=$B$1)*(BSRDetail!$E$2:$E$61>=$B22)*(BSRDetail!$E$2:$E$61<$B23)) -> 0 | BA22: 0 | BB22: 0 | BC22: =SUM(BSRDetail!$H$2:$H$61*(BSRDetail!$A$2:$A$61=$A$1)*(BSRDetail!$F$2:$F$61=BC$1)*(BSRDetail!$B$2:$B$61=$B$1)*(BSRDetail!$E$2:$E$61>=$B22)*(BSRDetail!$E$2:$E$61<$B23)) -> 0 | BD22: =SUM(BSRDetail!$H$2:$H$61*(BSRDetail!$A$2:$A$61=$A$1)*(BSRDetail!$F$2:$F$61=BD$1)*(BSRDetail!$B$2:$B$61=$B$1)*(BSRDetail!$E$2:$E$61>=$B22)*(BSRDetail!$E$2:$E$61<$B23)) -> 0 | BE22: 0 | BF22: 0 | BG22: =SUM(BSRDetail!$H$2:$H$61*(BSRDetail!$A$2:$A$61=$A$1)*(BSRDetail!$F$2:$F$61=BG$1)*(BSRDetail!$B$2:$B$61=$B$1)*(BSRDetail!$E$2:$E$61>=$B22)*(BSRDetail!$E$2:$E$61<$B23)) -> 0 | BH22: =SUM(BSRDetail!$H$2:$H$61*(BSRDetail!$A$2:$A$61=$A$1)*(BSRDetail!$F$2:$F$61=BH$1)*(BSRDetail!$B$2:$B$61=$B$1)*(BSRDetail!$E$2:$E$61>=$B22)*(BSRDetail!$E$2:$E$61<$B23)) -> 0 | BI22: 0 | BJ22: =SUM(BSRDetail!$H$2:$H$61*(BSRDetail!$A$2:$A$61=$A$1)*(BSRDetail!$F$2:$F$61=BJ$1)*(BSRDetail!$B$2:$B$61=$B$1)*(BSRDetail!$E$2:$E$61>=$B22)*(BSRDetail!$E$2:$E$61<$B23)) -> 0 | BK22: =IF($D22=0,AVERAGE(BK$6:BK21)*$C22/10,BJ22) -> 711.45 | BL22: =SUM(BSRDetail!$H$2:$H$61*(BSRDetail!$A$2:$A$61=$A$1)*(BSRDetail!$F$2:$F$61=BL$1)*(BSRDetail!$B$2:$B$61=$B$1)*(BSRDetail!$E$2:$E$61>=$B22)*(BSRDetail!$E$2:$E$61<$B23)) -> 0 | BM22: =IF($D22=0,AVERAGE(BM$6:BM21)*$C22/10,BL22) -> 0 | BN22: =SUM(BSRDetail!$H$2:$H$61*(BSRDetail!$A$2:$A$61=$A$1)*(BSRDetail!$F$2:$F$61=BN$1)*(BSRDetail!$B$2:$B$61=$B$1)*(BSRDetail!$E$2:$E$61>=$B22)*(BSRDetail!$E$2:$E$61<$B23)) -> 0 | BO22: =IF($D22=0,AVERAGE(BO$6:BO21)*$C22/10,BN22) -> 0 | BP22: =SUM(BSRDetail!$H$2:$H$61*(BSRDetail!$A$2:$A$61=$A$1)*(BSRDetail!$F$2:$F$61=BP$1)*(BSRDetail!$B$2:$B$61=$B$1)*(BSRDetail!$E$2:$E$61>=$B22)*(BSRDetail!$E$2:$E$61<$B23)) -> 0 | BQ22: =IF($D22=0,AVERAGE(BQ$6:BQ21)*$C22/10,BP22) -> 0 | BR22: =SUM(BSRDetail!$H$2:$H$61*(BSRDetail!$A$2:$A$61=$A$1)*(BSRDetail!$F$2:$F$61=BR$1)*(BSRDetail!$B$2:$B$61=$B$1)*(BSRDetail!$E$2:$E$61>=$B22)*(BSRDetail!$E$2:$E$61<$B23)) -> 0 | BS22: =IF($D22=0,AVERAGE(BS$6:BS21)*$C22/10,BR22) -> 0 | BT22: =SUM(BSRDetail!$H$2:$H$61*(BSRDetail!$A$2:$A$61=$A$1)*(BSRDetail!$F$2:$F$61=BT$1)*(BSRDetail!$B$2:$B$61=$B$1)*(BSRDetail!$E$2:$E$61>=$B22)*(BSRDetail!$E$2:$E$61<$B23)) -> 0 | BU22: =IF($D22=0,AVERAGE(BU$6:BU21)*$C22/10,BT22) -> 0 | BV22: =SUM(BSRDetail!$H$2:$H$61*(BSRDetail!$A$2:$A$61=$A$1)*(BSRDetail!$F$2:$F$61=BV$1)*(BSRDetail!$B$2:$B$61=$B$1)*(BSRDetail!$E$2:$E$61>=$B22)*(BSRDetail!$E$2:$E$61<$B23)) -> 0 | BW22: =IF($D22=0,AVERAGE(BW$6:BW21)*$C22/10,BV22) -> 0 | BX22: =SUM(BSRDetail!$H$2:$H$61*(BSRDetail!$A$2:$A$61=$A$1)*(BSRDetail!$F$2:$F$61=BX$1)*(BSRDetail!$B$2:$B$61=$B$1)*(BSRDetail!$E$2:$E$61>=$B22)*(BSRDetail!$E$2:$E$61<$B23)) -> 0 | BY22: =IF($D22=0,AVERAGE(BY$6:BY21)*$C22/10,BX22) -> 0 | BZ22: =SUM(BSRDetail!$H$2:$H$61*(BSRDetail!$A$2:$A$61=$A$1)*(BSRDetail!$F$2:$F$61=BZ$1)*(BSRDetail!$B$2:$B$61=$B$1)*(BSRDetail!$E$2:$E$61>=$B22)*(BSRDetail!$E$2:$E$61<$B23)) -> 0 | CA22: =IF($D22=0,AVERAGE(CA$6:CA21)*$C22/10,BZ22) -> 0 | CB22: =SUM(BSRDetail!$H$2:$H$61*(BSRDetail!$A$2:$A$61=$A$1)*(BSRDetail!$F$2:$F$61=CB$1)*(BSRDetail!$B$2:$B$61=$B$1)*(BSRDetail!$E$2:$E$61>=$B22)*(BSRDetail!$E$2:$E$61<$B23)) -> 0 | CC22: =IF($D22=0,AVERAGE(CC$6:CC21)*$C22/10,CB22) -> 0 | CD22: =SUM(BSRDetail!$H$2:$H$61*(BSRDetail!$A$2:$A$61=$A$1)*(BSRDetail!$F$2:$F$61=CD$1)*(BSRDetail!$B$2:$B$61=$B$1)*(BSRDetail!$E$2:$E$61>=$B22)*(BSRDetail!$E$2:$E$61<$B23)) -> 0 | CE22: =IF($D22=0,AVERAGE(CE$6:CE21)*$C22/10,CD22) -> 0 | CF22: =SUM(BSRDetail!$H$2:$H$61*(BSRDetail!$A$2:$A$61=$A$1)*(BSRDetail!$F$2:$F$61=CF$1)*(BSRDetail!$B$2:$B$61=$B$1)*(BSRDetail!$E$2:$E$61>=$B22)*(BSRDetail!$E$2:$E$61<$B23)) -> 0 | CG22: =IF($D22=0,AVERAGE(CG$6:CG21)*$C22/10,CF22) -> 0 | CH22: =SUM(BSRDetail!$H$2:$H$61*(BSRDetail!$A$2:$A$61=$A$1)*(BSRDetail!$F$2:$F$61=CH$1)*(BSRDetail!$B$2:$B$61=$B$1)*(BSRDetail!$E$2:$E$61>=$B22)*(BSRDetail!$E$2:$E$61<$B23)) -> 0 | CI22: =IF($D22=0,AVERAGE(CI$6:CI21)*$C22/10,CH22) -> 0 | CJ22: =SUM(BSRDetail!$H$2:$H$61*(BSRDetail!$A$2:$A$61=$A$1)*(BSRDetail!$F$2:$F$61=CJ$1)*(BSRDetail!$B$2:$B$61=$B$1)*(BSRDetail!$E$2:$E$61>=$B22)*(BSRDetail!$E$2:$E$61<$B23)) -> 0 | CK22: =IF($D22=0,AVERAGE(CK$6:CK21)*$C22/10,CJ22) -> 0 | CL22: =SUM(BSRDetail!$H$2:$H$61*(BSRDetail!$A$2:$A$61=$A$1)*(BSRDetail!$F$2:$F$61=CL$1)*(BSRDetail!$B$2:$B$61=$B$1)*(BSRDetail!$E$2:$E$61>=$B22)*(BSRDetail!$E$2:$E$61<$B23)) -> 0 | CM22: =IF($D22=0,AVERAGE(CM$6:CM21)*$C22/10,CL22) -> 0 | CN22: =SUM(BSRDetail!$H$2:$H$61*(BSRDetail!$A$2:$A$61=$A$1)*(BSRDetail!$F$2:$F$61=CN$1)*(BSRDetail!$B$2:$B$61=$B$1)*(BSRDetail!$E$2:$E$61>=$B22)*(BSRDetail!$E$2:$E$61<$B23)) -> 0 | CO22: =IF($D22=0,AVERAGE(CO$6:CO21)*$C22/10,CN22) -> 0 | CP22: =SUM(BSRDetail!$H$2:$H$61*(BSRDetail!$A$2:$A$61=$A$1)*(BSRDetail!$F$2:$F$61=CP$1)*(BSRDetail!$B$2:$B$61=$B$1)*(BSRDetail!$E$2:$E$61>=$B22)*(BSRDetail!$E$2:$E$61<$B23)) -> 0 | CQ22: =IF($D22=0,AVERAGE(CQ$6:CQ21)*$C22/10,CP22) -> 0 | CR22: =SUM(BSRDetail!$H$2:$H$61*(BSRDetail!$A$2:$A$61=$A$1)*(BSRDetail!$F$2:$F$61=CR$1)*(BSRDetail!$B$2:$B$61=$B$1)*(BSRDetail!$E$2:$E$61>=$B22)*(BSRDetail!$E$2:$E$61<$B23)) -> 0 | CS22: =IF($D22=0,AVERAGE(CS$6:CS21)*$C22/10,CR22) -> 0 | CT22: =SUM(BSRDetail!$H$2:$H$61*(BSRDetail!$A$2:$A$61=$A$1)*(BSRDetail!$F$2:$F$61=CT$1)*(BSRDetail!$B$2:$B$61=$B$1)*(BSRDetail!$E$2:$E$61>=$B22)*(BSRDetail!$E$2:$E$61<$B23)) -> 0 | CU22: =IF($D22=0,AVERAGE(CU$6:CU21)*$C22/10,CT22) -> 0 | CV22: =SUM(BSRDetail!$H$2:$H$61*(BSRDetail!$A$2:$A$61=$A$1)*(BSRDetail!$F$2:$F$61=CV$1)*(BSRDetail!$B$2:$B$61=$B$1)*(BSRDetail!$E$2:$E$61>=$B22)*(BSRDetail!$E$2:$E$61<$B23)) -> 0 | CW22: =IF($D22=0,AVERAGE(CW$6:CW21)*$C22/10,CV22) -> 0
A23: 0 | B23: 2017-03-10 | C23: 10 | D23: =SUM(BSRDetail!$H$2:$H$61*(BSRDetail!$A$2:$A$61=$A$1)*(BSRDetail!$F$2:$F$61=D$1)*(BSRDetail!$B$2:$B$61=$B$1)*(BSRDetail!$E$2:$E$61>=$B23)*(BSRDetail!$E$2:$E$61<$B24)) -> 0 | E23: =SUM(BSRDetail!$H$2:$H$61*(BSRDetail!$A$2:$A$61=$A$1)*(BSRDetail!$F$2:$F$61=E$1)*(BSRDetail!$B$2:$B$61=$B$1)*(BSRDetail!$E$2:$E$61>=$B23)*(BSRDetail!$E$2:$E$61<$B24)) -> 0 | F23: =SUM(BSRDetail!$H$2:$H$61*(BSRDetail!$A$2:$A$61=$A$1)*(BSRDetail!$F$2:$F$61=F$1)*(BSRDetail!$B$2:$B$61=$B$1)*(BSRDetail!$E$2:$E$61>=$B23)*(BSRDetail!$E$2:$E$61<$B24)) -> 0 | G23: =SUM(BSRDetail!$H$2:$H$61*(BSRDetail!$A$2:$A$61=$A$1)*(BSRDetail!$F$2:$F$61=G$1)*(BSRDetail!$B$2:$B$61=$B$1)*(BSRDetail!$E$2:$E$61>=$B23)*(BSRDetail!$E$2:$E$61<$B24)) -> 0 | H23: =SUM(BSRDetail!$H$2:$H$61*(BSRDetail!$A$2:$A$61=$A$1)*(BSRDetail!$F$2:$F$61=H$1)*(BSRDetail!$B$2:$B$61=$B$1)*(BSRDetail!$E$2:$E$61>=$B23)*(BSRDetail!$E$2:$E$61<$B24)) -> 0 | I23: =SUM(BSRDetail!$H$2:$H$61*(BSRDetail!$A$2:$A$61=$A$1)*(BSRDetail!$F$2:$F$61=I$1)*(BSRDetail!$B$2:$B$61=$B$1)*(BSRDetail!$E$2:$E$61>=$B23)*(BSRDetail!$E$2:$E$61<$B24)) -> 0 | J23: 0 | K23: 6504.072413 | L23: 0 | M23: 6504.072413 | N23: =SUM(BSRDetail!$H$2:$H$61*(BSRDetail!$A$2:$A$61=$A$1)*(BSRDetail!$F$2:$F$61=N$1)*(BSRDetail!$B$2:$B$61=$B$1)*(BSRDetail!$E$2:$E$61>=$B23)*(BSRDetail!$E$2:$E$61<$B24)) -> 0 | O23: =SUM(BSRDetail!$H$2:$H$61*(BSRDetail!$A$2:$A$61=$A$1)*(BSRDetail!$F$2:$F$61=O$1)*(BSRDetail!$B$2:$B$61=$B$1)*(BSRDetail!$E$2:$E$61>=$B23)*(BSRDetail!$E$2:$E$61<$B24)) -> 0 | P23: =SUM(BSRDetail!$H$2:$H$61*(BSRDetail!$A$2:$A$61=$A$1)*(BSRDetail!$F$2:$F$61=P$1)*(BSRDetail!$B$2:$B$61=$B$1)*(BSRDetail!$E$2:$E$61>=$B23)*(BSRDetail!$E$2:$E$61<$B24)) -> 0 | Q23: =SUM(BSRDetail!$H$2:$H$61*(BSRDetail!$A$2:$A$61=$A$1)*(BSRDetail!$F$2:$F$61=Q$1)*(BSRDetail!$B$2:$B$61=$B$1)*(BSRDetail!$E$2:$E$61>=$B23)*(BSRDetail!$E$2:$E$61<$B24)) -> 0 | R23: =SUM(BSRDetail!$H$2:$H$61*(BSRDetail!$A$2:$A$61=$A$1)*(BSRDetail!$F$2:$F$61=R$1)*(BSRDetail!$B$2:$B$61=$B$1)*(BSRDetail!$E$2:$E$61>=$B23)*(BSRDetail!$E$2:$E$61<$B24)) -> 0 | S23: =SUM(BSRDetail!$H$2:$H$61*(BSRDetail!$A$2:$A$61=$A$1)*(BSRDetail!$F$2:$F$61=S$1)*(BSRDetail!$B$2:$B$61=$B$1)*(BSRDetail!$E$2:$E$61>=$B23)*(BSRDetail!$E$2:$E$61<$B24)) -> 0 | T23: =SUM(BSRDetail!$H$2:$H$61*(BSRDetail!$A$2:$A$61=$A$1)*(BSRDetail!$F$2:$F$61=T$1)*(BSRDetail!$B$2:$B$61=$B$1)*(BSRDetail!$E$2:$E$61>=$B23)*(BSRDetail!$E$2:$E$61<$B24)) -> 0 | U23: =SUM(BSRDetail!$H$2:$H$61*(BSRDetail!$A$2:$A$61=$A$1)*(BSRDetail!$F$2:$F$61=U$1)*(BSRDetail!$B$2:$B$61=$B$1)*(BSRDetail!$E$2:$E$61>=$B23)*(BSRDetail!$E$2:$E$61<$B24)) -> 0 | V23: =SUM(BSRDetail!$H$2:$H$61*(BSRDetail!$A$2:$A$61=$A$1)*(BSRDetail!$F$2:$F$61=V$1)*(BSRDetail!$B$2:$B$61=$B$1)*(BSRDetail!$E$2:$E$61>=$B23)*(BSRDetail!$E$2:$E$61<$B24)) -> 0 | W23: =SUM(BSRDetail!$H$2:$H$61*(BSRDetail!$A$2:$A$61=$A$1)*(BSRDetail!$F$2:$F$61=W$1)*(BSRDetail!$B$2:$B$61=$B$1)*(BSRDetail!$E$2:$E$61>=$B23)*(BSRDetail!$E$2:$E$61<$B24)) -> 0 | X23: =SUM(BSRDetail!$H$2:$H$61*(BSRDetail!$A$2:$A$61=$A$1)*(BSRDetail!$F$2:$F$61=X$1)*(BSRDetail!$B$2:$B$61=$B$1)*(BSRDetail!$E$2:$E$61>=$B23)*(BSRDetail!$E$2:$E$61<$B24)) -> 0 | Y23: 0 | Z23: 0 | AA23: =IF(D22=0,AA22,IF($D23=0,Z23+AVERAGE($Y$7:Y22)*$C23/10,Y23)) -> 0 | AB23: 6504.072413 | AC23: =SUM(BSRDetail!$H$2:$H$61*(BSRDetail!$A$2:$A$61=$A$1)*(BSRDetail!$F$2:$F$61=AC$1)*(BSRDetail!$B$2:$B$61=$B$1)*(BSRDetail!$E$2:$E$61>=$B23)*(BSRDetail!$E$2:$E$61<$B24)) -> 0 | AD23: 0.0237 | AE23: 154.1465162 | AF23: =SUM(BSRDetail!$H$2:$H$61*(BSRDetail!$A$2:$A$61=$A$1)*(BSRDetail!$F$2:$F$61=AF$1)*(BSRDetail!$B$2:$B$61=$B$1)*(BSRDetail!$E$2:$E$61>=$B23)*(BSRDetail!$E$2:$E$61<$B24)) -> 0 | AG23: 0 | AH23: 0 | AI23: =SUM(BSRDetail!$H$2:$H$61*(BSRDetail!$A$2:$A$61=$A$1)*(BSRDetail!$F$2:$F$61=AI$1)*(BSRDetail!$B$2:$B$61=$B$1)*(BSRDetail!$E$2:$E$61>=$B23)*(BSRDetail!$E$2:$E$61<$B24)) -> 0 | AJ23: 0 | AK23: =SUM(BSRDetail!$H$2:$H$61*(BSRDetail!$A$2:$A$61=$A$1)*(BSRDetail!$F$2:$F$61=AK$1)*(BSRDetail!$B$2:$B$61=$B$1)*(BSRDetail!$E$2:$E$61>=$B23)*(BSRDetail!$E$2:$E$61<$B24)) -> 0 | AL23: 0.9964658772 | AM23: 0 | AN23: 699.25 | AO23: =SUM(BSRDetail!$H$2:$H$61*(BSRDetail!$A$2:$A$61=$A$1)*(BSRDetail!$F$2:$F$61=AO$1)*(BSRDetail!$B$2:$B$61=$B$1)*(BSRDetail!$E$2:$E$61>=$B23)*(BSRDetail!$E$2:$E$61<$B24)) -> 0 | AP23: 0 | AQ23: =SUM(BSRDetail!$H$2:$H$61*(BSRDetail!$A$2:$A$61=$A$1)*(BSRDetail!$F$2:$F$61=AQ$1)*(BSRDetail!$B$2:$B$61=$B$1)*(BSRDetail!$E$2:$E$61>=$B23)*(BSRDetail!$E$2:$E$61<$B24)) -> 0 | AR23: 0.02360050494 | AS23: 153.4993931 | AT23: =SUM(BSRDetail!$H$2:$H$61*(BSRDetail!$A$2:$A$61=$A$1)*(BSRDetail!$F$2:$F$61=AT$1)*(BSRDetail!$B$2:$B$61=$B$1)*(BSRDetail!$E$2:$E$61>=$B23)*(BSRDetail!$E$2:$E$61<$B24)) -> 0 | AU23: 0.0007 | AV23: 4.552850689 | AW23: =SUM(BSRDetail!$H$2:$H$61*(BSRDetail!$A$2:$A$61=$A$1)*(BSRDetail!$F$2:$F$61=AW$1)*(BSRDetail!$B$2:$B$61=$B$1)*(BSRDetail!$E$2:$E$61>=$B23)*(BSRDetail!$E$2:$E$61<$B24)) -> 0 | AX23: =IF(D23=0,IF(DAY(B23)<15,SUM(AX14:AX22*(DAY(B14:B22)<15))/SUM(1*(DAY(B14:B22)<15)),SUM(AX14:AX22*(DAY(B14:B22)>14))/SUM(1*(DAY(B14:B22)>14))),AW23/AB23) -> 0.01373463393 | AY23: 89.33105366 | AZ23: =SUM(BSRDetail!$H$2:$H$61*(BSRDetail!$A$2:$A$61=$A$1)*(BSRDetail!$F$2:$F$61=AZ$1)*(BSRDetail!$B$2:$B$61=$B$1)*(BSRDetail!$E$2:$E$61>=$B23)*(BSRDetail!$E$2:$E$61<$B24)) -> 0 | BA23: 0 | BB23: 0 | BC23: =SUM(BSRDetail!$H$2:$H$61*(BSRDetail!$A$2:$A$61=$A$1)*(BSRDetail!$F$2:$F$61=BC$1)*(BSRDetail!$B$2:$B$61=$B$1)*(BSRDetail!$E$2:$E$61>=$B23)*(BSRDetail!$E$2:$E$61<$B24)) -> 0 | BD23: =SUM(BSRDetail!$H$2:$H$61*(BSRDetail!$A$2:$A$61=$A$1)*(BSRDetail!$F$2:$F$61=BD$1)*(BSRDetail!$B$2:$B$61=$B$1)*(BSRDetail!$E$2:$E$61>=$B23)*(BSRDetail!$E$2:$E$61<$B24)) -> 0 | BE23: 0 | BF23: 0 | BG23: =SUM(BSRDetail!$H$2:$H$61*(BSRDetail!$A$2:$A$61=$A$1)*(BSRDetail!$F$2:$F$61=BG$1)*(BSRDetail!$B$2:$B$61=$B$1)*(BSRDetail!$E$2:$E$61>=$B23)*(BSRDetail!$E$2:$E$61<$B24)) -> 0 | BH23: =SUM(BSRDetail!$H$2:$H$61*(BSRDetail!$A$2:$A$61=$A$1)*(BSRDetail!$F$2:$F$61=BH$1)*(BSRDetail!$B$2:$B$61=$B$1)*(BSRDetail!$E$2:$E$61>=$B23)*(BSRDetail!$E$2:$E$61<$B24)) -> 0 | BI23: 0 | BJ23: =SUM(BSRDetail!$H$2:$H$61*(BSRDetail!$A$2:$A$61=$A$1)*(BSRDetail!$F$2:$F$61=BJ$1)*(BSRDetail!$B$2:$B$61=$B$1)*(BSRDetail!$E$2:$E$61>=$B23)*(BSRDetail!$E$2:$E$61<$B24)) -> 0 | BK23: =IF($D23=0,AVERAGE(BK$6:BK22)*$C23/10,BJ23) -> 711.45 | BL23: =SUM(BSRDetail!$H$2:$H$61*(BSRDetail!$A$2:$A$61=$A$1)*(BSRDetail!$F$2:$F$61=BL$1)*(BSRDetail!$B$2:$B$61=$B$1)*(BSRDetail!$E$2:$E$61>=$B23)*(BSRDetail!$E$2:$E$61<$B24)) -> 0 | BM23: =IF($D23=0,AVERAGE(BM$6:BM22)*$C23/10,BL23) -> 0 | BN23: =SUM(BSRDetail!$H$2:$H$61*(BSRDetail!$A$2:$A$61=$A$1)*(BSRDetail!$F$2:$F$61=BN$1)*(BSRDetail!$B$2:$B$61=$B$1)*(BSRDetail!$E$2:$E$61>=$B23)*(BSRDetail!$E$2:$E$61<$B24)) -> 0 | BO23: =IF($D23=0,AVERAGE(BO$6:BO22)*$C23/10,BN23) -> 0 | BP23: =SUM(BSRDetail!$H$2:$H$61*(BSRDetail!$A$2:$A$61=$A$1)*(BSRDetail!$F$2:$F$61=BP$1)*(BSRDetail!$B$2:$B$61=$B$1)*(BSRDetail!$E$2:$E$61>=$B23)*(BSRDetail!$E$2:$E$61<$B24)) -> 0 | BQ23: =IF($D23=0,AVERAGE(BQ$6:BQ22)*$C23/10,BP23) -> 0 | BR23: =SUM(BSRDetail!$H$2:$H$61*(BSRDetail!$A$2:$A$61=$A$1)*(BSRDetail!$F$2:$F$61=BR$1)*(BSRDetail!$B$2:$B$61=$B$1)*(BSRDetail!$E$2:$E$61>=$B23)*(BSRDetail!$E$2:$E$61<$B24)) -> 0 | BS23: =IF($D23=0,AVERAGE(BS$6:BS22)*$C23/10,BR23) -> 0 | BT23: =SUM(BSRDetail!$H$2:$H$61*(BSRDetail!$A$2:$A$61=$A$1)*(BSRDetail!$F$2:$F$61=BT$1)*(BSRDetail!$B$2:$B$61=$B$1)*(BSRDetail!$E$2:$E$61>=$B23)*(BSRDetail!$E$2:$E$61<$B24)) -> 0 | BU23: =IF($D23=0,AVERAGE(BU$6:BU22)*$C23/10,BT23) -> 0 | BV23: =SUM(BSRDetail!$H$2:$H$61*(BSRDetail!$A$2:$A$61=$A$1)*(BSRDetail!$F$2:$F$61=BV$1)*(BSRDetail!$B$2:$B$61=$B$1)*(BSRDetail!$E$2:$E$61>=$B23)*(BSRDetail!$E$2:$E$61<$B24)) -> 0 | BW23: =IF($D23=0,AVERAGE(BW$6:BW22)*$C23/10,BV23) -> 0 | BX23: =SUM(BSRDetail!$H$2:$H$61*(BSRDetail!$A$2:$A$61=$A$1)*(BSRDetail!$F$2:$F$61=BX$1)*(BSRDetail!$B$2:$B$61=$B$1)*(BSRDetail!$E$2:$E$61>=$B23)*(BSRDetail!$E$2:$E$61<$B24)) -> 0 | BY23: =IF($D23=0,AVERAGE(BY$6:BY22)*$C23/10,BX23) -> 0 | BZ23: =SUM(BSRDetail!$H$2:$H$61*(BSRDetail!$A$2:$A$61=$A$1)*(BSRDetail!$F$2:$F$61=BZ$1)*(BSRDetail!$B$2:$B$61=$B$1)*(BSRDetail!$E$2:$E$61>=$B23)*(BSRDetail!$E$2:$E$61<$B24)) -> 0 | CA23: =IF($D23=0,AVERAGE(CA$6:CA22)*$C23/10,BZ23) -> 0 | CB23: =SUM(BSRDetail!$H$2:$H$61*(BSRDetail!$A$2:$A$61=$A$1)*(BSRDetail!$F$2:$F$61=CB$1)*(BSRDetail!$B$2:$B$61=$B$1)*(BSRDetail!$E$2:$E$61>=$B23)*(BSRDetail!$E$2:$E$61<$B24)) -> 0 | CC23: =IF($D23=0,AVERAGE(CC$6:CC22)*$C23/10,CB23) -> 0 | CD23: =SUM(BSRDetail!$H$2:$H$61*(BSRDetail!$A$2:$A$61=$A$1)*(BSRDetail!$F$2:$F$61=CD$1)*(BSRDetail!$B$2:$B$61=$B$1)*(BSRDetail!$E$2:$E$61>=$B23)*(BSRDetail!$E$2:$E$61<$B24)) -> 0 | CE23: =IF($D23=0,AVERAGE(CE$6:CE22)*$C23/10,CD23) -> 0 | CF23: =SUM(BSRDetail!$H$2:$H$61*(BSRDetail!$A$2:$A$61=$A$1)*(BSRDetail!$F$2:$F$61=CF$1)*(BSRDetail!$B$2:$B$61=$B$1)*(BSRDetail!$E$2:$E$61>=$B23)*(BSRDetail!$E$2:$E$61<$B24)) -> 0 | CG23: =IF($D23=0,AVERAGE(CG$6:CG22)*$C23/10,CF23) -> 0 | CH23: =SUM(BSRDetail!$H$2:$H$61*(BSRDetail!$A$2:$A$61=$A$1)*(BSRDetail!$F$2:$F$61=CH$1)*(BSRDetail!$B$2:$B$61=$B$1)*(BSRDetail!$E$2:$E$61>=$B23)*(BSRDetail!$E$2:$E$61<$B24)) -> 0 | CI23: =IF($D23=0,AVERAGE(CI$6:CI22)*$C23/10,CH23) -> 0 | CJ23: =SUM(BSRDetail!$H$2:$H$61*(BSRDetail!$A$2:$A$61=$A$1)*(BSRDetail!$F$2:$F$61=CJ$1)*(BSRDetail!$B$2:$B$61=$B$1)*(BSRDetail!$E$2:$E$61>=$B23)*(BSRDetail!$E$2:$E$61<$B24)) -> 0 | CK23: =IF($D23=0,AVERAGE(CK$6:CK22)*$C23/10,CJ23) -> 0 | CL23: =SUM(BSRDetail!$H$2:$H$61*(BSRDetail!$A$2:$A$61=$A$1)*(BSRDetail!$F$2:$F$61=CL$1)*(BSRDetail!$B$2:$B$61=$B$1)*(BSRDetail!$E$2:$E$61>=$B23)*(BSRDetail!$E$2:$E$61<$B24)) -> 0 | CM23: =IF($D23=0,AVERAGE(CM$6:CM22)*$C23/10,CL23) -> 0 | CN23: =SUM(BSRDetail!$H$2:$H$61*(BSRDetail!$A$2:$A$61=$A$1)*(BSRDetail!$F$2:$F$61=CN$1)*(BSRDetail!$B$2:$B$61=$B$1)*(BSRDetail!$E$2:$E$61>=$B23)*(BSRDetail!$E$2:$E$61<$B24)) -> 0 | CO23: =IF($D23=0,AVERAGE(CO$6:CO22)*$C23/10,CN23) -> 0 | CP23: =SUM(BSRDetail!$H$2:$H$61*(BSRDetail!$A$2:$A$61=$A$1)*(BSRDetail!$F$2:$F$61=CP$1)*(BSRDetail!$B$2:$B$61=$B$1)*(BSRDetail!$E$2:$E$61>=$B23)*(BSRDetail!$E$2:$E$61<$B24)) -> 0 | CQ23: =IF($D23=0,AVERAGE(CQ$6:CQ22)*$C23/10,CP23) -> 0 | CR23: =SUM(BSRDetail!$H$2:$H$61*(BSRDetail!$A$2:$A$61=$A$1)*(BSRDetail!$F$2:$F$61=CR$1)*(BSRDetail!$B$2:$B$61=$B$1)*(BSRDetail!$E$2:$E$61>=$B23)*(BSRDetail!$E$2:$E$61<$B24)) -> 0 | CS23: =IF($D23=0,AVERAGE(CS$6:CS22)*$C23/10,CR23) -> 0 | CT23: =SUM(BSRDetail!$H$2:$H$61*(BSRDetail!$A$2:$A$61=$A$1)*(BSRDetail!$F$2:$F$61=CT$1)*(BSRDetail!$B$2:$B$61=$B$1)*(BSRDetail!$E$2:$E$61>=$B23)*(BSRDetail!$E$2:$E$61<$B24)) -> 0 | CU23: =IF($D23=0,AVERAGE(CU$6:CU22)*$C23/10,CT23) -> 0 | CV23: =SUM(BSRDetail!$H$2:$H$61*(BSRDetail!$A$2:$A$61=$A$1)*(BSRDetail!$F$2:$F$61=CV$1)*(BSRDetail!$B$2:$B$61=$B$1)*(BSRDetail!$E$2:$E$61>=$B23)*(BSRDetail!$E$2:$E$61<$B24)) -> 0 | CW23: =IF($D23=0,AVERAGE(CW$6:CW22)*$C23/10,CV23) -> 0
A24: 0 | B24: 2017-03-24 | C24: 10 | D24: =SUM(BSRDetail!$H$2:$H$61*(BSRDetail!$A$2:$A$61=$A$1)*(BSRDetail!$F$2:$F$61=D$1)*(BSRDetail!$B$2:$B$61=$B$1)*(BSRDetail!$E$2:$E$61>=$B24)*(BSRDetail!$E$2:$E$61<$B25)) -> 0 | E24: =SUM(BSRDetail!$H$2:$H$61*(BSRDetail!$A$2:$A$61=$A$1)*(BSRDetail!$F$2:$F$61=E$1)*(BSRDetail!$B$2:$B$61=$B$1)*(BSRDetail!$E$2:$E$61>=$B24)*(BSRDetail!$E$2:$E$61<$B25)) -> 0 | F24: =SUM(BSRDetail!$H$2:$H$61*(BSRDetail!$A$2:$A$61=$A$1)*(BSRDetail!$F$2:$F$61=F$1)*(BSRDetail!$B$2:$B$61=$B$1)*(BSRDetail!$E$2:$E$61>=$B24)*(BSRDetail!$E$2:$E$61<$B25)) -> 0 | G24: =SUM(BSRDetail!$H$2:$H$61*(BSRDetail!$A$2:$A$61=$A$1)*(BSRDetail!$F$2:$F$61=G$1)*(BSRDetail!$B$2:$B$61=$B$1)*(BSRDetail!$E$2:$E$61>=$B24)*(BSRDetail!$E$2:$E$61<$B25)) -> 0 | H24: =SUM(BSRDetail!$H$2:$H$61*(BSRDetail!$A$2:$A$61=$A$1)*(BSRDetail!$F$2:$F$61=H$1)*(BSRDetail!$B$2:$B$61=$B$1)*(BSRDetail!$E$2:$E$61>=$B24)*(BSRDetail!$E$2:$E$61<$B25)) -> 0 | I24: =SUM(BSRDetail!$H$2:$H$61*(BSRDetail!$A$2:$A$61=$A$1)*(BSRDetail!$F$2:$F$61=I$1)*(BSRDetail!$B$2:$B$61=$B$1)*(BSRDetail!$E$2:$E$61>=$B24)*(BSRDetail!$E$2:$E$61<$B25)) -> 0 | J24: 0 | K24: 6502.558021 | L24: 0 | M24: 6502.558021 | N24: =SUM(BSRDetail!$H$2:$H$61*(BSRDetail!$A$2:$A$61=$A$1)*(BSRDetail!$F$2:$F$61=N$1)*(BSRDetail!$B$2:$B$61=$B$1)*(BSRDetail!$E$2:$E$61>=$B24)*(BSRDetail!$E$2:$E$61<$B25)) -> 0 | O24: =SUM(BSRDetail!$H$2:$H$61*(BSRDetail!$A$2:$A$61=$A$1)*(BSRDetail!$F$2:$F$61=O$1)*(BSRDetail!$B$2:$B$61=$B$1)*(BSRDetail!$E$2:$E$61>=$B24)*(BSRDetail!$E$2:$E$61<$B25)) -> 0 | P24: =SUM(BSRDetail!$H$2:$H$61*(BSRDetail!$A$2:$A$61=$A$1)*(BSRDetail!$F$2:$F$61=P$1)*(BSRDetail!$B$2:$B$61=$B$1)*(BSRDetail!$E$2:$E$61>=$B24)*(BSRDetail!$E$2:$E$61<$B25)) -> 0 | Q24: =SUM(BSRDetail!$H$2:$H$61*(BSRDetail!$A$2:$A$61=$A$1)*(BSRDetail!$F$2:$F$61=Q$1)*(BSRDetail!$B$2:$B$61=$B$1)*(BSRDetail!$E$2:$E$61>=$B24)*(BSRDetail!$E$2:$E$61<$B25)) -> 0 | R24: =SUM(BSRDetail!$H$2:$H$61*(BSRDetail!$A$2:$A$61=$A$1)*(BSRDetail!$F$2:$F$61=R$1)*(BSRDetail!$B$2:$B$61=$B$1)*(BSRDetail!$E$2:$E$61>=$B24)*(BSRDetail!$E$2:$E$61<$B25)) -> 0 | S24: =SUM(BSRDetail!$H$2:$H$61*(BSRDetail!$A$2:$A$61=$A$1)*(BSRDetail!$F$2:$F$61=S$1)*(BSRDetail!$B$2:$B$61=$B$1)*(BSRDetail!$E$2:$E$61>=$B24)*(BSRDetail!$E$2:$E$61<$B25)) -> 0 | T24: =SUM(BSRDetail!$H$2:$H$61*(BSRDetail!$A$2:$A$61=$A$1)*(BSRDetail!$F$2:$F$61=T$1)*(BSRDetail!$B$2:$B$61=$B$1)*(BSRDetail!$E$2:$E$61>=$B24)*(BSRDetail!$E$2:$E$61<$B25)) -> 0 | U24: =SUM(BSRDetail!$H$2:$H$61*(BSRDetail!$A$2:$A$61=$A$1)*(BSRDetail!$F$2:$F$61=U$1)*(BSRDetail!$B$2:$B$61=$B$1)*(BSRDetail!$E$2:$E$61>=$B24)*(BSRDetail!$E$2:$E$61<$B25)) -> 0 | V24: =SUM(BSRDetail!$H$2:$H$61*(BSRDetail!$A$2:$A$61=$A$1)*(BSRDetail!$F$2:$F$61=V$1)*(BSRDetail!$B$2:$B$61=$B$1)*(BSRDetail!$E$2:$E$61>=$B24)*(BSRDetail!$E$2:$E$61<$B25)) -> 0 | W24: =SUM(BSRDetail!$H$2:$H$61*(BSRDetail!$A$2:$A$61=$A$1)*(BSRDetail!$F$2:$F$61=W$1)*(BSRDetail!$B$2:$B$61=$B$1)*(BSRDetail!$E$2:$E$61>=$B24)*(BSRDetail!$E$2:$E$61<$B25)) -> 0 | X24: =SUM(BSRDetail!$H$2:$H$61*(BSRDetail!$A$2:$A$61=$A$1)*(BSRDetail!$F$2:$F$61=X$1)*(BSRDetail!$B$2:$B$61=$B$1)*(BSRDetail!$E$2:$E$61>=$B24)*(BSRDetail!$E$2:$E$61<$B25)) -> 0 | Y24: 0 | Z24: 0 | AA24: =IF(D23=0,AA23,IF($D24=0,Z24+AVERAGE($Y$7:Y23)*$C24/10,Y24)) -> 0 | AB24: 6502.558021 | AC24: =SUM(BSRDetail!$H$2:$H$61*(BSRDetail!$A$2:$A$61=$A$1)*(BSRDetail!$F$2:$F$61=AC$1)*(BSRDetail!$B$2:$B$61=$B$1)*(BSRDetail!$E$2:$E$61>=$B24)*(BSRDetail!$E$2:$E$61<$B25)) -> 0 | AD24: 0.0237 | AE24: 154.1106251 | AF24: =SUM(BSRDetail!$H$2:$H$61*(BSRDetail!$A$2:$A$61=$A$1)*(BSRDetail!$F$2:$F$61=AF$1)*(BSRDetail!$B$2:$B$61=$B$1)*(BSRDetail!$E$2:$E$61>=$B24)*(BSRDetail!$E$2:$E$61<$B25)) -> 0 | AG24: 0 | AH24: 0 | AI24: =SUM(BSRDetail!$H$2:$H$61*(BSRDetail!$A$2:$A$61=$A$1)*(BSRDetail!$F$2:$F$61=AI$1)*(BSRDetail!$B$2:$B$61=$B$1)*(BSRDetail!$E$2:$E$61>=$B24)*(BSRDetail!$E$2:$E$61<$B25)) -> 0 | AJ24: 0 | AK24: =SUM(BSRDetail!$H$2:$H$61*(BSRDetail!$A$2:$A$61=$A$1)*(BSRDetail!$F$2:$F$61=AK$1)*(BSRDetail!$B$2:$B$61=$B$1)*(BSRDetail!$E$2:$E$61>=$B24)*(BSRDetail!$E$2:$E$61<$B25)) -> 0 | AL24: 0 | AM24: 0 | AN24: 0 | AO24: =SUM(BSRDetail!$H$2:$H$61*(BSRDetail!$A$2:$A$61=$A$1)*(BSRDetail!$F$2:$F$61=AO$1)*(BSRDetail!$B$2:$B$61=$B$1)*(BSRDetail!$E$2:$E$61>=$B24)*(BSRDetail!$E$2:$E$61<$B25)) -> 0 | AP24: 0 | AQ24: =SUM(BSRDetail!$H$2:$H$61*(BSRDetail!$A$2:$A$61=$A$1)*(BSRDetail!$F$2:$F$61=AQ$1)*(BSRDetail!$B$2:$B$61=$B$1)*(BSRDetail!$E$2:$E$61>=$B24)*(BSRDetail!$E$2:$E$61<$B25)) -> 0 | AR24: 0.02360050494 | AS24: 153.4636527 | AT24: =SUM(BSRDetail!$H$2:$H$61*(BSRDetail!$A$2:$A$61=$A$1)*(BSRDetail!$F$2:$F$61=AT$1)*(BSRDetail!$B$2:$B$61=$B$1)*(BSRDetail!$E$2:$E$61>=$B24)*(BSRDetail!$E$2:$E$61<$B25)) -> 0 | AU24: 0.0007 | AV24: =IF($D24=0,AB24*AU24,AT24) -> 4.551790615 | AW24: =SUM(BSRDetail!$H$2:$H$61*(BSRDetail!$A$2:$A$61=$A$1)*(BSRDetail!$F$2:$F$61=AW$1)*(BSRDetail!$B$2:$B$61=$B$1)*(BSRDetail!$E$2:$E$61>=$B24)*(BSRDetail!$E$2:$E$61<$B25)) -> 0 | AX24: =IF(D24=0,IF(DAY(B24)<15,SUM(AX15:AX23*(DAY(B15:B23)<15))/SUM(1*(DAY(B15:B23)<15)),SUM(AX15:AX23*(DAY(B15:B23)>14))/SUM(1*(DAY(B15:B23)>14))),AW24/AB24) -> 0.01450022196 | AY24: =IF($D24=0,AB24*AX24,AW24) -> 94.28853459 | AZ24: =SUM(BSRDetail!$H$2:$H$61*(BSRDetail!$A$2:$A$61=$A$1)*(BSRDetail!$F$2:$F$61=AZ$1)*(BSRDetail!$B$2:$B$61=$B$1)*(BSRDetail!$E$2:$E$61>=$B24)*(BSRDetail!$E$2:$E$61<$B25)) -> 0 | BA24: 0 | BB24: 0 | BC24: =SUM(BSRDetail!$H$2:$H$61*(BSRDetail!$A$2:$A$61=$A$1)*(BSRDetail!$F$2:$F$61=BC$1)*(BSRDetail!$B$2:$B$61=$B$1)*(BSRDetail!$E$2:$E$61>=$B24)*(BSRDetail!$E$2:$E$61<$B25)) -> 0 | BD24: =SUM(BSRDetail!$H$2:$H$61*(BSRDetail!$A$2:$A$61=$A$1)*(BSRDetail!$F$2:$F$61=BD$1)*(BSRDetail!$B$2:$B$61=$B$1)*(BSRDetail!$E$2:$E$61>=$B24)*(BSRDetail!$E$2:$E$61<$B25)) -> 0 | BE24: 0 | BF24: 0 | BG24: =SUM(BSRDetail!$H$2:$H$61*(BSRDetail!$A$2:$A$61=$A$1)*(BSRDetail!$F$2:$F$61=BG$1)*(BSRDetail!$B$2:$B$61=$B$1)*(BSRDetail!$E$2:$E$61>=$B24)*(BSRDetail!$E$2:$E$61<$B25)) -> 0 | BH24: =SUM(BSRDetail!$H$2:$H$61*(BSRDetail!$A$2:$A$61=$A$1)*(BSRDetail!$F$2:$F$61=BH$1)*(BSRDetail!$B$2:$B$61=$B$1)*(BSRDetail!$E$2:$E$61>=$B24)*(BSRDetail!$E$2:$E$61<$B25)) -> 0 | BI24: 0 | BJ24: =SUM(BSRDetail!$H$2:$H$61*(BSRDetail!$A$2:$A$61=$A$1)*(BSRDetail!$F$2:$F$61=BJ$1)*(BSRDetail!$B$2:$B$61=$B$1)*(BSRDetail!$E$2:$E$61>=$B24)*(BSRDetail!$E$2:$E$61<$B25)) -> 0 | BK24: =IF($D24=0,AVERAGE(BK$6:BK23)*$C24/10,BJ24) -> 711.45 | BL24: =SUM(BSRDetail!$H$2:$H$61*(BSRDetail!$A$2:$A$61=$A$1)*(BSRDetail!$F$2:$F$61=BL$1)*(BSRDetail!$B$2:$B$61=$B$1)*(BSRDetail!$E$2:$E$61>=$B24)*(BSRDetail!$E$2:$E$61<$B25)) -> 0 | BM24: =IF($D24=0,AVERAGE(BM$6:BM23)*$C24/10,BL24) -> 0 | BN24: =SUM(BSRDetail!$H$2:$H$61*(BSRDetail!$A$2:$A$61=$A$1)*(BSRDetail!$F$2:$F$61=BN$1)*(BSRDetail!$B$2:$B$61=$B$1)*(BSRDetail!$E$2:$E$61>=$B24)*(BSRDetail!$E$2:$E$61<$B25)) -> 0 | BO24: =IF($D24=0,AVERAGE(BO$6:BO23)*$C24/10,BN24) -> 0 | BP24: =SUM(BSRDetail!$H$2:$H$61*(BSRDetail!$A$2:$A$61=$A$1)*(BSRDetail!$F$2:$F$61=BP$1)*(BSRDetail!$B$2:$B$61=$B$1)*(BSRDetail!$E$2:$E$61>=$B24)*(BSRDetail!$E$2:$E$61<$B25)) -> 0 | BQ24: =IF($D24=0,AVERAGE(BQ$6:BQ23)*$C24/10,BP24) -> 0 | BR24: =SUM(BSRDetail!$H$2:$H$61*(BSRDetail!$A$2:$A$61=$A$1)*(BSRDetail!$F$2:$F$61=BR$1)*(BSRDetail!$B$2:$B$61=$B$1)*(BSRDetail!$E$2:$E$61>=$B24)*(BSRDetail!$E$2:$E$61<$B25)) -> 0 | BS24: =IF($D24=0,AVERAGE(BS$6:BS23)*$C24/10,BR24) -> 0 | BT24: =SUM(BSRDetail!$H$2:$H$61*(BSRDetail!$A$2:$A$61=$A$1)*(BSRDetail!$F$2:$F$61=BT$1)*(BSRDetail!$B$2:$B$61=$B$1)*(BSRDetail!$E$2:$E$61>=$B24)*(BSRDetail!$E$2:$E$61<$B25)) -> 0 | BU24: =IF($D24=0,AVERAGE(BU$6:BU23)*$C24/10,BT24) -> 0 | BV24: =SUM(BSRDetail!$H$2:$H$61*(BSRDetail!$A$2:$A$61=$A$1)*(BSRDetail!$F$2:$F$61=BV$1)*(BSRDetail!$B$2:$B$61=$B$1)*(BSRDetail!$E$2:$E$61>=$B24)*(BSRDetail!$E$2:$E$61<$B25)) -> 0 | BW24: =IF($D24=0,AVERAGE(BW$6:BW23)*$C24/10,BV24) -> 0 | BX24: =SUM(BSRDetail!$H$2:$H$61*(BSRDetail!$A$2:$A$61=$A$1)*(BSRDetail!$F$2:$F$61=BX$1)*(BSRDetail!$B$2:$B$61=$B$1)*(BSRDetail!$E$2:$E$61>=$B24)*(BSRDetail!$E$2:$E$61<$B25)) -> 0 | BY24: =IF($D24=0,AVERAGE(BY$6:BY23)*$C24/10,BX24) -> 0 | BZ24: =SUM(BSRDetail!$H$2:$H$61*(BSRDetail!$A$2:$A$61=$A$1)*(BSRDetail!$F$2:$F$61=BZ$1)*(BSRDetail!$B$2:$B$61=$B$1)*(BSRDetail!$E$2:$E$61>=$B24)*(BSRDetail!$E$2:$E$61<$B25)) -> 0 | CA24: =IF($D24=0,AVERAGE(CA$6:CA23)*$C24/10,BZ24) -> 0 | CB24: =SUM(BSRDetail!$H$2:$H$61*(BSRDetail!$A$2:$A$61=$A$1)*(BSRDetail!$F$2:$F$61=CB$1)*(BSRDetail!$B$2:$B$61=$B$1)*(BSRDetail!$E$2:$E$61>=$B24)*(BSRDetail!$E$2:$E$61<$B25)) -> 0 | CC24: =IF($D24=0,AVERAGE(CC$6:CC23)*$C24/10,CB24) -> 0 | CD24: =SUM(BSRDetail!$H$2:$H$61*(BSRDetail!$A$2:$A$61=$A$1)*(BSRDetail!$F$2:$F$61=CD$1)*(BSRDetail!$B$2:$B$61=$B$1)*(BSRDetail!$E$2:$E$61>=$B24)*(BSRDetail!$E$2:$E$61<$B25)) -> 0 | CE24: =IF($D24=0,AVERAGE(CE$6:CE23)*$C24/10,CD24) -> 0 | CF24: =SUM(BSRDetail!$H$2:$H$61*(BSRDetail!$A$2:$A$61=$A$1)*(BSRDetail!$F$2:$F$61=CF$1)*(BSRDetail!$B$2:$B$61=$B$1)*(BSRDetail!$E$2:$E$61>=$B24)*(BSRDetail!$E$2:$E$61<$B25)) -> 0 | CG24: =IF($D24=0,AVERAGE(CG$6:CG23)*$C24/10,CF24) -> 0 | CH24: =SUM(BSRDetail!$H$2:$H$61*(BSRDetail!$A$2:$A$61=$A$1)*(BSRDetail!$F$2:$F$61=CH$1)*(BSRDetail!$B$2:$B$61=$B$1)*(BSRDetail!$E$2:$E$61>=$B24)*(BSRDetail!$E$2:$E$61<$B25)) -> 0 | CI24: =IF($D24=0,AVERAGE(CI$6:CI23)*$C24/10,CH24) -> 0 | CJ24: =SUM(BSRDetail!$H$2:$H$61*(BSRDetail!$A$2:$A$61=$A$1)*(BSRDetail!$F$2:$F$61=CJ$1)*(BSRDetail!$B$2:$B$61=$B$1)*(BSRDetail!$E$2:$E$61>=$B24)*(BSRDetail!$E$2:$E$61<$B25)) -> 0 | CK24: =IF($D24=0,AVERAGE(CK$6:CK23)*$C24/10,CJ24) -> 0 | CL24: =SUM(BSRDetail!$H$2:$H$61*(BSRDetail!$A$2:$A$61=$A$1)*(BSRDetail!$F$2:$F$61=CL$1)*(BSRDetail!$B$2:$B$61=$B$1)*(BSRDetail!$E$2:$E$61>=$B24)*(BSRDetail!$E$2:$E$61<$B25)) -> 0 | CM24: =IF($D24=0,AVERAGE(CM$6:CM23)*$C24/10,CL24) -> 0 | CN24: =SUM(BSRDetail!$H$2:$H$61*(BSRDetail!$A$2:$A$61=$A$1)*(BSRDetail!$F$2:$F$61=CN$1)*(BSRDetail!$B$2:$B$61=$B$1)*(BSRDetail!$E$2:$E$61>=$B24)*(BSRDetail!$E$2:$E$61<$B25)) -> 0 | CO24: =IF($D24=0,AVERAGE(CO$6:CO23)*$C24/10,CN24) -> 0 | CP24: =SUM(BSRDetail!$H$2:$H$61*(BSRDetail!$A$2:$A$61=$A$1)*(BSRDetail!$F$2:$F$61=CP$1)*(BSRDetail!$B$2:$B$61=$B$1)*(BSRDetail!$E$2:$E$61>=$B24)*(BSRDetail!$E$2:$E$61<$B25)) -> 0 | CQ24: =IF($D24=0,AVERAGE(CQ$6:CQ23)*$C24/10,CP24) -> 0 | CR24: =SUM(BSRDetail!$H$2:$H$61*(BSRDetail!$A$2:$A$61=$A$1)*(BSRDetail!$F$2:$F$61=CR$1)*(BSRDetail!$B$2:$B$61=$B$1)*(BSRDetail!$E$2:$E$61>=$B24)*(BSRDetail!$E$2:$E$61<$B25)) -> 0 | CS24: =IF($D24=0,AVERAGE(CS$6:CS23)*$C24/10,CR24) -> 0 | CT24: =SUM(BSRDetail!$H$2:$H$61*(BSRDetail!$A$2:$A$61=$A$1)*(BSRDetail!$F$2:$F$61=CT$1)*(BSRDetail!$B$2:$B$61=$B$1)*(BSRDetail!$E$2:$E$61>=$B24)*(BSRDetail!$E$2:$E$61<$B25)) -> 0 | CU24: =IF($D24=0,AVERAGE(CU$6:CU23)*$C24/10,CT24) -> 0 | CV24: =SUM(BSRDetail!$H$2:$H$61*(BSRDetail!$A$2:$A$61=$A$1)*(BSRDetail!$F$2:$F$61=CV$1)*(BSRDetail!$B$2:$B$61=$B$1)*(BSRDetail!$E$2:$E$61>=$B24)*(BSRDetail!$E$2:$E$61<$B25)) -> 0 | CW24: =IF($D24=0,AVERAGE(CW$6:CW23)*$C24/10,CV24) -> 0
A25: 0 | B25: 2017-04-07 | C25: 10 | D25: =SUM(BSRDetail!$H$2:$H$61*(BSRDetail!$A$2:$A$61=$A$1)*(BSRDetail!$F$2:$F$61=D$1)*(BSRDetail!$B$2:$B$61=$B$1)*(BSRDetail!$E$2:$E$61>=$B25)*(BSRDetail!$E$2:$E$61<$B26)) -> 0 | E25: =SUM(BSRDetail!$H$2:$H$61*(BSRDetail!$A$2:$A$61=$A$1)*(BSRDetail!$F$2:$F$61=E$1)*(BSRDetail!$B$2:$B$61=$B$1)*(BSRDetail!$E$2:$E$61>=$B25)*(BSRDetail!$E$2:$E$61<$B26)) -> 0 | F25: =SUM(BSRDetail!$H$2:$H$61*(BSRDetail!$A$2:$A$61=$A$1)*(BSRDetail!$F$2:$F$61=F$1)*(BSRDetail!$B$2:$B$61=$B$1)*(BSRDetail!$E$2:$E$61>=$B25)*(BSRDetail!$E$2:$E$61<$B26)) -> 0 | G25: =SUM(BSRDetail!$H$2:$H$61*(BSRDetail!$A$2:$A$61=$A$1)*(BSRDetail!$F$2:$F$61=G$1)*(BSRDetail!$B$2:$B$61=$B$1)*(BSRDetail!$E$2:$E$61>=$B25)*(BSRDetail!$E$2:$E$61<$B26)) -> 0 | H25: =SUM(BSRDetail!$H$2:$H$61*(BSRDetail!$A$2:$A$61=$A$1)*(BSRDetail!$F$2:$F$61=H$1)*(BSRDetail!$B$2:$B$61=$B$1)*(BSRDetail!$E$2:$E$61>=$B25)*(BSRDetail!$E$2:$E$61<$B26)) -> 0 | I25: =SUM(BSRDetail!$H$2:$H$61*(BSRDetail!$A$2:$A$61=$A$1)*(BSRDetail!$F$2:$F$61=I$1)*(BSRDetail!$B$2:$B$61=$B$1)*(BSRDetail!$E$2:$E$61>=$B25)*(BSRDetail!$E$2:$E$61<$B26)) -> 0 | J25: 0 | K25: =IF($D25=0,AVERAGE(K21:K24)*$C25/10,J25) -> 6503.186595 | L25: 0 | M25: 6503.186595 | N25: =SUM(BSRDetail!$H$2:$H$61*(BSRDetail!$A$2:$A$61=$A$1)*(BSRDetail!$F$2:$F$61=N$1)*(BSRDetail!$B$2:$B$61=$B$1)*(BSRDetail!$E$2:$E$61>=$B25)*(BSRDetail!$E$2:$E$61<$B26)) -> 0 | O25: =SUM(BSRDetail!$H$2:$H$61*(BSRDetail!$A$2:$A$61=$A$1)*(BSRDetail!$F$2:$F$61=O$1)*(BSRDetail!$B$2:$B$61=$B$1)*(BSRDetail!$E$2:$E$61>=$B25)*(BSRDetail!$E$2:$E$61<$B26)) -> 0 | P25: =SUM(BSRDetail!$H$2:$H$61*(BSRDetail!$A$2:$A$61=$A$1)*(BSRDetail!$F$2:$F$61=P$1)*(BSRDetail!$B$2:$B$61=$B$1)*(BSRDetail!$E$2:$E$61>=$B25)*(BSRDetail!$E$2:$E$61<$B26)) -> 0 | Q25: =SUM(BSRDetail!$H$2:$H$61*(BSRDetail!$A$2:$A$61=$A$1)*(BSRDetail!$F$2:$F$61=Q$1)*(BSRDetail!$B$2:$B$61=$B$1)*(BSRDetail!$E$2:$E$61>=$B25)*(BSRDetail!$E$2:$E$61<$B26)) -> 0 | R25: =SUM(BSRDetail!$H$2:$H$61*(BSRDetail!$A$2:$A$61=$A$1)*(BSRDetail!$F$2:$F$61=R$1)*(BSRDetail!$B$2:$B$61=$B$1)*(BSRDetail!$E$2:$E$61>=$B25)*(BSRDetail!$E$2:$E$61<$B26)) -> 0 | S25: =SUM(BSRDetail!$H$2:$H$61*(BSRDetail!$A$2:$A$61=$A$1)*(BSRDetail!$F$2:$F$61=S$1)*(BSRDetail!$B$2:$B$61=$B$1)*(BSRDetail!$E$2:$E$61>=$B25)*(BSRDetail!$E$2:$E$61<$B26)) -> 0 | T25: =SUM(BSRDetail!$H$2:$H$61*(BSRDetail!$A$2:$A$61=$A$1)*(BSRDetail!$F$2:$F$61=T$1)*(BSRDetail!$B$2:$B$61=$B$1)*(BSRDetail!$E$2:$E$61>=$B25)*(BSRDetail!$E$2:$E$61<$B26)) -> 0 | U25: =SUM(BSRDetail!$H$2:$H$61*(BSRDetail!$A$2:$A$61=$A$1)*(BSRDetail!$F$2:$F$61=U$1)*(BSRDetail!$B$2:$B$61=$B$1)*(BSRDetail!$E$2:$E$61>=$B25)*(BSRDetail!$E$2:$E$61<$B26)) -> 0 | V25: =SUM(BSRDetail!$H$2:$H$61*(BSRDetail!$A$2:$A$61=$A$1)*(BSRDetail!$F$2:$F$61=V$1)*(BSRDetail!$B$2:$B$61=$B$1)*(BSRDetail!$E$2:$E$61>=$B25)*(BSRDetail!$E$2:$E$61<$B26)) -> 0 | W25: =SUM(BSRDetail!$H$2:$H$61*(BSRDetail!$A$2:$A$61=$A$1)*(BSRDetail!$F$2:$F$61=W$1)*(BSRDetail!$B$2:$B$61=$B$1)*(BSRDetail!$E$2:$E$61>=$B25)*(BSRDetail!$E$2:$E$61<$B26)) -> 0 | X25: =SUM(BSRDetail!$H$2:$H$61*(BSRDetail!$A$2:$A$61=$A$1)*(BSRDetail!$F$2:$F$61=X$1)*(BSRDetail!$B$2:$B$61=$B$1)*(BSRDetail!$E$2:$E$61>=$B25)*(BSRDetail!$E$2:$E$61<$B26)) -> 0 | Y25: 0 | Z25: 0 | AA25: =IF(D24=0,AA24,IF($D25=0,Z25+AVERAGE($Y$7:Y24)*$C25/10,Y25)) -> 0 | AB25: 6503.186595 | AC25: =SUM(BSRDetail!$H$2:$H$61*(BSRDetail!$A$2:$A$61=$A$1)*(BSRDetail!$F$2:$F$61=AC$1)*(BSRDetail!$B$2:$B$61=$B$1)*(BSRDetail!$E$2:$E$61>=$B25)*(BSRDetail!$E$2:$E$61<$B26)) -> 0 | AD25: 0.0237 | AE25: 154.1255223 | AF25: =SUM(BSRDetail!$H$2:$H$61*(BSRDetail!$A$2:$A$61=$A$1)*(BSRDetail!$F$2:$F$61=AF$1)*(BSRDetail!$B$2:$B$61=$B$1)*(BSRDetail!$E$2:$E$61>=$B25)*(BSRDetail!$E$2:$E$61<$B26)) -> 0 | AG25: 0 | AH25: 0 | AI25: =SUM(BSRDetail!$H$2:$H$61*(BSRDetail!$A$2:$A$61=$A$1)*(BSRDetail!$F$2:$F$61=AI$1)*(BSRDetail!$B$2:$B$61=$B$1)*(BSRDetail!$E$2:$E$61>=$B25)*(BSRDetail!$E$2:$E$61<$B26)) -> 0 | AJ25: 0 | AK25: =SUM(BSRDetail!$H$2:$H$61*(BSRDetail!$A$2:$A$61=$A$1)*(BSRDetail!$F$2:$F$61=AK$1)*(BSRDetail!$B$2:$B$61=$B$1)*(BSRDetail!$E$2:$E$61>=$B25)*(BSRDetail!$E$2:$E$61<$B26)) -> 0 | AL25: 0.9964658772 | AM25: 0 | AN25: 699.25 | AO25: =SUM(BSRDetail!$H$2:$H$61*(BSRDetail!$A$2:$A$61=$A$1)*(BSRDetail!$F$2:$F$61=AO$1)*(BSRDetail!$B$2:$B$61=$B$1)*(BSRDetail!$E$2:$E$61>=$B25)*(BSRDetail!$E$2:$E$61<$B26)) -> 0 | AP25: 0 | AQ25: =SUM(BSRDetail!$H$2:$H$61*(BSRDetail!$A$2:$A$61=$A$1)*(BSRDetail!$F$2:$F$61=AQ$1)*(BSRDetail!$B$2:$B$61=$B$1)*(BSRDetail!$E$2:$E$61>=$B25)*(BSRDetail!$E$2:$E$61<$B26)) -> 0 | AR25: 0.02360050494 | AS25: 153.4784874 | AT25: =SUM(BSRDetail!$H$2:$H$61*(BSRDetail!$A$2:$A$61=$A$1)*(BSRDetail!$F$2:$F$61=AT$1)*(BSRDetail!$B$2:$B$61=$B$1)*(BSRDetail!$E$2:$E$61>=$B25)*(BSRDetail!$E$2:$E$61<$B26)) -> 0 | AU25: 0.0007 | AV25: =IF($D25=0,AB25*AU25,AT25) -> 4.552230617 | AW25: =SUM(BSRDetail!$H$2:$H$61*(BSRDetail!$A$2:$A$61=$A$1)*(BSRDetail!$F$2:$F$61=AW$1)*(BSRDetail!$B$2:$B$61=$B$1)*(BSRDetail!$E$2:$E$61>=$B25)*(BSRDetail!$E$2:$E$61<$B26)) -> 0 | AX25: =IF(D25=0,IF(DAY(B25)<15,SUM(AX16:AX24*(DAY(B16:B24)<15))/SUM(1*(DAY(B16:B24)<15)),SUM(AX16:AX24*(DAY(B16:B24)>14))/SUM(1*(DAY(B16:B24)>14))),AW25/AB25) -> 0.01373904557 | AY25: =IF($D25=0,AB25*AX25,AW25) -> 89.34757698 | AZ25: =SUM(BSRDetail!$H$2:$H$61*(BSRDetail!$A$2:$A$61=$A$1)*(BSRDetail!$F$2:$F$61=AZ$1)*(BSRDetail!$B$2:$B$61=$B$1)*(BSRDetail!$E$2:$E$61>=$B25)*(BSRDetail!$E$2:$E$61<$B26)) -> 0 | BA25: 0 | BB25: 0 | BC25: =SUM(BSRDetail!$H$2:$H$61*(BSRDetail!$A$2:$A$61=$A$1)*(BSRDetail!$F$2:$F$61=BC$1)*(BSRDetail!$B$2:$B$61=$B$1)*(BSRDetail!$E$2:$E$61>=$B25)*(BSRDetail!$E$2:$E$61<$B26)) -> 0 | BD25: =SUM(BSRDetail!$H$2:$H$61*(BSRDetail!$A$2:$A$61=$A$1)*(BSRDetail!$F$2:$F$61=BD$1)*(BSRDetail!$B$2:$B$61=$B$1)*(BSRDetail!$E$2:$E$61>=$B25)*(BSRDetail!$E$2:$E$61<$B26)) -> 0 | BE25: 0 | BF25: 0 | BG25: =SUM(BSRDetail!$H$2:$H$61*(BSRDetail!$A$2:$A$61=$A$1)*(BSRDetail!$F$2:$F$61=BG$1)*(BSRDetail!$B$2:$B$61=$B$1)*(BSRDetail!$E$2:$E$61>=$B25)*(BSRDetail!$E$2:$E$61<$B26)) -> 0 | BH25: =SUM(BSRDetail!$H$2:$H$61*(BSRDetail!$A$2:$A$61=$A$1)*(BSRDetail!$F$2:$F$61=BH$1)*(BSRDetail!$B$2:$B$61=$B$1)*(BSRDetail!$E$2:$E$61>=$B25)*(BSRDetail!$E$2:$E$61<$B26)) -> 0 | BI25: 0 | BJ25: =SUM(BSRDetail!$H$2:$H$61*(BSRDetail!$A$2:$A$61=$A$1)*(BSRDetail!$F$2:$F$61=BJ$1)*(BSRDetail!$B$2:$B$61=$B$1)*(BSRDetail!$E$2:$E$61>=$B25)*(BSRDetail!$E$2:$E$61<$B26)) -> 0 | BK25: =IF($D25=0,AVERAGE(BK$6:BK24)*$C25/10,BJ25) -> 711.45 | BL25: =SUM(BSRDetail!$H$2:$H$61*(BSRDetail!$A$2:$A$61=$A$1)*(BSRDetail!$F$2:$F$61=BL$1)*(BSRDetail!$B$2:$B$61=$B$1)*(BSRDetail!$E$2:$E$61>=$B25)*(BSRDetail!$E$2:$E$61<$B26)) -> 0 | BM25: =IF($D25=0,AVERAGE(BM$6:BM24)*$C25/10,BL25) -> 0 | BN25: =SUM(BSRDetail!$H$2:$H$61*(BSRDetail!$A$2:$A$61=$A$1)*(BSRDetail!$F$2:$F$61=BN$1)*(BSRDetail!$B$2:$B$61=$B$1)*(BSRDetail!$E$2:$E$61>=$B25)*(BSRDetail!$E$2:$E$61<$B26)) -> 0 | BO25: =IF($D25=0,AVERAGE(BO$6:BO24)*$C25/10,BN25) -> 0 | BP25: =SUM(BSRDetail!$H$2:$H$61*(BSRDetail!$A$2:$A$61=$A$1)*(BSRDetail!$F$2:$F$61=BP$1)*(BSRDetail!$B$2:$B$61=$B$1)*(BSRDetail!$E$2:$E$61>=$B25)*(BSRDetail!$E$2:$E$61<$B26)) -> 0 | BQ25: =IF($D25=0,AVERAGE(BQ$6:BQ24)*$C25/10,BP25) -> 0 | BR25: =SUM(BSRDetail!$H$2:$H$61*(BSRDetail!$A$2:$A$61=$A$1)*(BSRDetail!$F$2:$F$61=BR$1)*(BSRDetail!$B$2:$B$61=$B$1)*(BSRDetail!$E$2:$E$61>=$B25)*(BSRDetail!$E$2:$E$61<$B26)) -> 0 | BS25: =IF($D25=0,AVERAGE(BS$6:BS24)*$C25/10,BR25) -> 0 | BT25: =SUM(BSRDetail!$H$2:$H$61*(BSRDetail!$A$2:$A$61=$A$1)*(BSRDetail!$F$2:$F$61=BT$1)*(BSRDetail!$B$2:$B$61=$B$1)*(BSRDetail!$E$2:$E$61>=$B25)*(BSRDetail!$E$2:$E$61<$B26)) -> 0 | BU25: =IF($D25=0,AVERAGE(BU$6:BU24)*$C25/10,BT25) -> 0 | BV25: =SUM(BSRDetail!$H$2:$H$61*(BSRDetail!$A$2:$A$61=$A$1)*(BSRDetail!$F$2:$F$61=BV$1)*(BSRDetail!$B$2:$B$61=$B$1)*(BSRDetail!$E$2:$E$61>=$B25)*(BSRDetail!$E$2:$E$61<$B26)) -> 0 | BW25: =IF($D25=0,AVERAGE(BW$6:BW24)*$C25/10,BV25) -> 0 | BX25: =SUM(BSRDetail!$H$2:$H$61*(BSRDetail!$A$2:$A$61=$A$1)*(BSRDetail!$F$2:$F$61=BX$1)*(BSRDetail!$B$2:$B$61=$B$1)*(BSRDetail!$E$2:$E$61>=$B25)*(BSRDetail!$E$2:$E$61<$B26)) -> 0 | BY25: =IF($D25=0,AVERAGE(BY$6:BY24)*$C25/10,BX25) -> 0 | BZ25: =SUM(BSRDetail!$H$2:$H$61*(BSRDetail!$A$2:$A$61=$A$1)*(BSRDetail!$F$2:$F$61=BZ$1)*(BSRDetail!$B$2:$B$61=$B$1)*(BSRDetail!$E$2:$E$61>=$B25)*(BSRDetail!$E$2:$E$61<$B26)) -> 0 | CA25: =IF($D25=0,AVERAGE(CA$6:CA24)*$C25/10,BZ25) -> 0 | CB25: =SUM(BSRDetail!$H$2:$H$61*(BSRDetail!$A$2:$A$61=$A$1)*(BSRDetail!$F$2:$F$61=CB$1)*(BSRDetail!$B$2:$B$61=$B$1)*(BSRDetail!$E$2:$E$61>=$B25)*(BSRDetail!$E$2:$E$61<$B26)) -> 0 | CC25: =IF($D25=0,AVERAGE(CC$6:CC24)*$C25/10,CB25) -> 0 | CD25: =SUM(BSRDetail!$H$2:$H$61*(BSRDetail!$A$2:$A$61=$A$1)*(BSRDetail!$F$2:$F$61=CD$1)*(BSRDetail!$B$2:$B$61=$B$1)*(BSRDetail!$E$2:$E$61>=$B25)*(BSRDetail!$E$2:$E$61<$B26)) -> 0 | CE25: =IF($D25=0,AVERAGE(CE$6:CE24)*$C25/10,CD25) -> 0 | CF25: =SUM(BSRDetail!$H$2:$H$61*(BSRDetail!$A$2:$A$61=$A$1)*(BSRDetail!$F$2:$F$61=CF$1)*(BSRDetail!$B$2:$B$61=$B$1)*(BSRDetail!$E$2:$E$61>=$B25)*(BSRDetail!$E$2:$E$61<$B26)) -> 0 | CG25: =IF($D25=0,AVERAGE(CG$6:CG24)*$C25/10,CF25) -> 0 | CH25: =SUM(BSRDetail!$H$2:$H$61*(BSRDetail!$A$2:$A$61=$A$1)*(BSRDetail!$F$2:$F$61=CH$1)*(BSRDetail!$B$2:$B$61=$B$1)*(BSRDetail!$E$2:$E$61>=$B25)*(BSRDetail!$E$2:$E$61<$B26)) -> 0 | CI25: =IF($D25=0,AVERAGE(CI$6:CI24)*$C25/10,CH25) -> 0 | CJ25: =SUM(BSRDetail!$H$2:$H$61*(BSRDetail!$A$2:$A$61=$A$1)*(BSRDetail!$F$2:$F$61=CJ$1)*(BSRDetail!$B$2:$B$61=$B$1)*(BSRDetail!$E$2:$E$61>=$B25)*(BSRDetail!$E$2:$E$61<$B26)) -> 0 | CK25: =IF($D25=0,AVERAGE(CK$6:CK24)*$C25/10,CJ25) -> 0 | CL25: =SUM(BSRDetail!$H$2:$H$61*(BSRDetail!$A$2:$A$61=$A$1)*(BSRDetail!$F$2:$F$61=CL$1)*(BSRDetail!$B$2:$B$61=$B$1)*(BSRDetail!$E$2:$E$61>=$B25)*(BSRDetail!$E$2:$E$61<$B26)) -> 0 | CM25: =IF($D25=0,AVERAGE(CM$6:CM24)*$C25/10,CL25) -> 0 | CN25: =SUM(BSRDetail!$H$2:$H$61*(BSRDetail!$A$2:$A$61=$A$1)*(BSRDetail!$F$2:$F$61=CN$1)*(BSRDetail!$B$2:$B$61=$B$1)*(BSRDetail!$E$2:$E$61>=$B25)*(BSRDetail!$E$2:$E$61<$B26)) -> 0 | CO25: =IF($D25=0,AVERAGE(CO$6:CO24)*$C25/10,CN25) -> 0 | CP25: =SUM(BSRDetail!$H$2:$H$61*(BSRDetail!$A$2:$A$61=$A$1)*(BSRDetail!$F$2:$F$61=CP$1)*(BSRDetail!$B$2:$B$61=$B$1)*(BSRDetail!$E$2:$E$61>=$B25)*(BSRDetail!$E$2:$E$61<$B26)) -> 0 | CQ25: =IF($D25=0,AVERAGE(CQ$6:CQ24)*$C25/10,CP25) -> 0 | CR25: =SUM(BSRDetail!$H$2:$H$61*(BSRDetail!$A$2:$A$61=$A$1)*(BSRDetail!$F$2:$F$61=CR$1)*(BSRDetail!$B$2:$B$61=$B$1)*(BSRDetail!$E$2:$E$61>=$B25)*(BSRDetail!$E$2:$E$61<$B26)) -> 0 | CS25: =IF($D25=0,AVERAGE(CS$6:CS24)*$C25/10,CR25) -> 0 | CT25: =SUM(BSRDetail!$H$2:$H$61*(BSRDetail!$A$2:$A$61=$A$1)*(BSRDetail!$F$2:$F$61=CT$1)*(BSRDetail!$B$2:$B$61=$B$1)*(BSRDetail!$E$2:$E$61>=$B25)*(BSRDetail!$E$2:$E$61<$B26)) -> 0 | CU25: =IF($D25=0,AVERAGE(CU$6:CU24)*$C25/10,CT25) -> 0 | CV25: =SUM(BSRDetail!$H$2:$H$61*(BSRDetail!$A$2:$A$61=$A$1)*(BSRDetail!$F$2:$F$61=CV$1)*(BSRDetail!$B$2:$B$61=$B$1)*(BSRDetail!$E$2:$E$61>=$B25)*(BSRDetail!$E$2:$E$61<$B26)) -> 0 | CW25: =IF($D25=0,AVERAGE(CW$6:CW24)*$C25/10,CV25) -> 0
A26: 0 | B26: 2017-04-21 | C26: 10 | D26: =SUM(BSRDetail!$H$2:$H$61*(BSRDetail!$A$2:$A$61=$A$1)*(BSRDetail!$F$2:$F$61=D$1)*(BSRDetail!$B$2:$B$61=$B$1)*(BSRDetail!$E$2:$E$61>=$B26)*(BSRDetail!$E$2:$E$61<$B27)) -> 0 | E26: =SUM(BSRDetail!$H$2:$H$61*(BSRDetail!$A$2:$A$61=$A$1)*(BSRDetail!$F$2:$F$61=E$1)*(BSRDetail!$B$2:$B$61=$B$1)*(BSRDetail!$E$2:$E$61>=$B26)*(BSRDetail!$E$2:$E$61<$B27)) -> 0 | F26: =SUM(BSRDetail!$H$2:$H$61*(BSRDetail!$A$2:$A$61=$A$1)*(BSRDetail!$F$2:$F$61=F$1)*(BSRDetail!$B$2:$B$61=$B$1)*(BSRDetail!$E$2:$E$61>=$B26)*(BSRDetail!$E$2:$E$61<$B27)) -> 0 | G26: =SUM(BSRDetail!$H$2:$H$61*(BSRDetail!$A$2:$A$61=$A$1)*(BSRDetail!$F$2:$F$61=G$1)*(BSRDetail!$B$2:$B$61=$B$1)*(BSRDetail!$E$2:$E$61>=$B26)*(BSRDetail!$E$2:$E$61<$B27)) -> 0 | H26: =SUM(BSRDetail!$H$2:$H$61*(BSRDetail!$A$2:$A$61=$A$1)*(BSRDetail!$F$2:$F$61=H$1)*(BSRDetail!$B$2:$B$61=$B$1)*(BSRDetail!$E$2:$E$61>=$B26)*(BSRDetail!$E$2:$E$61<$B27)) -> 0 | I26: =SUM(BSRDetail!$H$2:$H$61*(BSRDetail!$A$2:$A$61=$A$1)*(BSRDetail!$F$2:$F$61=I$1)*(BSRDetail!$B$2:$B$61=$B$1)*(BSRDetail!$E$2:$E$61>=$B26)*(BSRDetail!$E$2:$E$61<$B27)) -> 0 | J26: 0 | K26: =IF($D26=0,AVERAGE(K22:K25)*$C26/10,J26) -> 6504.512939 | L26: 0 | M26: 6504.512939 | N26: =SUM(BSRDetail!$H$2:$H$61*(BSRDetail!$A$2:$A$61=$A$1)*(BSRDetail!$F$2:$F$61=N$1)*(BSRDetail!$B$2:$B$61=$B$1)*(BSRDetail!$E$2:$E$61>=$B26)*(BSRDetail!$E$2:$E$61<$B27)) -> 0 | O26: =SUM(BSRDetail!$H$2:$H$61*(BSRDetail!$A$2:$A$61=$A$1)*(BSRDetail!$F$2:$F$61=O$1)*(BSRDetail!$B$2:$B$61=$B$1)*(BSRDetail!$E$2:$E$61>=$B26)*(BSRDetail!$E$2:$E$61<$B27)) -> 0 | P26: =SUM(BSRDetail!$H$2:$H$61*(BSRDetail!$A$2:$A$61=$A$1)*(BSRDetail!$F$2:$F$61=P$1)*(BSRDetail!$B$2:$B$61=$B$1)*(BSRDetail!$E$2:$E$61>=$B26)*(BSRDetail!$E$2:$E$61<$B27)) -> 0 | Q26: =SUM(BSRDetail!$H$2:$H$61*(BSRDetail!$A$2:$A$61=$A$1)*(BSRDetail!$F$2:$F$61=Q$1)*(BSRDetail!$B$2:$B$61=$B$1)*(BSRDetail!$E$2:$E$61>=$B26)*(BSRDetail!$E$2:$E$61<$B27)) -> 0 | R26: =SUM(BSRDetail!$H$2:$H$61*(BSRDetail!$A$2:$A$61=$A$1)*(BSRDetail!$F$2:$F$61=R$1)*(BSRDetail!$B$2:$B$61=$B$1)*(BSRDetail!$E$2:$E$61>=$B26)*(BSRDetail!$E$2:$E$61<$B27)) -> 0 | S26: =SUM(BSRDetail!$H$2:$H$61*(BSRDetail!$A$2:$A$61=$A$1)*(BSRDetail!$F$2:$F$61=S$1)*(BSRDetail!$B$2:$B$61=$B$1)*(BSRDetail!$E$2:$E$61>=$B26)*(BSRDetail!$E$2:$E$61<$B27)) -> 0 | T26: =SUM(BSRDetail!$H$2:$H$61*(BSRDetail!$A$2:$A$61=$A$1)*(BSRDetail!$F$2:$F$61=T$1)*(BSRDetail!$B$2:$B$61=$B$1)*(BSRDetail!$E$2:$E$61>=$B26)*(BSRDetail!$E$2:$E$61<$B27)) -> 0 | U26: =SUM(BSRDetail!$H$2:$H$61*(BSRDetail!$A$2:$A$61=$A$1)*(BSRDetail!$F$2:$F$61=U$1)*(BSRDetail!$B$2:$B$61=$B$1)*(BSRDetail!$E$2:$E$61>=$B26)*(BSRDetail!$E$2:$E$61<$B27)) -> 0 | V26: =SUM(BSRDetail!$H$2:$H$61*(BSRDetail!$A$2:$A$61=$A$1)*(BSRDetail!$F$2:$F$61=V$1)*(BSRDetail!$B$2:$B$61=$B$1)*(BSRDetail!$E$2:$E$61>=$B26)*(BSRDetail!$E$2:$E$61<$B27)) -> 0 | W26: =SUM(BSRDetail!$H$2:$H$61*(BSRDetail!$A$2:$A$61=$A$1)*(BSRDetail!$F$2:$F$61=W$1)*(BSRDetail!$B$2:$B$61=$B$1)*(BSRDetail!$E$2:$E$61>=$B26)*(BSRDetail!$E$2:$E$61<$B27)) -> 0 | X26: =SUM(BSRDetail!$H$2:$H$61*(BSRDetail!$A$2:$A$61=$A$1)*(BSRDetail!$F$2:$F$61=X$1)*(BSRDetail!$B$2:$B$61=$B$1)*(BSRDetail!$E$2:$E$61>=$B26)*(BSRDetail!$E$2:$E$61<$B27)) -> 0 | Y26: 0 | Z26: 0 | AA26: =IF(D25=0,AA25,IF($D26=0,Z26+AVERAGE($Y$7:Y25)*$C26/10,Y26)) -> 0 | AB26: 6504.512939 | AC26: =SUM(BSRDetail!$H$2:$H$61*(BSRDetail!$A$2:$A$61=$A$1)*(BSRDetail!$F$2:$F$61=AC$1)*(BSRDetail!$B$2:$B$61=$B$1)*(BSRDetail!$E$2:$E$61>=$B26)*(BSRDetail!$E$2:$E$61<$B27)) -> 0 | AD26: 0.0237 | AE26: 154.1569567 | AF26: =SUM(BSRDetail!$H$2:$H$61*(BSRDetail!$A$2:$A$61=$A$1)*(BSRDetail!$F$2:$F$61=AF$1)*(BSRDetail!$B$2:$B$61=$B$1)*(BSRDetail!$E$2:$E$61>=$B26)*(BSRDetail!$E$2:$E$61<$B27)) -> 0 | AG26: 0 | AH26: 0 | AI26: =SUM(BSRDetail!$H$2:$H$61*(BSRDetail!$A$2:$A$61=$A$1)*(BSRDetail!$F$2:$F$61=AI$1)*(BSRDetail!$B$2:$B$61=$B$1)*(BSRDetail!$E$2:$E$61>=$B26)*(BSRDetail!$E$2:$E$61<$B27)) -> 0 | AJ26: 0 | AK26: =SUM(BSRDetail!$H$2:$H$61*(BSRDetail!$A$2:$A$61=$A$1)*(BSRDetail!$F$2:$F$61=AK$1)*(BSRDetail!$B$2:$B$61=$B$1)*(BSRDetail!$E$2:$E$61>=$B26)*(BSRDetail!$E$2:$E$61<$B27)) -> 0 | AL26: 0 | AM26: 0 | AN26: 0 | AO26: =SUM(BSRDetail!$H$2:$H$61*(BSRDetail!$A$2:$A$61=$A$1)*(BSRDetail!$F$2:$F$61=AO$1)*(BSRDetail!$B$2:$B$61=$B$1)*(BSRDetail!$E$2:$E$61>=$B26)*(BSRDetail!$E$2:$E$61<$B27)) -> 0 | AP26: 0 | AQ26: =SUM(BSRDetail!$H$2:$H$61*(BSRDetail!$A$2:$A$61=$A$1)*(BSRDetail!$F$2:$F$61=AQ$1)*(BSRDetail!$B$2:$B$61=$B$1)*(BSRDetail!$E$2:$E$61>=$B26)*(BSRDetail!$E$2:$E$61<$B27)) -> 0 | AR26: 0.02360050494 | AS26: 153.5097897 | AT26: =SUM(BSRDetail!$H$2:$H$61*(BSRDetail!$A$2:$A$61=$A$1)*(BSRDetail!$F$2:$F$61=AT$1)*(BSRDetail!$B$2:$B$61=$B$1)*(BSRDetail!$E$2:$E$61>=$B26)*(BSRDetail!$E$2:$E$61<$B27)) -> 0 | AU26: 0.0007 | AV26: 4.553159058 | AW26: =SUM(BSRDetail!$H$2:$H$61*(BSRDetail!$A$2:$A$61=$A$1)*(BSRDetail!$F$2:$F$61=AW$1)*(BSRDetail!$B$2:$B$61=$B$1)*(BSRDetail!$E$2:$E$61>=$B26)*(BSRDetail!$E$2:$E$61<$B27)) -> 0 | AX26: =IF(D26=0,IF(DAY(B26)<15,SUM(AX17:AX25*(DAY(B17:B25)<15))/SUM(1*(DAY(B17:B25)<15)),SUM(AX17:AX25*(DAY(B17:B25)>14))/SUM(1*(DAY(B17:B25)>14))),AW26/AB26) -> 0.01450027113 | AY26: 94.31720119 | AZ26: =SUM(BSRDetail!$H$2:$H$61*(BSRDetail!$A$2:$A$61=$A$1)*(BSRDetail!$F$2:$F$61=AZ$1)*(BSRDetail!$B$2:$B$61=$B$1)*(BSRDetail!$E$2:$E$61>=$B26)*(BSRDetail!$E$2:$E$61<$B27)) -> 0 | BA26: 0 | BB26: 0 | BC26: =SUM(BSRDetail!$H$2:$H$61*(BSRDetail!$A$2:$A$61=$A$1)*(BSRDetail!$F$2:$F$61=BC$1)*(BSRDetail!$B$2:$B$61=$B$1)*(BSRDetail!$E$2:$E$61>=$B26)*(BSRDetail!$E$2:$E$61<$B27)) -> 0 | BD26: =SUM(BSRDetail!$H$2:$H$61*(BSRDetail!$A$2:$A$61=$A$1)*(BSRDetail!$F$2:$F$61=BD$1)*(BSRDetail!$B$2:$B$61=$B$1)*(BSRDetail!$E$2:$E$61>=$B26)*(BSRDetail!$E$2:$E$61<$B27)) -> 0 | BE26: 0 | BF26: 0 | BG26: =SUM(BSRDetail!$H$2:$H$61*(BSRDetail!$A$2:$A$61=$A$1)*(BSRDetail!$F$2:$F$61=BG$1)*(BSRDetail!$B$2:$B$61=$B$1)*(BSRDetail!$E$2:$E$61>=$B26)*(BSRDetail!$E$2:$E$61<$B27)) -> 0 | BH26: =SUM(BSRDetail!$H$2:$H$61*(BSRDetail!$A$2:$A$61=$A$1)*(BSRDetail!$F$2:$F$61=BH$1)*(BSRDetail!$B$2:$B$61=$B$1)*(BSRDetail!$E$2:$E$61>=$B26)*(BSRDetail!$E$2:$E$61<$B27)) -> 0 | BI26: 0 | BJ26: =SUM(BSRDetail!$H$2:$H$61*(BSRDetail!$A$2:$A$61=$A$1)*(BSRDetail!$F$2:$F$61=BJ$1)*(BSRDetail!$B$2:$B$61=$B$1)*(BSRDetail!$E$2:$E$61>=$B26)*(BSRDetail!$E$2:$E$61<$B27)) -> 0 | BK26: =IF($D26=0,AVERAGE(BK$6:BK25)*$C26/10,BJ26) -> 711.45 | BL26: =SUM(BSRDetail!$H$2:$H$61*(BSRDetail!$A$2:$A$61=$A$1)*(BSRDetail!$F$2:$F$61=BL$1)*(BSRDetail!$B$2:$B$61=$B$1)*(BSRDetail!$E$2:$E$61>=$B26)*(BSRDetail!$E$2:$E$61<$B27)) -> 0 | BM26: =IF($D26=0,AVERAGE(BM$6:BM25)*$C26/10,BL26) -> 0 | BN26: =SUM(BSRDetail!$H$2:$H$61*(BSRDetail!$A$2:$A$61=$A$1)*(BSRDetail!$F$2:$F$61=BN$1)*(BSRDetail!$B$2:$B$61=$B$1)*(BSRDetail!$E$2:$E$61>=$B26)*(BSRDetail!$E$2:$E$61<$B27)) -> 0 | BO26: =IF($D26=0,AVERAGE(BO$6:BO25)*$C26/10,BN26) -> 0 | BP26: =SUM(BSRDetail!$H$2:$H$61*(BSRDetail!$A$2:$A$61=$A$1)*(BSRDetail!$F$2:$F$61=BP$1)*(BSRDetail!$B$2:$B$61=$B$1)*(BSRDetail!$E$2:$E$61>=$B26)*(BSRDetail!$E$2:$E$61<$B27)) -> 0 | BQ26: =IF($D26=0,AVERAGE(BQ$6:BQ25)*$C26/10,BP26) -> 0 | BR26: =SUM(BSRDetail!$H$2:$H$61*(BSRDetail!$A$2:$A$61=$A$1)*(BSRDetail!$F$2:$F$61=BR$1)*(BSRDetail!$B$2:$B$61=$B$1)*(BSRDetail!$E$2:$E$61>=$B26)*(BSRDetail!$E$2:$E$61<$B27)) -> 0 | BS26: =IF($D26=0,AVERAGE(BS$6:BS25)*$C26/10,BR26) -> 0 | BT26: =SUM(BSRDetail!$H$2:$H$61*(BSRDetail!$A$2:$A$61=$A$1)*(BSRDetail!$F$2:$F$61=BT$1)*(BSRDetail!$B$2:$B$61=$B$1)*(BSRDetail!$E$2:$E$61>=$B26)*(BSRDetail!$E$2:$E$61<$B27)) -> 0 | BU26: =IF($D26=0,AVERAGE(BU$6:BU25)*$C26/10,BT26) -> 0 | BV26: =SUM(BSRDetail!$H$2:$H$61*(BSRDetail!$A$2:$A$61=$A$1)*(BSRDetail!$F$2:$F$61=BV$1)*(BSRDetail!$B$2:$B$61=$B$1)*(BSRDetail!$E$2:$E$61>=$B26)*(BSRDetail!$E$2:$E$61<$B27)) -> 0 | BW26: =IF($D26=0,AVERAGE(BW$6:BW25)*$C26/10,BV26) -> 0 | BX26: =SUM(BSRDetail!$H$2:$H$61*(BSRDetail!$A$2:$A$61=$A$1)*(BSRDetail!$F$2:$F$61=BX$1)*(BSRDetail!$B$2:$B$61=$B$1)*(BSRDetail!$E$2:$E$61>=$B26)*(BSRDetail!$E$2:$E$61<$B27)) -> 0 | BY26: =IF($D26=0,AVERAGE(BY$6:BY25)*$C26/10,BX26) -> 0 | BZ26: =SUM(BSRDetail!$H$2:$H$61*(BSRDetail!$A$2:$A$61=$A$1)*(BSRDetail!$F$2:$F$61=BZ$1)*(BSRDetail!$B$2:$B$61=$B$1)*(BSRDetail!$E$2:$E$61>=$B26)*(BSRDetail!$E$2:$E$61<$B27)) -> 0 | CA26: =IF($D26=0,AVERAGE(CA$6:CA25)*$C26/10,BZ26) -> 0 | CB26: =SUM(BSRDetail!$H$2:$H$61*(BSRDetail!$A$2:$A$61=$A$1)*(BSRDetail!$F$2:$F$61=CB$1)*(BSRDetail!$B$2:$B$61=$B$1)*(BSRDetail!$E$2:$E$61>=$B26)*(BSRDetail!$E$2:$E$61<$B27)) -> 0 | CC26: =IF($D26=0,AVERAGE(CC$6:CC25)*$C26/10,CB26) -> 0 | CD26: =SUM(BSRDetail!$H$2:$H$61*(BSRDetail!$A$2:$A$61=$A$1)*(BSRDetail!$F$2:$F$61=CD$1)*(BSRDetail!$B$2:$B$61=$B$1)*(BSRDetail!$E$2:$E$61>=$B26)*(BSRDetail!$E$2:$E$61<$B27)) -> 0 | CE26: =IF($D26=0,AVERAGE(CE$6:CE25)*$C26/10,CD26) -> 0 | CF26: =SUM(BSRDetail!$H$2:$H$61*(BSRDetail!$A$2:$A$61=$A$1)*(BSRDetail!$F$2:$F$61=CF$1)*(BSRDetail!$B$2:$B$61=$B$1)*(BSRDetail!$E$2:$E$61>=$B26)*(BSRDetail!$E$2:$E$61<$B27)) -> 0 | CG26: =IF($D26=0,AVERAGE(CG$6:CG25)*$C26/10,CF26) -> 0 | CH26: =SUM(BSRDetail!$H$2:$H$61*(BSRDetail!$A$2:$A$61=$A$1)*(BSRDetail!$F$2:$F$61=CH$1)*(BSRDetail!$B$2:$B$61=$B$1)*(BSRDetail!$E$2:$E$61>=$B26)*(BSRDetail!$E$2:$E$61<$B27)) -> 0 | CI26: =IF($D26=0,AVERAGE(CI$6:CI25)*$C26/10,CH26) -> 0 | CJ26: =SUM(BSRDetail!$H$2:$H$61*(BSRDetail!$A$2:$A$61=$A$1)*(BSRDetail!$F$2:$F$61=CJ$1)*(BSRDetail!$B$2:$B$61=$B$1)*(BSRDetail!$E$2:$E$61>=$B26)*(BSRDetail!$E$2:$E$61<$B27)) -> 0 | CK26: =IF($D26=0,AVERAGE(CK$6:CK25)*$C26/10,CJ26) -> 0 | CL26: =SUM(BSRDetail!$H$2:$H$61*(BSRDetail!$A$2:$A$61=$A$1)*(BSRDetail!$F$2:$F$61=CL$1)*(BSRDetail!$B$2:$B$61=$B$1)*(BSRDetail!$E$2:$E$61>=$B26)*(BSRDetail!$E$2:$E$61<$B27)) -> 0 | CM26: =IF($D26=0,AVERAGE(CM$6:CM25)*$C26/10,CL26) -> 0 | CN26: =SUM(BSRDetail!$H$2:$H$61*(BSRDetail!$A$2:$A$61=$A$1)*(BSRDetail!$F$2:$F$61=CN$1)*(BSRDetail!$B$2:$B$61=$B$1)*(BSRDetail!$E$2:$E$61>=$B26)*(BSRDetail!$E$2:$E$61<$B27)) -> 0 | CO26: =IF($D26=0,AVERAGE(CO$6:CO25)*$C26/10,CN26) -> 0 | CP26: =SUM(BSRDetail!$H$2:$H$61*(BSRDetail!$A$2:$A$61=$A$1)*(BSRDetail!$F$2:$F$61=CP$1)*(BSRDetail!$B$2:$B$61=$B$1)*(BSRDetail!$E$2:$E$61>=$B26)*(BSRDetail!$E$2:$E$61<$B27)) -> 0 | CQ26: =IF($D26=0,AVERAGE(CQ$6:CQ25)*$C26/10,CP26) -> 0 | CR26: =SUM(BSRDetail!$H$2:$H$61*(BSRDetail!$A$2:$A$61=$A$1)*(BSRDetail!$F$2:$F$61=CR$1)*(BSRDetail!$B$2:$B$61=$B$1)*(BSRDetail!$E$2:$E$61>=$B26)*(BSRDetail!$E$2:$E$61<$B27)) -> 0 | CS26: =IF($D26=0,AVERAGE(CS$6:CS25)*$C26/10,CR26) -> 0 | CT26: =SUM(BSRDetail!$H$2:$H$61*(BSRDetail!$A$2:$A$61=$A$1)*(BSRDetail!$F$2:$F$61=CT$1)*(BSRDetail!$B$2:$B$61=$B$1)*(BSRDetail!$E$2:$E$61>=$B26)*(BSRDetail!$E$2:$E$61<$B27)) -> 0 | CU26: =IF($D26=0,AVERAGE(CU$6:CU25)*$C26/10,CT26) -> 0 | CV26: =SUM(BSRDetail!$H$2:$H$61*(BSRDetail!$A$2:$A$61=$A$1)*(BSRDetail!$F$2:$F$61=CV$1)*(BSRDetail!$B$2:$B$61=$B$1)*(BSRDetail!$E$2:$E$61>=$B26)*(BSRDetail!$E$2:$E$61<$B27)) -> 0 | CW26: =IF($D26=0,AVERAGE(CW$6:CW25)*$C26/10,CV26) -> 0
A27: 0 | B27: 2017-05-05 | C27: 10 | D27: =SUM(BSRDetail!$H$2:$H$61*(BSRDetail!$A$2:$A$61=$A$1)*(BSRDetail!$F$2:$F$61=D$1)*(BSRDetail!$B$2:$B$61=$B$1)*(BSRDetail!$E$2:$E$61>=$B27)*(BSRDetail!$E$2:$E$61<$B28)) -> 0 | E27: =SUM(BSRDetail!$H$2:$H$61*(BSRDetail!$A$2:$A$61=$A$1)*(BSRDetail!$F$2:$F$61=E$1)*(BSRDetail!$B$2:$B$61=$B$1)*(BSRDetail!$E$2:$E$61>=$B27)*(BSRDetail!$E$2:$E$61<$B28)) -> 0 | F27: =SUM(BSRDetail!$H$2:$H$61*(BSRDetail!$A$2:$A$61=$A$1)*(BSRDetail!$F$2:$F$61=F$1)*(BSRDetail!$B$2:$B$61=$B$1)*(BSRDetail!$E$2:$E$61>=$B27)*(BSRDetail!$E$2:$E$61<$B28)) -> 0 | G27: =SUM(BSRDetail!$H$2:$H$61*(BSRDetail!$A$2:$A$61=$A$1)*(BSRDetail!$F$2:$F$61=G$1)*(BSRDetail!$B$2:$B$61=$B$1)*(BSRDetail!$E$2:$E$61>=$B27)*(BSRDetail!$E$2:$E$61<$B28)) -> 0 | H27: =SUM(BSRDetail!$H$2:$H$61*(BSRDetail!$A$2:$A$61=$A$1)*(BSRDetail!$F$2:$F$61=H$1)*(BSRDetail!$B$2:$B$61=$B$1)*(BSRDetail!$E$2:$E$61>=$B27)*(BSRDetail!$E$2:$E$61<$B28)) -> 0 | I27: =SUM(BSRDetail!$H$2:$H$61*(BSRDetail!$A$2:$A$61=$A$1)*(BSRDetail!$F$2:$F$61=I$1)*(BSRDetail!$B$2:$B$61=$B$1)*(BSRDetail!$E$2:$E$61>=$B27)*(BSRDetail!$E$2:$E$61<$B28)) -> 0 | J27: 0 | K27: 6503.582492 | L27: 0 | M27: 6503.582492 | N27: =SUM(BSRDetail!$H$2:$H$61*(BSRDetail!$A$2:$A$61=$A$1)*(BSRDetail!$F$2:$F$61=N$1)*(BSRDetail!$B$2:$B$61=$B$1)*(BSRDetail!$E$2:$E$61>=$B27)*(BSRDetail!$E$2:$E$61<$B28)) -> 0 | O27: =SUM(BSRDetail!$H$2:$H$61*(BSRDetail!$A$2:$A$61=$A$1)*(BSRDetail!$F$2:$F$61=O$1)*(BSRDetail!$B$2:$B$61=$B$1)*(BSRDetail!$E$2:$E$61>=$B27)*(BSRDetail!$E$2:$E$61<$B28)) -> 0 | P27: =SUM(BSRDetail!$H$2:$H$61*(BSRDetail!$A$2:$A$61=$A$1)*(BSRDetail!$F$2:$F$61=P$1)*(BSRDetail!$B$2:$B$61=$B$1)*(BSRDetail!$E$2:$E$61>=$B27)*(BSRDetail!$E$2:$E$61<$B28)) -> 0 | Q27: =SUM(BSRDetail!$H$2:$H$61*(BSRDetail!$A$2:$A$61=$A$1)*(BSRDetail!$F$2:$F$61=Q$1)*(BSRDetail!$B$2:$B$61=$B$1)*(BSRDetail!$E$2:$E$61>=$B27)*(BSRDetail!$E$2:$E$61<$B28)) -> 0 | R27: =SUM(BSRDetail!$H$2:$H$61*(BSRDetail!$A$2:$A$61=$A$1)*(BSRDetail!$F$2:$F$61=R$1)*(BSRDetail!$B$2:$B$61=$B$1)*(BSRDetail!$E$2:$E$61>=$B27)*(BSRDetail!$E$2:$E$61<$B28)) -> 0 | S27: =SUM(BSRDetail!$H$2:$H$61*(BSRDetail!$A$2:$A$61=$A$1)*(BSRDetail!$F$2:$F$61=S$1)*(BSRDetail!$B$2:$B$61=$B$1)*(BSRDetail!$E$2:$E$61>=$B27)*(BSRDetail!$E$2:$E$61<$B28)) -> 0 | T27: =SUM(BSRDetail!$H$2:$H$61*(BSRDetail!$A$2:$A$61=$A$1)*(BSRDetail!$F$2:$F$61=T$1)*(BSRDetail!$B$2:$B$61=$B$1)*(BSRDetail!$E$2:$E$61>=$B27)*(BSRDetail!$E$2:$E$61<$B28)) -> 0 | U27: =SUM(BSRDetail!$H$2:$H$61*(BSRDetail!$A$2:$A$61=$A$1)*(BSRDetail!$F$2:$F$61=U$1)*(BSRDetail!$B$2:$B$61=$B$1)*(BSRDetail!$E$2:$E$61>=$B27)*(BSRDetail!$E$2:$E$61<$B28)) -> 0 | V27: =SUM(BSRDetail!$H$2:$H$61*(BSRDetail!$A$2:$A$61=$A$1)*(BSRDetail!$F$2:$F$61=V$1)*(BSRDetail!$B$2:$B$61=$B$1)*(BSRDetail!$E$2:$E$61>=$B27)*(BSRDetail!$E$2:$E$61<$B28)) -> 0 | W27: =SUM(BSRDetail!$H$2:$H$61*(BSRDetail!$A$2:$A$61=$A$1)*(BSRDetail!$F$2:$F$61=W$1)*(BSRDetail!$B$2:$B$61=$B$1)*(BSRDetail!$E$2:$E$61>=$B27)*(BSRDetail!$E$2:$E$61<$B28)) -> 0 | X27: =SUM(BSRDetail!$H$2:$H$61*(BSRDetail!$A$2:$A$61=$A$1)*(BSRDetail!$F$2:$F$61=X$1)*(BSRDetail!$B$2:$B$61=$B$1)*(BSRDetail!$E$2:$E$61>=$B27)*(BSRDetail!$E$2:$E$61<$B28)) -> 0 | Y27: 0 | Z27: 0 | AA27: =IF(D26=0,AA26,IF($D27=0,Z27+AVERAGE($Y$7:Y26)*$C27/10,Y27)) -> 0 | AB27: 6503.582492 | AC27: =SUM(BSRDetail!$H$2:$H$61*(BSRDetail!$A$2:$A$61=$A$1)*(BSRDetail!$F$2:$F$61=AC$1)*(BSRDetail!$B$2:$B$61=$B$1)*(BSRDetail!$E$2:$E$61>=$B27)*(BSRDetail!$E$2:$E$61<$B28)) -> 0 | AD27: 0.02098766667 | AE27: 136.4950215 | AF27: =SUM(BSRDetail!$H$2:$H$61*(BSRDetail!$A$2:$A$61=$A$1)*(BSRDetail!$F$2:$F$61=AF$1)*(BSRDetail!$B$2:$B$61=$B$1)*(BSRDetail!$E$2:$E$61>=$B27)*(BSRDetail!$E$2:$E$61<$B28)) -> 0 | AG27: 0 | AH27: 0 | AI27: =SUM(BSRDetail!$H$2:$H$61*(BSRDetail!$A$2:$A$61=$A$1)*(BSRDetail!$F$2:$F$61=AI$1)*(BSRDetail!$B$2:$B$61=$B$1)*(BSRDetail!$E$2:$E$61>=$B27)*(BSRDetail!$E$2:$E$61<$B28)) -> 0 | AJ27: 0 | AK27: =SUM(BSRDetail!$H$2:$H$61*(BSRDetail!$A$2:$A$61=$A$1)*(BSRDetail!$F$2:$F$61=AK$1)*(BSRDetail!$B$2:$B$61=$B$1)*(BSRDetail!$E$2:$E$61>=$B27)*(BSRDetail!$E$2:$E$61<$B28)) -> 0 | AL27: 0.9964658772 | AM27: 0 | AN27: 699.25 | AO27: =SUM(BSRDetail!$H$2:$H$61*(BSRDetail!$A$2:$A$61=$A$1)*(BSRDetail!$F$2:$F$61=AO$1)*(BSRDetail!$B$2:$B$61=$B$1)*(BSRDetail!$E$2:$E$61>=$B27)*(BSRDetail!$E$2:$E$61<$B28)) -> 0 | AP27: 0 | AQ27: =SUM(BSRDetail!$H$2:$H$61*(BSRDetail!$A$2:$A$61=$A$1)*(BSRDetail!$F$2:$F$61=AQ$1)*(BSRDetail!$B$2:$B$61=$B$1)*(BSRDetail!$E$2:$E$61>=$B27)*(BSRDetail!$E$2:$E$61<$B28)) -> 0 | AR27: 0.02360050494 | AS27: 153.4878307 | AT27: =SUM(BSRDetail!$H$2:$H$61*(BSRDetail!$A$2:$A$61=$A$1)*(BSRDetail!$F$2:$F$61=AT$1)*(BSRDetail!$B$2:$B$61=$B$1)*(BSRDetail!$E$2:$E$61>=$B27)*(BSRDetail!$E$2:$E$61<$B28)) -> 0 | AU27: 0.0007 | AV27: 4.552507745 | AW27: =SUM(BSRDetail!$H$2:$H$61*(BSRDetail!$A$2:$A$61=$A$1)*(BSRDetail!$F$2:$F$61=AW$1)*(BSRDetail!$B$2:$B$61=$B$1)*(BSRDetail!$E$2:$E$61>=$B27)*(BSRDetail!$E$2:$E$61<$B28)) -> 0 | AX27: =IF(D27=0,IF(DAY(B27)<15,SUM(AX18:AX26*(DAY(B18:B26)<15))/SUM(1*(DAY(B18:B26)<15)),SUM(AX18:AX26*(DAY(B18:B26)>14))/SUM(1*(DAY(B18:B26)>14))),AW27/AB27) -> 0.01374456012 | AY27: 89.38888054 | AZ27: =SUM(BSRDetail!$H$2:$H$61*(BSRDetail!$A$2:$A$61=$A$1)*(BSRDetail!$F$2:$F$61=AZ$1)*(BSRDetail!$B$2:$B$61=$B$1)*(BSRDetail!$E$2:$E$61>=$B27)*(BSRDetail!$E$2:$E$61<$B28)) -> 0 | BA27: 0 | BB27: 0 | BC27: =SUM(BSRDetail!$H$2:$H$61*(BSRDetail!$A$2:$A$61=$A$1)*(BSRDetail!$F$2:$F$61=BC$1)*(BSRDetail!$B$2:$B$61=$B$1)*(BSRDetail!$E$2:$E$61>=$B27)*(BSRDetail!$E$2:$E$61<$B28)) -> 0 | BD27: =SUM(BSRDetail!$H$2:$H$61*(BSRDetail!$A$2:$A$61=$A$1)*(BSRDetail!$F$2:$F$61=BD$1)*(BSRDetail!$B$2:$B$61=$B$1)*(BSRDetail!$E$2:$E$61>=$B27)*(BSRDetail!$E$2:$E$61<$B28)) -> 0 | BE27: 0 | BF27: 0 | BG27: =SUM(BSRDetail!$H$2:$H$61*(BSRDetail!$A$2:$A$61=$A$1)*(BSRDetail!$F$2:$F$61=BG$1)*(BSRDetail!$B$2:$B$61=$B$1)*(BSRDetail!$E$2:$E$61>=$B27)*(BSRDetail!$E$2:$E$61<$B28)) -> 0 | BH27: =SUM(BSRDetail!$H$2:$H$61*(BSRDetail!$A$2:$A$61=$A$1)*(BSRDetail!$F$2:$F$61=BH$1)*(BSRDetail!$B$2:$B$61=$B$1)*(BSRDetail!$E$2:$E$61>=$B27)*(BSRDetail!$E$2:$E$61<$B28)) -> 0 | BI27: 0 | BJ27: =SUM(BSRDetail!$H$2:$H$61*(BSRDetail!$A$2:$A$61=$A$1)*(BSRDetail!$F$2:$F$61=BJ$1)*(BSRDetail!$B$2:$B$61=$B$1)*(BSRDetail!$E$2:$E$61>=$B27)*(BSRDetail!$E$2:$E$61<$B28)) -> 0 | BK27: =IF($D27=0,AVERAGE(BK$6:BK26)*$C27/10,BJ27) -> 711.45 | BL27: =SUM(BSRDetail!$H$2:$H$61*(BSRDetail!$A$2:$A$61=$A$1)*(BSRDetail!$F$2:$F$61=BL$1)*(BSRDetail!$B$2:$B$61=$B$1)*(BSRDetail!$E$2:$E$61>=$B27)*(BSRDetail!$E$2:$E$61<$B28)) -> 0 | BM27: =IF($D27=0,AVERAGE(BM$6:BM26)*$C27/10,BL27) -> 0 | BN27: =SUM(BSRDetail!$H$2:$H$61*(BSRDetail!$A$2:$A$61=$A$1)*(BSRDetail!$F$2:$F$61=BN$1)*(BSRDetail!$B$2:$B$61=$B$1)*(BSRDetail!$E$2:$E$61>=$B27)*(BSRDetail!$E$2:$E$61<$B28)) -> 0 | BO27: =IF($D27=0,AVERAGE(BO$6:BO26)*$C27/10,BN27) -> 0 | BP27: =SUM(BSRDetail!$H$2:$H$61*(BSRDetail!$A$2:$A$61=$A$1)*(BSRDetail!$F$2:$F$61=BP$1)*(BSRDetail!$B$2:$B$61=$B$1)*(BSRDetail!$E$2:$E$61>=$B27)*(BSRDetail!$E$2:$E$61<$B28)) -> 0 | BQ27: =IF($D27=0,AVERAGE(BQ$6:BQ26)*$C27/10,BP27) -> 0 | BR27: =SUM(BSRDetail!$H$2:$H$61*(BSRDetail!$A$2:$A$61=$A$1)*(BSRDetail!$F$2:$F$61=BR$1)*(BSRDetail!$B$2:$B$61=$B$1)*(BSRDetail!$E$2:$E$61>=$B27)*(BSRDetail!$E$2:$E$61<$B28)) -> 0 | BS27: =IF($D27=0,AVERAGE(BS$6:BS26)*$C27/10,BR27) -> 0 | BT27: =SUM(BSRDetail!$H$2:$H$61*(BSRDetail!$A$2:$A$61=$A$1)*(BSRDetail!$F$2:$F$61=BT$1)*(BSRDetail!$B$2:$B$61=$B$1)*(BSRDetail!$E$2:$E$61>=$B27)*(BSRDetail!$E$2:$E$61<$B28)) -> 0 | BU27: =IF($D27=0,AVERAGE(BU$6:BU26)*$C27/10,BT27) -> 0 | BV27: =SUM(BSRDetail!$H$2:$H$61*(BSRDetail!$A$2:$A$61=$A$1)*(BSRDetail!$F$2:$F$61=BV$1)*(BSRDetail!$B$2:$B$61=$B$1)*(BSRDetail!$E$2:$E$61>=$B27)*(BSRDetail!$E$2:$E$61<$B28)) -> 0 | BW27: =IF($D27=0,AVERAGE(BW$6:BW26)*$C27/10,BV27) -> 0 | BX27: =SUM(BSRDetail!$H$2:$H$61*(BSRDetail!$A$2:$A$61=$A$1)*(BSRDetail!$F$2:$F$61=BX$1)*(BSRDetail!$B$2:$B$61=$B$1)*(BSRDetail!$E$2:$E$61>=$B27)*(BSRDetail!$E$2:$E$61<$B28)) -> 0 | BY27: =IF($D27=0,AVERAGE(BY$6:BY26)*$C27/10,BX27) -> 0 | BZ27: =SUM(BSRDetail!$H$2:$H$61*(BSRDetail!$A$2:$A$61=$A$1)*(BSRDetail!$F$2:$F$61=BZ$1)*(BSRDetail!$B$2:$B$61=$B$1)*(BSRDetail!$E$2:$E$61>=$B27)*(BSRDetail!$E$2:$E$61<$B28)) -> 0 | CA27: =IF($D27=0,AVERAGE(CA$6:CA26)*$C27/10,BZ27) -> 0 | CB27: =SUM(BSRDetail!$H$2:$H$61*(BSRDetail!$A$2:$A$61=$A$1)*(BSRDetail!$F$2:$F$61=CB$1)*(BSRDetail!$B$2:$B$61=$B$1)*(BSRDetail!$E$2:$E$61>=$B27)*(BSRDetail!$E$2:$E$61<$B28)) -> 0 | CC27: =IF($D27=0,AVERAGE(CC$6:CC26)*$C27/10,CB27) -> 0 | CD27: =SUM(BSRDetail!$H$2:$H$61*(BSRDetail!$A$2:$A$61=$A$1)*(BSRDetail!$F$2:$F$61=CD$1)*(BSRDetail!$B$2:$B$61=$B$1)*(BSRDetail!$E$2:$E$61>=$B27)*(BSRDetail!$E$2:$E$61<$B28)) -> 0 | CE27: =IF($D27=0,AVERAGE(CE$6:CE26)*$C27/10,CD27) -> 0 | CF27: =SUM(BSRDetail!$H$2:$H$61*(BSRDetail!$A$2:$A$61=$A$1)*(BSRDetail!$F$2:$F$61=CF$1)*(BSRDetail!$B$2:$B$61=$B$1)*(BSRDetail!$E$2:$E$61>=$B27)*(BSRDetail!$E$2:$E$61<$B28)) -> 0 | CG27: =IF($D27=0,AVERAGE(CG$6:CG26)*$C27/10,CF27) -> 0 | CH27: =SUM(BSRDetail!$H$2:$H$61*(BSRDetail!$A$2:$A$61=$A$1)*(BSRDetail!$F$2:$F$61=CH$1)*(BSRDetail!$B$2:$B$61=$B$1)*(BSRDetail!$E$2:$E$61>=$B27)*(BSRDetail!$E$2:$E$61<$B28)) -> 0 | CI27: =IF($D27=0,AVERAGE(CI$6:CI26)*$C27/10,CH27) -> 0 | CJ27: =SUM(BSRDetail!$H$2:$H$61*(BSRDetail!$A$2:$A$61=$A$1)*(BSRDetail!$F$2:$F$61=CJ$1)*(BSRDetail!$B$2:$B$61=$B$1)*(BSRDetail!$E$2:$E$61>=$B27)*(BSRDetail!$E$2:$E$61<$B28)) -> 0 | CK27: =IF($D27=0,AVERAGE(CK$6:CK26)*$C27/10,CJ27) -> 0 | CL27: =SUM(BSRDetail!$H$2:$H$61*(BSRDetail!$A$2:$A$61=$A$1)*(BSRDetail!$F$2:$F$61=CL$1)*(BSRDetail!$B$2:$B$61=$B$1)*(BSRDetail!$E$2:$E$61>=$B27)*(BSRDetail!$E$2:$E$61<$B28)) -> 0 | CM27: =IF($D27=0,AVERAGE(CM$6:CM26)*$C27/10,CL27) -> 0 | CN27: =SUM(BSRDetail!$H$2:$H$61*(BSRDetail!$A$2:$A$61=$A$1)*(BSRDetail!$F$2:$F$61=CN$1)*(BSRDetail!$B$2:$B$61=$B$1)*(BSRDetail!$E$2:$E$61>=$B27)*(BSRDetail!$E$2:$E$61<$B28)) -> 0 | CO27: =IF($D27=0,AVERAGE(CO$6:CO26)*$C27/10,CN27) -> 0 | CP27: =SUM(BSRDetail!$H$2:$H$61*(BSRDetail!$A$2:$A$61=$A$1)*(BSRDetail!$F$2:$F$61=CP$1)*(BSRDetail!$B$2:$B$61=$B$1)*(BSRDetail!$E$2:$E$61>=$B27)*(BSRDetail!$E$2:$E$61<$B28)) -> 0 | CQ27: =IF($D27=0,AVERAGE(CQ$6:CQ26)*$C27/10,CP27) -> 0 | CR27: =SUM(BSRDetail!$H$2:$H$61*(BSRDetail!$A$2:$A$61=$A$1)*(BSRDetail!$F$2:$F$61=CR$1)*(BSRDetail!$B$2:$B$61=$B$1)*(BSRDetail!$E$2:$E$61>=$B27)*(BSRDetail!$E$2:$E$61<$B28)) -> 0 | CS27: =IF($D27=0,AVERAGE(CS$6:CS26)*$C27/10,CR27) -> 0 | CT27: =SUM(BSRDetail!$H$2:$H$61*(BSRDetail!$A$2:$A$61=$A$1)*(BSRDetail!$F$2:$F$61=CT$1)*(BSRDetail!$B$2:$B$61=$B$1)*(BSRDetail!$E$2:$E$61>=$B27)*(BSRDetail!$E$2:$E$61<$B28)) -> 0 | CU27: =IF($D27=0,AVERAGE(CU$6:CU26)*$C27/10,CT27) -> 0 | CV27: =SUM(BSRDetail!$H$2:$H$61*(BSRDetail!$A$2:$A$61=$A$1)*(BSRDetail!$F$2:$F$61=CV$1)*(BSRDetail!$B$2:$B$61=$B$1)*(BSRDetail!$E$2:$E$61>=$B27)*(BSRDetail!$E$2:$E$61<$B28)) -> 0 | CW27: =IF($D27=0,AVERAGE(CW$6:CW26)*$C27/10,CV27) -> 0
A28: 0 | B28: 2017-05-19 | C28: 10 | D28: =SUM(BSRDetail!$H$2:$H$61*(BSRDetail!$A$2:$A$61=$A$1)*(BSRDetail!$F$2:$F$61=D$1)*(BSRDetail!$B$2:$B$61=$B$1)*(BSRDetail!$E$2:$E$61>=$B28)*(BSRDetail!$E$2:$E$61<$B29)) -> 0 | E28: =SUM(BSRDetail!$H$2:$H$61*(BSRDetail!$A$2:$A$61=$A$1)*(BSRDetail!$F$2:$F$61=E$1)*(BSRDetail!$B$2:$B$61=$B$1)*(BSRDetail!$E$2:$E$61>=$B28)*(BSRDetail!$E$2:$E$61<$B29)) -> 0 | F28: =SUM(BSRDetail!$H$2:$H$61*(BSRDetail!$A$2:$A$61=$A$1)*(BSRDetail!$F$2:$F$61=F$1)*(BSRDetail!$B$2:$B$61=$B$1)*(BSRDetail!$E$2:$E$61>=$B28)*(BSRDetail!$E$2:$E$61<$B29)) -> 0 | G28: =SUM(BSRDetail!$H$2:$H$61*(BSRDetail!$A$2:$A$61=$A$1)*(BSRDetail!$F$2:$F$61=G$1)*(BSRDetail!$B$2:$B$61=$B$1)*(BSRDetail!$E$2:$E$61>=$B28)*(BSRDetail!$E$2:$E$61<$B29)) -> 0 | H28: =SUM(BSRDetail!$H$2:$H$61*(BSRDetail!$A$2:$A$61=$A$1)*(BSRDetail!$F$2:$F$61=H$1)*(BSRDetail!$B$2:$B$61=$B$1)*(BSRDetail!$E$2:$E$61>=$B28)*(BSRDetail!$E$2:$E$61<$B29)) -> 0 | I28: =SUM(BSRDetail!$H$2:$H$61*(BSRDetail!$A$2:$A$61=$A$1)*(BSRDetail!$F$2:$F$61=I$1)*(BSRDetail!$B$2:$B$61=$B$1)*(BSRDetail!$E$2:$E$61>=$B28)*(BSRDetail!$E$2:$E$61<$B29)) -> 0 | J28: 0 | K28: 6503.460012 | L28: 0 | M28: 6503.460012 | N28: =SUM(BSRDetail!$H$2:$H$61*(BSRDetail!$A$2:$A$61=$A$1)*(BSRDetail!$F$2:$F$61=N$1)*(BSRDetail!$B$2:$B$61=$B$1)*(BSRDetail!$E$2:$E$61>=$B28)*(BSRDetail!$E$2:$E$61<$B29)) -> 0 | O28: =SUM(BSRDetail!$H$2:$H$61*(BSRDetail!$A$2:$A$61=$A$1)*(BSRDetail!$F$2:$F$61=O$1)*(BSRDetail!$B$2:$B$61=$B$1)*(BSRDetail!$E$2:$E$61>=$B28)*(BSRDetail!$E$2:$E$61<$B29)) -> 0 | P28: =SUM(BSRDetail!$H$2:$H$61*(BSRDetail!$A$2:$A$61=$A$1)*(BSRDetail!$F$2:$F$61=P$1)*(BSRDetail!$B$2:$B$61=$B$1)*(BSRDetail!$E$2:$E$61>=$B28)*(BSRDetail!$E$2:$E$61<$B29)) -> 0 | Q28: =SUM(BSRDetail!$H$2:$H$61*(BSRDetail!$A$2:$A$61=$A$1)*(BSRDetail!$F$2:$F$61=Q$1)*(BSRDetail!$B$2:$B$61=$B$1)*(BSRDetail!$E$2:$E$61>=$B28)*(BSRDetail!$E$2:$E$61<$B29)) -> 0 | R28: =SUM(BSRDetail!$H$2:$H$61*(BSRDetail!$A$2:$A$61=$A$1)*(BSRDetail!$F$2:$F$61=R$1)*(BSRDetail!$B$2:$B$61=$B$1)*(BSRDetail!$E$2:$E$61>=$B28)*(BSRDetail!$E$2:$E$61<$B29)) -> 0 | S28: =SUM(BSRDetail!$H$2:$H$61*(BSRDetail!$A$2:$A$61=$A$1)*(BSRDetail!$F$2:$F$61=S$1)*(BSRDetail!$B$2:$B$61=$B$1)*(BSRDetail!$E$2:$E$61>=$B28)*(BSRDetail!$E$2:$E$61<$B29)) -> 0 | T28: =SUM(BSRDetail!$H$2:$H$61*(BSRDetail!$A$2:$A$61=$A$1)*(BSRDetail!$F$2:$F$61=T$1)*(BSRDetail!$B$2:$B$61=$B$1)*(BSRDetail!$E$2:$E$61>=$B28)*(BSRDetail!$E$2:$E$61<$B29)) -> 0 | U28: =SUM(BSRDetail!$H$2:$H$61*(BSRDetail!$A$2:$A$61=$A$1)*(BSRDetail!$F$2:$F$61=U$1)*(BSRDetail!$B$2:$B$61=$B$1)*(BSRDetail!$E$2:$E$61>=$B28)*(BSRDetail!$E$2:$E$61<$B29)) -> 0 | V28: =SUM(BSRDetail!$H$2:$H$61*(BSRDetail!$A$2:$A$61=$A$1)*(BSRDetail!$F$2:$F$61=V$1)*(BSRDetail!$B$2:$B$61=$B$1)*(BSRDetail!$E$2:$E$61>=$B28)*(BSRDetail!$E$2:$E$61<$B29)) -> 0 | W28: =SUM(BSRDetail!$H$2:$H$61*(BSRDetail!$A$2:$A$61=$A$1)*(BSRDetail!$F$2:$F$61=W$1)*(BSRDetail!$B$2:$B$61=$B$1)*(BSRDetail!$E$2:$E$61>=$B28)*(BSRDetail!$E$2:$E$61<$B29)) -> 0 | X28: =SUM(BSRDetail!$H$2:$H$61*(BSRDetail!$A$2:$A$61=$A$1)*(BSRDetail!$F$2:$F$61=X$1)*(BSRDetail!$B$2:$B$61=$B$1)*(BSRDetail!$E$2:$E$61>=$B28)*(BSRDetail!$E$2:$E$61<$B29)) -> 0 | Y28: 0 | Z28: 0 | AA28: =IF(D27=0,AA27,IF($D28=0,Z28+AVERAGE($Y$7:Y27)*$C28/10,Y28)) -> 0 | AB28: 6503.460012 | AC28: =SUM(BSRDetail!$H$2:$H$61*(BSRDetail!$A$2:$A$61=$A$1)*(BSRDetail!$F$2:$F$61=AC$1)*(BSRDetail!$B$2:$B$61=$B$1)*(BSRDetail!$E$2:$E$61>=$B28)*(BSRDetail!$E$2:$E$61<$B29)) -> 0 | AD28: 0.020066 | AE28: 130.4984286 | AF28: =SUM(BSRDetail!$H$2:$H$61*(BSRDetail!$A$2:$A$61=$A$1)*(BSRDetail!$F$2:$F$61=AF$1)*(BSRDetail!$B$2:$B$61=$B$1)*(BSRDetail!$E$2:$E$61>=$B28)*(BSRDetail!$E$2:$E$61<$B29)) -> 0 | AG28: 0 | AH28: 0 | AI28: =SUM(BSRDetail!$H$2:$H$61*(BSRDetail!$A$2:$A$61=$A$1)*(BSRDetail!$F$2:$F$61=AI$1)*(BSRDetail!$B$2:$B$61=$B$1)*(BSRDetail!$E$2:$E$61>=$B28)*(BSRDetail!$E$2:$E$61<$B29)) -> 0 | AJ28: 0 | AK28: =SUM(BSRDetail!$H$2:$H$61*(BSRDetail!$A$2:$A$61=$A$1)*(BSRDetail!$F$2:$F$61=AK$1)*(BSRDetail!$B$2:$B$61=$B$1)*(BSRDetail!$E$2:$E$61>=$B28)*(BSRDetail!$E$2:$E$61<$B29)) -> 0 | AL28: 0 | AM28: 0 | AN28: 0 | AO28: =SUM(BSRDetail!$H$2:$H$61*(BSRDetail!$A$2:$A$61=$A$1)*(BSRDetail!$F$2:$F$61=AO$1)*(BSRDetail!$B$2:$B$61=$B$1)*(BSRDetail!$E$2:$E$61>=$B28)*(BSRDetail!$E$2:$E$61<$B29)) -> 0 | AP28: 0 | AQ28: =SUM(BSRDetail!$H$2:$H$61*(BSRDetail!$A$2:$A$61=$A$1)*(BSRDetail!$F$2:$F$61=AQ$1)*(BSRDetail!$B$2:$B$61=$B$1)*(BSRDetail!$E$2:$E$61>=$B28)*(BSRDetail!$E$2:$E$61<$B29)) -> 0 | AR28: 0.02360050494 | AS28: 153.4849401 | AT28: =SUM(BSRDetail!$H$2:$H$61*(BSRDetail!$A$2:$A$61=$A$1)*(BSRDetail!$F$2:$F$61=AT$1)*(BSRDetail!$B$2:$B$61=$B$1)*(BSRDetail!$E$2:$E$61>=$B28)*(BSRDetail!$E$2:$E$61<$B29)) -> 0 | AU28: 0.0007 | AV28: 4.552422009 | AW28: =SUM(BSRDetail!$H$2:$H$61*(BSRDetail!$A$2:$A$61=$A$1)*(BSRDetail!$F$2:$F$61=AW$1)*(BSRDetail!$B$2:$B$61=$B$1)*(BSRDetail!$E$2:$E$61>=$B28)*(BSRDetail!$E$2:$E$61<$B29)) -> 0 | AX28: =IF(D28=0,IF(DAY(B28)<15,SUM(AX19:AX27*(DAY(B19:B27)<15))/SUM(1*(DAY(B19:B27)<15)),SUM(AX19:AX27*(DAY(B19:B27)>14))/SUM(1*(DAY(B19:B27)>14))),AW28/AB28) -> 0.01450023599 | AY28: 94.30170494 | AZ28: =SUM(BSRDetail!$H$2:$H$61*(BSRDetail!$A$2:$A$61=$A$1)*(BSRDetail!$F$2:$F$61=AZ$1)*(BSRDetail!$B$2:$B$61=$B$1)*(BSRDetail!$E$2:$E$61>=$B28)*(BSRDetail!$E$2:$E$61<$B29)) -> 0 | BA28: 0 | BB28: 0 | BC28: =SUM(BSRDetail!$H$2:$H$61*(BSRDetail!$A$2:$A$61=$A$1)*(BSRDetail!$F$2:$F$61=BC$1)*(BSRDetail!$B$2:$B$61=$B$1)*(BSRDetail!$E$2:$E$61>=$B28)*(BSRDetail!$E$2:$E$61<$B29)) -> 0 | BD28: =SUM(BSRDetail!$H$2:$H$61*(BSRDetail!$A$2:$A$61=$A$1)*(BSRDetail!$F$2:$F$61=BD$1)*(BSRDetail!$B$2:$B$61=$B$1)*(BSRDetail!$E$2:$E$61>=$B28)*(BSRDetail!$E$2:$E$61<$B29)) -> 0 | BE28: 0 | BF28: 0 | BG28: =SUM(BSRDetail!$H$2:$H$61*(BSRDetail!$A$2:$A$61=$A$1)*(BSRDetail!$F$2:$F$61=BG$1)*(BSRDetail!$B$2:$B$61=$B$1)*(BSRDetail!$E$2:$E$61>=$B28)*(BSRDetail!$E$2:$E$61<$B29)) -> 0 | BH28: =SUM(BSRDetail!$H$2:$H$61*(BSRDetail!$A$2:$A$61=$A$1)*(BSRDetail!$F$2:$F$61=BH$1)*(BSRDetail!$B$2:$B$61=$B$1)*(BSRDetail!$E$2:$E$61>=$B28)*(BSRDetail!$E$2:$E$61<$B29)) -> 0 | BI28: 0 | BJ28: =SUM(BSRDetail!$H$2:$H$61*(BSRDetail!$A$2:$A$61=$A$1)*(BSRDetail!$F$2:$F$61=BJ$1)*(BSRDetail!$B$2:$B$61=$B$1)*(BSRDetail!$E$2:$E$61>=$B28)*(BSRDetail!$E$2:$E$61<$B29)) -> 0 | BK28: =IF($D28=0,AVERAGE(BK$6:BK27)*$C28/10,BJ28) -> 711.45 | BL28: =SUM(BSRDetail!$H$2:$H$61*(BSRDetail!$A$2:$A$61=$A$1)*(BSRDetail!$F$2:$F$61=BL$1)*(BSRDetail!$B$2:$B$61=$B$1)*(BSRDetail!$E$2:$E$61>=$B28)*(BSRDetail!$E$2:$E$61<$B29)) -> 0 | BM28: =IF($D28=0,AVERAGE(BM$6:BM27)*$C28/10,BL28) -> 0 | BN28: =SUM(BSRDetail!$H$2:$H$61*(BSRDetail!$A$2:$A$61=$A$1)*(BSRDetail!$F$2:$F$61=BN$1)*(BSRDetail!$B$2:$B$61=$B$1)*(BSRDetail!$E$2:$E$61>=$B28)*(BSRDetail!$E$2:$E$61<$B29)) -> 0 | BO28: =IF($D28=0,AVERAGE(BO$6:BO27)*$C28/10,BN28) -> 0 | BP28: =SUM(BSRDetail!$H$2:$H$61*(BSRDetail!$A$2:$A$61=$A$1)*(BSRDetail!$F$2:$F$61=BP$1)*(BSRDetail!$B$2:$B$61=$B$1)*(BSRDetail!$E$2:$E$61>=$B28)*(BSRDetail!$E$2:$E$61<$B29)) -> 0 | BQ28: =IF($D28=0,AVERAGE(BQ$6:BQ27)*$C28/10,BP28) -> 0 | BR28: =SUM(BSRDetail!$H$2:$H$61*(BSRDetail!$A$2:$A$61=$A$1)*(BSRDetail!$F$2:$F$61=BR$1)*(BSRDetail!$B$2:$B$61=$B$1)*(BSRDetail!$E$2:$E$61>=$B28)*(BSRDetail!$E$2:$E$61<$B29)) -> 0 | BS28: =IF($D28=0,AVERAGE(BS$6:BS27)*$C28/10,BR28) -> 0 | BT28: =SUM(BSRDetail!$H$2:$H$61*(BSRDetail!$A$2:$A$61=$A$1)*(BSRDetail!$F$2:$F$61=BT$1)*(BSRDetail!$B$2:$B$61=$B$1)*(BSRDetail!$E$2:$E$61>=$B28)*(BSRDetail!$E$2:$E$61<$B29)) -> 0 | BU28: =IF($D28=0,AVERAGE(BU$6:BU27)*$C28/10,BT28) -> 0 | BV28: =SUM(BSRDetail!$H$2:$H$61*(BSRDetail!$A$2:$A$61=$A$1)*(BSRDetail!$F$2:$F$61=BV$1)*(BSRDetail!$B$2:$B$61=$B$1)*(BSRDetail!$E$2:$E$61>=$B28)*(BSRDetail!$E$2:$E$61<$B29)) -> 0 | BW28: =IF($D28=0,AVERAGE(BW$6:BW27)*$C28/10,BV28) -> 0 | BX28: =SUM(BSRDetail!$H$2:$H$61*(BSRDetail!$A$2:$A$61=$A$1)*(BSRDetail!$F$2:$F$61=BX$1)*(BSRDetail!$B$2:$B$61=$B$1)*(BSRDetail!$E$2:$E$61>=$B28)*(BSRDetail!$E$2:$E$61<$B29)) -> 0 | BY28: =IF($D28=0,AVERAGE(BY$6:BY27)*$C28/10,BX28) -> 0 | BZ28: =SUM(BSRDetail!$H$2:$H$61*(BSRDetail!$A$2:$A$61=$A$1)*(BSRDetail!$F$2:$F$61=BZ$1)*(BSRDetail!$B$2:$B$61=$B$1)*(BSRDetail!$E$2:$E$61>=$B28)*(BSRDetail!$E$2:$E$61<$B29)) -> 0 | CA28: =IF($D28=0,AVERAGE(CA$6:CA27)*$C28/10,BZ28) -> 0 | CB28: =SUM(BSRDetail!$H$2:$H$61*(BSRDetail!$A$2:$A$61=$A$1)*(BSRDetail!$F$2:$F$61=CB$1)*(BSRDetail!$B$2:$B$61=$B$1)*(BSRDetail!$E$2:$E$61>=$B28)*(BSRDetail!$E$2:$E$61<$B29)) -> 0 | CC28: =IF($D28=0,AVERAGE(CC$6:CC27)*$C28/10,CB28) -> 0 | CD28: =SUM(BSRDetail!$H$2:$H$61*(BSRDetail!$A$2:$A$61=$A$1)*(BSRDetail!$F$2:$F$61=CD$1)*(BSRDetail!$B$2:$B$61=$B$1)*(BSRDetail!$E$2:$E$61>=$B28)*(BSRDetail!$E$2:$E$61<$B29)) -> 0 | CE28: =IF($D28=0,AVERAGE(CE$6:CE27)*$C28/10,CD28) -> 0 | CF28: =SUM(BSRDetail!$H$2:$H$61*(BSRDetail!$A$2:$A$61=$A$1)*(BSRDetail!$F$2:$F$61=CF$1)*(BSRDetail!$B$2:$B$61=$B$1)*(BSRDetail!$E$2:$E$61>=$B28)*(BSRDetail!$E$2:$E$61<$B29)) -> 0 | CG28: =IF($D28=0,AVERAGE(CG$6:CG27)*$C28/10,CF28) -> 0 | CH28: =SUM(BSRDetail!$H$2:$H$61*(BSRDetail!$A$2:$A$61=$A$1)*(BSRDetail!$F$2:$F$61=CH$1)*(BSRDetail!$B$2:$B$61=$B$1)*(BSRDetail!$E$2:$E$61>=$B28)*(BSRDetail!$E$2:$E$61<$B29)) -> 0 | CI28: =IF($D28=0,AVERAGE(CI$6:CI27)*$C28/10,CH28) -> 0 | CJ28: =SUM(BSRDetail!$H$2:$H$61*(BSRDetail!$A$2:$A$61=$A$1)*(BSRDetail!$F$2:$F$61=CJ$1)*(BSRDetail!$B$2:$B$61=$B$1)*(BSRDetail!$E$2:$E$61>=$B28)*(BSRDetail!$E$2:$E$61<$B29)) -> 0 | CK28: =IF($D28=0,AVERAGE(CK$6:CK27)*$C28/10,CJ28) -> 0 | CL28: =SUM(BSRDetail!$H$2:$H$61*(BSRDetail!$A$2:$A$61=$A$1)*(BSRDetail!$F$2:$F$61=CL$1)*(BSRDetail!$B$2:$B$61=$B$1)*(BSRDetail!$E$2:$E$61>=$B28)*(BSRDetail!$E$2:$E$61<$B29)) -> 0 | CM28: =IF($D28=0,AVERAGE(CM$6:CM27)*$C28/10,CL28) -> 0 | CN28: =SUM(BSRDetail!$H$2:$H$61*(BSRDetail!$A$2:$A$61=$A$1)*(BSRDetail!$F$2:$F$61=CN$1)*(BSRDetail!$B$2:$B$61=$B$1)*(BSRDetail!$E$2:$E$61>=$B28)*(BSRDetail!$E$2:$E$61<$B29)) -> 0 | CO28: =IF($D28=0,AVERAGE(CO$6:CO27)*$C28/10,CN28) -> 0 | CP28: =SUM(BSRDetail!$H$2:$H$61*(BSRDetail!$A$2:$A$61=$A$1)*(BSRDetail!$F$2:$F$61=CP$1)*(BSRDetail!$B$2:$B$61=$B$1)*(BSRDetail!$E$2:$E$61>=$B28)*(BSRDetail!$E$2:$E$61<$B29)) -> 0 | CQ28: =IF($D28=0,AVERAGE(CQ$6:CQ27)*$C28/10,CP28) -> 0 | CR28: =SUM(BSRDetail!$H$2:$H$61*(BSRDetail!$A$2:$A$61=$A$1)*(BSRDetail!$F$2:$F$61=CR$1)*(BSRDetail!$B$2:$B$61=$B$1)*(BSRDetail!$E$2:$E$61>=$B28)*(BSRDetail!$E$2:$E$61<$B29)) -> 0 | CS28: =IF($D28=0,AVERAGE(CS$6:CS27)*$C28/10,CR28) -> 0 | CT28: =SUM(BSRDetail!$H$2:$H$61*(BSRDetail!$A$2:$A$61=$A$1)*(BSRDetail!$F$2:$F$61=CT$1)*(BSRDetail!$B$2:$B$61=$B$1)*(BSRDetail!$E$2:$E$61>=$B28)*(BSRDetail!$E$2:$E$61<$B29)) -> 0 | CU28: =IF($D28=0,AVERAGE(CU$6:CU27)*$C28/10,CT28) -> 0 | CV28: =SUM(BSRDetail!$H$2:$H$61*(BSRDetail!$A$2:$A$61=$A$1)*(BSRDetail!$F$2:$F$61=CV$1)*(BSRDetail!$B$2:$B$61=$B$1)*(BSRDetail!$E$2:$E$61>=$B28)*(BSRDetail!$E$2:$E$61<$B29)) -> 0 | CW28: =IF($D28=0,AVERAGE(CW$6:CW27)*$C28/10,CV28) -> 0
A29: 0 | B29: 2017-06-02 | C29: 10 | D29: =SUM(BSRDetail!$H$2:$H$61*(BSRDetail!$A$2:$A$61=$A$1)*(BSRDetail!$F$2:$F$61=D$1)*(BSRDetail!$B$2:$B$61=$B$1)*(BSRDetail!$E$2:$E$61>=$B29)*(BSRDetail!$E$2:$E$61<$B30)) -> 0 | E29: =SUM(BSRDetail!$H$2:$H$61*(BSRDetail!$A$2:$A$61=$A$1)*(BSRDetail!$F$2:$F$61=E$1)*(BSRDetail!$B$2:$B$61=$B$1)*(BSRDetail!$E$2:$E$61>=$B29)*(BSRDetail!$E$2:$E$61<$B30)) -> 0 | F29: =SUM(BSRDetail!$H$2:$H$61*(BSRDetail!$A$2:$A$61=$A$1)*(BSRDetail!$F$2:$F$61=F$1)*(BSRDetail!$B$2:$B$61=$B$1)*(BSRDetail!$E$2:$E$61>=$B29)*(BSRDetail!$E$2:$E$61<$B30)) -> 0 | G29: =SUM(BSRDetail!$H$2:$H$61*(BSRDetail!$A$2:$A$61=$A$1)*(BSRDetail!$F$2:$F$61=G$1)*(BSRDetail!$B$2:$B$61=$B$1)*(BSRDetail!$E$2:$E$61>=$B29)*(BSRDetail!$E$2:$E$61<$B30)) -> 0 | H29: =SUM(BSRDetail!$H$2:$H$61*(BSRDetail!$A$2:$A$61=$A$1)*(BSRDetail!$F$2:$F$61=H$1)*(BSRDetail!$B$2:$B$61=$B$1)*(BSRDetail!$E$2:$E$61>=$B29)*(BSRDetail!$E$2:$E$61<$B30)) -> 0 | I29: =SUM(BSRDetail!$H$2:$H$61*(BSRDetail!$A$2:$A$61=$A$1)*(BSRDetail!$F$2:$F$61=I$1)*(BSRDetail!$B$2:$B$61=$B$1)*(BSRDetail!$E$2:$E$61>=$B29)*(BSRDetail!$E$2:$E$61<$B30)) -> 0 | J29: 0 | K29: 6503.68551 | L29: 0 | M29: 6503.68551 | N29: =SUM(BSRDetail!$H$2:$H$61*(BSRDetail!$A$2:$A$61=$A$1)*(BSRDetail!$F$2:$F$61=N$1)*(BSRDetail!$B$2:$B$61=$B$1)*(BSRDetail!$E$2:$E$61>=$B29)*(BSRDetail!$E$2:$E$61<$B30)) -> 0 | O29: =SUM(BSRDetail!$H$2:$H$61*(BSRDetail!$A$2:$A$61=$A$1)*(BSRDetail!$F$2:$F$61=O$1)*(BSRDetail!$B$2:$B$61=$B$1)*(BSRDetail!$E$2:$E$61>=$B29)*(BSRDetail!$E$2:$E$61<$B30)) -> 0 | P29: =SUM(BSRDetail!$H$2:$H$61*(BSRDetail!$A$2:$A$61=$A$1)*(BSRDetail!$F$2:$F$61=P$1)*(BSRDetail!$B$2:$B$61=$B$1)*(BSRDetail!$E$2:$E$61>=$B29)*(BSRDetail!$E$2:$E$61<$B30)) -> 0 | Q29: =SUM(BSRDetail!$H$2:$H$61*(BSRDetail!$A$2:$A$61=$A$1)*(BSRDetail!$F$2:$F$61=Q$1)*(BSRDetail!$B$2:$B$61=$B$1)*(BSRDetail!$E$2:$E$61>=$B29)*(BSRDetail!$E$2:$E$61<$B30)) -> 0 | R29: =SUM(BSRDetail!$H$2:$H$61*(BSRDetail!$A$2:$A$61=$A$1)*(BSRDetail!$F$2:$F$61=R$1)*(BSRDetail!$B$2:$B$61=$B$1)*(BSRDetail!$E$2:$E$61>=$B29)*(BSRDetail!$E$2:$E$61<$B30)) -> 0 | S29: =SUM(BSRDetail!$H$2:$H$61*(BSRDetail!$A$2:$A$61=$A$1)*(BSRDetail!$F$2:$F$61=S$1)*(BSRDetail!$B$2:$B$61=$B$1)*(BSRDetail!$E$2:$E$61>=$B29)*(BSRDetail!$E$2:$E$61<$B30)) -> 0 | T29: =SUM(BSRDetail!$H$2:$H$61*(BSRDetail!$A$2:$A$61=$A$1)*(BSRDetail!$F$2:$F$61=T$1)*(BSRDetail!$B$2:$B$61=$B$1)*(BSRDetail!$E$2:$E$61>=$B29)*(BSRDetail!$E$2:$E$61<$B30)) -> 0 | U29: =SUM(BSRDetail!$H$2:$H$61*(BSRDetail!$A$2:$A$61=$A$1)*(BSRDetail!$F$2:$F$61=U$1)*(BSRDetail!$B$2:$B$61=$B$1)*(BSRDetail!$E$2:$E$61>=$B29)*(BSRDetail!$E$2:$E$61<$B30)) -> 0 | V29: =SUM(BSRDetail!$H$2:$H$61*(BSRDetail!$A$2:$A$61=$A$1)*(BSRDetail!$F$2:$F$61=V$1)*(BSRDetail!$B$2:$B$61=$B$1)*(BSRDetail!$E$2:$E$61>=$B29)*(BSRDetail!$E$2:$E$61<$B30)) -> 0 | W29: =SUM(BSRDetail!$H$2:$H$61*(BSRDetail!$A$2:$A$61=$A$1)*(BSRDetail!$F$2:$F$61=W$1)*(BSRDetail!$B$2:$B$61=$B$1)*(BSRDetail!$E$2:$E$61>=$B29)*(BSRDetail!$E$2:$E$61<$B30)) -> 0 | X29: =SUM(BSRDetail!$H$2:$H$61*(BSRDetail!$A$2:$A$61=$A$1)*(BSRDetail!$F$2:$F$61=X$1)*(BSRDetail!$B$2:$B$61=$B$1)*(BSRDetail!$E$2:$E$61>=$B29)*(BSRDetail!$E$2:$E$61<$B30)) -> 0 | Y29: 0 | Z29: 0 | AA29: =IF(D28=0,AA28,IF($D29=0,Z29+AVERAGE($Y$7:Y28)*$C29/10,Y29)) -> 0 | AB29: 6503.68551 | AC29: =SUM(BSRDetail!$H$2:$H$61*(BSRDetail!$A$2:$A$61=$A$1)*(BSRDetail!$F$2:$F$61=AC$1)*(BSRDetail!$B$2:$B$61=$B$1)*(BSRDetail!$E$2:$E$61>=$B29)*(BSRDetail!$E$2:$E$61<$B30)) -> 0 | AD29: 0.01921016667 | AE29: 124.9368826 | AF29: =SUM(BSRDetail!$H$2:$H$61*(BSRDetail!$A$2:$A$61=$A$1)*(BSRDetail!$F$2:$F$61=AF$1)*(BSRDetail!$B$2:$B$61=$B$1)*(BSRDetail!$E$2:$E$61>=$B29)*(BSRDetail!$E$2:$E$61<$B30)) -> 0 | AG29: 0 | AH29: 0 | AI29: =SUM(BSRDetail!$H$2:$H$61*(BSRDetail!$A$2:$A$61=$A$1)*(BSRDetail!$F$2:$F$61=AI$1)*(BSRDetail!$B$2:$B$61=$B$1)*(BSRDetail!$E$2:$E$61>=$B29)*(BSRDetail!$E$2:$E$61<$B30)) -> 0 | AJ29: 0 | AK29: =SUM(BSRDetail!$H$2:$H$61*(BSRDetail!$A$2:$A$61=$A$1)*(BSRDetail!$F$2:$F$61=AK$1)*(BSRDetail!$B$2:$B$61=$B$1)*(BSRDetail!$E$2:$E$61>=$B29)*(BSRDetail!$E$2:$E$61<$B30)) -> 0 | AL29: 0.9964658772 | AM29: 0 | AN29: 699.25 | AO29: =SUM(BSRDetail!$H$2:$H$61*(BSRDetail!$A$2:$A$61=$A$1)*(BSRDetail!$F$2:$F$61=AO$1)*(BSRDetail!$B$2:$B$61=$B$1)*(BSRDetail!$E$2:$E$61>=$B29)*(BSRDetail!$E$2:$E$61<$B30)) -> 0 | AP29: 0 | AQ29: =SUM(BSRDetail!$H$2:$H$61*(BSRDetail!$A$2:$A$61=$A$1)*(BSRDetail!$F$2:$F$61=AQ$1)*(BSRDetail!$B$2:$B$61=$B$1)*(BSRDetail!$E$2:$E$61>=$B29)*(BSRDetail!$E$2:$E$61<$B30)) -> 0 | AR29: 0.02360050494 | AS29: 153.490262 | AT29: =SUM(BSRDetail!$H$2:$H$61*(BSRDetail!$A$2:$A$61=$A$1)*(BSRDetail!$F$2:$F$61=AT$1)*(BSRDetail!$B$2:$B$61=$B$1)*(BSRDetail!$E$2:$E$61>=$B29)*(BSRDetail!$E$2:$E$61<$B30)) -> 0 | AU29: 0.0007 | AV29: 4.552579857 | AW29: =SUM(BSRDetail!$H$2:$H$61*(BSRDetail!$A$2:$A$61=$A$1)*(BSRDetail!$F$2:$F$61=AW$1)*(BSRDetail!$B$2:$B$61=$B$1)*(BSRDetail!$E$2:$E$61>=$B29)*(BSRDetail!$E$2:$E$61<$B30)) -> 0 | AX29: =IF(D29=0,IF(DAY(B29)<15,SUM(AX20:AX28*(DAY(B20:B28)<15))/SUM(1*(DAY(B20:B28)<15)),SUM(AX20:AX28*(DAY(B20:B28)>14))/SUM(1*(DAY(B20:B28)>14))),AW29/AB29) -> 0.01374801521 | AY29: 89.41276733 | AZ29: =SUM(BSRDetail!$H$2:$H$61*(BSRDetail!$A$2:$A$61=$A$1)*(BSRDetail!$F$2:$F$61=AZ$1)*(BSRDetail!$B$2:$B$61=$B$1)*(BSRDetail!$E$2:$E$61>=$B29)*(BSRDetail!$E$2:$E$61<$B30)) -> 0 | BA29: 0 | BB29: 0 | BC29: =SUM(BSRDetail!$H$2:$H$61*(BSRDetail!$A$2:$A$61=$A$1)*(BSRDetail!$F$2:$F$61=BC$1)*(BSRDetail!$B$2:$B$61=$B$1)*(BSRDetail!$E$2:$E$61>=$B29)*(BSRDetail!$E$2:$E$61<$B30)) -> 0 | BD29: =SUM(BSRDetail!$H$2:$H$61*(BSRDetail!$A$2:$A$61=$A$1)*(BSRDetail!$F$2:$F$61=BD$1)*(BSRDetail!$B$2:$B$61=$B$1)*(BSRDetail!$E$2:$E$61>=$B29)*(BSRDetail!$E$2:$E$61<$B30)) -> 0 | BE29: 0 | BF29: 0 | BG29: =SUM(BSRDetail!$H$2:$H$61*(BSRDetail!$A$2:$A$61=$A$1)*(BSRDetail!$F$2:$F$61=BG$1)*(BSRDetail!$B$2:$B$61=$B$1)*(BSRDetail!$E$2:$E$61>=$B29)*(BSRDetail!$E$2:$E$61<$B30)) -> 0 | BH29: =SUM(BSRDetail!$H$2:$H$61*(BSRDetail!$A$2:$A$61=$A$1)*(BSRDetail!$F$2:$F$61=BH$1)*(BSRDetail!$B$2:$B$61=$B$1)*(BSRDetail!$E$2:$E$61>=$B29)*(BSRDetail!$E$2:$E$61<$B30)) -> 0 | BI29: 0 | BJ29: =SUM(BSRDetail!$H$2:$H$61*(BSRDetail!$A$2:$A$61=$A$1)*(BSRDetail!$F$2:$F$61=BJ$1)*(BSRDetail!$B$2:$B$61=$B$1)*(BSRDetail!$E$2:$E$61>=$B29)*(BSRDetail!$E$2:$E$61<$B30)) -> 0 | BK29: =IF($D29=0,AVERAGE(BK$6:BK28)*$C29/10,BJ29) -> 711.45 | BL29: =SUM(BSRDetail!$H$2:$H$61*(BSRDetail!$A$2:$A$61=$A$1)*(BSRDetail!$F$2:$F$61=BL$1)*(BSRDetail!$B$2:$B$61=$B$1)*(BSRDetail!$E$2:$E$61>=$B29)*(BSRDetail!$E$2:$E$61<$B30)) -> 0 | BM29: =IF($D29=0,AVERAGE(BM$6:BM28)*$C29/10,BL29) -> 0 | BN29: =SUM(BSRDetail!$H$2:$H$61*(BSRDetail!$A$2:$A$61=$A$1)*(BSRDetail!$F$2:$F$61=BN$1)*(BSRDetail!$B$2:$B$61=$B$1)*(BSRDetail!$E$2:$E$61>=$B29)*(BSRDetail!$E$2:$E$61<$B30)) -> 0 | BO29: =IF($D29=0,AVERAGE(BO$6:BO28)*$C29/10,BN29) -> 0 | BP29: =SUM(BSRDetail!$H$2:$H$61*(BSRDetail!$A$2:$A$61=$A$1)*(BSRDetail!$F$2:$F$61=BP$1)*(BSRDetail!$B$2:$B$61=$B$1)*(BSRDetail!$E$2:$E$61>=$B29)*(BSRDetail!$E$2:$E$61<$B30)) -> 0 | BQ29: =IF($D29=0,AVERAGE(BQ$6:BQ28)*$C29/10,BP29) -> 0 | BR29: =SUM(BSRDetail!$H$2:$H$61*(BSRDetail!$A$2:$A$61=$A$1)*(BSRDetail!$F$2:$F$61=BR$1)*(BSRDetail!$B$2:$B$61=$B$1)*(BSRDetail!$E$2:$E$61>=$B29)*(BSRDetail!$E$2:$E$61<$B30)) -> 0 | BS29: =IF($D29=0,AVERAGE(BS$6:BS28)*$C29/10,BR29) -> 0 | BT29: =SUM(BSRDetail!$H$2:$H$61*(BSRDetail!$A$2:$A$61=$A$1)*(BSRDetail!$F$2:$F$61=BT$1)*(BSRDetail!$B$2:$B$61=$B$1)*(BSRDetail!$E$2:$E$61>=$B29)*(BSRDetail!$E$2:$E$61<$B30)) -> 0 | BU29: =IF($D29=0,AVERAGE(BU$6:BU28)*$C29/10,BT29) -> 0 | BV29: =SUM(BSRDetail!$H$2:$H$61*(BSRDetail!$A$2:$A$61=$A$1)*(BSRDetail!$F$2:$F$61=BV$1)*(BSRDetail!$B$2:$B$61=$B$1)*(BSRDetail!$E$2:$E$61>=$B29)*(BSRDetail!$E$2:$E$61<$B30)) -> 0 | BW29: =IF($D29=0,AVERAGE(BW$6:BW28)*$C29/10,BV29) -> 0 | BX29: =SUM(BSRDetail!$H$2:$H$61*(BSRDetail!$A$2:$A$61=$A$1)*(BSRDetail!$F$2:$F$61=BX$1)*(BSRDetail!$B$2:$B$61=$B$1)*(BSRDetail!$E$2:$E$61>=$B29)*(BSRDetail!$E$2:$E$61<$B30)) -> 0 | BY29: =IF($D29=0,AVERAGE(BY$6:BY28)*$C29/10,BX29) -> 0 | BZ29: =SUM(BSRDetail!$H$2:$H$61*(BSRDetail!$A$2:$A$61=$A$1)*(BSRDetail!$F$2:$F$61=BZ$1)*(BSRDetail!$B$2:$B$61=$B$1)*(BSRDetail!$E$2:$E$61>=$B29)*(BSRDetail!$E$2:$E$61<$B30)) -> 0 | CA29: =IF($D29=0,AVERAGE(CA$6:CA28)*$C29/10,BZ29) -> 0 | CB29: =SUM(BSRDetail!$H$2:$H$61*(BSRDetail!$A$2:$A$61=$A$1)*(BSRDetail!$F$2:$F$61=CB$1)*(BSRDetail!$B$2:$B$61=$B$1)*(BSRDetail!$E$2:$E$61>=$B29)*(BSRDetail!$E$2:$E$61<$B30)) -> 0 | CC29: =IF($D29=0,AVERAGE(CC$6:CC28)*$C29/10,CB29) -> 0 | CD29: =SUM(BSRDetail!$H$2:$H$61*(BSRDetail!$A$2:$A$61=$A$1)*(BSRDetail!$F$2:$F$61=CD$1)*(BSRDetail!$B$2:$B$61=$B$1)*(BSRDetail!$E$2:$E$61>=$B29)*(BSRDetail!$E$2:$E$61<$B30)) -> 0 | CE29: =IF($D29=0,AVERAGE(CE$6:CE28)*$C29/10,CD29) -> 0 | CF29: =SUM(BSRDetail!$H$2:$H$61*(BSRDetail!$A$2:$A$61=$A$1)*(BSRDetail!$F$2:$F$61=CF$1)*(BSRDetail!$B$2:$B$61=$B$1)*(BSRDetail!$E$2:$E$61>=$B29)*(BSRDetail!$E$2:$E$61<$B30)) -> 0 | CG29: =IF($D29=0,AVERAGE(CG$6:CG28)*$C29/10,CF29) -> 0 | CH29: =SUM(BSRDetail!$H$2:$H$61*(BSRDetail!$A$2:$A$61=$A$1)*(BSRDetail!$F$2:$F$61=CH$1)*(BSRDetail!$B$2:$B$61=$B$1)*(BSRDetail!$E$2:$E$61>=$B29)*(BSRDetail!$E$2:$E$61<$B30)) -> 0 | CI29: =IF($D29=0,AVERAGE(CI$6:CI28)*$C29/10,CH29) -> 0 | CJ29: =SUM(BSRDetail!$H$2:$H$61*(BSRDetail!$A$2:$A$61=$A$1)*(BSRDetail!$F$2:$F$61=CJ$1)*(BSRDetail!$B$2:$B$61=$B$1)*(BSRDetail!$E$2:$E$61>=$B29)*(BSRDetail!$E$2:$E$61<$B30)) -> 0 | CK29: =IF($D29=0,AVERAGE(CK$6:CK28)*$C29/10,CJ29) -> 0 | CL29: =SUM(BSRDetail!$H$2:$H$61*(BSRDetail!$A$2:$A$61=$A$1)*(BSRDetail!$F$2:$F$61=CL$1)*(BSRDetail!$B$2:$B$61=$B$1)*(BSRDetail!$E$2:$E$61>=$B29)*(BSRDetail!$E$2:$E$61<$B30)) -> 0 | CM29: =IF($D29=0,AVERAGE(CM$6:CM28)*$C29/10,CL29) -> 0 | CN29: =SUM(BSRDetail!$H$2:$H$61*(BSRDetail!$A$2:$A$61=$A$1)*(BSRDetail!$F$2:$F$61=CN$1)*(BSRDetail!$B$2:$B$61=$B$1)*(BSRDetail!$E$2:$E$61>=$B29)*(BSRDetail!$E$2:$E$61<$B30)) -> 0 | CO29: =IF($D29=0,AVERAGE(CO$6:CO28)*$C29/10,CN29) -> 0 | CP29: =SUM(BSRDetail!$H$2:$H$61*(BSRDetail!$A$2:$A$61=$A$1)*(BSRDetail!$F$2:$F$61=CP$1)*(BSRDetail!$B$2:$B$61=$B$1)*(BSRDetail!$E$2:$E$61>=$B29)*(BSRDetail!$E$2:$E$61<$B30)) -> 0 | CQ29: =IF($D29=0,AVERAGE(CQ$6:CQ28)*$C29/10,CP29) -> 0 | CR29: =SUM(BSRDetail!$H$2:$H$61*(BSRDetail!$A$2:$A$61=$A$1)*(BSRDetail!$F$2:$F$61=CR$1)*(BSRDetail!$B$2:$B$61=$B$1)*(BSRDetail!$E$2:$E$61>=$B29)*(BSRDetail!$E$2:$E$61<$B30)) -> 0 | CS29: =IF($D29=0,AVERAGE(CS$6:CS28)*$C29/10,CR29) -> 0 | CT29: =SUM(BSRDetail!$H$2:$H$61*(BSRDetail!$A$2:$A$61=$A$1)*(BSRDetail!$F$2:$F$61=CT$1)*(BSRDetail!$B$2:$B$61=$B$1)*(BSRDetail!$E$2:$E$61>=$B29)*(BSRDetail!$E$2:$E$61<$B30)) -> 0 | CU29: =IF($D29=0,AVERAGE(CU$6:CU28)*$C29/10,CT29) -> 0 | CV29: =SUM(BSRDetail!$H$2:$H$61*(BSRDetail!$A$2:$A$61=$A$1)*(BSRDetail!$F$2:$F$61=CV$1)*(BSRDetail!$B$2:$B$61=$B$1)*(BSRDetail!$E$2:$E$61>=$B29)*(BSRDetail!$E$2:$E$61<$B30)) -> 0 | CW29: =IF($D29=0,AVERAGE(CW$6:CW28)*$C29/10,CV29) -> 0
A30: 0 | B30: 2017-06-16 | C30: 10 | D30: =SUM(BSRDetail!$H$2:$H$61*(BSRDetail!$A$2:$A$61=$A$1)*(BSRDetail!$F$2:$F$61=D$1)*(BSRDetail!$B$2:$B$61=$B$1)*(BSRDetail!$E$2:$E$61>=$B30)*(BSRDetail!$E$2:$E$61<$B31)) -> 0 | E30: =SUM(BSRDetail!$H$2:$H$61*(BSRDetail!$A$2:$A$61=$A$1)*(BSRDetail!$F$2:$F$61=E$1)*(BSRDetail!$B$2:$B$61=$B$1)*(BSRDetail!$E$2:$E$61>=$B30)*(BSRDetail!$E$2:$E$61<$B31)) -> 0 | F30: =SUM(BSRDetail!$H$2:$H$61*(BSRDetail!$A$2:$A$61=$A$1)*(BSRDetail!$F$2:$F$61=F$1)*(BSRDetail!$B$2:$B$61=$B$1)*(BSRDetail!$E$2:$E$61>=$B30)*(BSRDetail!$E$2:$E$61<$B31)) -> 0 | G30: =SUM(BSRDetail!$H$2:$H$61*(BSRDetail!$A$2:$A$61=$A$1)*(BSRDetail!$F$2:$F$61=G$1)*(BSRDetail!$B$2:$B$61=$B$1)*(BSRDetail!$E$2:$E$61>=$B30)*(BSRDetail!$E$2:$E$61<$B31)) -> 0 | H30: =SUM(BSRDetail!$H$2:$H$61*(BSRDetail!$A$2:$A$61=$A$1)*(BSRDetail!$F$2:$F$61=H$1)*(BSRDetail!$B$2:$B$61=$B$1)*(BSRDetail!$E$2:$E$61>=$B30)*(BSRDetail!$E$2:$E$61<$B31)) -> 0 | I30: =SUM(BSRDetail!$H$2:$H$61*(BSRDetail!$A$2:$A$61=$A$1)*(BSRDetail!$F$2:$F$61=I$1)*(BSRDetail!$B$2:$B$61=$B$1)*(BSRDetail!$E$2:$E$61>=$B30)*(BSRDetail!$E$2:$E$61<$B31)) -> 0 | J30: 0 | K30: 6503.810238 | L30: 0 | M30: 6503.810238 | N30: =SUM(BSRDetail!$H$2:$H$61*(BSRDetail!$A$2:$A$61=$A$1)*(BSRDetail!$F$2:$F$61=N$1)*(BSRDetail!$B$2:$B$61=$B$1)*(BSRDetail!$E$2:$E$61>=$B30)*(BSRDetail!$E$2:$E$61<$B31)) -> 0 | O30: =SUM(BSRDetail!$H$2:$H$61*(BSRDetail!$A$2:$A$61=$A$1)*(BSRDetail!$F$2:$F$61=O$1)*(BSRDetail!$B$2:$B$61=$B$1)*(BSRDetail!$E$2:$E$61>=$B30)*(BSRDetail!$E$2:$E$61<$B31)) -> 0 | P30: =SUM(BSRDetail!$H$2:$H$61*(BSRDetail!$A$2:$A$61=$A$1)*(BSRDetail!$F$2:$F$61=P$1)*(BSRDetail!$B$2:$B$61=$B$1)*(BSRDetail!$E$2:$E$61>=$B30)*(BSRDetail!$E$2:$E$61<$B31)) -> 0 | Q30: =SUM(BSRDetail!$H$2:$H$61*(BSRDetail!$A$2:$A$61=$A$1)*(BSRDetail!$F$2:$F$61=Q$1)*(BSRDetail!$B$2:$B$61=$B$1)*(BSRDetail!$E$2:$E$61>=$B30)*(BSRDetail!$E$2:$E$61<$B31)) -> 0 | R30: =SUM(BSRDetail!$H$2:$H$61*(BSRDetail!$A$2:$A$61=$A$1)*(BSRDetail!$F$2:$F$61=R$1)*(BSRDetail!$B$2:$B$61=$B$1)*(BSRDetail!$E$2:$E$61>=$B30)*(BSRDetail!$E$2:$E$61<$B31)) -> 0 | S30: =SUM(BSRDetail!$H$2:$H$61*(BSRDetail!$A$2:$A$61=$A$1)*(BSRDetail!$F$2:$F$61=S$1)*(BSRDetail!$B$2:$B$61=$B$1)*(BSRDetail!$E$2:$E$61>=$B30)*(BSRDetail!$E$2:$E$61<$B31)) -> 0 | T30: =SUM(BSRDetail!$H$2:$H$61*(BSRDetail!$A$2:$A$61=$A$1)*(BSRDetail!$F$2:$F$61=T$1)*(BSRDetail!$B$2:$B$61=$B$1)*(BSRDetail!$E$2:$E$61>=$B30)*(BSRDetail!$E$2:$E$61<$B31)) -> 0 | U30: =SUM(BSRDetail!$H$2:$H$61*(BSRDetail!$A$2:$A$61=$A$1)*(BSRDetail!$F$2:$F$61=U$1)*(BSRDetail!$B$2:$B$61=$B$1)*(BSRDetail!$E$2:$E$61>=$B30)*(BSRDetail!$E$2:$E$61<$B31)) -> 0 | V30: =SUM(BSRDetail!$H$2:$H$61*(BSRDetail!$A$2:$A$61=$A$1)*(BSRDetail!$F$2:$F$61=V$1)*(BSRDetail!$B$2:$B$61=$B$1)*(BSRDetail!$E$2:$E$61>=$B30)*(BSRDetail!$E$2:$E$61<$B31)) -> 0 | W30: =SUM(BSRDetail!$H$2:$H$61*(BSRDetail!$A$2:$A$61=$A$1)*(BSRDetail!$F$2:$F$61=W$1)*(BSRDetail!$B$2:$B$61=$B$1)*(BSRDetail!$E$2:$E$61>=$B30)*(BSRDetail!$E$2:$E$61<$B31)) -> 0 | X30: =SUM(BSRDetail!$H$2:$H$61*(BSRDetail!$A$2:$A$61=$A$1)*(BSRDetail!$F$2:$F$61=X$1)*(BSRDetail!$B$2:$B$61=$B$1)*(BSRDetail!$E$2:$E$61>=$B30)*(BSRDetail!$E$2:$E$61<$B31)) -> 0 | Y30: 0 | Z30: 0 | AA30: =IF(D29=0,AA29,IF($D30=0,Z30+AVERAGE($Y$7:Y29)*$C30/10,Y30)) -> 0 | AB30: 6503.810238 | AC30: =SUM(BSRDetail!$H$2:$H$61*(BSRDetail!$A$2:$A$61=$A$1)*(BSRDetail!$F$2:$F$61=AC$1)*(BSRDetail!$B$2:$B$61=$B$1)*(BSRDetail!$E$2:$E$61>=$B30)*(BSRDetail!$E$2:$E$61<$B31)) -> 0 | AD30: 0.0182885 | AE30: 118.9449335 | AF30: =SUM(BSRDetail!$H$2:$H$61*(BSRDetail!$A$2:$A$61=$A$1)*(BSRDetail!$F$2:$F$61=AF$1)*(BSRDetail!$B$2:$B$61=$B$1)*(BSRDetail!$E$2:$E$61>=$B30)*(BSRDetail!$E$2:$E$61<$B31)) -> 0 | AG30: 0 | AH30: 0 | AI30: =SUM(BSRDetail!$H$2:$H$61*(BSRDetail!$A$2:$A$61=$A$1)*(BSRDetail!$F$2:$F$61=AI$1)*(BSRDetail!$B$2:$B$61=$B$1)*(BSRDetail!$E$2:$E$61>=$B30)*(BSRDetail!$E$2:$E$61<$B31)) -> 0 | AJ30: 0 | AK30: =SUM(BSRDetail!$H$2:$H$61*(BSRDetail!$A$2:$A$61=$A$1)*(BSRDetail!$F$2:$F$61=AK$1)*(BSRDetail!$B$2:$B$61=$B$1)*(BSRDetail!$E$2:$E$61>=$B30)*(BSRDetail!$E$2:$E$61<$B31)) -> 0 | AL30: 0 | AM30: 0 | AN30: 0 | AO30: =SUM(BSRDetail!$H$2:$H$61*(BSRDetail!$A$2:$A$61=$A$1)*(BSRDetail!$F$2:$F$61=AO$1)*(BSRDetail!$B$2:$B$61=$B$1)*(BSRDetail!$E$2:$E$61>=$B30)*(BSRDetail!$E$2:$E$61<$B31)) -> 0 | AP30: 0 | AQ30: =SUM(BSRDetail!$H$2:$H$61*(BSRDetail!$A$2:$A$61=$A$1)*(BSRDetail!$F$2:$F$61=AQ$1)*(BSRDetail!$B$2:$B$61=$B$1)*(BSRDetail!$E$2:$E$61>=$B30)*(BSRDetail!$E$2:$E$61<$B31)) -> 0 | AR30: 0.02360050494 | AS30: 153.4932056 | AT30: =SUM(BSRDetail!$H$2:$H$61*(BSRDetail!$A$2:$A$61=$A$1)*(BSRDetail!$F$2:$F$61=AT$1)*(BSRDetail!$B$2:$B$61=$B$1)*(BSRDetail!$E$2:$E$61>=$B30)*(BSRDetail!$E$2:$E$61<$B31)) -> 0 | AU30: 0.0007 | AV30: 4.552667167 | AW30: =SUM(BSRDetail!$H$2:$H$61*(BSRDetail!$A$2:$A$61=$A$1)*(BSRDetail!$F$2:$F$61=AW$1)*(BSRDetail!$B$2:$B$61=$B$1)*(BSRDetail!$E$2:$E$61>=$B30)*(BSRDetail!$E$2:$E$61<$B31)) -> 0 | AX30: =IF(D30=0,IF(DAY(B30)<15,SUM(AX21:AX29*(DAY(B21:B29)<15))/SUM(1*(DAY(B21:B29)<15)),SUM(AX21:AX29*(DAY(B21:B29)>14))/SUM(1*(DAY(B21:B29)>14))),AW30/AB30) -> 0.01450022751 | AY30: 94.30672816 | AZ30: =SUM(BSRDetail!$H$2:$H$61*(BSRDetail!$A$2:$A$61=$A$1)*(BSRDetail!$F$2:$F$61=AZ$1)*(BSRDetail!$B$2:$B$61=$B$1)*(BSRDetail!$E$2:$E$61>=$B30)*(BSRDetail!$E$2:$E$61<$B31)) -> 0 | BA30: 0 | BB30: 0 | BC30: =SUM(BSRDetail!$H$2:$H$61*(BSRDetail!$A$2:$A$61=$A$1)*(BSRDetail!$F$2:$F$61=BC$1)*(BSRDetail!$B$2:$B$61=$B$1)*(BSRDetail!$E$2:$E$61>=$B30)*(BSRDetail!$E$2:$E$61<$B31)) -> 0 | BD30: =SUM(BSRDetail!$H$2:$H$61*(BSRDetail!$A$2:$A$61=$A$1)*(BSRDetail!$F$2:$F$61=BD$1)*(BSRDetail!$B$2:$B$61=$B$1)*(BSRDetail!$E$2:$E$61>=$B30)*(BSRDetail!$E$2:$E$61<$B31)) -> 0 | BE30: 0 | BF30: 0 | BG30: =SUM(BSRDetail!$H$2:$H$61*(BSRDetail!$A$2:$A$61=$A$1)*(BSRDetail!$F$2:$F$61=BG$1)*(BSRDetail!$B$2:$B$61=$B$1)*(BSRDetail!$E$2:$E$61>=$B30)*(BSRDetail!$E$2:$E$61<$B31)) -> 0 | BH30: =SUM(BSRDetail!$H$2:$H$61*(BSRDetail!$A$2:$A$61=$A$1)*(BSRDetail!$F$2:$F$61=BH$1)*(BSRDetail!$B$2:$B$61=$B$1)*(BSRDetail!$E$2:$E$61>=$B30)*(BSRDetail!$E$2:$E$61<$B31)) -> 0 | BI30: 0 | BJ30: =SUM(BSRDetail!$H$2:$H$61*(BSRDetail!$A$2:$A$61=$A$1)*(BSRDetail!$F$2:$F$61=BJ$1)*(BSRDetail!$B$2:$B$61=$B$1)*(BSRDetail!$E$2:$E$61>=$B30)*(BSRDetail!$E$2:$E$61<$B31)) -> 0 | BK30: =IF($D30=0,AVERAGE(BK$6:BK29)*$C30/10,BJ30) -> 711.45 | BL30: =SUM(BSRDetail!$H$2:$H$61*(BSRDetail!$A$2:$A$61=$A$1)*(BSRDetail!$F$2:$F$61=BL$1)*(BSRDetail!$B$2:$B$61=$B$1)*(BSRDetail!$E$2:$E$61>=$B30)*(BSRDetail!$E$2:$E$61<$B31)) -> 0 | BM30: =IF($D30=0,AVERAGE(BM$6:BM29)*$C30/10,BL30) -> 0 | BN30: =SUM(BSRDetail!$H$2:$H$61*(BSRDetail!$A$2:$A$61=$A$1)*(BSRDetail!$F$2:$F$61=BN$1)*(BSRDetail!$B$2:$B$61=$B$1)*(BSRDetail!$E$2:$E$61>=$B30)*(BSRDetail!$E$2:$E$61<$B31)) -> 0 | BO30: =IF($D30=0,AVERAGE(BO$6:BO29)*$C30/10,BN30) -> 0 | BP30: =SUM(BSRDetail!$H$2:$H$61*(BSRDetail!$A$2:$A$61=$A$1)*(BSRDetail!$F$2:$F$61=BP$1)*(BSRDetail!$B$2:$B$61=$B$1)*(BSRDetail!$E$2:$E$61>=$B30)*(BSRDetail!$E$2:$E$61<$B31)) -> 0 | BQ30: =IF($D30=0,AVERAGE(BQ$6:BQ29)*$C30/10,BP30) -> 0 | BR30: =SUM(BSRDetail!$H$2:$H$61*(BSRDetail!$A$2:$A$61=$A$1)*(BSRDetail!$F$2:$F$61=BR$1)*(BSRDetail!$B$2:$B$61=$B$1)*(BSRDetail!$E$2:$E$61>=$B30)*(BSRDetail!$E$2:$E$61<$B31)) -> 0 | BS30: =IF($D30=0,AVERAGE(BS$6:BS29)*$C30/10,BR30) -> 0 | BT30: =SUM(BSRDetail!$H$2:$H$61*(BSRDetail!$A$2:$A$61=$A$1)*(BSRDetail!$F$2:$F$61=BT$1)*(BSRDetail!$B$2:$B$61=$B$1)*(BSRDetail!$E$2:$E$61>=$B30)*(BSRDetail!$E$2:$E$61<$B31)) -> 0 | BU30: =IF($D30=0,AVERAGE(BU$6:BU29)*$C30/10,BT30) -> 0 | BV30: =SUM(BSRDetail!$H$2:$H$61*(BSRDetail!$A$2:$A$61=$A$1)*(BSRDetail!$F$2:$F$61=BV$1)*(BSRDetail!$B$2:$B$61=$B$1)*(BSRDetail!$E$2:$E$61>=$B30)*(BSRDetail!$E$2:$E$61<$B31)) -> 0 | BW30: =IF($D30=0,AVERAGE(BW$6:BW29)*$C30/10,BV30) -> 0 | BX30: =SUM(BSRDetail!$H$2:$H$61*(BSRDetail!$A$2:$A$61=$A$1)*(BSRDetail!$F$2:$F$61=BX$1)*(BSRDetail!$B$2:$B$61=$B$1)*(BSRDetail!$E$2:$E$61>=$B30)*(BSRDetail!$E$2:$E$61<$B31)) -> 0 | BY30: =IF($D30=0,AVERAGE(BY$6:BY29)*$C30/10,BX30) -> 0 | BZ30: =SUM(BSRDetail!$H$2:$H$61*(BSRDetail!$A$2:$A$61=$A$1)*(BSRDetail!$F$2:$F$61=BZ$1)*(BSRDetail!$B$2:$B$61=$B$1)*(BSRDetail!$E$2:$E$61>=$B30)*(BSRDetail!$E$2:$E$61<$B31)) -> 0 | CA30: =IF($D30=0,AVERAGE(CA$6:CA29)*$C30/10,BZ30) -> 0 | CB30: =SUM(BSRDetail!$H$2:$H$61*(BSRDetail!$A$2:$A$61=$A$1)*(BSRDetail!$F$2:$F$61=CB$1)*(BSRDetail!$B$2:$B$61=$B$1)*(BSRDetail!$E$2:$E$61>=$B30)*(BSRDetail!$E$2:$E$61<$B31)) -> 0 | CC30: =IF($D30=0,AVERAGE(CC$6:CC29)*$C30/10,CB30) -> 0 | CD30: =SUM(BSRDetail!$H$2:$H$61*(BSRDetail!$A$2:$A$61=$A$1)*(BSRDetail!$F$2:$F$61=CD$1)*(BSRDetail!$B$2:$B$61=$B$1)*(BSRDetail!$E$2:$E$61>=$B30)*(BSRDetail!$E$2:$E$61<$B31)) -> 0 | CE30: =IF($D30=0,AVERAGE(CE$6:CE29)*$C30/10,CD30) -> 0 | CF30: =SUM(BSRDetail!$H$2:$H$61*(BSRDetail!$A$2:$A$61=$A$1)*(BSRDetail!$F$2:$F$61=CF$1)*(BSRDetail!$B$2:$B$61=$B$1)*(BSRDetail!$E$2:$E$61>=$B30)*(BSRDetail!$E$2:$E$61<$B31)) -> 0 | CG30: =IF($D30=0,AVERAGE(CG$6:CG29)*$C30/10,CF30) -> 0 | CH30: =SUM(BSRDetail!$H$2:$H$61*(BSRDetail!$A$2:$A$61=$A$1)*(BSRDetail!$F$2:$F$61=CH$1)*(BSRDetail!$B$2:$B$61=$B$1)*(BSRDetail!$E$2:$E$61>=$B30)*(BSRDetail!$E$2:$E$61<$B31)) -> 0 | CI30: =IF($D30=0,AVERAGE(CI$6:CI29)*$C30/10,CH30) -> 0 | CJ30: =SUM(BSRDetail!$H$2:$H$61*(BSRDetail!$A$2:$A$61=$A$1)*(BSRDetail!$F$2:$F$61=CJ$1)*(BSRDetail!$B$2:$B$61=$B$1)*(BSRDetail!$E$2:$E$61>=$B30)*(BSRDetail!$E$2:$E$61<$B31)) -> 0 | CK30: =IF($D30=0,AVERAGE(CK$6:CK29)*$C30/10,CJ30) -> 0 | CL30: =SUM(BSRDetail!$H$2:$H$61*(BSRDetail!$A$2:$A$61=$A$1)*(BSRDetail!$F$2:$F$61=CL$1)*(BSRDetail!$B$2:$B$61=$B$1)*(BSRDetail!$E$2:$E$61>=$B30)*(BSRDetail!$E$2:$E$61<$B31)) -> 0 | CM30: =IF($D30=0,AVERAGE(CM$6:CM29)*$C30/10,CL30) -> 0 | CN30: =SUM(BSRDetail!$H$2:$H$61*(BSRDetail!$A$2:$A$61=$A$1)*(BSRDetail!$F$2:$F$61=CN$1)*(BSRDetail!$B$2:$B$61=$B$1)*(BSRDetail!$E$2:$E$61>=$B30)*(BSRDetail!$E$2:$E$61<$B31)) -> 0 | CO30: =IF($D30=0,AVERAGE(CO$6:CO29)*$C30/10,CN30) -> 0 | CP30: =SUM(BSRDetail!$H$2:$H$61*(BSRDetail!$A$2:$A$61=$A$1)*(BSRDetail!$F$2:$F$61=CP$1)*(BSRDetail!$B$2:$B$61=$B$1)*(BSRDetail!$E$2:$E$61>=$B30)*(BSRDetail!$E$2:$E$61<$B31)) -> 0 | CQ30: =IF($D30=0,AVERAGE(CQ$6:CQ29)*$C30/10,CP30) -> 0 | CR30: =SUM(BSRDetail!$H$2:$H$61*(BSRDetail!$A$2:$A$61=$A$1)*(BSRDetail!$F$2:$F$61=CR$1)*(BSRDetail!$B$2:$B$61=$B$1)*(BSRDetail!$E$2:$E$61>=$B30)*(BSRDetail!$E$2:$E$61<$B31)) -> 0 | CS30: =IF($D30=0,AVERAGE(CS$6:CS29)*$C30/10,CR30) -> 0 | CT30: =SUM(BSRDetail!$H$2:$H$61*(BSRDetail!$A$2:$A$61=$A$1)*(BSRDetail!$F$2:$F$61=CT$1)*(BSRDetail!$B$2:$B$61=$B$1)*(BSRDetail!$E$2:$E$61>=$B30)*(BSRDetail!$E$2:$E$61<$B31)) -> 0 | CU30: =IF($D30=0,AVERAGE(CU$6:CU29)*$C30/10,CT30) -> 0 | CV30: =SUM(BSRDetail!$H$2:$H$61*(BSRDetail!$A$2:$A$61=$A$1)*(BSRDetail!$F$2:$F$61=CV$1)*(BSRDetail!$B$2:$B$61=$B$1)*(BSRDetail!$E$2:$E$61>=$B30)*(BSRDetail!$E$2:$E$61<$B31)) -> 0 | CW30: =IF($D30=0,AVERAGE(CW$6:CW29)*$C30/10,CV30) -> 0
A31: 0 | B31: 2017-06-30 | C31: 10 | D31: =SUM(BSRDetail!$H$2:$H$61*(BSRDetail!$A$2:$A$61=$A$1)*(BSRDetail!$F$2:$F$61=D$1)*(BSRDetail!$B$2:$B$61=$B$1)*(BSRDetail!$E$2:$E$61>=$B31)*(BSRDetail!$E$2:$E$61<$B32)) -> 0 | E31: =SUM(BSRDetail!$H$2:$H$61*(BSRDetail!$A$2:$A$61=$A$1)*(BSRDetail!$F$2:$F$61=E$1)*(BSRDetail!$B$2:$B$61=$B$1)*(BSRDetail!$E$2:$E$61>=$B31)*(BSRDetail!$E$2:$E$61<$B32)) -> 0 | F31: =SUM(BSRDetail!$H$2:$H$61*(BSRDetail!$A$2:$A$61=$A$1)*(BSRDetail!$F$2:$F$61=F$1)*(BSRDetail!$B$2:$B$61=$B$1)*(BSRDetail!$E$2:$E$61>=$B31)*(BSRDetail!$E$2:$E$61<$B32)) -> 0 | G31: =SUM(BSRDetail!$H$2:$H$61*(BSRDetail!$A$2:$A$61=$A$1)*(BSRDetail!$F$2:$F$61=G$1)*(BSRDetail!$B$2:$B$61=$B$1)*(BSRDetail!$E$2:$E$61>=$B31)*(BSRDetail!$E$2:$E$61<$B32)) -> 0 | H31: =SUM(BSRDetail!$H$2:$H$61*(BSRDetail!$A$2:$A$61=$A$1)*(BSRDetail!$F$2:$F$61=H$1)*(BSRDetail!$B$2:$B$61=$B$1)*(BSRDetail!$E$2:$E$61>=$B31)*(BSRDetail!$E$2:$E$61<$B32)) -> 0 | I31: =SUM(BSRDetail!$H$2:$H$61*(BSRDetail!$A$2:$A$61=$A$1)*(BSRDetail!$F$2:$F$61=I$1)*(BSRDetail!$B$2:$B$61=$B$1)*(BSRDetail!$E$2:$E$61>=$B31)*(BSRDetail!$E$2:$E$61<$B32)) -> 0 | J31: 0 | K31: 6503.634563 | L31: 0 | M31: 6503.634563 | N31: =SUM(BSRDetail!$H$2:$H$61*(BSRDetail!$A$2:$A$61=$A$1)*(BSRDetail!$F$2:$F$61=N$1)*(BSRDetail!$B$2:$B$61=$B$1)*(BSRDetail!$E$2:$E$61>=$B31)*(BSRDetail!$E$2:$E$61<$B32)) -> 0 | O31: =SUM(BSRDetail!$H$2:$H$61*(BSRDetail!$A$2:$A$61=$A$1)*(BSRDetail!$F$2:$F$61=O$1)*(BSRDetail!$B$2:$B$61=$B$1)*(BSRDetail!$E$2:$E$61>=$B31)*(BSRDetail!$E$2:$E$61<$B32)) -> 0 | P31: =SUM(BSRDetail!$H$2:$H$61*(BSRDetail!$A$2:$A$61=$A$1)*(BSRDetail!$F$2:$F$61=P$1)*(BSRDetail!$B$2:$B$61=$B$1)*(BSRDetail!$E$2:$E$61>=$B31)*(BSRDetail!$E$2:$E$61<$B32)) -> 0 | Q31: =SUM(BSRDetail!$H$2:$H$61*(BSRDetail!$A$2:$A$61=$A$1)*(BSRDetail!$F$2:$F$61=Q$1)*(BSRDetail!$B$2:$B$61=$B$1)*(BSRDetail!$E$2:$E$61>=$B31)*(BSRDetail!$E$2:$E$61<$B32)) -> 0 | R31: =SUM(BSRDetail!$H$2:$H$61*(BSRDetail!$A$2:$A$61=$A$1)*(BSRDetail!$F$2:$F$61=R$1)*(BSRDetail!$B$2:$B$61=$B$1)*(BSRDetail!$E$2:$E$61>=$B31)*(BSRDetail!$E$2:$E$61<$B32)) -> 0 | S31: =SUM(BSRDetail!$H$2:$H$61*(BSRDetail!$A$2:$A$61=$A$1)*(BSRDetail!$F$2:$F$61=S$1)*(BSRDetail!$B$2:$B$61=$B$1)*(BSRDetail!$E$2:$E$61>=$B31)*(BSRDetail!$E$2:$E$61<$B32)) -> 0 | T31: =SUM(BSRDetail!$H$2:$H$61*(BSRDetail!$A$2:$A$61=$A$1)*(BSRDetail!$F$2:$F$61=T$1)*(BSRDetail!$B$2:$B$61=$B$1)*(BSRDetail!$E$2:$E$61>=$B31)*(BSRDetail!$E$2:$E$61<$B32)) -> 0 | U31: =SUM(BSRDetail!$H$2:$H$61*(BSRDetail!$A$2:$A$61=$A$1)*(BSRDetail!$F$2:$F$61=U$1)*(BSRDetail!$B$2:$B$61=$B$1)*(BSRDetail!$E$2:$E$61>=$B31)*(BSRDetail!$E$2:$E$61<$B32)) -> 0 | V31: =SUM(BSRDetail!$H$2:$H$61*(BSRDetail!$A$2:$A$61=$A$1)*(BSRDetail!$F$2:$F$61=V$1)*(BSRDetail!$B$2:$B$61=$B$1)*(BSRDetail!$E$2:$E$61>=$B31)*(BSRDetail!$E$2:$E$61<$B32)) -> 0 | W31: =SUM(BSRDetail!$H$2:$H$61*(BSRDetail!$A$2:$A$61=$A$1)*(BSRDetail!$F$2:$F$61=W$1)*(BSRDetail!$B$2:$B$61=$B$1)*(BSRDetail!$E$2:$E$61>=$B31)*(BSRDetail!$E$2:$E$61<$B32)) -> 0 | X31: =SUM(BSRDetail!$H$2:$H$61*(BSRDetail!$A$2:$A$61=$A$1)*(BSRDetail!$F$2:$F$61=X$1)*(BSRDetail!$B$2:$B$61=$B$1)*(BSRDetail!$E$2:$E$61>=$B31)*(BSRDetail!$E$2:$E$61<$B32)) -> 0 | Y31: 0 | Z31: 0 | AA31: =IF(D30=0,AA30,IF($D31=0,Z31+AVERAGE($Y$7:Y30)*$C31/10,Y31)) -> 0 | AB31: 6503.634563 | AC31: =SUM(BSRDetail!$H$2:$H$61*(BSRDetail!$A$2:$A$61=$A$1)*(BSRDetail!$F$2:$F$61=AC$1)*(BSRDetail!$B$2:$B$61=$B$1)*(BSRDetail!$E$2:$E$61>=$B31)*(BSRDetail!$E$2:$E$61<$B32)) -> 0 | AD31: 0.017301 | AE31: 112.5193816 | AF31: =SUM(BSRDetail!$H$2:$H$61*(BSRDetail!$A$2:$A$61=$A$1)*(BSRDetail!$F$2:$F$61=AF$1)*(BSRDetail!$B$2:$B$61=$B$1)*(BSRDetail!$E$2:$E$61>=$B31)*(BSRDetail!$E$2:$E$61<$B32)) -> 0 | AG31: 0 | AH31: 0 | AI31: =SUM(BSRDetail!$H$2:$H$61*(BSRDetail!$A$2:$A$61=$A$1)*(BSRDetail!$F$2:$F$61=AI$1)*(BSRDetail!$B$2:$B$61=$B$1)*(BSRDetail!$E$2:$E$61>=$B31)*(BSRDetail!$E$2:$E$61<$B32)) -> 0 | AJ31: =IF(COUNTIF(AI$6:AI31,">0")<2,SUM(AJ$6:AJ30),AI31) -> 168.75 | AK31: =SUM(BSRDetail!$H$2:$H$61*(BSRDetail!$A$2:$A$61=$A$1)*(BSRDetail!$F$2:$F$61=AK$1)*(BSRDetail!$B$2:$B$61=$B$1)*(BSRDetail!$E$2:$E$61>=$B31)*(BSRDetail!$E$2:$E$61<$B32)) -> 0 | AL31: 0 | AM31: 0 | AN31: 0 | AO31: =SUM(BSRDetail!$H$2:$H$61*(BSRDetail!$A$2:$A$61=$A$1)*(BSRDetail!$F$2:$F$61=AO$1)*(BSRDetail!$B$2:$B$61=$B$1)*(BSRDetail!$E$2:$E$61>=$B31)*(BSRDetail!$E$2:$E$61<$B32)) -> 0 | AP31: =IF(COUNTIF(AO$6:AO31,">0")<2,SUM(AP$6:AP30),AO31) -> 39.5 | AQ31: =SUM(BSRDetail!$H$2:$H$61*(BSRDetail!$A$2:$A$61=$A$1)*(BSRDetail!$F$2:$F$61=AQ$1)*(BSRDetail!$B$2:$B$61=$B$1)*(BSRDetail!$E$2:$E$61>=$B31)*(BSRDetail!$E$2:$E$61<$B32)) -> 0 | AR31: 0.02360050494 | AS31: 153.4890596 | AT31: =SUM(BSRDetail!$H$2:$H$61*(BSRDetail!$A$2:$A$61=$A$1)*(BSRDetail!$F$2:$F$61=AT$1)*(BSRDetail!$B$2:$B$61=$B$1)*(BSRDetail!$E$2:$E$61>=$B31)*(BSRDetail!$E$2:$E$61<$B32)) -> 0 | AU31: 0.0007 | AV31: 4.552544194 | AW31: =SUM(BSRDetail!$H$2:$H$61*(BSRDetail!$A$2:$A$61=$A$1)*(BSRDetail!$F$2:$F$61=AW$1)*(BSRDetail!$B$2:$B$61=$B$1)*(BSRDetail!$E$2:$E$61>=$B31)*(BSRDetail!$E$2:$E$61<$B32)) -> 0 | AX31: =IF(D31=0,IF(DAY(B31)<15,SUM(AX22:AX30*(DAY(B22:B30)<15))/SUM(1*(DAY(B22:B30)<15)),SUM(AX22:AX30*(DAY(B22:B30)>14))/SUM(1*(DAY(B22:B30)>14))),AW31/AB31) -> 0.01450022751 | AY31: 94.30418083 | AZ31: =SUM(BSRDetail!$H$2:$H$61*(BSRDetail!$A$2:$A$61=$A$1)*(BSRDetail!$F$2:$F$61=AZ$1)*(BSRDetail!$B$2:$B$61=$B$1)*(BSRDetail!$E$2:$E$61>=$B31)*(BSRDetail!$E$2:$E$61<$B32)) -> 0 | BA31: 0 | BB31: 0 | BC31: =SUM(BSRDetail!$H$2:$H$61*(BSRDetail!$A$2:$A$61=$A$1)*(BSRDetail!$F$2:$F$61=BC$1)*(BSRDetail!$B$2:$B$61=$B$1)*(BSRDetail!$E$2:$E$61>=$B31)*(BSRDetail!$E$2:$E$61<$B32)) -> 0 | BD31: =SUM(BSRDetail!$H$2:$H$61*(BSRDetail!$A$2:$A$61=$A$1)*(BSRDetail!$F$2:$F$61=BD$1)*(BSRDetail!$B$2:$B$61=$B$1)*(BSRDetail!$E$2:$E$61>=$B31)*(BSRDetail!$E$2:$E$61<$B32)) -> 0 | BE31: 0 | BF31: 0 | BG31: =SUM(BSRDetail!$H$2:$H$61*(BSRDetail!$A$2:$A$61=$A$1)*(BSRDetail!$F$2:$F$61=BG$1)*(BSRDetail!$B$2:$B$61=$B$1)*(BSRDetail!$E$2:$E$61>=$B31)*(BSRDetail!$E$2:$E$61<$B32)) -> 0 | BH31: =SUM(BSRDetail!$H$2:$H$61*(BSRDetail!$A$2:$A$61=$A$1)*(BSRDetail!$F$2:$F$61=BH$1)*(BSRDetail!$B$2:$B$61=$B$1)*(BSRDetail!$E$2:$E$61>=$B31)*(BSRDetail!$E$2:$E$61<$B32)) -> 0 | BI31: 0 | BJ31: =SUM(BSRDetail!$H$2:$H$61*(BSRDetail!$A$2:$A$61=$A$1)*(BSRDetail!$F$2:$F$61=BJ$1)*(BSRDetail!$B$2:$B$61=$B$1)*(BSRDetail!$E$2:$E$61>=$B31)*(BSRDetail!$E$2:$E$61<$B32)) -> 0 | BK31: =IF($D31=0,AVERAGE(BK$6:BK30)*$C31/10,BJ31) -> 711.45 | BL31: =SUM(BSRDetail!$H$2:$H$61*(BSRDetail!$A$2:$A$61=$A$1)*(BSRDetail!$F$2:$F$61=BL$1)*(BSRDetail!$B$2:$B$61=$B$1)*(BSRDetail!$E$2:$E$61>=$B31)*(BSRDetail!$E$2:$E$61<$B32)) -> 0 | BM31: =IF($D31=0,AVERAGE(BM$6:BM30)*$C31/10,BL31) -> 0 | BN31: =SUM(BSRDetail!$H$2:$H$61*(BSRDetail!$A$2:$A$61=$A$1)*(BSRDetail!$F$2:$F$61=BN$1)*(BSRDetail!$B$2:$B$61=$B$1)*(BSRDetail!$E$2:$E$61>=$B31)*(BSRDetail!$E$2:$E$61<$B32)) -> 0 | BO31: =IF($D31=0,AVERAGE(BO$6:BO30)*$C31/10,BN31) -> 0 | BP31: =SUM(BSRDetail!$H$2:$H$61*(BSRDetail!$A$2:$A$61=$A$1)*(BSRDetail!$F$2:$F$61=BP$1)*(BSRDetail!$B$2:$B$61=$B$1)*(BSRDetail!$E$2:$E$61>=$B31)*(BSRDetail!$E$2:$E$61<$B32)) -> 0 | BQ31: =IF($D31=0,AVERAGE(BQ$6:BQ30)*$C31/10,BP31) -> 0 | BR31: =SUM(BSRDetail!$H$2:$H$61*(BSRDetail!$A$2:$A$61=$A$1)*(BSRDetail!$F$2:$F$61=BR$1)*(BSRDetail!$B$2:$B$61=$B$1)*(BSRDetail!$E$2:$E$61>=$B31)*(BSRDetail!$E$2:$E$61<$B32)) -> 0 | BS31: =IF($D31=0,AVERAGE(BS$6:BS30)*$C31/10,BR31) -> 0 | BT31: =SUM(BSRDetail!$H$2:$H$61*(BSRDetail!$A$2:$A$61=$A$1)*(BSRDetail!$F$2:$F$61=BT$1)*(BSRDetail!$B$2:$B$61=$B$1)*(BSRDetail!$E$2:$E$61>=$B31)*(BSRDetail!$E$2:$E$61<$B32)) -> 0 | BU31: =IF($D31=0,AVERAGE(BU$6:BU30)*$C31/10,BT31) -> 0 | BV31: =SUM(BSRDetail!$H$2:$H$61*(BSRDetail!$A$2:$A$61=$A$1)*(BSRDetail!$F$2:$F$61=BV$1)*(BSRDetail!$B$2:$B$61=$B$1)*(BSRDetail!$E$2:$E$61>=$B31)*(BSRDetail!$E$2:$E$61<$B32)) -> 0 | BW31: =IF($D31=0,AVERAGE(BW$6:BW30)*$C31/10,BV31) -> 0 | BX31: =SUM(BSRDetail!$H$2:$H$61*(BSRDetail!$A$2:$A$61=$A$1)*(BSRDetail!$F$2:$F$61=BX$1)*(BSRDetail!$B$2:$B$61=$B$1)*(BSRDetail!$E$2:$E$61>=$B31)*(BSRDetail!$E$2:$E$61<$B32)) -> 0 | BY31: =IF($D31=0,AVERAGE(BY$6:BY30)*$C31/10,BX31) -> 0 | BZ31: =SUM(BSRDetail!$H$2:$H$61*(BSRDetail!$A$2:$A$61=$A$1)*(BSRDetail!$F$2:$F$61=BZ$1)*(BSRDetail!$B$2:$B$61=$B$1)*(BSRDetail!$E$2:$E$61>=$B31)*(BSRDetail!$E$2:$E$61<$B32)) -> 0 | CA31: =IF($D31=0,AVERAGE(CA$6:CA30)*$C31/10,BZ31) -> 0 | CB31: =SUM(BSRDetail!$H$2:$H$61*(BSRDetail!$A$2:$A$61=$A$1)*(BSRDetail!$F$2:$F$61=CB$1)*(BSRDetail!$B$2:$B$61=$B$1)*(BSRDetail!$E$2:$E$61>=$B31)*(BSRDetail!$E$2:$E$61<$B32)) -> 0 | CC31: =IF($D31=0,AVERAGE(CC$6:CC30)*$C31/10,CB31) -> 0 | CD31: =SUM(BSRDetail!$H$2:$H$61*(BSRDetail!$A$2:$A$61=$A$1)*(BSRDetail!$F$2:$F$61=CD$1)*(BSRDetail!$B$2:$B$61=$B$1)*(BSRDetail!$E$2:$E$61>=$B31)*(BSRDetail!$E$2:$E$61<$B32)) -> 0 | CE31: =IF($D31=0,AVERAGE(CE$6:CE30)*$C31/10,CD31) -> 0 | CF31: =SUM(BSRDetail!$H$2:$H$61*(BSRDetail!$A$2:$A$61=$A$1)*(BSRDetail!$F$2:$F$61=CF$1)*(BSRDetail!$B$2:$B$61=$B$1)*(BSRDetail!$E$2:$E$61>=$B31)*(BSRDetail!$E$2:$E$61<$B32)) -> 0 | CG31: =IF($D31=0,AVERAGE(CG$6:CG30)*$C31/10,CF31) -> 0 | CH31: =SUM(BSRDetail!$H$2:$H$61*(BSRDetail!$A$2:$A$61=$A$1)*(BSRDetail!$F$2:$F$61=CH$1)*(BSRDetail!$B$2:$B$61=$B$1)*(BSRDetail!$E$2:$E$61>=$B31)*(BSRDetail!$E$2:$E$61<$B32)) -> 0 | CI31: =IF($D31=0,AVERAGE(CI$6:CI30)*$C31/10,CH31) -> 0 | CJ31: =SUM(BSRDetail!$H$2:$H$61*(BSRDetail!$A$2:$A$61=$A$1)*(BSRDetail!$F$2:$F$61=CJ$1)*(BSRDetail!$B$2:$B$61=$B$1)*(BSRDetail!$E$2:$E$61>=$B31)*(BSRDetail!$E$2:$E$61<$B32)) -> 0 | CK31: =IF($D31=0,AVERAGE(CK$6:CK30)*$C31/10,CJ31) -> 0 | CL31: =SUM(BSRDetail!$H$2:$H$61*(BSRDetail!$A$2:$A$61=$A$1)*(BSRDetail!$F$2:$F$61=CL$1)*(BSRDetail!$B$2:$B$61=$B$1)*(BSRDetail!$E$2:$E$61>=$B31)*(BSRDetail!$E$2:$E$61<$B32)) -> 0 | CM31: =IF($D31=0,AVERAGE(CM$6:CM30)*$C31/10,CL31) -> 0 | CN31: =SUM(BSRDetail!$H$2:$H$61*(BSRDetail!$A$2:$A$61=$A$1)*(BSRDetail!$F$2:$F$61=CN$1)*(BSRDetail!$B$2:$B$61=$B$1)*(BSRDetail!$E$2:$E$61>=$B31)*(BSRDetail!$E$2:$E$61<$B32)) -> 0 | CO31: =IF($D31=0,AVERAGE(CO$6:CO30)*$C31/10,CN31) -> 0 | CP31: =SUM(BSRDetail!$H$2:$H$61*(BSRDetail!$A$2:$A$61=$A$1)*(BSRDetail!$F$2:$F$61=CP$1)*(BSRDetail!$B$2:$B$61=$B$1)*(BSRDetail!$E$2:$E$61>=$B31)*(BSRDetail!$E$2:$E$61<$B32)) -> 0 | CQ31: =IF($D31=0,AVERAGE(CQ$6:CQ30)*$C31/10,CP31) -> 0 | CR31: =SUM(BSRDetail!$H$2:$H$61*(BSRDetail!$A$2:$A$61=$A$1)*(BSRDetail!$F$2:$F$61=CR$1)*(BSRDetail!$B$2:$B$61=$B$1)*(BSRDetail!$E$2:$E$61>=$B31)*(BSRDetail!$E$2:$E$61<$B32)) -> 0 | CS31: =IF($D31=0,AVERAGE(CS$6:CS30)*$C31/10,CR31) -> 0 | CT31: =SUM(BSRDetail!$H$2:$H$61*(BSRDetail!$A$2:$A$61=$A$1)*(BSRDetail!$F$2:$F$61=CT$1)*(BSRDetail!$B$2:$B$61=$B$1)*(BSRDetail!$E$2:$E$61>=$B31)*(BSRDetail!$E$2:$E$61<$B32)) -> 0 | CU31: =IF($D31=0,AVERAGE(CU$6:CU30)*$C31/10,CT31) -> 0 | CV31: =SUM(BSRDetail!$H$2:$H$61*(BSRDetail!$A$2:$A$61=$A$1)*(BSRDetail!$F$2:$F$61=CV$1)*(BSRDetail!$B$2:$B$61=$B$1)*(BSRDetail!$E$2:$E$61>=$B31)*(BSRDetail!$E$2:$E$61<$B32)) -> 0 | CW31: =IF($D31=0,AVERAGE(CW$6:CW30)*$C31/10,CV31) -> 0
